{"text_format":"1","workbook":"xlsx","n_sheets":8,"sheets":["Instructions","Sheet1","Reporting - Entity Details","Reporting - Clause 12","Reporting - Clause 8","Definitions","Submission Due Dates","Filename Convention"],"not_rendered":{"charts":0,"images":0,"macros":1,"external_links":0,"defined_names":0,"comments":0,"pivot_tables":0},"unopened":[],"bounds":{"document_bytes":16777216,"sheet_cells":100000,"rows_first":2000,"rows_last":500,"rows_between":2000,"halvings":0,"cell_chars":16384,"cell_head_chars":4096},"cells_cut":0,"cells_raw":0,"read":"whole","date_system":"1900"}

{"sheet":"Instructions","index":0,"n_rows":15,"n_cols":1,"rows_kept":15,"cut":false,"hidden":false,"merged":[[0,0,0,3],[1,0,1,3],[2,0,2,3],[3,0,3,3],[11,0,11,3]]}
["General Exemption Order 2022"]
["Essential Services Commission Embedded Networks Reporting Obligations Template for VR2* exemptions for new embedded networks."]
["For all other exemptions please use the relevant reporting templates available on our website."]
["How to complete your annual reporting:\nData is to be supplied to the Commission on the correct reporting template. \nData is to be provided in the relevant tabs within the reporting template. \nDefinitions and descriptions of reporting requirements are found in the Definitions tab.\nData is to be supplied on an annual basis for the period '1 January to 31 December' on or before 31 March for the previous calendar year.\nThe filename convention for the submission files is shown on the Filename Convention tab. Please note the submission files are required in excel .xlsx format. \nSend submissions to exemptionregister@esc.vic.gov.au"]
["Template Navigation"]
["Go to the Reporting - Enity Details tab"]
["Go to the Reporting - Clause 12 tab"]
["Go to the Reporting - Clause 8 tab"]
["Go to the Definitions tab"]
["Go to the Subission Due Dates tab"]
["Go to the Filename Convention tab"]
["*A new embedded network means any embedded network other than an embedded network in respect of which immediately before the commencement date**:\n     (a) a licensed retailer was selling the electricity supplied to all of the customers’ premises connected to that embedded network; \n     (b) a person was selling electricity supplied to customers’ premises connected to that embedded network under the exemption in the General Exemption 2017 identified in item 9 of column 1 of the table in the Schedule to this Order; or\n     (c) each of the following conditions was satisfied:\n          (i) electricity had not yet been supplied from that embedded network;\n          (ii) a person intended to carry out the VR2 retail activity in respect of that embedded network after the commencement date; and\n          (iii) the commitment date for that embedded network had occurred\"\n**Commencement date for new embedded networks means on or after 1 January 2023."]
["Note:"]
["Click on the links in the worksheet column headings to navigate to the definitions worksheet."]
["Select the relevant provision from the dropdown menu in the worksheet."]

{"sheet":"Sheet1","index":1,"n_rows":5,"n_cols":8,"rows_kept":5,"cut":false,"hidden":true,"merged":[]}
["2023-12-31","Yes","VR1","Type 1-4 (interval meter with communications)","VR2 for a new embedded network",null,null,"Ausnet"]
["2024-12-31","No","VR2","Type 5 (interval meter - manually read)",null,null,null,"Citipower"]
["2025-12-31",null,"VR3","Type 6 (accumulation meter)",null,null,null,"Jemena"]
["2026-12-31",null,"VR4","Type 7 (unmetered supply)",null,null,null,"Powercor"]
["2027-12-31",null,"VR5",null,null,null,null,"United Energy"]

{"sheet":"Reporting - Entity Details","index":2,"n_rows":2,"n_cols":9,"rows_kept":2,"cut":false,"hidden":false,"merged":[]}
["1. Exempt person's entity name* \n(input: text)","2. Exempt person's Australian Company Number (ACN) or Australian Business Number (ABN)*\n(input: number)","3. Exempt person's trading name (if applicable)\n(input: text)","4. Third-party service provider name (if applicable)\n(input: text)","5. New embedded network site address*\n(input: alpha-numeric )","6. Embedded network site suburb* \n(input: text)","7. Embedded network site postcode* \n(input: number)","8. New embedded network site name*\n(input: text)","9. Exemption type*\n(input: select from drop down)"]
[null,null,null,null,null,null,null,null,"VR2 for a new embedded network"]

{"sheet":"Reporting - Clause 12","index":3,"n_rows":500,"n_cols":8,"rows_kept":500,"cut":false,"hidden":false,"merged":[]}
["New embedded network site address*","New embedded network site name*","10. Reporting period end date*\n(input: date)","11. Supply facility entity name*\n(input: select from drop down)","12. Type(s) of meters installed at the new embedded network excluding the parent meter*\n(input: select from drop down)","13. Total number of residential customers whose premises are connected to the new embedded network*\n(input: number)","14. Total number of meters installed at the new embedded network excluding the parent meter*\n(input: number)","15. Meter owner entity name excluding the parent meter*\n(input: text)"]
[{"$f":"IF(Table22[[#This Row],[5. New embedded network site address*\n(input: alpha-numeric )]]=\"\",\"\",Table22[[#This Row],[5. New embedded network site address*\n(input: alpha-numeric )]])","v":""},{"$f":"IF(Table22[[#This Row],[8. New embedded network site name*\n(input: text)]]=\"\",\"\",Table22[[#This Row],[8. New embedded network site name*\n(input: text)]])","v":""},"2024-12-31"]
[{"$f":"IF(Table22[[#This Row],[5. New embedded network site address*\n(input: alpha-numeric )]]=\"\",\"\",Table22[[#This Row],[5. New embedded network site address*\n(input: alpha-numeric )]])","v":""},{"$f":"IF(Table22[[#This Row],[8. New embedded network site name*\n(input: text)]]=\"\",\"\",Table22[[#This Row],[8. New embedded network site name*\n(input: text)]])","v":""}]
[{"$f":"IF(Table22[[#This Row],[5. New embedded network site address*\n(input: alpha-numeric )]]=\"\",\"\",Table22[[#This Row],[5. New embedded network site address*\n(input: alpha-numeric )]])","v":""},{"$f":"IF(Table22[[#This Row],[8. New embedded network site name*\n(input: text)]]=\"\",\"\",Table22[[#This Row],[8. New embedded network site name*\n(input: text)]])","v":""}]
[{"$f":"IF(Table22[[#This Row],[5. New embedded network site address*\n(input: alpha-numeric )]]=\"\",\"\",Table22[[#This Row],[5. New embedded network site address*\n(input: alpha-numeric )]])","v":""},{"$f":"IF(Table22[[#This Row],[8. New embedded network site name*\n(input: text)]]=\"\",\"\",Table22[[#This Row],[8. New embedded network site name*\n(input: text)]])","v":""}]
[{"$f":"IF(Table22[[#This Row],[5. New embedded network site address*\n(input: alpha-numeric )]]=\"\",\"\",Table22[[#This Row],[5. New embedded network site address*\n(input: alpha-numeric )]])","v":""},{"$f":"IF(Table22[[#This Row],[8. New embedded network site name*\n(input: text)]]=\"\",\"\",Table22[[#This Row],[8. New embedded network site name*\n(input: text)]])","v":""}]
[{"$f":"IF(Table22[[#This Row],[5. New embedded network site address*\n(input: alpha-numeric )]]=\"\",\"\",Table22[[#This Row],[5. New embedded network site address*\n(input: alpha-numeric )]])","v":""},{"$f":"IF(Table22[[#This Row],[8. New embedded network site name*\n(input: text)]]=\"\",\"\",Table22[[#This Row],[8. New embedded network site name*\n(input: text)]])","v":""}]
[{"$f":"IF(Table22[[#This Row],[5. New embedded network site address*\n(input: alpha-numeric )]]=\"\",\"\",Table22[[#This Row],[5. New embedded network site address*\n(input: alpha-numeric )]])","v":""},{"$f":"IF(Table22[[#This Row],[8. New embedded network site name*\n(input: text)]]=\"\",\"\",Table22[[#This Row],[8. New embedded network site name*\n(input: text)]])","v":""}]
[{"$f":"IF(Table22[[#This Row],[5. New embedded network site address*\n(input: alpha-numeric )]]=\"\",\"\",Table22[[#This Row],[5. New embedded network site address*\n(input: alpha-numeric )]])","v":""},{"$f":"IF(Table22[[#This Row],[8. New embedded network site name*\n(input: text)]]=\"\",\"\",Table22[[#This Row],[8. New embedded network site name*\n(input: text)]])","v":""}]
[{"$f":"IF(Table22[[#This Row],[5. New embedded network site address*\n(input: alpha-numeric )]]=\"\",\"\",Table22[[#This Row],[5. New embedded network site address*\n(input: alpha-numeric )]])","v":""},{"$f":"IF(Table22[[#This Row],[8. New embedded network site name*\n(input: text)]]=\"\",\"\",Table22[[#This Row],[8. New embedded network site name*\n(input: text)]])","v":""}]
[{"$f":"IF(Table22[[#This Row],[5. New embedded network site address*\n(input: alpha-numeric )]]=\"\",\"\",Table22[[#This Row],[5. New embedded network site address*\n(input: alpha-numeric )]])","v":""},{"$f":"IF(Table22[[#This Row],[8. New embedded network site name*\n(input: text)]]=\"\",\"\",Table22[[#This Row],[8. New embedded network site name*\n(input: text)]])","v":""}]
[{"$f":"IF(Table22[[#This Row],[5. New embedded network site address*\n(input: alpha-numeric )]]=\"\",\"\",Table22[[#This Row],[5. New embedded network site address*\n(input: alpha-numeric )]])","v":""},{"$f":"IF(Table22[[#This Row],[8. New embedded network site name*\n(input: text)]]=\"\",\"\",Table22[[#This Row],[8. New embedded network site name*\n(input: text)]])","v":""}]
[{"$f":"IF(Table22[[#This Row],[5. New embedded network site address*\n(input: alpha-numeric )]]=\"\",\"\",Table22[[#This Row],[5. New embedded network site address*\n(input: alpha-numeric )]])","v":""},{"$f":"IF(Table22[[#This Row],[8. New embedded network site name*\n(input: text)]]=\"\",\"\",Table22[[#This Row],[8. New embedded network site name*\n(input: text)]])","v":""}]
[{"$f":"IF(Table22[[#This Row],[5. New embedded network site address*\n(input: alpha-numeric )]]=\"\",\"\",Table22[[#This Row],[5. New embedded network site address*\n(input: alpha-numeric )]])","v":""},{"$f":"IF(Table22[[#This Row],[8. New embedded network site name*\n(input: text)]]=\"\",\"\",Table22[[#This Row],[8. New embedded network site name*\n(input: text)]])","v":""}]
[{"$f":"IF(Table22[[#This Row],[5. New embedded network site address*\n(input: alpha-numeric )]]=\"\",\"\",Table22[[#This Row],[5. New embedded network site address*\n(input: alpha-numeric )]])","v":""},{"$f":"IF(Table22[[#This Row],[8. New embedded network site name*\n(input: text)]]=\"\",\"\",Table22[[#This Row],[8. New embedded network site name*\n(input: text)]])","v":""}]
[{"$f":"IF(Table22[[#This Row],[5. New embedded network site address*\n(input: alpha-numeric )]]=\"\",\"\",Table22[[#This Row],[5. New embedded network site address*\n(input: alpha-numeric )]])","v":""},{"$f":"IF(Table22[[#This Row],[8. New embedded network site name*\n(input: text)]]=\"\",\"\",Table22[[#This Row],[8. New embedded network site name*\n(input: text)]])","v":""}]
[{"$f":"IF(Table22[[#This Row],[5. New embedded network site address*\n(input: alpha-numeric )]]=\"\",\"\",Table22[[#This Row],[5. New embedded network site address*\n(input: alpha-numeric )]])","v":""},{"$f":"IF(Table22[[#This Row],[8. New embedded network site name*\n(input: text)]]=\"\",\"\",Table22[[#This Row],[8. New embedded network site name*\n(input: text)]])","v":""}]
[{"$f":"IF(Table22[[#This Row],[5. New embedded network site address*\n(input: alpha-numeric )]]=\"\",\"\",Table22[[#This Row],[5. New embedded network site address*\n(input: alpha-numeric )]])","v":""},{"$f":"IF(Table22[[#This Row],[8. New embedded network site name*\n(input: text)]]=\"\",\"\",Table22[[#This Row],[8. New embedded network site name*\n(input: text)]])","v":""}]
[{"$f":"IF(Table22[[#This Row],[5. New embedded network site address*\n(input: alpha-numeric )]]=\"\",\"\",Table22[[#This Row],[5. New embedded network site address*\n(input: alpha-numeric )]])","v":""},{"$f":"IF(Table22[[#This Row],[8. New embedded network site name*\n(input: text)]]=\"\",\"\",Table22[[#This Row],[8. New embedded network site name*\n(input: text)]])","v":""}]
[{"$f":"IF(Table22[[#This Row],[5. New embedded network site address*\n(input: alpha-numeric )]]=\"\",\"\",Table22[[#This Row],[5. New embedded network site address*\n(input: alpha-numeric )]])","v":""},{"$f":"IF(Table22[[#This Row],[8. New embedded network site name*\n(input: text)]]=\"\",\"\",Table22[[#This Row],[8. New embedded network site name*\n(input: text)]])","v":""}]
[{"$f":"IF(Table22[[#This Row],[5. New embedded network site address*\n(input: alpha-numeric )]]=\"\",\"\",Table22[[#This Row],[5. New embedded network site address*\n(input: alpha-numeric )]])","v":""},{"$f":"IF(Table22[[#This Row],[8. New embedded network site name*\n(input: text)]]=\"\",\"\",Table22[[#This Row],[8. New embedded network site name*\n(input: text)]])","v":""}]
[{"$f":"IF(Table22[[#This Row],[5. New embedded network site address*\n(input: alpha-numeric )]]=\"\",\"\",Table22[[#This Row],[5. New embedded network site address*\n(input: alpha-numeric )]])","v":""},{"$f":"IF(Table22[[#This Row],[8. New embedded network site name*\n(input: text)]]=\"\",\"\",Table22[[#This Row],[8. New embedded network site name*\n(input: text)]])","v":""}]
[{"$f":"IF(Table22[[#This Row],[5. New embedded network site address*\n(input: alpha-numeric )]]=\"\",\"\",Table22[[#This Row],[5. New embedded network site address*\n(input: alpha-numeric )]])","v":""},{"$f":"IF(Table22[[#This Row],[8. New embedded network site name*\n(input: text)]]=\"\",\"\",Table22[[#This Row],[8. New embedded network site name*\n(input: text)]])","v":""}]
[{"$f":"IF(Table22[[#This Row],[5. New embedded network site address*\n(input: alpha-numeric )]]=\"\",\"\",Table22[[#This Row],[5. New embedded network site address*\n(input: alpha-numeric )]])","v":""},{"$f":"IF(Table22[[#This Row],[8. New embedded network site name*\n(input: text)]]=\"\",\"\",Table22[[#This Row],[8. New embedded network site name*\n(input: text)]])","v":""}]
[{"$f":"IF(Table22[[#This Row],[5. New embedded network site address*\n(input: alpha-numeric )]]=\"\",\"\",Table22[[#This Row],[5. New embedded network site address*\n(input: alpha-numeric )]])","v":""},{"$f":"IF(Table22[[#This Row],[8. New embedded network site name*\n(input: text)]]=\"\",\"\",Table22[[#This Row],[8. New embedded network site name*\n(input: text)]])","v":""}]
[{"$f":"IF(Table22[[#This Row],[5. New embedded network site address*\n(input: alpha-numeric )]]=\"\",\"\",Table22[[#This Row],[5. New embedded network site address*\n(input: alpha-numeric )]])","v":""},{"$f":"IF(Table22[[#This Row],[8. New embedded network site name*\n(input: text)]]=\"\",\"\",Table22[[#This Row],[8. New embedded network site name*\n(input: text)]])","v":""}]
[{"$f":"IF(Table22[[#This Row],[5. New embedded network site address*\n(input: alpha-numeric )]]=\"\",\"\",Table22[[#This Row],[5. New embedded network site address*\n(input: alpha-numeric )]])","v":""},{"$f":"IF(Table22[[#This Row],[8. New embedded network site name*\n(input: text)]]=\"\",\"\",Table22[[#This Row],[8. New embedded network site name*\n(input: text)]])","v":""}]
[{"$f":"IF(Table22[[#This Row],[5. New embedded network site address*\n(input: alpha-numeric )]]=\"\",\"\",Table22[[#This Row],[5. New embedded network site address*\n(input: alpha-numeric )]])","v":""},{"$f":"IF(Table22[[#This Row],[8. New embedded network site name*\n(input: text)]]=\"\",\"\",Table22[[#This Row],[8. New embedded network site name*\n(input: text)]])","v":""}]
[{"$f":"IF(Table22[[#This Row],[5. New embedded network site address*\n(input: alpha-numeric )]]=\"\",\"\",Table22[[#This Row],[5. New embedded network site address*\n(input: alpha-numeric )]])","v":""},{"$f":"IF(Table22[[#This Row],[8. New embedded network site name*\n(input: text)]]=\"\",\"\",Table22[[#This Row],[8. New embedded network site name*\n(input: text)]])","v":""}]
[{"$f":"IF(Table22[[#This Row],[5. New embedded network site address*\n(input: alpha-numeric )]]=\"\",\"\",Table22[[#This Row],[5. New embedded network site address*\n(input: alpha-numeric )]])","v":""},{"$f":"IF(Table22[[#This Row],[8. New embedded network site name*\n(input: text)]]=\"\",\"\",Table22[[#This Row],[8. New embedded network site name*\n(input: text)]])","v":""}]
[{"$f":"IF(Table22[[#This Row],[5. New embedded network site address*\n(input: alpha-numeric )]]=\"\",\"\",Table22[[#This Row],[5. New embedded network site address*\n(input: alpha-numeric )]])","v":""},{"$f":"IF(Table22[[#This Row],[8. New embedded network site name*\n(input: text)]]=\"\",\"\",Table22[[#This Row],[8. New embedded network site name*\n(input: text)]])","v":""}]
[{"$f":"IF(Table22[[#This Row],[5. New embedded network site address*\n(input: alpha-numeric )]]=\"\",\"\",Table22[[#This Row],[5. New embedded network site address*\n(input: alpha-numeric )]])","v":""},{"$f":"IF(Table22[[#This Row],[8. New embedded network site name*\n(input: text)]]=\"\",\"\",Table22[[#This Row],[8. New embedded network site name*\n(input: text)]])","v":""}]
[{"$f":"IF(Table22[[#This Row],[5. New embedded network site address*\n(input: alpha-numeric )]]=\"\",\"\",Table22[[#This Row],[5. New embedded network site address*\n(input: alpha-numeric )]])","v":""},{"$f":"IF(Table22[[#This Row],[8. New embedded network site name*\n(input: text)]]=\"\",\"\",Table22[[#This Row],[8. New embedded network site name*\n(input: text)]])","v":""}]
[{"$f":"IF(Table22[[#This Row],[5. New embedded network site address*\n(input: alpha-numeric )]]=\"\",\"\",Table22[[#This Row],[5. New embedded network site address*\n(input: alpha-numeric )]])","v":""},{"$f":"IF(Table22[[#This Row],[8. New embedded network site name*\n(input: text)]]=\"\",\"\",Table22[[#This Row],[8. New embedded network site name*\n(input: text)]])","v":""}]
[{"$f":"IF(Table22[[#This Row],[5. New embedded network site address*\n(input: alpha-numeric )]]=\"\",\"\",Table22[[#This Row],[5. New embedded network site address*\n(input: alpha-numeric )]])","v":""},{"$f":"IF(Table22[[#This Row],[8. New embedded network site name*\n(input: text)]]=\"\",\"\",Table22[[#This Row],[8. New embedded network site name*\n(input: text)]])","v":""}]
[{"$f":"IF(Table22[[#This Row],[5. New embedded network site address*\n(input: alpha-numeric )]]=\"\",\"\",Table22[[#This Row],[5. New embedded network site address*\n(input: alpha-numeric )]])","v":""},{"$f":"IF(Table22[[#This Row],[8. New embedded network site name*\n(input: text)]]=\"\",\"\",Table22[[#This Row],[8. New embedded network site name*\n(input: text)]])","v":""}]
[{"$f":"IF(Table22[[#This Row],[5. New embedded network site address*\n(input: alpha-numeric )]]=\"\",\"\",Table22[[#This Row],[5. New embedded network site address*\n(input: alpha-numeric )]])","v":""},{"$f":"IF(Table22[[#This Row],[8. New embedded network site name*\n(input: text)]]=\"\",\"\",Table22[[#This Row],[8. New embedded network site name*\n(input: text)]])","v":""}]
[{"$f":"IF(Table22[[#This Row],[5. New embedded network site address*\n(input: alpha-numeric )]]=\"\",\"\",Table22[[#This Row],[5. New embedded network site address*\n(input: alpha-numeric )]])","v":""},{"$f":"IF(Table22[[#This Row],[8. New embedded network site name*\n(input: text)]]=\"\",\"\",Table22[[#This Row],[8. New embedded network site name*\n(input: text)]])","v":""}]
[{"$f":"IF(Table22[[#This Row],[5. New embedded network site address*\n(input: alpha-numeric )]]=\"\",\"\",Table22[[#This Row],[5. New embedded network site address*\n(input: alpha-numeric )]])","v":""},{"$f":"IF(Table22[[#This Row],[8. New embedded network site name*\n(input: text)]]=\"\",\"\",Table22[[#This Row],[8. New embedded network site name*\n(input: text)]])","v":""}]
[{"$f":"IF(Table22[[#This Row],[5. New embedded network site address*\n(input: alpha-numeric )]]=\"\",\"\",Table22[[#This Row],[5. New embedded network site address*\n(input: alpha-numeric )]])","v":""},{"$f":"IF(Table22[[#This Row],[8. New embedded network site name*\n(input: text)]]=\"\",\"\",Table22[[#This Row],[8. New embedded network site name*\n(input: text)]])","v":""}]
[{"$f":"IF(Table22[[#This Row],[5. New embedded network site address*\n(input: alpha-numeric )]]=\"\",\"\",Table22[[#This Row],[5. New embedded network site address*\n(input: alpha-numeric )]])","v":""},{"$f":"IF(Table22[[#This Row],[8. New embedded network site name*\n(input: text)]]=\"\",\"\",Table22[[#This Row],[8. New embedded network site name*\n(input: text)]])","v":""}]
[{"$f":"IF(Table22[[#This Row],[5. New embedded network site address*\n(input: alpha-numeric )]]=\"\",\"\",Table22[[#This Row],[5. New embedded network site address*\n(input: alpha-numeric )]])","v":""},{"$f":"IF(Table22[[#This Row],[8. New embedded network site name*\n(input: text)]]=\"\",\"\",Table22[[#This Row],[8. New embedded network site name*\n(input: text)]])","v":""}]
[{"$f":"IF(Table22[[#This Row],[5. New embedded network site address*\n(input: alpha-numeric )]]=\"\",\"\",Table22[[#This Row],[5. New embedded network site address*\n(input: alpha-numeric )]])","v":""},{"$f":"IF(Table22[[#This Row],[8. New embedded network site name*\n(input: text)]]=\"\",\"\",Table22[[#This Row],[8. New embedded network site name*\n(input: text)]])","v":""}]
[{"$f":"IF(Table22[[#This Row],[5. New embedded network site address*\n(input: alpha-numeric )]]=\"\",\"\",Table22[[#This Row],[5. New embedded network site address*\n(input: alpha-numeric )]])","v":""},{"$f":"IF(Table22[[#This Row],[8. New embedded network site name*\n(input: text)]]=\"\",\"\",Table22[[#This Row],[8. New embedded network site name*\n(input: text)]])","v":""}]
[{"$f":"IF(Table22[[#This Row],[5. New embedded network site address*\n(input: alpha-numeric )]]=\"\",\"\",Table22[[#This Row],[5. New embedded network site address*\n(input: alpha-numeric )]])","v":""},{"$f":"IF(Table22[[#This Row],[8. New embedded network site name*\n(input: text)]]=\"\",\"\",Table22[[#This Row],[8. New embedded network site name*\n(input: text)]])","v":""}]
[{"$f":"IF(Table22[[#This Row],[5. New embedded network site address*\n(input: alpha-numeric )]]=\"\",\"\",Table22[[#This Row],[5. New embedded network site address*\n(input: alpha-numeric )]])","v":""},{"$f":"IF(Table22[[#This Row],[8. New embedded network site name*\n(input: text)]]=\"\",\"\",Table22[[#This Row],[8. New embedded network site name*\n(input: text)]])","v":""}]
[{"$f":"IF(Table22[[#This Row],[5. New embedded network site address*\n(input: alpha-numeric )]]=\"\",\"\",Table22[[#This Row],[5. New embedded network site address*\n(input: alpha-numeric )]])","v":""},{"$f":"IF(Table22[[#This Row],[8. New embedded network site name*\n(input: text)]]=\"\",\"\",Table22[[#This Row],[8. New embedded network site name*\n(input: text)]])","v":""}]
[{"$f":"IF(Table22[[#This Row],[5. New embedded network site address*\n(input: alpha-numeric )]]=\"\",\"\",Table22[[#This Row],[5. New embedded network site address*\n(input: alpha-numeric )]])","v":""},{"$f":"IF(Table22[[#This Row],[8. New embedded network site name*\n(input: text)]]=\"\",\"\",Table22[[#This Row],[8. New embedded network site name*\n(input: text)]])","v":""}]
[{"$f":"IF(Table22[[#This Row],[5. New embedded network site address*\n(input: alpha-numeric )]]=\"\",\"\",Table22[[#This Row],[5. New embedded network site address*\n(input: alpha-numeric )]])","v":""},{"$f":"IF(Table22[[#This Row],[8. New embedded network site name*\n(input: text)]]=\"\",\"\",Table22[[#This Row],[8. New embedded network site name*\n(input: text)]])","v":""}]
[{"$f":"IF(Table22[[#This Row],[5. New embedded network site address*\n(input: alpha-numeric )]]=\"\",\"\",Table22[[#This Row],[5. New embedded network site address*\n(input: alpha-numeric )]])","v":""},{"$f":"IF(Table22[[#This Row],[8. New embedded network site name*\n(input: text)]]=\"\",\"\",Table22[[#This Row],[8. New embedded network site name*\n(input: text)]])","v":""}]
[{"$f":"IF(Table22[[#This Row],[5. New embedded network site address*\n(input: alpha-numeric )]]=\"\",\"\",Table22[[#This Row],[5. New embedded network site address*\n(input: alpha-numeric )]])","v":""},{"$f":"IF(Table22[[#This Row],[8. New embedded network site name*\n(input: text)]]=\"\",\"\",Table22[[#This Row],[8. New embedded network site name*\n(input: text)]])","v":""}]
[{"$f":"IF(Table22[[#This Row],[5. New embedded network site address*\n(input: alpha-numeric )]]=\"\",\"\",Table22[[#This Row],[5. New embedded network site address*\n(input: alpha-numeric )]])","v":""},{"$f":"IF(Table22[[#This Row],[8. New embedded network site name*\n(input: text)]]=\"\",\"\",Table22[[#This Row],[8. New embedded network site name*\n(input: text)]])","v":""}]
[{"$f":"IF(Table22[[#This Row],[5. New embedded network site address*\n(input: alpha-numeric )]]=\"\",\"\",Table22[[#This Row],[5. New embedded network site address*\n(input: alpha-numeric )]])","v":""},{"$f":"IF(Table22[[#This Row],[8. New embedded network site name*\n(input: text)]]=\"\",\"\",Table22[[#This Row],[8. New embedded network site name*\n(input: text)]])","v":""}]
[{"$f":"IF(Table22[[#This Row],[5. New embedded network site address*\n(input: alpha-numeric )]]=\"\",\"\",Table22[[#This Row],[5. New embedded network site address*\n(input: alpha-numeric )]])","v":""},{"$f":"IF(Table22[[#This Row],[8. New embedded network site name*\n(input: text)]]=\"\",\"\",Table22[[#This Row],[8. New embedded network site name*\n(input: text)]])","v":""}]
[{"$f":"IF(Table22[[#This Row],[5. New embedded network site address*\n(input: alpha-numeric )]]=\"\",\"\",Table22[[#This Row],[5. New embedded network site address*\n(input: alpha-numeric )]])","v":""},{"$f":"IF(Table22[[#This Row],[8. New embedded network site name*\n(input: text)]]=\"\",\"\",Table22[[#This Row],[8. New embedded network site name*\n(input: text)]])","v":""}]
[{"$f":"IF(Table22[[#This Row],[5. New embedded network site address*\n(input: alpha-numeric )]]=\"\",\"\",Table22[[#This Row],[5. New embedded network site address*\n(input: alpha-numeric )]])","v":""},{"$f":"IF(Table22[[#This Row],[8. New embedded network site name*\n(input: text)]]=\"\",\"\",Table22[[#This Row],[8. New embedded network site name*\n(input: text)]])","v":""}]
[{"$f":"IF(Table22[[#This Row],[5. New embedded network site address*\n(input: alpha-numeric )]]=\"\",\"\",Table22[[#This Row],[5. New embedded network site address*\n(input: alpha-numeric )]])","v":""},{"$f":"IF(Table22[[#This Row],[8. New embedded network site name*\n(input: text)]]=\"\",\"\",Table22[[#This Row],[8. New embedded network site name*\n(input: text)]])","v":""}]
[{"$f":"IF(Table22[[#This Row],[5. New embedded network site address*\n(input: alpha-numeric )]]=\"\",\"\",Table22[[#This Row],[5. New embedded network site address*\n(input: alpha-numeric )]])","v":""},{"$f":"IF(Table22[[#This Row],[8. New embedded network site name*\n(input: text)]]=\"\",\"\",Table22[[#This Row],[8. New embedded network site name*\n(input: text)]])","v":""}]
[{"$f":"IF(Table22[[#This Row],[5. New embedded network site address*\n(input: alpha-numeric )]]=\"\",\"\",Table22[[#This Row],[5. New embedded network site address*\n(input: alpha-numeric )]])","v":""},{"$f":"IF(Table22[[#This Row],[8. New embedded network site name*\n(input: text)]]=\"\",\"\",Table22[[#This Row],[8. New embedded network site name*\n(input: text)]])","v":""}]
[{"$f":"IF(Table22[[#This Row],[5. New embedded network site address*\n(input: alpha-numeric )]]=\"\",\"\",Table22[[#This Row],[5. New embedded network site address*\n(input: alpha-numeric )]])","v":""},{"$f":"IF(Table22[[#This Row],[8. New embedded network site name*\n(input: text)]]=\"\",\"\",Table22[[#This Row],[8. New embedded network site name*\n(input: text)]])","v":""}]
[{"$f":"IF(Table22[[#This Row],[5. New embedded network site address*\n(input: alpha-numeric )]]=\"\",\"\",Table22[[#This Row],[5. New embedded network site address*\n(input: alpha-numeric )]])","v":""},{"$f":"IF(Table22[[#This Row],[8. New embedded network site name*\n(input: text)]]=\"\",\"\",Table22[[#This Row],[8. New embedded network site name*\n(input: text)]])","v":""}]
[{"$f":"IF(Table22[[#This Row],[5. New embedded network site address*\n(input: alpha-numeric )]]=\"\",\"\",Table22[[#This Row],[5. New embedded network site address*\n(input: alpha-numeric )]])","v":""},{"$f":"IF(Table22[[#This Row],[8. New embedded network site name*\n(input: text)]]=\"\",\"\",Table22[[#This Row],[8. New embedded network site name*\n(input: text)]])","v":""}]
[{"$f":"IF(Table22[[#This Row],[5. New embedded network site address*\n(input: alpha-numeric )]]=\"\",\"\",Table22[[#This Row],[5. New embedded network site address*\n(input: alpha-numeric )]])","v":""},{"$f":"IF(Table22[[#This Row],[8. New embedded network site name*\n(input: text)]]=\"\",\"\",Table22[[#This Row],[8. New embedded network site name*\n(input: text)]])","v":""}]
[{"$f":"IF(Table22[[#This Row],[5. New embedded network site address*\n(input: alpha-numeric )]]=\"\",\"\",Table22[[#This Row],[5. New embedded network site address*\n(input: alpha-numeric )]])","v":""},{"$f":"IF(Table22[[#This Row],[8. New embedded network site name*\n(input: text)]]=\"\",\"\",Table22[[#This Row],[8. New embedded network site name*\n(input: text)]])","v":""}]
[{"$f":"IF(Table22[[#This Row],[5. New embedded network site address*\n(input: alpha-numeric )]]=\"\",\"\",Table22[[#This Row],[5. New embedded network site address*\n(input: alpha-numeric )]])","v":""},{"$f":"IF(Table22[[#This Row],[8. New embedded network site name*\n(input: text)]]=\"\",\"\",Table22[[#This Row],[8. New embedded network site name*\n(input: text)]])","v":""}]
[{"$f":"IF(Table22[[#This Row],[5. New embedded network site address*\n(input: alpha-numeric )]]=\"\",\"\",Table22[[#This Row],[5. New embedded network site address*\n(input: alpha-numeric )]])","v":""},{"$f":"IF(Table22[[#This Row],[8. New embedded network site name*\n(input: text)]]=\"\",\"\",Table22[[#This Row],[8. New embedded network site name*\n(input: text)]])","v":""}]
[{"$f":"IF(Table22[[#This Row],[5. New embedded network site address*\n(input: alpha-numeric )]]=\"\",\"\",Table22[[#This Row],[5. New embedded network site address*\n(input: alpha-numeric )]])","v":""},{"$f":"IF(Table22[[#This Row],[8. New embedded network site name*\n(input: text)]]=\"\",\"\",Table22[[#This Row],[8. New embedded network site name*\n(input: text)]])","v":""}]
[{"$f":"IF(Table22[[#This Row],[5. New embedded network site address*\n(input: alpha-numeric )]]=\"\",\"\",Table22[[#This Row],[5. New embedded network site address*\n(input: alpha-numeric )]])","v":""},{"$f":"IF(Table22[[#This Row],[8. New embedded network site name*\n(input: text)]]=\"\",\"\",Table22[[#This Row],[8. New embedded network site name*\n(input: text)]])","v":""}]
[{"$f":"IF(Table22[[#This Row],[5. New embedded network site address*\n(input: alpha-numeric )]]=\"\",\"\",Table22[[#This Row],[5. New embedded network site address*\n(input: alpha-numeric )]])","v":""},{"$f":"IF(Table22[[#This Row],[8. New embedded network site name*\n(input: text)]]=\"\",\"\",Table22[[#This Row],[8. New embedded network site name*\n(input: text)]])","v":""}]
[{"$f":"IF(Table22[[#This Row],[5. New embedded network site address*\n(input: alpha-numeric )]]=\"\",\"\",Table22[[#This Row],[5. New embedded network site address*\n(input: alpha-numeric )]])","v":""},{"$f":"IF(Table22[[#This Row],[8. New embedded network site name*\n(input: text)]]=\"\",\"\",Table22[[#This Row],[8. New embedded network site name*\n(input: text)]])","v":""}]
[{"$f":"IF(Table22[[#This Row],[5. New embedded network site address*\n(input: alpha-numeric )]]=\"\",\"\",Table22[[#This Row],[5. New embedded network site address*\n(input: alpha-numeric )]])","v":""},{"$f":"IF(Table22[[#This Row],[8. New embedded network site name*\n(input: text)]]=\"\",\"\",Table22[[#This Row],[8. New embedded network site name*\n(input: text)]])","v":""}]
[{"$f":"IF(Table22[[#This Row],[5. New embedded network site address*\n(input: alpha-numeric )]]=\"\",\"\",Table22[[#This Row],[5. New embedded network site address*\n(input: alpha-numeric )]])","v":""},{"$f":"IF(Table22[[#This Row],[8. New embedded network site name*\n(input: text)]]=\"\",\"\",Table22[[#This Row],[8. New embedded network site name*\n(input: text)]])","v":""}]
[{"$f":"IF(Table22[[#This Row],[5. New embedded network site address*\n(input: alpha-numeric )]]=\"\",\"\",Table22[[#This Row],[5. New embedded network site address*\n(input: alpha-numeric )]])","v":""},{"$f":"IF(Table22[[#This Row],[8. New embedded network site name*\n(input: text)]]=\"\",\"\",Table22[[#This Row],[8. New embedded network site name*\n(input: text)]])","v":""}]
[{"$f":"IF(Table22[[#This Row],[5. New embedded network site address*\n(input: alpha-numeric )]]=\"\",\"\",Table22[[#This Row],[5. New embedded network site address*\n(input: alpha-numeric )]])","v":""},{"$f":"IF(Table22[[#This Row],[8. New embedded network site name*\n(input: text)]]=\"\",\"\",Table22[[#This Row],[8. New embedded network site name*\n(input: text)]])","v":""}]
[{"$f":"IF(Table22[[#This Row],[5. New embedded network site address*\n(input: alpha-numeric )]]=\"\",\"\",Table22[[#This Row],[5. New embedded network site address*\n(input: alpha-numeric )]])","v":""},{"$f":"IF(Table22[[#This Row],[8. New embedded network site name*\n(input: text)]]=\"\",\"\",Table22[[#This Row],[8. New embedded network site name*\n(input: text)]])","v":""}]
[{"$f":"IF(Table22[[#This Row],[5. New embedded network site address*\n(input: alpha-numeric )]]=\"\",\"\",Table22[[#This Row],[5. New embedded network site address*\n(input: alpha-numeric )]])","v":""},{"$f":"IF(Table22[[#This Row],[8. New embedded network site name*\n(input: text)]]=\"\",\"\",Table22[[#This Row],[8. New embedded network site name*\n(input: text)]])","v":""}]
[{"$f":"IF(Table22[[#This Row],[5. New embedded network site address*\n(input: alpha-numeric )]]=\"\",\"\",Table22[[#This Row],[5. New embedded network site address*\n(input: alpha-numeric )]])","v":""},{"$f":"IF(Table22[[#This Row],[8. New embedded network site name*\n(input: text)]]=\"\",\"\",Table22[[#This Row],[8. New embedded network site name*\n(input: text)]])","v":""}]
[{"$f":"IF(Table22[[#This Row],[5. New embedded network site address*\n(input: alpha-numeric )]]=\"\",\"\",Table22[[#This Row],[5. New embedded network site address*\n(input: alpha-numeric )]])","v":""},{"$f":"IF(Table22[[#This Row],[8. New embedded network site name*\n(input: text)]]=\"\",\"\",Table22[[#This Row],[8. New embedded network site name*\n(input: text)]])","v":""}]
[{"$f":"IF(Table22[[#This Row],[5. New embedded network site address*\n(input: alpha-numeric )]]=\"\",\"\",Table22[[#This Row],[5. New embedded network site address*\n(input: alpha-numeric )]])","v":""},{"$f":"IF(Table22[[#This Row],[8. New embedded network site name*\n(input: text)]]=\"\",\"\",Table22[[#This Row],[8. New embedded network site name*\n(input: text)]])","v":""}]
[{"$f":"IF(Table22[[#This Row],[5. New embedded network site address*\n(input: alpha-numeric )]]=\"\",\"\",Table22[[#This Row],[5. New embedded network site address*\n(input: alpha-numeric )]])","v":""},{"$f":"IF(Table22[[#This Row],[8. New embedded network site name*\n(input: text)]]=\"\",\"\",Table22[[#This Row],[8. New embedded network site name*\n(input: text)]])","v":""}]
[{"$f":"IF(Table22[[#This Row],[5. New embedded network site address*\n(input: alpha-numeric )]]=\"\",\"\",Table22[[#This Row],[5. New embedded network site address*\n(input: alpha-numeric )]])","v":""},{"$f":"IF(Table22[[#This Row],[8. New embedded network site name*\n(input: text)]]=\"\",\"\",Table22[[#This Row],[8. New embedded network site name*\n(input: text)]])","v":""}]
[{"$f":"IF(Table22[[#This Row],[5. New embedded network site address*\n(input: alpha-numeric )]]=\"\",\"\",Table22[[#This Row],[5. New embedded network site address*\n(input: alpha-numeric )]])","v":""},{"$f":"IF(Table22[[#This Row],[8. New embedded network site name*\n(input: text)]]=\"\",\"\",Table22[[#This Row],[8. New embedded network site name*\n(input: text)]])","v":""}]
[{"$f":"IF(Table22[[#This Row],[5. New embedded network site address*\n(input: alpha-numeric )]]=\"\",\"\",Table22[[#This Row],[5. New embedded network site address*\n(input: alpha-numeric )]])","v":""},{"$f":"IF(Table22[[#This Row],[8. New embedded network site name*\n(input: text)]]=\"\",\"\",Table22[[#This Row],[8. New embedded network site name*\n(input: text)]])","v":""}]
[{"$f":"IF(Table22[[#This Row],[5. New embedded network site address*\n(input: alpha-numeric )]]=\"\",\"\",Table22[[#This Row],[5. New embedded network site address*\n(input: alpha-numeric )]])","v":""},{"$f":"IF(Table22[[#This Row],[8. New embedded network site name*\n(input: text)]]=\"\",\"\",Table22[[#This Row],[8. New embedded network site name*\n(input: text)]])","v":""}]
[{"$f":"IF(Table22[[#This Row],[5. New embedded network site address*\n(input: alpha-numeric )]]=\"\",\"\",Table22[[#This Row],[5. New embedded network site address*\n(input: alpha-numeric )]])","v":""},{"$f":"IF(Table22[[#This Row],[8. New embedded network site name*\n(input: text)]]=\"\",\"\",Table22[[#This Row],[8. New embedded network site name*\n(input: text)]])","v":""}]
[{"$f":"IF(Table22[[#This Row],[5. New embedded network site address*\n(input: alpha-numeric )]]=\"\",\"\",Table22[[#This Row],[5. New embedded network site address*\n(input: alpha-numeric )]])","v":""},{"$f":"IF(Table22[[#This Row],[8. New embedded network site name*\n(input: text)]]=\"\",\"\",Table22[[#This Row],[8. New embedded network site name*\n(input: text)]])","v":""}]
[{"$f":"IF(Table22[[#This Row],[5. New embedded network site address*\n(input: alpha-numeric )]]=\"\",\"\",Table22[[#This Row],[5. New embedded network site address*\n(input: alpha-numeric )]])","v":""},{"$f":"IF(Table22[[#This Row],[8. New embedded network site name*\n(input: text)]]=\"\",\"\",Table22[[#This Row],[8. New embedded network site name*\n(input: text)]])","v":""}]
[{"$f":"IF(Table22[[#This Row],[5. New embedded network site address*\n(input: alpha-numeric )]]=\"\",\"\",Table22[[#This Row],[5. New embedded network site address*\n(input: alpha-numeric )]])","v":""},{"$f":"IF(Table22[[#This Row],[8. New embedded network site name*\n(input: text)]]=\"\",\"\",Table22[[#This Row],[8. New embedded network site name*\n(input: text)]])","v":""}]
[{"$f":"IF(Table22[[#This Row],[5. New embedded network site address*\n(input: alpha-numeric )]]=\"\",\"\",Table22[[#This Row],[5. New embedded network site address*\n(input: alpha-numeric )]])","v":""},{"$f":"IF(Table22[[#This Row],[8. New embedded network site name*\n(input: text)]]=\"\",\"\",Table22[[#This Row],[8. New embedded network site name*\n(input: text)]])","v":""}]
[{"$f":"IF(Table22[[#This Row],[5. New embedded network site address*\n(input: alpha-numeric )]]=\"\",\"\",Table22[[#This Row],[5. New embedded network site address*\n(input: alpha-numeric )]])","v":""},{"$f":"IF(Table22[[#This Row],[8. New embedded network site name*\n(input: text)]]=\"\",\"\",Table22[[#This Row],[8. New embedded network site name*\n(input: text)]])","v":""}]
[{"$f":"IF(Table22[[#This Row],[5. New embedded network site address*\n(input: alpha-numeric )]]=\"\",\"\",Table22[[#This Row],[5. New embedded network site address*\n(input: alpha-numeric )]])","v":""},{"$f":"IF(Table22[[#This Row],[8. New embedded network site name*\n(input: text)]]=\"\",\"\",Table22[[#This Row],[8. New embedded network site name*\n(input: text)]])","v":""}]
[{"$f":"IF(Table22[[#This Row],[5. New embedded network site address*\n(input: alpha-numeric )]]=\"\",\"\",Table22[[#This Row],[5. New embedded network site address*\n(input: alpha-numeric )]])","v":""},{"$f":"IF(Table22[[#This Row],[8. New embedded network site name*\n(input: text)]]=\"\",\"\",Table22[[#This Row],[8. New embedded network site name*\n(input: text)]])","v":""}]
[{"$f":"IF(Table22[[#This Row],[5. New embedded network site address*\n(input: alpha-numeric )]]=\"\",\"\",Table22[[#This Row],[5. New embedded network site address*\n(input: alpha-numeric )]])","v":""},{"$f":"IF(Table22[[#This Row],[8. New embedded network site name*\n(input: text)]]=\"\",\"\",Table22[[#This Row],[8. New embedded network site name*\n(input: text)]])","v":""}]
[{"$f":"IF(Table22[[#This Row],[5. New embedded network site address*\n(input: alpha-numeric )]]=\"\",\"\",Table22[[#This Row],[5. New embedded network site address*\n(input: alpha-numeric )]])","v":""},{"$f":"IF(Table22[[#This Row],[8. New embedded network site name*\n(input: text)]]=\"\",\"\",Table22[[#This Row],[8. New embedded network site name*\n(input: text)]])","v":""}]
[{"$f":"IF(Table22[[#This Row],[5. New embedded network site address*\n(input: alpha-numeric )]]=\"\",\"\",Table22[[#This Row],[5. New embedded network site address*\n(input: alpha-numeric )]])","v":""},{"$f":"IF(Table22[[#This Row],[8. New embedded network site name*\n(input: text)]]=\"\",\"\",Table22[[#This Row],[8. New embedded network site name*\n(input: text)]])","v":""}]
[{"$f":"IF(Table22[[#This Row],[5. New embedded network site address*\n(input: alpha-numeric )]]=\"\",\"\",Table22[[#This Row],[5. New embedded network site address*\n(input: alpha-numeric )]])","v":""},{"$f":"IF(Table22[[#This Row],[8. New embedded network site name*\n(input: text)]]=\"\",\"\",Table22[[#This Row],[8. New embedded network site name*\n(input: text)]])","v":""}]
[{"$f":"IF(Table22[[#This Row],[5. New embedded network site address*\n(input: alpha-numeric )]]=\"\",\"\",Table22[[#This Row],[5. New embedded network site address*\n(input: alpha-numeric )]])","v":""},{"$f":"IF(Table22[[#This Row],[8. New embedded network site name*\n(input: text)]]=\"\",\"\",Table22[[#This Row],[8. New embedded network site name*\n(input: text)]])","v":""}]
[{"$f":"IF(Table22[[#This Row],[5. New embedded network site address*\n(input: alpha-numeric )]]=\"\",\"\",Table22[[#This Row],[5. New embedded network site address*\n(input: alpha-numeric )]])","v":""},{"$f":"IF(Table22[[#This Row],[8. New embedded network site name*\n(input: text)]]=\"\",\"\",Table22[[#This Row],[8. New embedded network site name*\n(input: text)]])","v":""}]
[{"$f":"IF(Table22[[#This Row],[5. New embedded network site address*\n(input: alpha-numeric )]]=\"\",\"\",Table22[[#This Row],[5. New embedded network site address*\n(input: alpha-numeric )]])","v":""},{"$f":"IF(Table22[[#This Row],[8. New embedded network site name*\n(input: text)]]=\"\",\"\",Table22[[#This Row],[8. New embedded network site name*\n(input: text)]])","v":""}]
[{"$f":"IF(Table22[[#This Row],[5. New embedded network site address*\n(input: alpha-numeric )]]=\"\",\"\",Table22[[#This Row],[5. New embedded network site address*\n(input: alpha-numeric )]])","v":""},{"$f":"IF(Table22[[#This Row],[8. New embedded network site name*\n(input: text)]]=\"\",\"\",Table22[[#This Row],[8. New embedded network site name*\n(input: text)]])","v":""}]
[{"$f":"IF(Table22[[#This Row],[5. New embedded network site address*\n(input: alpha-numeric )]]=\"\",\"\",Table22[[#This Row],[5. New embedded network site address*\n(input: alpha-numeric )]])","v":""},{"$f":"IF(Table22[[#This Row],[8. New embedded network site name*\n(input: text)]]=\"\",\"\",Table22[[#This Row],[8. New embedded network site name*\n(input: text)]])","v":""}]
[{"$f":"IF(Table22[[#This Row],[5. New embedded network site address*\n(input: alpha-numeric )]]=\"\",\"\",Table22[[#This Row],[5. New embedded network site address*\n(input: alpha-numeric )]])","v":""},{"$f":"IF(Table22[[#This Row],[8. New embedded network site name*\n(input: text)]]=\"\",\"\",Table22[[#This Row],[8. New embedded network site name*\n(input: text)]])","v":""}]
[{"$f":"IF(Table22[[#This Row],[5. New embedded network site address*\n(input: alpha-numeric )]]=\"\",\"\",Table22[[#This Row],[5. New embedded network site address*\n(input: alpha-numeric )]])","v":""},{"$f":"IF(Table22[[#This Row],[8. New embedded network site name*\n(input: text)]]=\"\",\"\",Table22[[#This Row],[8. New embedded network site name*\n(input: text)]])","v":""}]
[{"$f":"IF(Table22[[#This Row],[5. New embedded network site address*\n(input: alpha-numeric )]]=\"\",\"\",Table22[[#This Row],[5. New embedded network site address*\n(input: alpha-numeric )]])","v":""},{"$f":"IF(Table22[[#This Row],[8. New embedded network site name*\n(input: text)]]=\"\",\"\",Table22[[#This Row],[8. New embedded network site name*\n(input: text)]])","v":""}]
[{"$f":"IF(Table22[[#This Row],[5. New embedded network site address*\n(input: alpha-numeric )]]=\"\",\"\",Table22[[#This Row],[5. New embedded network site address*\n(input: alpha-numeric )]])","v":""},{"$f":"IF(Table22[[#This Row],[8. New embedded network site name*\n(input: text)]]=\"\",\"\",Table22[[#This Row],[8. New embedded network site name*\n(input: text)]])","v":""}]
[{"$f":"IF(Table22[[#This Row],[5. New embedded network site address*\n(input: alpha-numeric )]]=\"\",\"\",Table22[[#This Row],[5. New embedded network site address*\n(input: alpha-numeric )]])","v":""},{"$f":"IF(Table22[[#This Row],[8. New embedded network site name*\n(input: text)]]=\"\",\"\",Table22[[#This Row],[8. New embedded network site name*\n(input: text)]])","v":""}]
[{"$f":"IF(Table22[[#This Row],[5. New embedded network site address*\n(input: alpha-numeric )]]=\"\",\"\",Table22[[#This Row],[5. New embedded network site address*\n(input: alpha-numeric )]])","v":""},{"$f":"IF(Table22[[#This Row],[8. New embedded network site name*\n(input: text)]]=\"\",\"\",Table22[[#This Row],[8. New embedded network site name*\n(input: text)]])","v":""}]
[{"$f":"IF(Table22[[#This Row],[5. New embedded network site address*\n(input: alpha-numeric )]]=\"\",\"\",Table22[[#This Row],[5. New embedded network site address*\n(input: alpha-numeric )]])","v":""},{"$f":"IF(Table22[[#This Row],[8. New embedded network site name*\n(input: text)]]=\"\",\"\",Table22[[#This Row],[8. New embedded network site name*\n(input: text)]])","v":""}]
[{"$f":"IF(Table22[[#This Row],[5. New embedded network site address*\n(input: alpha-numeric )]]=\"\",\"\",Table22[[#This Row],[5. New embedded network site address*\n(input: alpha-numeric )]])","v":""},{"$f":"IF(Table22[[#This Row],[8. New embedded network site name*\n(input: text)]]=\"\",\"\",Table22[[#This Row],[8. New embedded network site name*\n(input: text)]])","v":""}]
[{"$f":"IF(Table22[[#This Row],[5. New embedded network site address*\n(input: alpha-numeric )]]=\"\",\"\",Table22[[#This Row],[5. New embedded network site address*\n(input: alpha-numeric )]])","v":""},{"$f":"IF(Table22[[#This Row],[8. New embedded network site name*\n(input: text)]]=\"\",\"\",Table22[[#This Row],[8. New embedded network site name*\n(input: text)]])","v":""}]
[{"$f":"IF(Table22[[#This Row],[5. New embedded network site address*\n(input: alpha-numeric )]]=\"\",\"\",Table22[[#This Row],[5. New embedded network site address*\n(input: alpha-numeric )]])","v":""},{"$f":"IF(Table22[[#This Row],[8. New embedded network site name*\n(input: text)]]=\"\",\"\",Table22[[#This Row],[8. New embedded network site name*\n(input: text)]])","v":""}]
[{"$f":"IF(Table22[[#This Row],[5. New embedded network site address*\n(input: alpha-numeric )]]=\"\",\"\",Table22[[#This Row],[5. New embedded network site address*\n(input: alpha-numeric )]])","v":""},{"$f":"IF(Table22[[#This Row],[8. New embedded network site name*\n(input: text)]]=\"\",\"\",Table22[[#This Row],[8. New embedded network site name*\n(input: text)]])","v":""}]
[{"$f":"IF(Table22[[#This Row],[5. New embedded network site address*\n(input: alpha-numeric )]]=\"\",\"\",Table22[[#This Row],[5. New embedded network site address*\n(input: alpha-numeric )]])","v":""},{"$f":"IF(Table22[[#This Row],[8. New embedded network site name*\n(input: text)]]=\"\",\"\",Table22[[#This Row],[8. New embedded network site name*\n(input: text)]])","v":""}]
[{"$f":"IF(Table22[[#This Row],[5. New embedded network site address*\n(input: alpha-numeric )]]=\"\",\"\",Table22[[#This Row],[5. New embedded network site address*\n(input: alpha-numeric )]])","v":""},{"$f":"IF(Table22[[#This Row],[8. New embedded network site name*\n(input: text)]]=\"\",\"\",Table22[[#This Row],[8. New embedded network site name*\n(input: text)]])","v":""}]
[{"$f":"IF(Table22[[#This Row],[5. New embedded network site address*\n(input: alpha-numeric )]]=\"\",\"\",Table22[[#This Row],[5. New embedded network site address*\n(input: alpha-numeric )]])","v":""},{"$f":"IF(Table22[[#This Row],[8. New embedded network site name*\n(input: text)]]=\"\",\"\",Table22[[#This Row],[8. New embedded network site name*\n(input: text)]])","v":""}]
[{"$f":"IF(Table22[[#This Row],[5. New embedded network site address*\n(input: alpha-numeric )]]=\"\",\"\",Table22[[#This Row],[5. New embedded network site address*\n(input: alpha-numeric )]])","v":""},{"$f":"IF(Table22[[#This Row],[8. New embedded network site name*\n(input: text)]]=\"\",\"\",Table22[[#This Row],[8. New embedded network site name*\n(input: text)]])","v":""}]
[{"$f":"IF(Table22[[#This Row],[5. New embedded network site address*\n(input: alpha-numeric )]]=\"\",\"\",Table22[[#This Row],[5. New embedded network site address*\n(input: alpha-numeric )]])","v":""},{"$f":"IF(Table22[[#This Row],[8. New embedded network site name*\n(input: text)]]=\"\",\"\",Table22[[#This Row],[8. New embedded network site name*\n(input: text)]])","v":""}]
[{"$f":"IF(Table22[[#This Row],[5. New embedded network site address*\n(input: alpha-numeric )]]=\"\",\"\",Table22[[#This Row],[5. New embedded network site address*\n(input: alpha-numeric )]])","v":""},{"$f":"IF(Table22[[#This Row],[8. New embedded network site name*\n(input: text)]]=\"\",\"\",Table22[[#This Row],[8. New embedded network site name*\n(input: text)]])","v":""}]
[{"$f":"IF(Table22[[#This Row],[5. New embedded network site address*\n(input: alpha-numeric )]]=\"\",\"\",Table22[[#This Row],[5. New embedded network site address*\n(input: alpha-numeric )]])","v":""},{"$f":"IF(Table22[[#This Row],[8. New embedded network site name*\n(input: text)]]=\"\",\"\",Table22[[#This Row],[8. New embedded network site name*\n(input: text)]])","v":""}]
[{"$f":"IF(Table22[[#This Row],[5. New embedded network site address*\n(input: alpha-numeric )]]=\"\",\"\",Table22[[#This Row],[5. New embedded network site address*\n(input: alpha-numeric )]])","v":""},{"$f":"IF(Table22[[#This Row],[8. New embedded network site name*\n(input: text)]]=\"\",\"\",Table22[[#This Row],[8. New embedded network site name*\n(input: text)]])","v":""}]
[{"$f":"IF(Table22[[#This Row],[5. New embedded network site address*\n(input: alpha-numeric )]]=\"\",\"\",Table22[[#This Row],[5. New embedded network site address*\n(input: alpha-numeric )]])","v":""},{"$f":"IF(Table22[[#This Row],[8. New embedded network site name*\n(input: text)]]=\"\",\"\",Table22[[#This Row],[8. New embedded network site name*\n(input: text)]])","v":""}]
[{"$f":"IF(Table22[[#This Row],[5. New embedded network site address*\n(input: alpha-numeric )]]=\"\",\"\",Table22[[#This Row],[5. New embedded network site address*\n(input: alpha-numeric )]])","v":""},{"$f":"IF(Table22[[#This Row],[8. New embedded network site name*\n(input: text)]]=\"\",\"\",Table22[[#This Row],[8. New embedded network site name*\n(input: text)]])","v":""}]
[{"$f":"IF(Table22[[#This Row],[5. New embedded network site address*\n(input: alpha-numeric )]]=\"\",\"\",Table22[[#This Row],[5. New embedded network site address*\n(input: alpha-numeric )]])","v":""},{"$f":"IF(Table22[[#This Row],[8. New embedded network site name*\n(input: text)]]=\"\",\"\",Table22[[#This Row],[8. New embedded network site name*\n(input: text)]])","v":""}]
[{"$f":"IF(Table22[[#This Row],[5. New embedded network site address*\n(input: alpha-numeric )]]=\"\",\"\",Table22[[#This Row],[5. New embedded network site address*\n(input: alpha-numeric )]])","v":""},{"$f":"IF(Table22[[#This Row],[8. New embedded network site name*\n(input: text)]]=\"\",\"\",Table22[[#This Row],[8. New embedded network site name*\n(input: text)]])","v":""}]
[{"$f":"IF(Table22[[#This Row],[5. New embedded network site address*\n(input: alpha-numeric )]]=\"\",\"\",Table22[[#This Row],[5. New embedded network site address*\n(input: alpha-numeric )]])","v":""},{"$f":"IF(Table22[[#This Row],[8. New embedded network site name*\n(input: text)]]=\"\",\"\",Table22[[#This Row],[8. New embedded network site name*\n(input: text)]])","v":""}]
[{"$f":"IF(Table22[[#This Row],[5. New embedded network site address*\n(input: alpha-numeric )]]=\"\",\"\",Table22[[#This Row],[5. New embedded network site address*\n(input: alpha-numeric )]])","v":""},{"$f":"IF(Table22[[#This Row],[8. New embedded network site name*\n(input: text)]]=\"\",\"\",Table22[[#This Row],[8. New embedded network site name*\n(input: text)]])","v":""}]
[{"$f":"IF(Table22[[#This Row],[5. New embedded network site address*\n(input: alpha-numeric )]]=\"\",\"\",Table22[[#This Row],[5. New embedded network site address*\n(input: alpha-numeric )]])","v":""},{"$f":"IF(Table22[[#This Row],[8. New embedded network site name*\n(input: text)]]=\"\",\"\",Table22[[#This Row],[8. New embedded network site name*\n(input: text)]])","v":""}]
[{"$f":"IF(Table22[[#This Row],[5. New embedded network site address*\n(input: alpha-numeric )]]=\"\",\"\",Table22[[#This Row],[5. New embedded network site address*\n(input: alpha-numeric )]])","v":""},{"$f":"IF(Table22[[#This Row],[8. New embedded network site name*\n(input: text)]]=\"\",\"\",Table22[[#This Row],[8. New embedded network site name*\n(input: text)]])","v":""}]
[{"$f":"IF(Table22[[#This Row],[5. New embedded network site address*\n(input: alpha-numeric )]]=\"\",\"\",Table22[[#This Row],[5. New embedded network site address*\n(input: alpha-numeric )]])","v":""},{"$f":"IF(Table22[[#This Row],[8. New embedded network site name*\n(input: text)]]=\"\",\"\",Table22[[#This Row],[8. New embedded network site name*\n(input: text)]])","v":""}]
[{"$f":"IF(Table22[[#This Row],[5. New embedded network site address*\n(input: alpha-numeric )]]=\"\",\"\",Table22[[#This Row],[5. New embedded network site address*\n(input: alpha-numeric )]])","v":""},{"$f":"IF(Table22[[#This Row],[8. New embedded network site name*\n(input: text)]]=\"\",\"\",Table22[[#This Row],[8. New embedded network site name*\n(input: text)]])","v":""}]
[{"$f":"IF(Table22[[#This Row],[5. New embedded network site address*\n(input: alpha-numeric )]]=\"\",\"\",Table22[[#This Row],[5. New embedded network site address*\n(input: alpha-numeric )]])","v":""},{"$f":"IF(Table22[[#This Row],[8. New embedded network site name*\n(input: text)]]=\"\",\"\",Table22[[#This Row],[8. New embedded network site name*\n(input: text)]])","v":""}]
[{"$f":"IF(Table22[[#This Row],[5. New embedded network site address*\n(input: alpha-numeric )]]=\"\",\"\",Table22[[#This Row],[5. New embedded network site address*\n(input: alpha-numeric )]])","v":""},{"$f":"IF(Table22[[#This Row],[8. New embedded network site name*\n(input: text)]]=\"\",\"\",Table22[[#This Row],[8. New embedded network site name*\n(input: text)]])","v":""}]
[{"$f":"IF(Table22[[#This Row],[5. New embedded network site address*\n(input: alpha-numeric )]]=\"\",\"\",Table22[[#This Row],[5. New embedded network site address*\n(input: alpha-numeric )]])","v":""},{"$f":"IF(Table22[[#This Row],[8. New embedded network site name*\n(input: text)]]=\"\",\"\",Table22[[#This Row],[8. New embedded network site name*\n(input: text)]])","v":""}]
[{"$f":"IF(Table22[[#This Row],[5. New embedded network site address*\n(input: alpha-numeric )]]=\"\",\"\",Table22[[#This Row],[5. New embedded network site address*\n(input: alpha-numeric )]])","v":""},{"$f":"IF(Table22[[#This Row],[8. New embedded network site name*\n(input: text)]]=\"\",\"\",Table22[[#This Row],[8. New embedded network site name*\n(input: text)]])","v":""}]
[{"$f":"IF(Table22[[#This Row],[5. New embedded network site address*\n(input: alpha-numeric )]]=\"\",\"\",Table22[[#This Row],[5. New embedded network site address*\n(input: alpha-numeric )]])","v":""},{"$f":"IF(Table22[[#This Row],[8. New embedded network site name*\n(input: text)]]=\"\",\"\",Table22[[#This Row],[8. New embedded network site name*\n(input: text)]])","v":""}]
[{"$f":"IF(Table22[[#This Row],[5. New embedded network site address*\n(input: alpha-numeric )]]=\"\",\"\",Table22[[#This Row],[5. New embedded network site address*\n(input: alpha-numeric )]])","v":""},{"$f":"IF(Table22[[#This Row],[8. New embedded network site name*\n(input: text)]]=\"\",\"\",Table22[[#This Row],[8. New embedded network site name*\n(input: text)]])","v":""}]
[{"$f":"IF(Table22[[#This Row],[5. New embedded network site address*\n(input: alpha-numeric )]]=\"\",\"\",Table22[[#This Row],[5. New embedded network site address*\n(input: alpha-numeric )]])","v":""},{"$f":"IF(Table22[[#This Row],[8. New embedded network site name*\n(input: text)]]=\"\",\"\",Table22[[#This Row],[8. New embedded network site name*\n(input: text)]])","v":""}]
[{"$f":"IF(Table22[[#This Row],[5. New embedded network site address*\n(input: alpha-numeric )]]=\"\",\"\",Table22[[#This Row],[5. New embedded network site address*\n(input: alpha-numeric )]])","v":""},{"$f":"IF(Table22[[#This Row],[8. New embedded network site name*\n(input: text)]]=\"\",\"\",Table22[[#This Row],[8. New embedded network site name*\n(input: text)]])","v":""}]
[{"$f":"IF(Table22[[#This Row],[5. New embedded network site address*\n(input: alpha-numeric )]]=\"\",\"\",Table22[[#This Row],[5. New embedded network site address*\n(input: alpha-numeric )]])","v":""},{"$f":"IF(Table22[[#This Row],[8. New embedded network site name*\n(input: text)]]=\"\",\"\",Table22[[#This Row],[8. New embedded network site name*\n(input: text)]])","v":""}]
[{"$f":"IF(Table22[[#This Row],[5. New embedded network site address*\n(input: alpha-numeric )]]=\"\",\"\",Table22[[#This Row],[5. New embedded network site address*\n(input: alpha-numeric )]])","v":""},{"$f":"IF(Table22[[#This Row],[8. New embedded network site name*\n(input: text)]]=\"\",\"\",Table22[[#This Row],[8. New embedded network site name*\n(input: text)]])","v":""}]
[{"$f":"IF(Table22[[#This Row],[5. New embedded network site address*\n(input: alpha-numeric )]]=\"\",\"\",Table22[[#This Row],[5. New embedded network site address*\n(input: alpha-numeric )]])","v":""},{"$f":"IF(Table22[[#This Row],[8. New embedded network site name*\n(input: text)]]=\"\",\"\",Table22[[#This Row],[8. New embedded network site name*\n(input: text)]])","v":""}]
[{"$f":"IF(Table22[[#This Row],[5. New embedded network site address*\n(input: alpha-numeric )]]=\"\",\"\",Table22[[#This Row],[5. New embedded network site address*\n(input: alpha-numeric )]])","v":""},{"$f":"IF(Table22[[#This Row],[8. New embedded network site name*\n(input: text)]]=\"\",\"\",Table22[[#This Row],[8. New embedded network site name*\n(input: text)]])","v":""}]
[{"$f":"IF(Table22[[#This Row],[5. New embedded network site address*\n(input: alpha-numeric )]]=\"\",\"\",Table22[[#This Row],[5. New embedded network site address*\n(input: alpha-numeric )]])","v":""},{"$f":"IF(Table22[[#This Row],[8. New embedded network site name*\n(input: text)]]=\"\",\"\",Table22[[#This Row],[8. New embedded network site name*\n(input: text)]])","v":""}]
[{"$f":"IF(Table22[[#This Row],[5. New embedded network site address*\n(input: alpha-numeric )]]=\"\",\"\",Table22[[#This Row],[5. New embedded network site address*\n(input: alpha-numeric )]])","v":""},{"$f":"IF(Table22[[#This Row],[8. New embedded network site name*\n(input: text)]]=\"\",\"\",Table22[[#This Row],[8. New embedded network site name*\n(input: text)]])","v":""}]
[{"$f":"IF(Table22[[#This Row],[5. New embedded network site address*\n(input: alpha-numeric )]]=\"\",\"\",Table22[[#This Row],[5. New embedded network site address*\n(input: alpha-numeric )]])","v":""},{"$f":"IF(Table22[[#This Row],[8. New embedded network site name*\n(input: text)]]=\"\",\"\",Table22[[#This Row],[8. New embedded network site name*\n(input: text)]])","v":""}]
[{"$f":"IF(Table22[[#This Row],[5. New embedded network site address*\n(input: alpha-numeric )]]=\"\",\"\",Table22[[#This Row],[5. New embedded network site address*\n(input: alpha-numeric )]])","v":""},{"$f":"IF(Table22[[#This Row],[8. New embedded network site name*\n(input: text)]]=\"\",\"\",Table22[[#This Row],[8. New embedded network site name*\n(input: text)]])","v":""}]
[{"$f":"IF(Table22[[#This Row],[5. New embedded network site address*\n(input: alpha-numeric )]]=\"\",\"\",Table22[[#This Row],[5. New embedded network site address*\n(input: alpha-numeric )]])","v":""},{"$f":"IF(Table22[[#This Row],[8. New embedded network site name*\n(input: text)]]=\"\",\"\",Table22[[#This Row],[8. New embedded network site name*\n(input: text)]])","v":""}]
[{"$f":"IF(Table22[[#This Row],[5. New embedded network site address*\n(input: alpha-numeric )]]=\"\",\"\",Table22[[#This Row],[5. New embedded network site address*\n(input: alpha-numeric )]])","v":""},{"$f":"IF(Table22[[#This Row],[8. New embedded network site name*\n(input: text)]]=\"\",\"\",Table22[[#This Row],[8. New embedded network site name*\n(input: text)]])","v":""}]
[{"$f":"IF(Table22[[#This Row],[5. New embedded network site address*\n(input: alpha-numeric )]]=\"\",\"\",Table22[[#This Row],[5. New embedded network site address*\n(input: alpha-numeric )]])","v":""},{"$f":"IF(Table22[[#This Row],[8. New embedded network site name*\n(input: text)]]=\"\",\"\",Table22[[#This Row],[8. New embedded network site name*\n(input: text)]])","v":""}]
[{"$f":"IF(Table22[[#This Row],[5. New embedded network site address*\n(input: alpha-numeric )]]=\"\",\"\",Table22[[#This Row],[5. New embedded network site address*\n(input: alpha-numeric )]])","v":""},{"$f":"IF(Table22[[#This Row],[8. New embedded network site name*\n(input: text)]]=\"\",\"\",Table22[[#This Row],[8. New embedded network site name*\n(input: text)]])","v":""}]
[{"$f":"IF(Table22[[#This Row],[5. New embedded network site address*\n(input: alpha-numeric )]]=\"\",\"\",Table22[[#This Row],[5. New embedded network site address*\n(input: alpha-numeric )]])","v":""},{"$f":"IF(Table22[[#This Row],[8. New embedded network site name*\n(input: text)]]=\"\",\"\",Table22[[#This Row],[8. New embedded network site name*\n(input: text)]])","v":""}]
[{"$f":"IF(Table22[[#This Row],[5. New embedded network site address*\n(input: alpha-numeric )]]=\"\",\"\",Table22[[#This Row],[5. New embedded network site address*\n(input: alpha-numeric )]])","v":""},{"$f":"IF(Table22[[#This Row],[8. New embedded network site name*\n(input: text)]]=\"\",\"\",Table22[[#This Row],[8. New embedded network site name*\n(input: text)]])","v":""}]
[{"$f":"IF(Table22[[#This Row],[5. New embedded network site address*\n(input: alpha-numeric )]]=\"\",\"\",Table22[[#This Row],[5. New embedded network site address*\n(input: alpha-numeric )]])","v":""},{"$f":"IF(Table22[[#This Row],[8. New embedded network site name*\n(input: text)]]=\"\",\"\",Table22[[#This Row],[8. New embedded network site name*\n(input: text)]])","v":""}]
[{"$f":"IF(Table22[[#This Row],[5. New embedded network site address*\n(input: alpha-numeric )]]=\"\",\"\",Table22[[#This Row],[5. New embedded network site address*\n(input: alpha-numeric )]])","v":""},{"$f":"IF(Table22[[#This Row],[8. New embedded network site name*\n(input: text)]]=\"\",\"\",Table22[[#This Row],[8. New embedded network site name*\n(input: text)]])","v":""}]
[{"$f":"IF(Table22[[#This Row],[5. New embedded network site address*\n(input: alpha-numeric )]]=\"\",\"\",Table22[[#This Row],[5. New embedded network site address*\n(input: alpha-numeric )]])","v":""},{"$f":"IF(Table22[[#This Row],[8. New embedded network site name*\n(input: text)]]=\"\",\"\",Table22[[#This Row],[8. New embedded network site name*\n(input: text)]])","v":""}]
[{"$f":"IF(Table22[[#This Row],[5. New embedded network site address*\n(input: alpha-numeric )]]=\"\",\"\",Table22[[#This Row],[5. New embedded network site address*\n(input: alpha-numeric )]])","v":""},{"$f":"IF(Table22[[#This Row],[8. New embedded network site name*\n(input: text)]]=\"\",\"\",Table22[[#This Row],[8. New embedded network site name*\n(input: text)]])","v":""}]
[{"$f":"IF(Table22[[#This Row],[5. New embedded network site address*\n(input: alpha-numeric )]]=\"\",\"\",Table22[[#This Row],[5. New embedded network site address*\n(input: alpha-numeric )]])","v":""},{"$f":"IF(Table22[[#This Row],[8. New embedded network site name*\n(input: text)]]=\"\",\"\",Table22[[#This Row],[8. New embedded network site name*\n(input: text)]])","v":""}]
[{"$f":"IF(Table22[[#This Row],[5. New embedded network site address*\n(input: alpha-numeric )]]=\"\",\"\",Table22[[#This Row],[5. New embedded network site address*\n(input: alpha-numeric )]])","v":""},{"$f":"IF(Table22[[#This Row],[8. New embedded network site name*\n(input: text)]]=\"\",\"\",Table22[[#This Row],[8. New embedded network site name*\n(input: text)]])","v":""}]
[{"$f":"IF(Table22[[#This Row],[5. New embedded network site address*\n(input: alpha-numeric )]]=\"\",\"\",Table22[[#This Row],[5. New embedded network site address*\n(input: alpha-numeric )]])","v":""},{"$f":"IF(Table22[[#This Row],[8. New embedded network site name*\n(input: text)]]=\"\",\"\",Table22[[#This Row],[8. New embedded network site name*\n(input: text)]])","v":""}]
[{"$f":"IF(Table22[[#This Row],[5. New embedded network site address*\n(input: alpha-numeric )]]=\"\",\"\",Table22[[#This Row],[5. New embedded network site address*\n(input: alpha-numeric )]])","v":""},{"$f":"IF(Table22[[#This Row],[8. New embedded network site name*\n(input: text)]]=\"\",\"\",Table22[[#This Row],[8. New embedded network site name*\n(input: text)]])","v":""}]
[{"$f":"IF(Table22[[#This Row],[5. New embedded network site address*\n(input: alpha-numeric )]]=\"\",\"\",Table22[[#This Row],[5. New embedded network site address*\n(input: alpha-numeric )]])","v":""},{"$f":"IF(Table22[[#This Row],[8. New embedded network site name*\n(input: text)]]=\"\",\"\",Table22[[#This Row],[8. New embedded network site name*\n(input: text)]])","v":""}]
[{"$f":"IF(Table22[[#This Row],[5. New embedded network site address*\n(input: alpha-numeric )]]=\"\",\"\",Table22[[#This Row],[5. New embedded network site address*\n(input: alpha-numeric )]])","v":""},{"$f":"IF(Table22[[#This Row],[8. New embedded network site name*\n(input: text)]]=\"\",\"\",Table22[[#This Row],[8. New embedded network site name*\n(input: text)]])","v":""}]
[{"$f":"IF(Table22[[#This Row],[5. New embedded network site address*\n(input: alpha-numeric )]]=\"\",\"\",Table22[[#This Row],[5. New embedded network site address*\n(input: alpha-numeric )]])","v":""},{"$f":"IF(Table22[[#This Row],[8. New embedded network site name*\n(input: text)]]=\"\",\"\",Table22[[#This Row],[8. New embedded network site name*\n(input: text)]])","v":""}]
[{"$f":"IF(Table22[[#This Row],[5. New embedded network site address*\n(input: alpha-numeric )]]=\"\",\"\",Table22[[#This Row],[5. New embedded network site address*\n(input: alpha-numeric )]])","v":""},{"$f":"IF(Table22[[#This Row],[8. New embedded network site name*\n(input: text)]]=\"\",\"\",Table22[[#This Row],[8. New embedded network site name*\n(input: text)]])","v":""}]
[{"$f":"IF(Table22[[#This Row],[5. New embedded network site address*\n(input: alpha-numeric )]]=\"\",\"\",Table22[[#This Row],[5. New embedded network site address*\n(input: alpha-numeric )]])","v":""},{"$f":"IF(Table22[[#This Row],[8. New embedded network site name*\n(input: text)]]=\"\",\"\",Table22[[#This Row],[8. New embedded network site name*\n(input: text)]])","v":""}]
[{"$f":"IF(Table22[[#This Row],[5. New embedded network site address*\n(input: alpha-numeric )]]=\"\",\"\",Table22[[#This Row],[5. New embedded network site address*\n(input: alpha-numeric )]])","v":""},{"$f":"IF(Table22[[#This Row],[8. New embedded network site name*\n(input: text)]]=\"\",\"\",Table22[[#This Row],[8. New embedded network site name*\n(input: text)]])","v":""}]
[{"$f":"IF(Table22[[#This Row],[5. New embedded network site address*\n(input: alpha-numeric )]]=\"\",\"\",Table22[[#This Row],[5. New embedded network site address*\n(input: alpha-numeric )]])","v":""},{"$f":"IF(Table22[[#This Row],[8. New embedded network site name*\n(input: text)]]=\"\",\"\",Table22[[#This Row],[8. New embedded network site name*\n(input: text)]])","v":""}]
[{"$f":"IF(Table22[[#This Row],[5. New embedded network site address*\n(input: alpha-numeric )]]=\"\",\"\",Table22[[#This Row],[5. New embedded network site address*\n(input: alpha-numeric )]])","v":""},{"$f":"IF(Table22[[#This Row],[8. New embedded network site name*\n(input: text)]]=\"\",\"\",Table22[[#This Row],[8. New embedded network site name*\n(input: text)]])","v":""}]
[{"$f":"IF(Table22[[#This Row],[5. New embedded network site address*\n(input: alpha-numeric )]]=\"\",\"\",Table22[[#This Row],[5. New embedded network site address*\n(input: alpha-numeric )]])","v":""},{"$f":"IF(Table22[[#This Row],[8. New embedded network site name*\n(input: text)]]=\"\",\"\",Table22[[#This Row],[8. New embedded network site name*\n(input: text)]])","v":""}]
[{"$f":"IF(Table22[[#This Row],[5. New embedded network site address*\n(input: alpha-numeric )]]=\"\",\"\",Table22[[#This Row],[5. New embedded network site address*\n(input: alpha-numeric )]])","v":""},{"$f":"IF(Table22[[#This Row],[8. New embedded network site name*\n(input: text)]]=\"\",\"\",Table22[[#This Row],[8. New embedded network site name*\n(input: text)]])","v":""}]
[{"$f":"IF(Table22[[#This Row],[5. New embedded network site address*\n(input: alpha-numeric )]]=\"\",\"\",Table22[[#This Row],[5. New embedded network site address*\n(input: alpha-numeric )]])","v":""},{"$f":"IF(Table22[[#This Row],[8. New embedded network site name*\n(input: text)]]=\"\",\"\",Table22[[#This Row],[8. New embedded network site name*\n(input: text)]])","v":""}]
[{"$f":"IF(Table22[[#This Row],[5. New embedded network site address*\n(input: alpha-numeric )]]=\"\",\"\",Table22[[#This Row],[5. New embedded network site address*\n(input: alpha-numeric )]])","v":""},{"$f":"IF(Table22[[#This Row],[8. New embedded network site name*\n(input: text)]]=\"\",\"\",Table22[[#This Row],[8. New embedded network site name*\n(input: text)]])","v":""}]
[{"$f":"IF(Table22[[#This Row],[5. New embedded network site address*\n(input: alpha-numeric )]]=\"\",\"\",Table22[[#This Row],[5. New embedded network site address*\n(input: alpha-numeric )]])","v":""},{"$f":"IF(Table22[[#This Row],[8. New embedded network site name*\n(input: text)]]=\"\",\"\",Table22[[#This Row],[8. New embedded network site name*\n(input: text)]])","v":""}]
[{"$f":"IF(Table22[[#This Row],[5. New embedded network site address*\n(input: alpha-numeric )]]=\"\",\"\",Table22[[#This Row],[5. New embedded network site address*\n(input: alpha-numeric )]])","v":""},{"$f":"IF(Table22[[#This Row],[8. New embedded network site name*\n(input: text)]]=\"\",\"\",Table22[[#This Row],[8. New embedded network site name*\n(input: text)]])","v":""}]
[{"$f":"IF(Table22[[#This Row],[5. New embedded network site address*\n(input: alpha-numeric )]]=\"\",\"\",Table22[[#This Row],[5. New embedded network site address*\n(input: alpha-numeric )]])","v":""},{"$f":"IF(Table22[[#This Row],[8. New embedded network site name*\n(input: text)]]=\"\",\"\",Table22[[#This Row],[8. New embedded network site name*\n(input: text)]])","v":""}]
[{"$f":"IF(Table22[[#This Row],[5. New embedded network site address*\n(input: alpha-numeric )]]=\"\",\"\",Table22[[#This Row],[5. New embedded network site address*\n(input: alpha-numeric )]])","v":""},{"$f":"IF(Table22[[#This Row],[8. New embedded network site name*\n(input: text)]]=\"\",\"\",Table22[[#This Row],[8. New embedded network site name*\n(input: text)]])","v":""}]
[{"$f":"IF(Table22[[#This Row],[5. New embedded network site address*\n(input: alpha-numeric )]]=\"\",\"\",Table22[[#This Row],[5. New embedded network site address*\n(input: alpha-numeric )]])","v":""},{"$f":"IF(Table22[[#This Row],[8. New embedded network site name*\n(input: text)]]=\"\",\"\",Table22[[#This Row],[8. New embedded network site name*\n(input: text)]])","v":""}]
[{"$f":"IF(Table22[[#This Row],[5. New embedded network site address*\n(input: alpha-numeric )]]=\"\",\"\",Table22[[#This Row],[5. New embedded network site address*\n(input: alpha-numeric )]])","v":""},{"$f":"IF(Table22[[#This Row],[8. New embedded network site name*\n(input: text)]]=\"\",\"\",Table22[[#This Row],[8. New embedded network site name*\n(input: text)]])","v":""}]
[{"$f":"IF(Table22[[#This Row],[5. New embedded network site address*\n(input: alpha-numeric )]]=\"\",\"\",Table22[[#This Row],[5. New embedded network site address*\n(input: alpha-numeric )]])","v":""},{"$f":"IF(Table22[[#This Row],[8. New embedded network site name*\n(input: text)]]=\"\",\"\",Table22[[#This Row],[8. New embedded network site name*\n(input: text)]])","v":""}]
[{"$f":"IF(Table22[[#This Row],[5. New embedded network site address*\n(input: alpha-numeric )]]=\"\",\"\",Table22[[#This Row],[5. New embedded network site address*\n(input: alpha-numeric )]])","v":""},{"$f":"IF(Table22[[#This Row],[8. New embedded network site name*\n(input: text)]]=\"\",\"\",Table22[[#This Row],[8. New embedded network site name*\n(input: text)]])","v":""}]
[{"$f":"IF(Table22[[#This Row],[5. New embedded network site address*\n(input: alpha-numeric )]]=\"\",\"\",Table22[[#This Row],[5. New embedded network site address*\n(input: alpha-numeric )]])","v":""},{"$f":"IF(Table22[[#This Row],[8. New embedded network site name*\n(input: text)]]=\"\",\"\",Table22[[#This Row],[8. New embedded network site name*\n(input: text)]])","v":""}]
[{"$f":"IF(Table22[[#This Row],[5. New embedded network site address*\n(input: alpha-numeric )]]=\"\",\"\",Table22[[#This Row],[5. New embedded network site address*\n(input: alpha-numeric )]])","v":""},{"$f":"IF(Table22[[#This Row],[8. New embedded network site name*\n(input: text)]]=\"\",\"\",Table22[[#This Row],[8. New embedded network site name*\n(input: text)]])","v":""}]
[{"$f":"IF(Table22[[#This Row],[5. New embedded network site address*\n(input: alpha-numeric )]]=\"\",\"\",Table22[[#This Row],[5. New embedded network site address*\n(input: alpha-numeric )]])","v":""},{"$f":"IF(Table22[[#This Row],[8. New embedded network site name*\n(input: text)]]=\"\",\"\",Table22[[#This Row],[8. New embedded network site name*\n(input: text)]])","v":""}]
[{"$f":"IF(Table22[[#This Row],[5. New embedded network site address*\n(input: alpha-numeric )]]=\"\",\"\",Table22[[#This Row],[5. New embedded network site address*\n(input: alpha-numeric )]])","v":""},{"$f":"IF(Table22[[#This Row],[8. New embedded network site name*\n(input: text)]]=\"\",\"\",Table22[[#This Row],[8. New embedded network site name*\n(input: text)]])","v":""}]
[{"$f":"IF(Table22[[#This Row],[5. New embedded network site address*\n(input: alpha-numeric )]]=\"\",\"\",Table22[[#This Row],[5. New embedded network site address*\n(input: alpha-numeric )]])","v":""},{"$f":"IF(Table22[[#This Row],[8. New embedded network site name*\n(input: text)]]=\"\",\"\",Table22[[#This Row],[8. New embedded network site name*\n(input: text)]])","v":""}]
[{"$f":"IF(Table22[[#This Row],[5. New embedded network site address*\n(input: alpha-numeric )]]=\"\",\"\",Table22[[#This Row],[5. New embedded network site address*\n(input: alpha-numeric )]])","v":""},{"$f":"IF(Table22[[#This Row],[8. New embedded network site name*\n(input: text)]]=\"\",\"\",Table22[[#This Row],[8. New embedded network site name*\n(input: text)]])","v":""}]
[{"$f":"IF(Table22[[#This Row],[5. New embedded network site address*\n(input: alpha-numeric )]]=\"\",\"\",Table22[[#This Row],[5. New embedded network site address*\n(input: alpha-numeric )]])","v":""},{"$f":"IF(Table22[[#This Row],[8. New embedded network site name*\n(input: text)]]=\"\",\"\",Table22[[#This Row],[8. New embedded network site name*\n(input: text)]])","v":""}]
[{"$f":"IF(Table22[[#This Row],[5. New embedded network site address*\n(input: alpha-numeric )]]=\"\",\"\",Table22[[#This Row],[5. New embedded network site address*\n(input: alpha-numeric )]])","v":""},{"$f":"IF(Table22[[#This Row],[8. New embedded network site name*\n(input: text)]]=\"\",\"\",Table22[[#This Row],[8. New embedded network site name*\n(input: text)]])","v":""}]
[{"$f":"IF(Table22[[#This Row],[5. New embedded network site address*\n(input: alpha-numeric )]]=\"\",\"\",Table22[[#This Row],[5. New embedded network site address*\n(input: alpha-numeric )]])","v":""},{"$f":"IF(Table22[[#This Row],[8. New embedded network site name*\n(input: text)]]=\"\",\"\",Table22[[#This Row],[8. New embedded network site name*\n(input: text)]])","v":""}]
[{"$f":"IF(Table22[[#This Row],[5. New embedded network site address*\n(input: alpha-numeric )]]=\"\",\"\",Table22[[#This Row],[5. New embedded network site address*\n(input: alpha-numeric )]])","v":""},{"$f":"IF(Table22[[#This Row],[8. New embedded network site name*\n(input: text)]]=\"\",\"\",Table22[[#This Row],[8. New embedded network site name*\n(input: text)]])","v":""}]
[{"$f":"IF(Table22[[#This Row],[5. New embedded network site address*\n(input: alpha-numeric )]]=\"\",\"\",Table22[[#This Row],[5. New embedded network site address*\n(input: alpha-numeric )]])","v":""},{"$f":"IF(Table22[[#This Row],[8. New embedded network site name*\n(input: text)]]=\"\",\"\",Table22[[#This Row],[8. New embedded network site name*\n(input: text)]])","v":""}]
[{"$f":"IF(Table22[[#This Row],[5. New embedded network site address*\n(input: alpha-numeric )]]=\"\",\"\",Table22[[#This Row],[5. New embedded network site address*\n(input: alpha-numeric )]])","v":""},{"$f":"IF(Table22[[#This Row],[8. New embedded network site name*\n(input: text)]]=\"\",\"\",Table22[[#This Row],[8. New embedded network site name*\n(input: text)]])","v":""}]
[{"$f":"IF(Table22[[#This Row],[5. New embedded network site address*\n(input: alpha-numeric )]]=\"\",\"\",Table22[[#This Row],[5. New embedded network site address*\n(input: alpha-numeric )]])","v":""},{"$f":"IF(Table22[[#This Row],[8. New embedded network site name*\n(input: text)]]=\"\",\"\",Table22[[#This Row],[8. New embedded network site name*\n(input: text)]])","v":""}]
[{"$f":"IF(Table22[[#This Row],[5. New embedded network site address*\n(input: alpha-numeric )]]=\"\",\"\",Table22[[#This Row],[5. New embedded network site address*\n(input: alpha-numeric )]])","v":""},{"$f":"IF(Table22[[#This Row],[8. New embedded network site name*\n(input: text)]]=\"\",\"\",Table22[[#This Row],[8. New embedded network site name*\n(input: text)]])","v":""}]
[{"$f":"IF(Table22[[#This Row],[5. New embedded network site address*\n(input: alpha-numeric )]]=\"\",\"\",Table22[[#This Row],[5. New embedded network site address*\n(input: alpha-numeric )]])","v":""},{"$f":"IF(Table22[[#This Row],[8. New embedded network site name*\n(input: text)]]=\"\",\"\",Table22[[#This Row],[8. New embedded network site name*\n(input: text)]])","v":""}]
[{"$f":"IF(Table22[[#This Row],[5. New embedded network site address*\n(input: alpha-numeric )]]=\"\",\"\",Table22[[#This Row],[5. New embedded network site address*\n(input: alpha-numeric )]])","v":""},{"$f":"IF(Table22[[#This Row],[8. New embedded network site name*\n(input: text)]]=\"\",\"\",Table22[[#This Row],[8. New embedded network site name*\n(input: text)]])","v":""}]
[{"$f":"IF(Table22[[#This Row],[5. New embedded network site address*\n(input: alpha-numeric )]]=\"\",\"\",Table22[[#This Row],[5. New embedded network site address*\n(input: alpha-numeric )]])","v":""},{"$f":"IF(Table22[[#This Row],[8. New embedded network site name*\n(input: text)]]=\"\",\"\",Table22[[#This Row],[8. New embedded network site name*\n(input: text)]])","v":""}]
[{"$f":"IF(Table22[[#This Row],[5. New embedded network site address*\n(input: alpha-numeric )]]=\"\",\"\",Table22[[#This Row],[5. New embedded network site address*\n(input: alpha-numeric )]])","v":""},{"$f":"IF(Table22[[#This Row],[8. New embedded network site name*\n(input: text)]]=\"\",\"\",Table22[[#This Row],[8. New embedded network site name*\n(input: text)]])","v":""}]
[{"$f":"IF(Table22[[#This Row],[5. New embedded network site address*\n(input: alpha-numeric )]]=\"\",\"\",Table22[[#This Row],[5. New embedded network site address*\n(input: alpha-numeric )]])","v":""},{"$f":"IF(Table22[[#This Row],[8. New embedded network site name*\n(input: text)]]=\"\",\"\",Table22[[#This Row],[8. New embedded network site name*\n(input: text)]])","v":""}]
[{"$f":"IF(Table22[[#This Row],[5. New embedded network site address*\n(input: alpha-numeric )]]=\"\",\"\",Table22[[#This Row],[5. New embedded network site address*\n(input: alpha-numeric )]])","v":""},{"$f":"IF(Table22[[#This Row],[8. New embedded network site name*\n(input: text)]]=\"\",\"\",Table22[[#This Row],[8. New embedded network site name*\n(input: text)]])","v":""}]
[{"$f":"IF(Table22[[#This Row],[5. New embedded network site address*\n(input: alpha-numeric )]]=\"\",\"\",Table22[[#This Row],[5. New embedded network site address*\n(input: alpha-numeric )]])","v":""},{"$f":"IF(Table22[[#This Row],[8. New embedded network site name*\n(input: text)]]=\"\",\"\",Table22[[#This Row],[8. New embedded network site name*\n(input: text)]])","v":""}]
[{"$f":"IF(Table22[[#This Row],[5. New embedded network site address*\n(input: alpha-numeric )]]=\"\",\"\",Table22[[#This Row],[5. New embedded network site address*\n(input: alpha-numeric )]])","v":""},{"$f":"IF(Table22[[#This Row],[8. New embedded network site name*\n(input: text)]]=\"\",\"\",Table22[[#This Row],[8. New embedded network site name*\n(input: text)]])","v":""}]
[{"$f":"IF(Table22[[#This Row],[5. New embedded network site address*\n(input: alpha-numeric )]]=\"\",\"\",Table22[[#This Row],[5. New embedded network site address*\n(input: alpha-numeric )]])","v":""},{"$f":"IF(Table22[[#This Row],[8. New embedded network site name*\n(input: text)]]=\"\",\"\",Table22[[#This Row],[8. New embedded network site name*\n(input: text)]])","v":""}]
[{"$f":"IF(Table22[[#This Row],[5. New embedded network site address*\n(input: alpha-numeric )]]=\"\",\"\",Table22[[#This Row],[5. New embedded network site address*\n(input: alpha-numeric )]])","v":""},{"$f":"IF(Table22[[#This Row],[8. New embedded network site name*\n(input: text)]]=\"\",\"\",Table22[[#This Row],[8. New embedded network site name*\n(input: text)]])","v":""}]
[{"$f":"IF(Table22[[#This Row],[5. New embedded network site address*\n(input: alpha-numeric )]]=\"\",\"\",Table22[[#This Row],[5. New embedded network site address*\n(input: alpha-numeric )]])","v":""},{"$f":"IF(Table22[[#This Row],[8. New embedded network site name*\n(input: text)]]=\"\",\"\",Table22[[#This Row],[8. New embedded network site name*\n(input: text)]])","v":""}]
[{"$f":"IF(Table22[[#This Row],[5. New embedded network site address*\n(input: alpha-numeric )]]=\"\",\"\",Table22[[#This Row],[5. New embedded network site address*\n(input: alpha-numeric )]])","v":""},{"$f":"IF(Table22[[#This Row],[8. New embedded network site name*\n(input: text)]]=\"\",\"\",Table22[[#This Row],[8. New embedded network site name*\n(input: text)]])","v":""}]
[{"$f":"IF(Table22[[#This Row],[5. New embedded network site address*\n(input: alpha-numeric )]]=\"\",\"\",Table22[[#This Row],[5. New embedded network site address*\n(input: alpha-numeric )]])","v":""},{"$f":"IF(Table22[[#This Row],[8. New embedded network site name*\n(input: text)]]=\"\",\"\",Table22[[#This Row],[8. New embedded network site name*\n(input: text)]])","v":""}]
[{"$f":"IF(Table22[[#This Row],[5. New embedded network site address*\n(input: alpha-numeric )]]=\"\",\"\",Table22[[#This Row],[5. New embedded network site address*\n(input: alpha-numeric )]])","v":""},{"$f":"IF(Table22[[#This Row],[8. New embedded network site name*\n(input: text)]]=\"\",\"\",Table22[[#This Row],[8. New embedded network site name*\n(input: text)]])","v":""}]
[{"$f":"IF(Table22[[#This Row],[5. New embedded network site address*\n(input: alpha-numeric )]]=\"\",\"\",Table22[[#This Row],[5. New embedded network site address*\n(input: alpha-numeric )]])","v":""},{"$f":"IF(Table22[[#This Row],[8. New embedded network site name*\n(input: text)]]=\"\",\"\",Table22[[#This Row],[8. New embedded network site name*\n(input: text)]])","v":""}]
[{"$f":"IF(Table22[[#This Row],[5. New embedded network site address*\n(input: alpha-numeric )]]=\"\",\"\",Table22[[#This Row],[5. New embedded network site address*\n(input: alpha-numeric )]])","v":""},{"$f":"IF(Table22[[#This Row],[8. New embedded network site name*\n(input: text)]]=\"\",\"\",Table22[[#This Row],[8. New embedded network site name*\n(input: text)]])","v":""}]
[{"$f":"IF(Table22[[#This Row],[5. New embedded network site address*\n(input: alpha-numeric )]]=\"\",\"\",Table22[[#This Row],[5. New embedded network site address*\n(input: alpha-numeric )]])","v":""},{"$f":"IF(Table22[[#This Row],[8. New embedded network site name*\n(input: text)]]=\"\",\"\",Table22[[#This Row],[8. New embedded network site name*\n(input: text)]])","v":""}]
[{"$f":"IF(Table22[[#This Row],[5. New embedded network site address*\n(input: alpha-numeric )]]=\"\",\"\",Table22[[#This Row],[5. New embedded network site address*\n(input: alpha-numeric )]])","v":""},{"$f":"IF(Table22[[#This Row],[8. New embedded network site name*\n(input: text)]]=\"\",\"\",Table22[[#This Row],[8. New embedded network site name*\n(input: text)]])","v":""}]
[{"$f":"IF(Table22[[#This Row],[5. New embedded network site address*\n(input: alpha-numeric )]]=\"\",\"\",Table22[[#This Row],[5. New embedded network site address*\n(input: alpha-numeric )]])","v":""},{"$f":"IF(Table22[[#This Row],[8. New embedded network site name*\n(input: text)]]=\"\",\"\",Table22[[#This Row],[8. New embedded network site name*\n(input: text)]])","v":""}]
[{"$f":"IF(Table22[[#This Row],[5. New embedded network site address*\n(input: alpha-numeric )]]=\"\",\"\",Table22[[#This Row],[5. New embedded network site address*\n(input: alpha-numeric )]])","v":""},{"$f":"IF(Table22[[#This Row],[8. New embedded network site name*\n(input: text)]]=\"\",\"\",Table22[[#This Row],[8. New embedded network site name*\n(input: text)]])","v":""}]
[{"$f":"IF(Table22[[#This Row],[5. New embedded network site address*\n(input: alpha-numeric )]]=\"\",\"\",Table22[[#This Row],[5. New embedded network site address*\n(input: alpha-numeric )]])","v":""},{"$f":"IF(Table22[[#This Row],[8. New embedded network site name*\n(input: text)]]=\"\",\"\",Table22[[#This Row],[8. New embedded network site name*\n(input: text)]])","v":""}]
[{"$f":"IF(Table22[[#This Row],[5. New embedded network site address*\n(input: alpha-numeric )]]=\"\",\"\",Table22[[#This Row],[5. New embedded network site address*\n(input: alpha-numeric )]])","v":""},{"$f":"IF(Table22[[#This Row],[8. New embedded network site name*\n(input: text)]]=\"\",\"\",Table22[[#This Row],[8. New embedded network site name*\n(input: text)]])","v":""}]
[{"$f":"IF(Table22[[#This Row],[5. New embedded network site address*\n(input: alpha-numeric )]]=\"\",\"\",Table22[[#This Row],[5. New embedded network site address*\n(input: alpha-numeric )]])","v":""},{"$f":"IF(Table22[[#This Row],[8. New embedded network site name*\n(input: text)]]=\"\",\"\",Table22[[#This Row],[8. New embedded network site name*\n(input: text)]])","v":""}]
[{"$f":"IF(Table22[[#This Row],[5. New embedded network site address*\n(input: alpha-numeric )]]=\"\",\"\",Table22[[#This Row],[5. New embedded network site address*\n(input: alpha-numeric )]])","v":""},{"$f":"IF(Table22[[#This Row],[8. New embedded network site name*\n(input: text)]]=\"\",\"\",Table22[[#This Row],[8. New embedded network site name*\n(input: text)]])","v":""}]
[{"$f":"IF(Table22[[#This Row],[5. New embedded network site address*\n(input: alpha-numeric )]]=\"\",\"\",Table22[[#This Row],[5. New embedded network site address*\n(input: alpha-numeric )]])","v":""},{"$f":"IF(Table22[[#This Row],[8. New embedded network site name*\n(input: text)]]=\"\",\"\",Table22[[#This Row],[8. New embedded network site name*\n(input: text)]])","v":""}]
[{"$f":"IF(Table22[[#This Row],[5. New embedded network site address*\n(input: alpha-numeric )]]=\"\",\"\",Table22[[#This Row],[5. New embedded network site address*\n(input: alpha-numeric )]])","v":""},{"$f":"IF(Table22[[#This Row],[8. New embedded network site name*\n(input: text)]]=\"\",\"\",Table22[[#This Row],[8. New embedded network site name*\n(input: text)]])","v":""}]
[{"$f":"IF(Table22[[#This Row],[5. New embedded network site address*\n(input: alpha-numeric )]]=\"\",\"\",Table22[[#This Row],[5. New embedded network site address*\n(input: alpha-numeric )]])","v":""},{"$f":"IF(Table22[[#This Row],[8. New embedded network site name*\n(input: text)]]=\"\",\"\",Table22[[#This Row],[8. New embedded network site name*\n(input: text)]])","v":""}]
[{"$f":"IF(Table22[[#This Row],[5. New embedded network site address*\n(input: alpha-numeric )]]=\"\",\"\",Table22[[#This Row],[5. New embedded network site address*\n(input: alpha-numeric )]])","v":""},{"$f":"IF(Table22[[#This Row],[8. New embedded network site name*\n(input: text)]]=\"\",\"\",Table22[[#This Row],[8. New embedded network site name*\n(input: text)]])","v":""}]
[{"$f":"IF(Table22[[#This Row],[5. New embedded network site address*\n(input: alpha-numeric )]]=\"\",\"\",Table22[[#This Row],[5. New embedded network site address*\n(input: alpha-numeric )]])","v":""},{"$f":"IF(Table22[[#This Row],[8. New embedded network site name*\n(input: text)]]=\"\",\"\",Table22[[#This Row],[8. New embedded network site name*\n(input: text)]])","v":""}]
[{"$f":"IF(Table22[[#This Row],[5. New embedded network site address*\n(input: alpha-numeric )]]=\"\",\"\",Table22[[#This Row],[5. New embedded network site address*\n(input: alpha-numeric )]])","v":""},{"$f":"IF(Table22[[#This Row],[8. New embedded network site name*\n(input: text)]]=\"\",\"\",Table22[[#This Row],[8. New embedded network site name*\n(input: text)]])","v":""}]
[{"$f":"IF(Table22[[#This Row],[5. New embedded network site address*\n(input: alpha-numeric )]]=\"\",\"\",Table22[[#This Row],[5. New embedded network site address*\n(input: alpha-numeric )]])","v":""},{"$f":"IF(Table22[[#This Row],[8. New embedded network site name*\n(input: text)]]=\"\",\"\",Table22[[#This Row],[8. New embedded network site name*\n(input: text)]])","v":""}]
[{"$f":"IF(Table22[[#This Row],[5. New embedded network site address*\n(input: alpha-numeric )]]=\"\",\"\",Table22[[#This Row],[5. New embedded network site address*\n(input: alpha-numeric )]])","v":""},{"$f":"IF(Table22[[#This Row],[8. New embedded network site name*\n(input: text)]]=\"\",\"\",Table22[[#This Row],[8. New embedded network site name*\n(input: text)]])","v":""}]
[{"$f":"IF(Table22[[#This Row],[5. New embedded network site address*\n(input: alpha-numeric )]]=\"\",\"\",Table22[[#This Row],[5. New embedded network site address*\n(input: alpha-numeric )]])","v":""},{"$f":"IF(Table22[[#This Row],[8. New embedded network site name*\n(input: text)]]=\"\",\"\",Table22[[#This Row],[8. New embedded network site name*\n(input: text)]])","v":""}]
[{"$f":"IF(Table22[[#This Row],[5. New embedded network site address*\n(input: alpha-numeric )]]=\"\",\"\",Table22[[#This Row],[5. New embedded network site address*\n(input: alpha-numeric )]])","v":""},{"$f":"IF(Table22[[#This Row],[8. New embedded network site name*\n(input: text)]]=\"\",\"\",Table22[[#This Row],[8. New embedded network site name*\n(input: text)]])","v":""}]
[{"$f":"IF(Table22[[#This Row],[5. New embedded network site address*\n(input: alpha-numeric )]]=\"\",\"\",Table22[[#This Row],[5. New embedded network site address*\n(input: alpha-numeric )]])","v":""},{"$f":"IF(Table22[[#This Row],[8. New embedded network site name*\n(input: text)]]=\"\",\"\",Table22[[#This Row],[8. New embedded network site name*\n(input: text)]])","v":""}]
[{"$f":"IF(Table22[[#This Row],[5. New embedded network site address*\n(input: alpha-numeric )]]=\"\",\"\",Table22[[#This Row],[5. New embedded network site address*\n(input: alpha-numeric )]])","v":""},{"$f":"IF(Table22[[#This Row],[8. New embedded network site name*\n(input: text)]]=\"\",\"\",Table22[[#This Row],[8. New embedded network site name*\n(input: text)]])","v":""}]
[{"$f":"IF(Table22[[#This Row],[5. New embedded network site address*\n(input: alpha-numeric )]]=\"\",\"\",Table22[[#This Row],[5. New embedded network site address*\n(input: alpha-numeric )]])","v":""},{"$f":"IF(Table22[[#This Row],[8. New embedded network site name*\n(input: text)]]=\"\",\"\",Table22[[#This Row],[8. New embedded network site name*\n(input: text)]])","v":""}]
[{"$f":"IF(Table22[[#This Row],[5. New embedded network site address*\n(input: alpha-numeric )]]=\"\",\"\",Table22[[#This Row],[5. New embedded network site address*\n(input: alpha-numeric )]])","v":""},{"$f":"IF(Table22[[#This Row],[8. New embedded network site name*\n(input: text)]]=\"\",\"\",Table22[[#This Row],[8. New embedded network site name*\n(input: text)]])","v":""}]
[{"$f":"IF(Table22[[#This Row],[5. New embedded network site address*\n(input: alpha-numeric )]]=\"\",\"\",Table22[[#This Row],[5. New embedded network site address*\n(input: alpha-numeric )]])","v":""},{"$f":"IF(Table22[[#This Row],[8. New embedded network site name*\n(input: text)]]=\"\",\"\",Table22[[#This Row],[8. New embedded network site name*\n(input: text)]])","v":""}]
[{"$f":"IF(Table22[[#This Row],[5. New embedded network site address*\n(input: alpha-numeric )]]=\"\",\"\",Table22[[#This Row],[5. New embedded network site address*\n(input: alpha-numeric )]])","v":""},{"$f":"IF(Table22[[#This Row],[8. New embedded network site name*\n(input: text)]]=\"\",\"\",Table22[[#This Row],[8. New embedded network site name*\n(input: text)]])","v":""}]
[{"$f":"IF(Table22[[#This Row],[5. New embedded network site address*\n(input: alpha-numeric )]]=\"\",\"\",Table22[[#This Row],[5. New embedded network site address*\n(input: alpha-numeric )]])","v":""},{"$f":"IF(Table22[[#This Row],[8. New embedded network site name*\n(input: text)]]=\"\",\"\",Table22[[#This Row],[8. New embedded network site name*\n(input: text)]])","v":""}]
[{"$f":"IF(Table22[[#This Row],[5. New embedded network site address*\n(input: alpha-numeric )]]=\"\",\"\",Table22[[#This Row],[5. New embedded network site address*\n(input: alpha-numeric )]])","v":""},{"$f":"IF(Table22[[#This Row],[8. New embedded network site name*\n(input: text)]]=\"\",\"\",Table22[[#This Row],[8. New embedded network site name*\n(input: text)]])","v":""}]
[{"$f":"IF(Table22[[#This Row],[5. New embedded network site address*\n(input: alpha-numeric )]]=\"\",\"\",Table22[[#This Row],[5. New embedded network site address*\n(input: alpha-numeric )]])","v":""},{"$f":"IF(Table22[[#This Row],[8. New embedded network site name*\n(input: text)]]=\"\",\"\",Table22[[#This Row],[8. New embedded network site name*\n(input: text)]])","v":""}]
[{"$f":"IF(Table22[[#This Row],[5. New embedded network site address*\n(input: alpha-numeric )]]=\"\",\"\",Table22[[#This Row],[5. New embedded network site address*\n(input: alpha-numeric )]])","v":""},{"$f":"IF(Table22[[#This Row],[8. New embedded network site name*\n(input: text)]]=\"\",\"\",Table22[[#This Row],[8. New embedded network site name*\n(input: text)]])","v":""}]
[{"$f":"IF(Table22[[#This Row],[5. New embedded network site address*\n(input: alpha-numeric )]]=\"\",\"\",Table22[[#This Row],[5. New embedded network site address*\n(input: alpha-numeric )]])","v":""},{"$f":"IF(Table22[[#This Row],[8. New embedded network site name*\n(input: text)]]=\"\",\"\",Table22[[#This Row],[8. New embedded network site name*\n(input: text)]])","v":""}]
[{"$f":"IF(Table22[[#This Row],[5. New embedded network site address*\n(input: alpha-numeric )]]=\"\",\"\",Table22[[#This Row],[5. New embedded network site address*\n(input: alpha-numeric )]])","v":""},{"$f":"IF(Table22[[#This Row],[8. New embedded network site name*\n(input: text)]]=\"\",\"\",Table22[[#This Row],[8. New embedded network site name*\n(input: text)]])","v":""}]
[{"$f":"IF(Table22[[#This Row],[5. New embedded network site address*\n(input: alpha-numeric )]]=\"\",\"\",Table22[[#This Row],[5. New embedded network site address*\n(input: alpha-numeric )]])","v":""},{"$f":"IF(Table22[[#This Row],[8. New embedded network site name*\n(input: text)]]=\"\",\"\",Table22[[#This Row],[8. New embedded network site name*\n(input: text)]])","v":""}]
[{"$f":"IF(Table22[[#This Row],[5. New embedded network site address*\n(input: alpha-numeric )]]=\"\",\"\",Table22[[#This Row],[5. New embedded network site address*\n(input: alpha-numeric )]])","v":""},{"$f":"IF(Table22[[#This Row],[8. New embedded network site name*\n(input: text)]]=\"\",\"\",Table22[[#This Row],[8. New embedded network site name*\n(input: text)]])","v":""}]
[{"$f":"IF(Table22[[#This Row],[5. New embedded network site address*\n(input: alpha-numeric )]]=\"\",\"\",Table22[[#This Row],[5. New embedded network site address*\n(input: alpha-numeric )]])","v":""},{"$f":"IF(Table22[[#This Row],[8. New embedded network site name*\n(input: text)]]=\"\",\"\",Table22[[#This Row],[8. New embedded network site name*\n(input: text)]])","v":""}]
[{"$f":"IF(Table22[[#This Row],[5. New embedded network site address*\n(input: alpha-numeric )]]=\"\",\"\",Table22[[#This Row],[5. New embedded network site address*\n(input: alpha-numeric )]])","v":""},{"$f":"IF(Table22[[#This Row],[8. New embedded network site name*\n(input: text)]]=\"\",\"\",Table22[[#This Row],[8. New embedded network site name*\n(input: text)]])","v":""}]
[{"$f":"IF(Table22[[#This Row],[5. New embedded network site address*\n(input: alpha-numeric )]]=\"\",\"\",Table22[[#This Row],[5. New embedded network site address*\n(input: alpha-numeric )]])","v":""},{"$f":"IF(Table22[[#This Row],[8. New embedded network site name*\n(input: text)]]=\"\",\"\",Table22[[#This Row],[8. New embedded network site name*\n(input: text)]])","v":""}]
[{"$f":"IF(Table22[[#This Row],[5. New embedded network site address*\n(input: alpha-numeric )]]=\"\",\"\",Table22[[#This Row],[5. New embedded network site address*\n(input: alpha-numeric )]])","v":""},{"$f":"IF(Table22[[#This Row],[8. New embedded network site name*\n(input: text)]]=\"\",\"\",Table22[[#This Row],[8. New embedded network site name*\n(input: text)]])","v":""}]
[{"$f":"IF(Table22[[#This Row],[5. New embedded network site address*\n(input: alpha-numeric )]]=\"\",\"\",Table22[[#This Row],[5. New embedded network site address*\n(input: alpha-numeric )]])","v":""},{"$f":"IF(Table22[[#This Row],[8. New embedded network site name*\n(input: text)]]=\"\",\"\",Table22[[#This Row],[8. New embedded network site name*\n(input: text)]])","v":""}]
[{"$f":"IF(Table22[[#This Row],[5. New embedded network site address*\n(input: alpha-numeric )]]=\"\",\"\",Table22[[#This Row],[5. New embedded network site address*\n(input: alpha-numeric )]])","v":""},{"$f":"IF(Table22[[#This Row],[8. New embedded network site name*\n(input: text)]]=\"\",\"\",Table22[[#This Row],[8. New embedded network site name*\n(input: text)]])","v":""}]
[{"$f":"IF(Table22[[#This Row],[5. New embedded network site address*\n(input: alpha-numeric )]]=\"\",\"\",Table22[[#This Row],[5. New embedded network site address*\n(input: alpha-numeric )]])","v":""},{"$f":"IF(Table22[[#This Row],[8. New embedded network site name*\n(input: text)]]=\"\",\"\",Table22[[#This Row],[8. New embedded network site name*\n(input: text)]])","v":""}]
[{"$f":"IF(Table22[[#This Row],[5. New embedded network site address*\n(input: alpha-numeric )]]=\"\",\"\",Table22[[#This Row],[5. New embedded network site address*\n(input: alpha-numeric )]])","v":""},{"$f":"IF(Table22[[#This Row],[8. New embedded network site name*\n(input: text)]]=\"\",\"\",Table22[[#This Row],[8. New embedded network site name*\n(input: text)]])","v":""}]
[{"$f":"IF(Table22[[#This Row],[5. New embedded network site address*\n(input: alpha-numeric )]]=\"\",\"\",Table22[[#This Row],[5. New embedded network site address*\n(input: alpha-numeric )]])","v":""},{"$f":"IF(Table22[[#This Row],[8. New embedded network site name*\n(input: text)]]=\"\",\"\",Table22[[#This Row],[8. New embedded network site name*\n(input: text)]])","v":""}]
[{"$f":"IF(Table22[[#This Row],[5. New embedded network site address*\n(input: alpha-numeric )]]=\"\",\"\",Table22[[#This Row],[5. New embedded network site address*\n(input: alpha-numeric )]])","v":""},{"$f":"IF(Table22[[#This Row],[8. New embedded network site name*\n(input: text)]]=\"\",\"\",Table22[[#This Row],[8. New embedded network site name*\n(input: text)]])","v":""}]
[{"$f":"IF(Table22[[#This Row],[5. New embedded network site address*\n(input: alpha-numeric )]]=\"\",\"\",Table22[[#This Row],[5. New embedded network site address*\n(input: alpha-numeric )]])","v":""},{"$f":"IF(Table22[[#This Row],[8. New embedded network site name*\n(input: text)]]=\"\",\"\",Table22[[#This Row],[8. New embedded network site name*\n(input: text)]])","v":""}]
[{"$f":"IF(Table22[[#This Row],[5. New embedded network site address*\n(input: alpha-numeric )]]=\"\",\"\",Table22[[#This Row],[5. New embedded network site address*\n(input: alpha-numeric )]])","v":""},{"$f":"IF(Table22[[#This Row],[8. New embedded network site name*\n(input: text)]]=\"\",\"\",Table22[[#This Row],[8. New embedded network site name*\n(input: text)]])","v":""}]
[{"$f":"IF(Table22[[#This Row],[5. New embedded network site address*\n(input: alpha-numeric )]]=\"\",\"\",Table22[[#This Row],[5. New embedded network site address*\n(input: alpha-numeric )]])","v":""},{"$f":"IF(Table22[[#This Row],[8. New embedded network site name*\n(input: text)]]=\"\",\"\",Table22[[#This Row],[8. New embedded network site name*\n(input: text)]])","v":""}]
[{"$f":"IF(Table22[[#This Row],[5. New embedded network site address*\n(input: alpha-numeric )]]=\"\",\"\",Table22[[#This Row],[5. New embedded network site address*\n(input: alpha-numeric )]])","v":""},{"$f":"IF(Table22[[#This Row],[8. New embedded network site name*\n(input: text)]]=\"\",\"\",Table22[[#This Row],[8. New embedded network site name*\n(input: text)]])","v":""}]
[{"$f":"IF(Table22[[#This Row],[5. New embedded network site address*\n(input: alpha-numeric )]]=\"\",\"\",Table22[[#This Row],[5. New embedded network site address*\n(input: alpha-numeric )]])","v":""},{"$f":"IF(Table22[[#This Row],[8. New embedded network site name*\n(input: text)]]=\"\",\"\",Table22[[#This Row],[8. New embedded network site name*\n(input: text)]])","v":""}]
[{"$f":"IF(Table22[[#This Row],[5. New embedded network site address*\n(input: alpha-numeric )]]=\"\",\"\",Table22[[#This Row],[5. New embedded network site address*\n(input: alpha-numeric )]])","v":""},{"$f":"IF(Table22[[#This Row],[8. New embedded network site name*\n(input: text)]]=\"\",\"\",Table22[[#This Row],[8. New embedded network site name*\n(input: text)]])","v":""}]
[{"$f":"IF(Table22[[#This Row],[5. New embedded network site address*\n(input: alpha-numeric )]]=\"\",\"\",Table22[[#This Row],[5. New embedded network site address*\n(input: alpha-numeric )]])","v":""},{"$f":"IF(Table22[[#This Row],[8. New embedded network site name*\n(input: text)]]=\"\",\"\",Table22[[#This Row],[8. New embedded network site name*\n(input: text)]])","v":""}]
[{"$f":"IF(Table22[[#This Row],[5. New embedded network site address*\n(input: alpha-numeric )]]=\"\",\"\",Table22[[#This Row],[5. New embedded network site address*\n(input: alpha-numeric )]])","v":""},{"$f":"IF(Table22[[#This Row],[8. New embedded network site name*\n(input: text)]]=\"\",\"\",Table22[[#This Row],[8. New embedded network site name*\n(input: text)]])","v":""}]
[{"$f":"IF(Table22[[#This Row],[5. New embedded network site address*\n(input: alpha-numeric )]]=\"\",\"\",Table22[[#This Row],[5. New embedded network site address*\n(input: alpha-numeric )]])","v":""},{"$f":"IF(Table22[[#This Row],[8. New embedded network site name*\n(input: text)]]=\"\",\"\",Table22[[#This Row],[8. New embedded network site name*\n(input: text)]])","v":""}]
[{"$f":"IF(Table22[[#This Row],[5. New embedded network site address*\n(input: alpha-numeric )]]=\"\",\"\",Table22[[#This Row],[5. New embedded network site address*\n(input: alpha-numeric )]])","v":""},{"$f":"IF(Table22[[#This Row],[8. New embedded network site name*\n(input: text)]]=\"\",\"\",Table22[[#This Row],[8. New embedded network site name*\n(input: text)]])","v":""}]
[{"$f":"IF(Table22[[#This Row],[5. New embedded network site address*\n(input: alpha-numeric )]]=\"\",\"\",Table22[[#This Row],[5. New embedded network site address*\n(input: alpha-numeric )]])","v":""},{"$f":"IF(Table22[[#This Row],[8. New embedded network site name*\n(input: text)]]=\"\",\"\",Table22[[#This Row],[8. New embedded network site name*\n(input: text)]])","v":""}]
[{"$f":"IF(Table22[[#This Row],[5. New embedded network site address*\n(input: alpha-numeric )]]=\"\",\"\",Table22[[#This Row],[5. New embedded network site address*\n(input: alpha-numeric )]])","v":""},{"$f":"IF(Table22[[#This Row],[8. New embedded network site name*\n(input: text)]]=\"\",\"\",Table22[[#This Row],[8. New embedded network site name*\n(input: text)]])","v":""}]
[{"$f":"IF(Table22[[#This Row],[5. New embedded network site address*\n(input: alpha-numeric )]]=\"\",\"\",Table22[[#This Row],[5. New embedded network site address*\n(input: alpha-numeric )]])","v":""},{"$f":"IF(Table22[[#This Row],[8. New embedded network site name*\n(input: text)]]=\"\",\"\",Table22[[#This Row],[8. New embedded network site name*\n(input: text)]])","v":""}]
[{"$f":"IF(Table22[[#This Row],[5. New embedded network site address*\n(input: alpha-numeric )]]=\"\",\"\",Table22[[#This Row],[5. New embedded network site address*\n(input: alpha-numeric )]])","v":""},{"$f":"IF(Table22[[#This Row],[8. New embedded network site name*\n(input: text)]]=\"\",\"\",Table22[[#This Row],[8. New embedded network site name*\n(input: text)]])","v":""}]
[{"$f":"IF(Table22[[#This Row],[5. New embedded network site address*\n(input: alpha-numeric )]]=\"\",\"\",Table22[[#This Row],[5. New embedded network site address*\n(input: alpha-numeric )]])","v":""},{"$f":"IF(Table22[[#This Row],[8. New embedded network site name*\n(input: text)]]=\"\",\"\",Table22[[#This Row],[8. New embedded network site name*\n(input: text)]])","v":""}]
[{"$f":"IF(Table22[[#This Row],[5. New embedded network site address*\n(input: alpha-numeric )]]=\"\",\"\",Table22[[#This Row],[5. New embedded network site address*\n(input: alpha-numeric )]])","v":""},{"$f":"IF(Table22[[#This Row],[8. New embedded network site name*\n(input: text)]]=\"\",\"\",Table22[[#This Row],[8. New embedded network site name*\n(input: text)]])","v":""}]
[{"$f":"IF(Table22[[#This Row],[5. New embedded network site address*\n(input: alpha-numeric )]]=\"\",\"\",Table22[[#This Row],[5. New embedded network site address*\n(input: alpha-numeric )]])","v":""},{"$f":"IF(Table22[[#This Row],[8. New embedded network site name*\n(input: text)]]=\"\",\"\",Table22[[#This Row],[8. New embedded network site name*\n(input: text)]])","v":""}]
[{"$f":"IF(Table22[[#This Row],[5. New embedded network site address*\n(input: alpha-numeric )]]=\"\",\"\",Table22[[#This Row],[5. New embedded network site address*\n(input: alpha-numeric )]])","v":""},{"$f":"IF(Table22[[#This Row],[8. New embedded network site name*\n(input: text)]]=\"\",\"\",Table22[[#This Row],[8. New embedded network site name*\n(input: text)]])","v":""}]
[{"$f":"IF(Table22[[#This Row],[5. New embedded network site address*\n(input: alpha-numeric )]]=\"\",\"\",Table22[[#This Row],[5. New embedded network site address*\n(input: alpha-numeric )]])","v":""},{"$f":"IF(Table22[[#This Row],[8. New embedded network site name*\n(input: text)]]=\"\",\"\",Table22[[#This Row],[8. New embedded network site name*\n(input: text)]])","v":""}]
[{"$f":"IF(Table22[[#This Row],[5. New embedded network site address*\n(input: alpha-numeric )]]=\"\",\"\",Table22[[#This Row],[5. New embedded network site address*\n(input: alpha-numeric )]])","v":""},{"$f":"IF(Table22[[#This Row],[8. New embedded network site name*\n(input: text)]]=\"\",\"\",Table22[[#This Row],[8. New embedded network site name*\n(input: text)]])","v":""}]
[{"$f":"IF(Table22[[#This Row],[5. New embedded network site address*\n(input: alpha-numeric )]]=\"\",\"\",Table22[[#This Row],[5. New embedded network site address*\n(input: alpha-numeric )]])","v":""},{"$f":"IF(Table22[[#This Row],[8. New embedded network site name*\n(input: text)]]=\"\",\"\",Table22[[#This Row],[8. New embedded network site name*\n(input: text)]])","v":""}]
[{"$f":"IF(Table22[[#This Row],[5. New embedded network site address*\n(input: alpha-numeric )]]=\"\",\"\",Table22[[#This Row],[5. New embedded network site address*\n(input: alpha-numeric )]])","v":""},{"$f":"IF(Table22[[#This Row],[8. New embedded network site name*\n(input: text)]]=\"\",\"\",Table22[[#This Row],[8. New embedded network site name*\n(input: text)]])","v":""}]
[{"$f":"IF(Table22[[#This Row],[5. New embedded network site address*\n(input: alpha-numeric )]]=\"\",\"\",Table22[[#This Row],[5. New embedded network site address*\n(input: alpha-numeric )]])","v":""},{"$f":"IF(Table22[[#This Row],[8. New embedded network site name*\n(input: text)]]=\"\",\"\",Table22[[#This Row],[8. New embedded network site name*\n(input: text)]])","v":""}]
[{"$f":"IF(Table22[[#This Row],[5. New embedded network site address*\n(input: alpha-numeric )]]=\"\",\"\",Table22[[#This Row],[5. New embedded network site address*\n(input: alpha-numeric )]])","v":""},{"$f":"IF(Table22[[#This Row],[8. New embedded network site name*\n(input: text)]]=\"\",\"\",Table22[[#This Row],[8. New embedded network site name*\n(input: text)]])","v":""}]
[{"$f":"IF(Table22[[#This Row],[5. New embedded network site address*\n(input: alpha-numeric )]]=\"\",\"\",Table22[[#This Row],[5. New embedded network site address*\n(input: alpha-numeric )]])","v":""},{"$f":"IF(Table22[[#This Row],[8. New embedded network site name*\n(input: text)]]=\"\",\"\",Table22[[#This Row],[8. New embedded network site name*\n(input: text)]])","v":""}]
[{"$f":"IF(Table22[[#This Row],[5. New embedded network site address*\n(input: alpha-numeric )]]=\"\",\"\",Table22[[#This Row],[5. New embedded network site address*\n(input: alpha-numeric )]])","v":""},{"$f":"IF(Table22[[#This Row],[8. New embedded network site name*\n(input: text)]]=\"\",\"\",Table22[[#This Row],[8. New embedded network site name*\n(input: text)]])","v":""}]
[{"$f":"IF(Table22[[#This Row],[5. New embedded network site address*\n(input: alpha-numeric )]]=\"\",\"\",Table22[[#This Row],[5. New embedded network site address*\n(input: alpha-numeric )]])","v":""},{"$f":"IF(Table22[[#This Row],[8. New embedded network site name*\n(input: text)]]=\"\",\"\",Table22[[#This Row],[8. New embedded network site name*\n(input: text)]])","v":""}]
[{"$f":"IF(Table22[[#This Row],[5. New embedded network site address*\n(input: alpha-numeric )]]=\"\",\"\",Table22[[#This Row],[5. New embedded network site address*\n(input: alpha-numeric )]])","v":""},{"$f":"IF(Table22[[#This Row],[8. New embedded network site name*\n(input: text)]]=\"\",\"\",Table22[[#This Row],[8. New embedded network site name*\n(input: text)]])","v":""}]
[{"$f":"IF(Table22[[#This Row],[5. New embedded network site address*\n(input: alpha-numeric )]]=\"\",\"\",Table22[[#This Row],[5. New embedded network site address*\n(input: alpha-numeric )]])","v":""},{"$f":"IF(Table22[[#This Row],[8. New embedded network site name*\n(input: text)]]=\"\",\"\",Table22[[#This Row],[8. New embedded network site name*\n(input: text)]])","v":""}]
[{"$f":"IF(Table22[[#This Row],[5. New embedded network site address*\n(input: alpha-numeric )]]=\"\",\"\",Table22[[#This Row],[5. New embedded network site address*\n(input: alpha-numeric )]])","v":""},{"$f":"IF(Table22[[#This Row],[8. New embedded network site name*\n(input: text)]]=\"\",\"\",Table22[[#This Row],[8. New embedded network site name*\n(input: text)]])","v":""}]
[{"$f":"IF(Table22[[#This Row],[5. New embedded network site address*\n(input: alpha-numeric )]]=\"\",\"\",Table22[[#This Row],[5. New embedded network site address*\n(input: alpha-numeric )]])","v":""},{"$f":"IF(Table22[[#This Row],[8. New embedded network site name*\n(input: text)]]=\"\",\"\",Table22[[#This Row],[8. New embedded network site name*\n(input: text)]])","v":""}]
[{"$f":"IF(Table22[[#This Row],[5. New embedded network site address*\n(input: alpha-numeric )]]=\"\",\"\",Table22[[#This Row],[5. New embedded network site address*\n(input: alpha-numeric )]])","v":""},{"$f":"IF(Table22[[#This Row],[8. New embedded network site name*\n(input: text)]]=\"\",\"\",Table22[[#This Row],[8. New embedded network site name*\n(input: text)]])","v":""}]
[{"$f":"IF(Table22[[#This Row],[5. New embedded network site address*\n(input: alpha-numeric )]]=\"\",\"\",Table22[[#This Row],[5. New embedded network site address*\n(input: alpha-numeric )]])","v":""},{"$f":"IF(Table22[[#This Row],[8. New embedded network site name*\n(input: text)]]=\"\",\"\",Table22[[#This Row],[8. New embedded network site name*\n(input: text)]])","v":""}]
[{"$f":"IF(Table22[[#This Row],[5. New embedded network site address*\n(input: alpha-numeric )]]=\"\",\"\",Table22[[#This Row],[5. New embedded network site address*\n(input: alpha-numeric )]])","v":""},{"$f":"IF(Table22[[#This Row],[8. New embedded network site name*\n(input: text)]]=\"\",\"\",Table22[[#This Row],[8. New embedded network site name*\n(input: text)]])","v":""}]
[{"$f":"IF(Table22[[#This Row],[5. New embedded network site address*\n(input: alpha-numeric )]]=\"\",\"\",Table22[[#This Row],[5. New embedded network site address*\n(input: alpha-numeric )]])","v":""},{"$f":"IF(Table22[[#This Row],[8. New embedded network site name*\n(input: text)]]=\"\",\"\",Table22[[#This Row],[8. New embedded network site name*\n(input: text)]])","v":""}]
[{"$f":"IF(Table22[[#This Row],[5. New embedded network site address*\n(input: alpha-numeric )]]=\"\",\"\",Table22[[#This Row],[5. New embedded network site address*\n(input: alpha-numeric )]])","v":""},{"$f":"IF(Table22[[#This Row],[8. New embedded network site name*\n(input: text)]]=\"\",\"\",Table22[[#This Row],[8. New embedded network site name*\n(input: text)]])","v":""}]
[{"$f":"IF(Table22[[#This Row],[5. New embedded network site address*\n(input: alpha-numeric )]]=\"\",\"\",Table22[[#This Row],[5. New embedded network site address*\n(input: alpha-numeric )]])","v":""},{"$f":"IF(Table22[[#This Row],[8. New embedded network site name*\n(input: text)]]=\"\",\"\",Table22[[#This Row],[8. New embedded network site name*\n(input: text)]])","v":""}]
[{"$f":"IF(Table22[[#This Row],[5. New embedded network site address*\n(input: alpha-numeric )]]=\"\",\"\",Table22[[#This Row],[5. New embedded network site address*\n(input: alpha-numeric )]])","v":""},{"$f":"IF(Table22[[#This Row],[8. New embedded network site name*\n(input: text)]]=\"\",\"\",Table22[[#This Row],[8. New embedded network site name*\n(input: text)]])","v":""}]
[{"$f":"IF(Table22[[#This Row],[5. New embedded network site address*\n(input: alpha-numeric )]]=\"\",\"\",Table22[[#This Row],[5. New embedded network site address*\n(input: alpha-numeric )]])","v":""},{"$f":"IF(Table22[[#This Row],[8. New embedded network site name*\n(input: text)]]=\"\",\"\",Table22[[#This Row],[8. New embedded network site name*\n(input: text)]])","v":""}]
[{"$f":"IF(Table22[[#This Row],[5. New embedded network site address*\n(input: alpha-numeric )]]=\"\",\"\",Table22[[#This Row],[5. New embedded network site address*\n(input: alpha-numeric )]])","v":""},{"$f":"IF(Table22[[#This Row],[8. New embedded network site name*\n(input: text)]]=\"\",\"\",Table22[[#This Row],[8. New embedded network site name*\n(input: text)]])","v":""}]
[{"$f":"IF(Table22[[#This Row],[5. New embedded network site address*\n(input: alpha-numeric )]]=\"\",\"\",Table22[[#This Row],[5. New embedded network site address*\n(input: alpha-numeric )]])","v":""},{"$f":"IF(Table22[[#This Row],[8. New embedded network site name*\n(input: text)]]=\"\",\"\",Table22[[#This Row],[8. New embedded network site name*\n(input: text)]])","v":""}]
[{"$f":"IF(Table22[[#This Row],[5. New embedded network site address*\n(input: alpha-numeric )]]=\"\",\"\",Table22[[#This Row],[5. New embedded network site address*\n(input: alpha-numeric )]])","v":""},{"$f":"IF(Table22[[#This Row],[8. New embedded network site name*\n(input: text)]]=\"\",\"\",Table22[[#This Row],[8. New embedded network site name*\n(input: text)]])","v":""}]
[{"$f":"IF(Table22[[#This Row],[5. New embedded network site address*\n(input: alpha-numeric )]]=\"\",\"\",Table22[[#This Row],[5. New embedded network site address*\n(input: alpha-numeric )]])","v":""},{"$f":"IF(Table22[[#This Row],[8. New embedded network site name*\n(input: text)]]=\"\",\"\",Table22[[#This Row],[8. New embedded network site name*\n(input: text)]])","v":""}]
[{"$f":"IF(Table22[[#This Row],[5. New embedded network site address*\n(input: alpha-numeric )]]=\"\",\"\",Table22[[#This Row],[5. New embedded network site address*\n(input: alpha-numeric )]])","v":""},{"$f":"IF(Table22[[#This Row],[8. New embedded network site name*\n(input: text)]]=\"\",\"\",Table22[[#This Row],[8. New embedded network site name*\n(input: text)]])","v":""}]
[{"$f":"IF(Table22[[#This Row],[5. New embedded network site address*\n(input: alpha-numeric )]]=\"\",\"\",Table22[[#This Row],[5. New embedded network site address*\n(input: alpha-numeric )]])","v":""},{"$f":"IF(Table22[[#This Row],[8. New embedded network site name*\n(input: text)]]=\"\",\"\",Table22[[#This Row],[8. New embedded network site name*\n(input: text)]])","v":""}]
[{"$f":"IF(Table22[[#This Row],[5. New embedded network site address*\n(input: alpha-numeric )]]=\"\",\"\",Table22[[#This Row],[5. New embedded network site address*\n(input: alpha-numeric )]])","v":""},{"$f":"IF(Table22[[#This Row],[8. New embedded network site name*\n(input: text)]]=\"\",\"\",Table22[[#This Row],[8. New embedded network site name*\n(input: text)]])","v":""}]
[{"$f":"IF(Table22[[#This Row],[5. New embedded network site address*\n(input: alpha-numeric )]]=\"\",\"\",Table22[[#This Row],[5. New embedded network site address*\n(input: alpha-numeric )]])","v":""},{"$f":"IF(Table22[[#This Row],[8. New embedded network site name*\n(input: text)]]=\"\",\"\",Table22[[#This Row],[8. New embedded network site name*\n(input: text)]])","v":""}]
[{"$f":"IF(Table22[[#This Row],[5. New embedded network site address*\n(input: alpha-numeric )]]=\"\",\"\",Table22[[#This Row],[5. New embedded network site address*\n(input: alpha-numeric )]])","v":""},{"$f":"IF(Table22[[#This Row],[8. New embedded network site name*\n(input: text)]]=\"\",\"\",Table22[[#This Row],[8. New embedded network site name*\n(input: text)]])","v":""}]
[{"$f":"IF(Table22[[#This Row],[5. New embedded network site address*\n(input: alpha-numeric )]]=\"\",\"\",Table22[[#This Row],[5. New embedded network site address*\n(input: alpha-numeric )]])","v":""},{"$f":"IF(Table22[[#This Row],[8. New embedded network site name*\n(input: text)]]=\"\",\"\",Table22[[#This Row],[8. New embedded network site name*\n(input: text)]])","v":""}]
[{"$f":"IF(Table22[[#This Row],[5. New embedded network site address*\n(input: alpha-numeric )]]=\"\",\"\",Table22[[#This Row],[5. New embedded network site address*\n(input: alpha-numeric )]])","v":""},{"$f":"IF(Table22[[#This Row],[8. New embedded network site name*\n(input: text)]]=\"\",\"\",Table22[[#This Row],[8. New embedded network site name*\n(input: text)]])","v":""}]
[{"$f":"IF(Table22[[#This Row],[5. New embedded network site address*\n(input: alpha-numeric )]]=\"\",\"\",Table22[[#This Row],[5. New embedded network site address*\n(input: alpha-numeric )]])","v":""},{"$f":"IF(Table22[[#This Row],[8. New embedded network site name*\n(input: text)]]=\"\",\"\",Table22[[#This Row],[8. New embedded network site name*\n(input: text)]])","v":""}]
[{"$f":"IF(Table22[[#This Row],[5. New embedded network site address*\n(input: alpha-numeric )]]=\"\",\"\",Table22[[#This Row],[5. New embedded network site address*\n(input: alpha-numeric )]])","v":""},{"$f":"IF(Table22[[#This Row],[8. New embedded network site name*\n(input: text)]]=\"\",\"\",Table22[[#This Row],[8. New embedded network site name*\n(input: text)]])","v":""}]
[{"$f":"IF(Table22[[#This Row],[5. New embedded network site address*\n(input: alpha-numeric )]]=\"\",\"\",Table22[[#This Row],[5. New embedded network site address*\n(input: alpha-numeric )]])","v":""},{"$f":"IF(Table22[[#This Row],[8. New embedded network site name*\n(input: text)]]=\"\",\"\",Table22[[#This Row],[8. New embedded network site name*\n(input: text)]])","v":""}]
[{"$f":"IF(Table22[[#This Row],[5. New embedded network site address*\n(input: alpha-numeric )]]=\"\",\"\",Table22[[#This Row],[5. New embedded network site address*\n(input: alpha-numeric )]])","v":""},{"$f":"IF(Table22[[#This Row],[8. New embedded network site name*\n(input: text)]]=\"\",\"\",Table22[[#This Row],[8. New embedded network site name*\n(input: text)]])","v":""}]
[{"$f":"IF(Table22[[#This Row],[5. New embedded network site address*\n(input: alpha-numeric )]]=\"\",\"\",Table22[[#This Row],[5. New embedded network site address*\n(input: alpha-numeric )]])","v":""},{"$f":"IF(Table22[[#This Row],[8. New embedded network site name*\n(input: text)]]=\"\",\"\",Table22[[#This Row],[8. New embedded network site name*\n(input: text)]])","v":""}]
[{"$f":"IF(Table22[[#This Row],[5. New embedded network site address*\n(input: alpha-numeric )]]=\"\",\"\",Table22[[#This Row],[5. New embedded network site address*\n(input: alpha-numeric )]])","v":""},{"$f":"IF(Table22[[#This Row],[8. New embedded network site name*\n(input: text)]]=\"\",\"\",Table22[[#This Row],[8. New embedded network site name*\n(input: text)]])","v":""}]
[{"$f":"IF(Table22[[#This Row],[5. New embedded network site address*\n(input: alpha-numeric )]]=\"\",\"\",Table22[[#This Row],[5. New embedded network site address*\n(input: alpha-numeric )]])","v":""},{"$f":"IF(Table22[[#This Row],[8. New embedded network site name*\n(input: text)]]=\"\",\"\",Table22[[#This Row],[8. New embedded network site name*\n(input: text)]])","v":""}]
[{"$f":"IF(Table22[[#This Row],[5. New embedded network site address*\n(input: alpha-numeric )]]=\"\",\"\",Table22[[#This Row],[5. New embedded network site address*\n(input: alpha-numeric )]])","v":""},{"$f":"IF(Table22[[#This Row],[8. New embedded network site name*\n(input: text)]]=\"\",\"\",Table22[[#This Row],[8. New embedded network site name*\n(input: text)]])","v":""}]
[{"$f":"IF(Table22[[#This Row],[5. New embedded network site address*\n(input: alpha-numeric )]]=\"\",\"\",Table22[[#This Row],[5. New embedded network site address*\n(input: alpha-numeric )]])","v":""},{"$f":"IF(Table22[[#This Row],[8. New embedded network site name*\n(input: text)]]=\"\",\"\",Table22[[#This Row],[8. New embedded network site name*\n(input: text)]])","v":""}]
[{"$f":"IF(Table22[[#This Row],[5. New embedded network site address*\n(input: alpha-numeric )]]=\"\",\"\",Table22[[#This Row],[5. New embedded network site address*\n(input: alpha-numeric )]])","v":""},{"$f":"IF(Table22[[#This Row],[8. New embedded network site name*\n(input: text)]]=\"\",\"\",Table22[[#This Row],[8. New embedded network site name*\n(input: text)]])","v":""}]
[{"$f":"IF(Table22[[#This Row],[5. New embedded network site address*\n(input: alpha-numeric )]]=\"\",\"\",Table22[[#This Row],[5. New embedded network site address*\n(input: alpha-numeric )]])","v":""},{"$f":"IF(Table22[[#This Row],[8. New embedded network site name*\n(input: text)]]=\"\",\"\",Table22[[#This Row],[8. New embedded network site name*\n(input: text)]])","v":""}]
[{"$f":"IF(Table22[[#This Row],[5. New embedded network site address*\n(input: alpha-numeric )]]=\"\",\"\",Table22[[#This Row],[5. New embedded network site address*\n(input: alpha-numeric )]])","v":""},{"$f":"IF(Table22[[#This Row],[8. New embedded network site name*\n(input: text)]]=\"\",\"\",Table22[[#This Row],[8. New embedded network site name*\n(input: text)]])","v":""}]
[{"$f":"IF(Table22[[#This Row],[5. New embedded network site address*\n(input: alpha-numeric )]]=\"\",\"\",Table22[[#This Row],[5. New embedded network site address*\n(input: alpha-numeric )]])","v":""},{"$f":"IF(Table22[[#This Row],[8. New embedded network site name*\n(input: text)]]=\"\",\"\",Table22[[#This Row],[8. New embedded network site name*\n(input: text)]])","v":""}]
[{"$f":"IF(Table22[[#This Row],[5. New embedded network site address*\n(input: alpha-numeric )]]=\"\",\"\",Table22[[#This Row],[5. New embedded network site address*\n(input: alpha-numeric )]])","v":""},{"$f":"IF(Table22[[#This Row],[8. New embedded network site name*\n(input: text)]]=\"\",\"\",Table22[[#This Row],[8. New embedded network site name*\n(input: text)]])","v":""}]
[{"$f":"IF(Table22[[#This Row],[5. New embedded network site address*\n(input: alpha-numeric )]]=\"\",\"\",Table22[[#This Row],[5. New embedded network site address*\n(input: alpha-numeric )]])","v":""},{"$f":"IF(Table22[[#This Row],[8. New embedded network site name*\n(input: text)]]=\"\",\"\",Table22[[#This Row],[8. New embedded network site name*\n(input: text)]])","v":""}]
[{"$f":"IF(Table22[[#This Row],[5. New embedded network site address*\n(input: alpha-numeric )]]=\"\",\"\",Table22[[#This Row],[5. New embedded network site address*\n(input: alpha-numeric )]])","v":""},{"$f":"IF(Table22[[#This Row],[8. New embedded network site name*\n(input: text)]]=\"\",\"\",Table22[[#This Row],[8. New embedded network site name*\n(input: text)]])","v":""}]
[{"$f":"IF(Table22[[#This Row],[5. New embedded network site address*\n(input: alpha-numeric )]]=\"\",\"\",Table22[[#This Row],[5. New embedded network site address*\n(input: alpha-numeric )]])","v":""},{"$f":"IF(Table22[[#This Row],[8. New embedded network site name*\n(input: text)]]=\"\",\"\",Table22[[#This Row],[8. New embedded network site name*\n(input: text)]])","v":""}]
[{"$f":"IF(Table22[[#This Row],[5. New embedded network site address*\n(input: alpha-numeric )]]=\"\",\"\",Table22[[#This Row],[5. New embedded network site address*\n(input: alpha-numeric )]])","v":""},{"$f":"IF(Table22[[#This Row],[8. New embedded network site name*\n(input: text)]]=\"\",\"\",Table22[[#This Row],[8. New embedded network site name*\n(input: text)]])","v":""}]
[{"$f":"IF(Table22[[#This Row],[5. New embedded network site address*\n(input: alpha-numeric )]]=\"\",\"\",Table22[[#This Row],[5. New embedded network site address*\n(input: alpha-numeric )]])","v":""},{"$f":"IF(Table22[[#This Row],[8. New embedded network site name*\n(input: text)]]=\"\",\"\",Table22[[#This Row],[8. New embedded network site name*\n(input: text)]])","v":""}]
[{"$f":"IF(Table22[[#This Row],[5. New embedded network site address*\n(input: alpha-numeric )]]=\"\",\"\",Table22[[#This Row],[5. New embedded network site address*\n(input: alpha-numeric )]])","v":""},{"$f":"IF(Table22[[#This Row],[8. New embedded network site name*\n(input: text)]]=\"\",\"\",Table22[[#This Row],[8. New embedded network site name*\n(input: text)]])","v":""}]
[{"$f":"IF(Table22[[#This Row],[5. New embedded network site address*\n(input: alpha-numeric )]]=\"\",\"\",Table22[[#This Row],[5. New embedded network site address*\n(input: alpha-numeric )]])","v":""},{"$f":"IF(Table22[[#This Row],[8. New embedded network site name*\n(input: text)]]=\"\",\"\",Table22[[#This Row],[8. New embedded network site name*\n(input: text)]])","v":""}]
[{"$f":"IF(Table22[[#This Row],[5. New embedded network site address*\n(input: alpha-numeric )]]=\"\",\"\",Table22[[#This Row],[5. New embedded network site address*\n(input: alpha-numeric )]])","v":""},{"$f":"IF(Table22[[#This Row],[8. New embedded network site name*\n(input: text)]]=\"\",\"\",Table22[[#This Row],[8. New embedded network site name*\n(input: text)]])","v":""}]
[{"$f":"IF(Table22[[#This Row],[5. New embedded network site address*\n(input: alpha-numeric )]]=\"\",\"\",Table22[[#This Row],[5. New embedded network site address*\n(input: alpha-numeric )]])","v":""},{"$f":"IF(Table22[[#This Row],[8. New embedded network site name*\n(input: text)]]=\"\",\"\",Table22[[#This Row],[8. New embedded network site name*\n(input: text)]])","v":""}]
[{"$f":"IF(Table22[[#This Row],[5. New embedded network site address*\n(input: alpha-numeric )]]=\"\",\"\",Table22[[#This Row],[5. New embedded network site address*\n(input: alpha-numeric )]])","v":""},{"$f":"IF(Table22[[#This Row],[8. New embedded network site name*\n(input: text)]]=\"\",\"\",Table22[[#This Row],[8. New embedded network site name*\n(input: text)]])","v":""}]
[{"$f":"IF(Table22[[#This Row],[5. New embedded network site address*\n(input: alpha-numeric )]]=\"\",\"\",Table22[[#This Row],[5. New embedded network site address*\n(input: alpha-numeric )]])","v":""},{"$f":"IF(Table22[[#This Row],[8. New embedded network site name*\n(input: text)]]=\"\",\"\",Table22[[#This Row],[8. New embedded network site name*\n(input: text)]])","v":""}]
[{"$f":"IF(Table22[[#This Row],[5. New embedded network site address*\n(input: alpha-numeric )]]=\"\",\"\",Table22[[#This Row],[5. New embedded network site address*\n(input: alpha-numeric )]])","v":""},{"$f":"IF(Table22[[#This Row],[8. New embedded network site name*\n(input: text)]]=\"\",\"\",Table22[[#This Row],[8. New embedded network site name*\n(input: text)]])","v":""}]
[{"$f":"IF(Table22[[#This Row],[5. New embedded network site address*\n(input: alpha-numeric )]]=\"\",\"\",Table22[[#This Row],[5. New embedded network site address*\n(input: alpha-numeric )]])","v":""},{"$f":"IF(Table22[[#This Row],[8. New embedded network site name*\n(input: text)]]=\"\",\"\",Table22[[#This Row],[8. New embedded network site name*\n(input: text)]])","v":""}]
[{"$f":"IF(Table22[[#This Row],[5. New embedded network site address*\n(input: alpha-numeric )]]=\"\",\"\",Table22[[#This Row],[5. New embedded network site address*\n(input: alpha-numeric )]])","v":""},{"$f":"IF(Table22[[#This Row],[8. New embedded network site name*\n(input: text)]]=\"\",\"\",Table22[[#This Row],[8. New embedded network site name*\n(input: text)]])","v":""}]
[{"$f":"IF(Table22[[#This Row],[5. New embedded network site address*\n(input: alpha-numeric )]]=\"\",\"\",Table22[[#This Row],[5. New embedded network site address*\n(input: alpha-numeric )]])","v":""},{"$f":"IF(Table22[[#This Row],[8. New embedded network site name*\n(input: text)]]=\"\",\"\",Table22[[#This Row],[8. New embedded network site name*\n(input: text)]])","v":""}]
[{"$f":"IF(Table22[[#This Row],[5. New embedded network site address*\n(input: alpha-numeric )]]=\"\",\"\",Table22[[#This Row],[5. New embedded network site address*\n(input: alpha-numeric )]])","v":""},{"$f":"IF(Table22[[#This Row],[8. New embedded network site name*\n(input: text)]]=\"\",\"\",Table22[[#This Row],[8. New embedded network site name*\n(input: text)]])","v":""}]
[{"$f":"IF(Table22[[#This Row],[5. New embedded network site address*\n(input: alpha-numeric )]]=\"\",\"\",Table22[[#This Row],[5. New embedded network site address*\n(input: alpha-numeric )]])","v":""},{"$f":"IF(Table22[[#This Row],[8. New embedded network site name*\n(input: text)]]=\"\",\"\",Table22[[#This Row],[8. New embedded network site name*\n(input: text)]])","v":""}]
[{"$f":"IF(Table22[[#This Row],[5. New embedded network site address*\n(input: alpha-numeric )]]=\"\",\"\",Table22[[#This Row],[5. New embedded network site address*\n(input: alpha-numeric )]])","v":""},{"$f":"IF(Table22[[#This Row],[8. New embedded network site name*\n(input: text)]]=\"\",\"\",Table22[[#This Row],[8. New embedded network site name*\n(input: text)]])","v":""}]
[{"$f":"IF(Table22[[#This Row],[5. New embedded network site address*\n(input: alpha-numeric )]]=\"\",\"\",Table22[[#This Row],[5. New embedded network site address*\n(input: alpha-numeric )]])","v":""},{"$f":"IF(Table22[[#This Row],[8. New embedded network site name*\n(input: text)]]=\"\",\"\",Table22[[#This Row],[8. New embedded network site name*\n(input: text)]])","v":""}]
[{"$f":"IF(Table22[[#This Row],[5. New embedded network site address*\n(input: alpha-numeric )]]=\"\",\"\",Table22[[#This Row],[5. New embedded network site address*\n(input: alpha-numeric )]])","v":""},{"$f":"IF(Table22[[#This Row],[8. New embedded network site name*\n(input: text)]]=\"\",\"\",Table22[[#This Row],[8. New embedded network site name*\n(input: text)]])","v":""}]
[{"$f":"IF(Table22[[#This Row],[5. New embedded network site address*\n(input: alpha-numeric )]]=\"\",\"\",Table22[[#This Row],[5. New embedded network site address*\n(input: alpha-numeric )]])","v":""},{"$f":"IF(Table22[[#This Row],[8. New embedded network site name*\n(input: text)]]=\"\",\"\",Table22[[#This Row],[8. New embedded network site name*\n(input: text)]])","v":""}]
[{"$f":"IF(Table22[[#This Row],[5. New embedded network site address*\n(input: alpha-numeric )]]=\"\",\"\",Table22[[#This Row],[5. New embedded network site address*\n(input: alpha-numeric )]])","v":""},{"$f":"IF(Table22[[#This Row],[8. New embedded network site name*\n(input: text)]]=\"\",\"\",Table22[[#This Row],[8. New embedded network site name*\n(input: text)]])","v":""}]
[{"$f":"IF(Table22[[#This Row],[5. New embedded network site address*\n(input: alpha-numeric )]]=\"\",\"\",Table22[[#This Row],[5. New embedded network site address*\n(input: alpha-numeric )]])","v":""},{"$f":"IF(Table22[[#This Row],[8. New embedded network site name*\n(input: text)]]=\"\",\"\",Table22[[#This Row],[8. New embedded network site name*\n(input: text)]])","v":""}]
[{"$f":"IF(Table22[[#This Row],[5. New embedded network site address*\n(input: alpha-numeric )]]=\"\",\"\",Table22[[#This Row],[5. New embedded network site address*\n(input: alpha-numeric )]])","v":""},{"$f":"IF(Table22[[#This Row],[8. New embedded network site name*\n(input: text)]]=\"\",\"\",Table22[[#This Row],[8. New embedded network site name*\n(input: text)]])","v":""}]
[{"$f":"IF(Table22[[#This Row],[5. New embedded network site address*\n(input: alpha-numeric )]]=\"\",\"\",Table22[[#This Row],[5. New embedded network site address*\n(input: alpha-numeric )]])","v":""},{"$f":"IF(Table22[[#This Row],[8. New embedded network site name*\n(input: text)]]=\"\",\"\",Table22[[#This Row],[8. New embedded network site name*\n(input: text)]])","v":""}]
[{"$f":"IF(Table22[[#This Row],[5. New embedded network site address*\n(input: alpha-numeric )]]=\"\",\"\",Table22[[#This Row],[5. New embedded network site address*\n(input: alpha-numeric )]])","v":""},{"$f":"IF(Table22[[#This Row],[8. New embedded network site name*\n(input: text)]]=\"\",\"\",Table22[[#This Row],[8. New embedded network site name*\n(input: text)]])","v":""}]
[{"$f":"IF(Table22[[#This Row],[5. New embedded network site address*\n(input: alpha-numeric )]]=\"\",\"\",Table22[[#This Row],[5. New embedded network site address*\n(input: alpha-numeric )]])","v":""},{"$f":"IF(Table22[[#This Row],[8. New embedded network site name*\n(input: text)]]=\"\",\"\",Table22[[#This Row],[8. New embedded network site name*\n(input: text)]])","v":""}]
[{"$f":"IF(Table22[[#This Row],[5. New embedded network site address*\n(input: alpha-numeric )]]=\"\",\"\",Table22[[#This Row],[5. New embedded network site address*\n(input: alpha-numeric )]])","v":""},{"$f":"IF(Table22[[#This Row],[8. New embedded network site name*\n(input: text)]]=\"\",\"\",Table22[[#This Row],[8. New embedded network site name*\n(input: text)]])","v":""}]
[{"$f":"IF(Table22[[#This Row],[5. New embedded network site address*\n(input: alpha-numeric )]]=\"\",\"\",Table22[[#This Row],[5. New embedded network site address*\n(input: alpha-numeric )]])","v":""},{"$f":"IF(Table22[[#This Row],[8. New embedded network site name*\n(input: text)]]=\"\",\"\",Table22[[#This Row],[8. New embedded network site name*\n(input: text)]])","v":""}]
[{"$f":"IF(Table22[[#This Row],[5. New embedded network site address*\n(input: alpha-numeric )]]=\"\",\"\",Table22[[#This Row],[5. New embedded network site address*\n(input: alpha-numeric )]])","v":""},{"$f":"IF(Table22[[#This Row],[8. New embedded network site name*\n(input: text)]]=\"\",\"\",Table22[[#This Row],[8. New embedded network site name*\n(input: text)]])","v":""}]
[{"$f":"IF(Table22[[#This Row],[5. New embedded network site address*\n(input: alpha-numeric )]]=\"\",\"\",Table22[[#This Row],[5. New embedded network site address*\n(input: alpha-numeric )]])","v":""},{"$f":"IF(Table22[[#This Row],[8. New embedded network site name*\n(input: text)]]=\"\",\"\",Table22[[#This Row],[8. New embedded network site name*\n(input: text)]])","v":""}]
[{"$f":"IF(Table22[[#This Row],[5. New embedded network site address*\n(input: alpha-numeric )]]=\"\",\"\",Table22[[#This Row],[5. New embedded network site address*\n(input: alpha-numeric )]])","v":""},{"$f":"IF(Table22[[#This Row],[8. New embedded network site name*\n(input: text)]]=\"\",\"\",Table22[[#This Row],[8. New embedded network site name*\n(input: text)]])","v":""}]
[{"$f":"IF(Table22[[#This Row],[5. New embedded network site address*\n(input: alpha-numeric )]]=\"\",\"\",Table22[[#This Row],[5. New embedded network site address*\n(input: alpha-numeric )]])","v":""},{"$f":"IF(Table22[[#This Row],[8. New embedded network site name*\n(input: text)]]=\"\",\"\",Table22[[#This Row],[8. New embedded network site name*\n(input: text)]])","v":""}]
[{"$f":"IF(Table22[[#This Row],[5. New embedded network site address*\n(input: alpha-numeric )]]=\"\",\"\",Table22[[#This Row],[5. New embedded network site address*\n(input: alpha-numeric )]])","v":""},{"$f":"IF(Table22[[#This Row],[8. New embedded network site name*\n(input: text)]]=\"\",\"\",Table22[[#This Row],[8. New embedded network site name*\n(input: text)]])","v":""}]
[{"$f":"IF(Table22[[#This Row],[5. New embedded network site address*\n(input: alpha-numeric )]]=\"\",\"\",Table22[[#This Row],[5. New embedded network site address*\n(input: alpha-numeric )]])","v":""},{"$f":"IF(Table22[[#This Row],[8. New embedded network site name*\n(input: text)]]=\"\",\"\",Table22[[#This Row],[8. New embedded network site name*\n(input: text)]])","v":""}]
[{"$f":"IF(Table22[[#This Row],[5. New embedded network site address*\n(input: alpha-numeric )]]=\"\",\"\",Table22[[#This Row],[5. New embedded network site address*\n(input: alpha-numeric )]])","v":""},{"$f":"IF(Table22[[#This Row],[8. New embedded network site name*\n(input: text)]]=\"\",\"\",Table22[[#This Row],[8. New embedded network site name*\n(input: text)]])","v":""}]
[{"$f":"IF(Table22[[#This Row],[5. New embedded network site address*\n(input: alpha-numeric )]]=\"\",\"\",Table22[[#This Row],[5. New embedded network site address*\n(input: alpha-numeric )]])","v":""},{"$f":"IF(Table22[[#This Row],[8. New embedded network site name*\n(input: text)]]=\"\",\"\",Table22[[#This Row],[8. New embedded network site name*\n(input: text)]])","v":""}]
[{"$f":"IF(Table22[[#This Row],[5. New embedded network site address*\n(input: alpha-numeric )]]=\"\",\"\",Table22[[#This Row],[5. New embedded network site address*\n(input: alpha-numeric )]])","v":""},{"$f":"IF(Table22[[#This Row],[8. New embedded network site name*\n(input: text)]]=\"\",\"\",Table22[[#This Row],[8. New embedded network site name*\n(input: text)]])","v":""}]
[{"$f":"IF(Table22[[#This Row],[5. New embedded network site address*\n(input: alpha-numeric )]]=\"\",\"\",Table22[[#This Row],[5. New embedded network site address*\n(input: alpha-numeric )]])","v":""},{"$f":"IF(Table22[[#This Row],[8. New embedded network site name*\n(input: text)]]=\"\",\"\",Table22[[#This Row],[8. New embedded network site name*\n(input: text)]])","v":""}]
[{"$f":"IF(Table22[[#This Row],[5. New embedded network site address*\n(input: alpha-numeric )]]=\"\",\"\",Table22[[#This Row],[5. New embedded network site address*\n(input: alpha-numeric )]])","v":""},{"$f":"IF(Table22[[#This Row],[8. New embedded network site name*\n(input: text)]]=\"\",\"\",Table22[[#This Row],[8. New embedded network site name*\n(input: text)]])","v":""}]
[{"$f":"IF(Table22[[#This Row],[5. New embedded network site address*\n(input: alpha-numeric )]]=\"\",\"\",Table22[[#This Row],[5. New embedded network site address*\n(input: alpha-numeric )]])","v":""},{"$f":"IF(Table22[[#This Row],[8. New embedded network site name*\n(input: text)]]=\"\",\"\",Table22[[#This Row],[8. New embedded network site name*\n(input: text)]])","v":""}]
[{"$f":"IF(Table22[[#This Row],[5. New embedded network site address*\n(input: alpha-numeric )]]=\"\",\"\",Table22[[#This Row],[5. New embedded network site address*\n(input: alpha-numeric )]])","v":""},{"$f":"IF(Table22[[#This Row],[8. New embedded network site name*\n(input: text)]]=\"\",\"\",Table22[[#This Row],[8. New embedded network site name*\n(input: text)]])","v":""}]
[{"$f":"IF(Table22[[#This Row],[5. New embedded network site address*\n(input: alpha-numeric )]]=\"\",\"\",Table22[[#This Row],[5. New embedded network site address*\n(input: alpha-numeric )]])","v":""},{"$f":"IF(Table22[[#This Row],[8. New embedded network site name*\n(input: text)]]=\"\",\"\",Table22[[#This Row],[8. New embedded network site name*\n(input: text)]])","v":""}]
[{"$f":"IF(Table22[[#This Row],[5. New embedded network site address*\n(input: alpha-numeric )]]=\"\",\"\",Table22[[#This Row],[5. New embedded network site address*\n(input: alpha-numeric )]])","v":""},{"$f":"IF(Table22[[#This Row],[8. New embedded network site name*\n(input: text)]]=\"\",\"\",Table22[[#This Row],[8. New embedded network site name*\n(input: text)]])","v":""}]
[{"$f":"IF(Table22[[#This Row],[5. New embedded network site address*\n(input: alpha-numeric )]]=\"\",\"\",Table22[[#This Row],[5. New embedded network site address*\n(input: alpha-numeric )]])","v":""},{"$f":"IF(Table22[[#This Row],[8. New embedded network site name*\n(input: text)]]=\"\",\"\",Table22[[#This Row],[8. New embedded network site name*\n(input: text)]])","v":""}]
[{"$f":"IF(Table22[[#This Row],[5. New embedded network site address*\n(input: alpha-numeric )]]=\"\",\"\",Table22[[#This Row],[5. New embedded network site address*\n(input: alpha-numeric )]])","v":""},{"$f":"IF(Table22[[#This Row],[8. New embedded network site name*\n(input: text)]]=\"\",\"\",Table22[[#This Row],[8. New embedded network site name*\n(input: text)]])","v":""}]
[{"$f":"IF(Table22[[#This Row],[5. New embedded network site address*\n(input: alpha-numeric )]]=\"\",\"\",Table22[[#This Row],[5. New embedded network site address*\n(input: alpha-numeric )]])","v":""},{"$f":"IF(Table22[[#This Row],[8. New embedded network site name*\n(input: text)]]=\"\",\"\",Table22[[#This Row],[8. New embedded network site name*\n(input: text)]])","v":""}]
[{"$f":"IF(Table22[[#This Row],[5. New embedded network site address*\n(input: alpha-numeric )]]=\"\",\"\",Table22[[#This Row],[5. New embedded network site address*\n(input: alpha-numeric )]])","v":""},{"$f":"IF(Table22[[#This Row],[8. New embedded network site name*\n(input: text)]]=\"\",\"\",Table22[[#This Row],[8. New embedded network site name*\n(input: text)]])","v":""}]
[{"$f":"IF(Table22[[#This Row],[5. New embedded network site address*\n(input: alpha-numeric )]]=\"\",\"\",Table22[[#This Row],[5. New embedded network site address*\n(input: alpha-numeric )]])","v":""},{"$f":"IF(Table22[[#This Row],[8. New embedded network site name*\n(input: text)]]=\"\",\"\",Table22[[#This Row],[8. New embedded network site name*\n(input: text)]])","v":""}]
[{"$f":"IF(Table22[[#This Row],[5. New embedded network site address*\n(input: alpha-numeric )]]=\"\",\"\",Table22[[#This Row],[5. New embedded network site address*\n(input: alpha-numeric )]])","v":""},{"$f":"IF(Table22[[#This Row],[8. New embedded network site name*\n(input: text)]]=\"\",\"\",Table22[[#This Row],[8. New embedded network site name*\n(input: text)]])","v":""}]
[{"$f":"IF(Table22[[#This Row],[5. New embedded network site address*\n(input: alpha-numeric )]]=\"\",\"\",Table22[[#This Row],[5. New embedded network site address*\n(input: alpha-numeric )]])","v":""},{"$f":"IF(Table22[[#This Row],[8. New embedded network site name*\n(input: text)]]=\"\",\"\",Table22[[#This Row],[8. New embedded network site name*\n(input: text)]])","v":""}]
[{"$f":"IF(Table22[[#This Row],[5. New embedded network site address*\n(input: alpha-numeric )]]=\"\",\"\",Table22[[#This Row],[5. New embedded network site address*\n(input: alpha-numeric )]])","v":""},{"$f":"IF(Table22[[#This Row],[8. New embedded network site name*\n(input: text)]]=\"\",\"\",Table22[[#This Row],[8. New embedded network site name*\n(input: text)]])","v":""}]
[{"$f":"IF(Table22[[#This Row],[5. New embedded network site address*\n(input: alpha-numeric )]]=\"\",\"\",Table22[[#This Row],[5. New embedded network site address*\n(input: alpha-numeric )]])","v":""},{"$f":"IF(Table22[[#This Row],[8. New embedded network site name*\n(input: text)]]=\"\",\"\",Table22[[#This Row],[8. New embedded network site name*\n(input: text)]])","v":""}]
[{"$f":"IF(Table22[[#This Row],[5. New embedded network site address*\n(input: alpha-numeric )]]=\"\",\"\",Table22[[#This Row],[5. New embedded network site address*\n(input: alpha-numeric )]])","v":""},{"$f":"IF(Table22[[#This Row],[8. New embedded network site name*\n(input: text)]]=\"\",\"\",Table22[[#This Row],[8. New embedded network site name*\n(input: text)]])","v":""}]
[{"$f":"IF(Table22[[#This Row],[5. New embedded network site address*\n(input: alpha-numeric )]]=\"\",\"\",Table22[[#This Row],[5. New embedded network site address*\n(input: alpha-numeric )]])","v":""},{"$f":"IF(Table22[[#This Row],[8. New embedded network site name*\n(input: text)]]=\"\",\"\",Table22[[#This Row],[8. New embedded network site name*\n(input: text)]])","v":""}]
[{"$f":"IF(Table22[[#This Row],[5. New embedded network site address*\n(input: alpha-numeric )]]=\"\",\"\",Table22[[#This Row],[5. New embedded network site address*\n(input: alpha-numeric )]])","v":""},{"$f":"IF(Table22[[#This Row],[8. New embedded network site name*\n(input: text)]]=\"\",\"\",Table22[[#This Row],[8. New embedded network site name*\n(input: text)]])","v":""}]
[{"$f":"IF(Table22[[#This Row],[5. New embedded network site address*\n(input: alpha-numeric )]]=\"\",\"\",Table22[[#This Row],[5. New embedded network site address*\n(input: alpha-numeric )]])","v":""},{"$f":"IF(Table22[[#This Row],[8. New embedded network site name*\n(input: text)]]=\"\",\"\",Table22[[#This Row],[8. New embedded network site name*\n(input: text)]])","v":""}]
[{"$f":"IF(Table22[[#This Row],[5. New embedded network site address*\n(input: alpha-numeric )]]=\"\",\"\",Table22[[#This Row],[5. New embedded network site address*\n(input: alpha-numeric )]])","v":""},{"$f":"IF(Table22[[#This Row],[8. New embedded network site name*\n(input: text)]]=\"\",\"\",Table22[[#This Row],[8. New embedded network site name*\n(input: text)]])","v":""}]
[{"$f":"IF(Table22[[#This Row],[5. New embedded network site address*\n(input: alpha-numeric )]]=\"\",\"\",Table22[[#This Row],[5. New embedded network site address*\n(input: alpha-numeric )]])","v":""},{"$f":"IF(Table22[[#This Row],[8. New embedded network site name*\n(input: text)]]=\"\",\"\",Table22[[#This Row],[8. New embedded network site name*\n(input: text)]])","v":""}]
[{"$f":"IF(Table22[[#This Row],[5. New embedded network site address*\n(input: alpha-numeric )]]=\"\",\"\",Table22[[#This Row],[5. New embedded network site address*\n(input: alpha-numeric )]])","v":""},{"$f":"IF(Table22[[#This Row],[8. New embedded network site name*\n(input: text)]]=\"\",\"\",Table22[[#This Row],[8. New embedded network site name*\n(input: text)]])","v":""}]
[{"$f":"IF(Table22[[#This Row],[5. New embedded network site address*\n(input: alpha-numeric )]]=\"\",\"\",Table22[[#This Row],[5. New embedded network site address*\n(input: alpha-numeric )]])","v":""},{"$f":"IF(Table22[[#This Row],[8. New embedded network site name*\n(input: text)]]=\"\",\"\",Table22[[#This Row],[8. New embedded network site name*\n(input: text)]])","v":""}]
[{"$f":"IF(Table22[[#This Row],[5. New embedded network site address*\n(input: alpha-numeric )]]=\"\",\"\",Table22[[#This Row],[5. New embedded network site address*\n(input: alpha-numeric )]])","v":""},{"$f":"IF(Table22[[#This Row],[8. New embedded network site name*\n(input: text)]]=\"\",\"\",Table22[[#This Row],[8. New embedded network site name*\n(input: text)]])","v":""}]
[{"$f":"IF(Table22[[#This Row],[5. New embedded network site address*\n(input: alpha-numeric )]]=\"\",\"\",Table22[[#This Row],[5. New embedded network site address*\n(input: alpha-numeric )]])","v":""},{"$f":"IF(Table22[[#This Row],[8. New embedded network site name*\n(input: text)]]=\"\",\"\",Table22[[#This Row],[8. New embedded network site name*\n(input: text)]])","v":""}]
[{"$f":"IF(Table22[[#This Row],[5. New embedded network site address*\n(input: alpha-numeric )]]=\"\",\"\",Table22[[#This Row],[5. New embedded network site address*\n(input: alpha-numeric )]])","v":""},{"$f":"IF(Table22[[#This Row],[8. New embedded network site name*\n(input: text)]]=\"\",\"\",Table22[[#This Row],[8. New embedded network site name*\n(input: text)]])","v":""}]
[{"$f":"IF(Table22[[#This Row],[5. New embedded network site address*\n(input: alpha-numeric )]]=\"\",\"\",Table22[[#This Row],[5. New embedded network site address*\n(input: alpha-numeric )]])","v":""},{"$f":"IF(Table22[[#This Row],[8. New embedded network site name*\n(input: text)]]=\"\",\"\",Table22[[#This Row],[8. New embedded network site name*\n(input: text)]])","v":""}]
[{"$f":"IF(Table22[[#This Row],[5. New embedded network site address*\n(input: alpha-numeric )]]=\"\",\"\",Table22[[#This Row],[5. New embedded network site address*\n(input: alpha-numeric )]])","v":""},{"$f":"IF(Table22[[#This Row],[8. New embedded network site name*\n(input: text)]]=\"\",\"\",Table22[[#This Row],[8. New embedded network site name*\n(input: text)]])","v":""}]
[{"$f":"IF(Table22[[#This Row],[5. New embedded network site address*\n(input: alpha-numeric )]]=\"\",\"\",Table22[[#This Row],[5. New embedded network site address*\n(input: alpha-numeric )]])","v":""},{"$f":"IF(Table22[[#This Row],[8. New embedded network site name*\n(input: text)]]=\"\",\"\",Table22[[#This Row],[8. New embedded network site name*\n(input: text)]])","v":""}]
[{"$f":"IF(Table22[[#This Row],[5. New embedded network site address*\n(input: alpha-numeric )]]=\"\",\"\",Table22[[#This Row],[5. New embedded network site address*\n(input: alpha-numeric )]])","v":""},{"$f":"IF(Table22[[#This Row],[8. New embedded network site name*\n(input: text)]]=\"\",\"\",Table22[[#This Row],[8. New embedded network site name*\n(input: text)]])","v":""}]
[{"$f":"IF(Table22[[#This Row],[5. New embedded network site address*\n(input: alpha-numeric )]]=\"\",\"\",Table22[[#This Row],[5. New embedded network site address*\n(input: alpha-numeric )]])","v":""},{"$f":"IF(Table22[[#This Row],[8. New embedded network site name*\n(input: text)]]=\"\",\"\",Table22[[#This Row],[8. New embedded network site name*\n(input: text)]])","v":""}]
[{"$f":"IF(Table22[[#This Row],[5. New embedded network site address*\n(input: alpha-numeric )]]=\"\",\"\",Table22[[#This Row],[5. New embedded network site address*\n(input: alpha-numeric )]])","v":""},{"$f":"IF(Table22[[#This Row],[8. New embedded network site name*\n(input: text)]]=\"\",\"\",Table22[[#This Row],[8. New embedded network site name*\n(input: text)]])","v":""}]
[{"$f":"IF(Table22[[#This Row],[5. New embedded network site address*\n(input: alpha-numeric )]]=\"\",\"\",Table22[[#This Row],[5. New embedded network site address*\n(input: alpha-numeric )]])","v":""},{"$f":"IF(Table22[[#This Row],[8. New embedded network site name*\n(input: text)]]=\"\",\"\",Table22[[#This Row],[8. New embedded network site name*\n(input: text)]])","v":""}]
[{"$f":"IF(Table22[[#This Row],[5. New embedded network site address*\n(input: alpha-numeric )]]=\"\",\"\",Table22[[#This Row],[5. New embedded network site address*\n(input: alpha-numeric )]])","v":""},{"$f":"IF(Table22[[#This Row],[8. New embedded network site name*\n(input: text)]]=\"\",\"\",Table22[[#This Row],[8. New embedded network site name*\n(input: text)]])","v":""}]
[{"$f":"IF(Table22[[#This Row],[5. New embedded network site address*\n(input: alpha-numeric )]]=\"\",\"\",Table22[[#This Row],[5. New embedded network site address*\n(input: alpha-numeric )]])","v":""},{"$f":"IF(Table22[[#This Row],[8. New embedded network site name*\n(input: text)]]=\"\",\"\",Table22[[#This Row],[8. New embedded network site name*\n(input: text)]])","v":""}]
[{"$f":"IF(Table22[[#This Row],[5. New embedded network site address*\n(input: alpha-numeric )]]=\"\",\"\",Table22[[#This Row],[5. New embedded network site address*\n(input: alpha-numeric )]])","v":""},{"$f":"IF(Table22[[#This Row],[8. New embedded network site name*\n(input: text)]]=\"\",\"\",Table22[[#This Row],[8. New embedded network site name*\n(input: text)]])","v":""}]
[{"$f":"IF(Table22[[#This Row],[5. New embedded network site address*\n(input: alpha-numeric )]]=\"\",\"\",Table22[[#This Row],[5. New embedded network site address*\n(input: alpha-numeric )]])","v":""},{"$f":"IF(Table22[[#This Row],[8. New embedded network site name*\n(input: text)]]=\"\",\"\",Table22[[#This Row],[8. New embedded network site name*\n(input: text)]])","v":""}]
[{"$f":"IF(Table22[[#This Row],[5. New embedded network site address*\n(input: alpha-numeric )]]=\"\",\"\",Table22[[#This Row],[5. New embedded network site address*\n(input: alpha-numeric )]])","v":""},{"$f":"IF(Table22[[#This Row],[8. New embedded network site name*\n(input: text)]]=\"\",\"\",Table22[[#This Row],[8. New embedded network site name*\n(input: text)]])","v":""}]
[{"$f":"IF(Table22[[#This Row],[5. New embedded network site address*\n(input: alpha-numeric )]]=\"\",\"\",Table22[[#This Row],[5. New embedded network site address*\n(input: alpha-numeric )]])","v":""},{"$f":"IF(Table22[[#This Row],[8. New embedded network site name*\n(input: text)]]=\"\",\"\",Table22[[#This Row],[8. New embedded network site name*\n(input: text)]])","v":""}]
[{"$f":"IF(Table22[[#This Row],[5. New embedded network site address*\n(input: alpha-numeric )]]=\"\",\"\",Table22[[#This Row],[5. New embedded network site address*\n(input: alpha-numeric )]])","v":""},{"$f":"IF(Table22[[#This Row],[8. New embedded network site name*\n(input: text)]]=\"\",\"\",Table22[[#This Row],[8. New embedded network site name*\n(input: text)]])","v":""}]
[{"$f":"IF(Table22[[#This Row],[5. New embedded network site address*\n(input: alpha-numeric )]]=\"\",\"\",Table22[[#This Row],[5. New embedded network site address*\n(input: alpha-numeric )]])","v":""},{"$f":"IF(Table22[[#This Row],[8. New embedded network site name*\n(input: text)]]=\"\",\"\",Table22[[#This Row],[8. New embedded network site name*\n(input: text)]])","v":""}]
[{"$f":"IF(Table22[[#This Row],[5. New embedded network site address*\n(input: alpha-numeric )]]=\"\",\"\",Table22[[#This Row],[5. New embedded network site address*\n(input: alpha-numeric )]])","v":""},{"$f":"IF(Table22[[#This Row],[8. New embedded network site name*\n(input: text)]]=\"\",\"\",Table22[[#This Row],[8. New embedded network site name*\n(input: text)]])","v":""}]
[{"$f":"IF(Table22[[#This Row],[5. New embedded network site address*\n(input: alpha-numeric )]]=\"\",\"\",Table22[[#This Row],[5. New embedded network site address*\n(input: alpha-numeric )]])","v":""},{"$f":"IF(Table22[[#This Row],[8. New embedded network site name*\n(input: text)]]=\"\",\"\",Table22[[#This Row],[8. New embedded network site name*\n(input: text)]])","v":""}]
[{"$f":"IF(Table22[[#This Row],[5. New embedded network site address*\n(input: alpha-numeric )]]=\"\",\"\",Table22[[#This Row],[5. New embedded network site address*\n(input: alpha-numeric )]])","v":""},{"$f":"IF(Table22[[#This Row],[8. New embedded network site name*\n(input: text)]]=\"\",\"\",Table22[[#This Row],[8. New embedded network site name*\n(input: text)]])","v":""}]
[{"$f":"IF(Table22[[#This Row],[5. New embedded network site address*\n(input: alpha-numeric )]]=\"\",\"\",Table22[[#This Row],[5. New embedded network site address*\n(input: alpha-numeric )]])","v":""},{"$f":"IF(Table22[[#This Row],[8. New embedded network site name*\n(input: text)]]=\"\",\"\",Table22[[#This Row],[8. New embedded network site name*\n(input: text)]])","v":""}]
[{"$f":"IF(Table22[[#This Row],[5. New embedded network site address*\n(input: alpha-numeric )]]=\"\",\"\",Table22[[#This Row],[5. New embedded network site address*\n(input: alpha-numeric )]])","v":""},{"$f":"IF(Table22[[#This Row],[8. New embedded network site name*\n(input: text)]]=\"\",\"\",Table22[[#This Row],[8. New embedded network site name*\n(input: text)]])","v":""}]
[{"$f":"IF(Table22[[#This Row],[5. New embedded network site address*\n(input: alpha-numeric )]]=\"\",\"\",Table22[[#This Row],[5. New embedded network site address*\n(input: alpha-numeric )]])","v":""},{"$f":"IF(Table22[[#This Row],[8. New embedded network site name*\n(input: text)]]=\"\",\"\",Table22[[#This Row],[8. New embedded network site name*\n(input: text)]])","v":""}]
[{"$f":"IF(Table22[[#This Row],[5. New embedded network site address*\n(input: alpha-numeric )]]=\"\",\"\",Table22[[#This Row],[5. New embedded network site address*\n(input: alpha-numeric )]])","v":""},{"$f":"IF(Table22[[#This Row],[8. New embedded network site name*\n(input: text)]]=\"\",\"\",Table22[[#This Row],[8. New embedded network site name*\n(input: text)]])","v":""}]
[{"$f":"IF(Table22[[#This Row],[5. New embedded network site address*\n(input: alpha-numeric )]]=\"\",\"\",Table22[[#This Row],[5. New embedded network site address*\n(input: alpha-numeric )]])","v":""},{"$f":"IF(Table22[[#This Row],[8. New embedded network site name*\n(input: text)]]=\"\",\"\",Table22[[#This Row],[8. New embedded network site name*\n(input: text)]])","v":""}]
[{"$f":"IF(Table22[[#This Row],[5. New embedded network site address*\n(input: alpha-numeric )]]=\"\",\"\",Table22[[#This Row],[5. New embedded network site address*\n(input: alpha-numeric )]])","v":""},{"$f":"IF(Table22[[#This Row],[8. New embedded network site name*\n(input: text)]]=\"\",\"\",Table22[[#This Row],[8. New embedded network site name*\n(input: text)]])","v":""}]
[{"$f":"IF(Table22[[#This Row],[5. New embedded network site address*\n(input: alpha-numeric )]]=\"\",\"\",Table22[[#This Row],[5. New embedded network site address*\n(input: alpha-numeric )]])","v":""},{"$f":"IF(Table22[[#This Row],[8. New embedded network site name*\n(input: text)]]=\"\",\"\",Table22[[#This Row],[8. New embedded network site name*\n(input: text)]])","v":""}]
[{"$f":"IF(Table22[[#This Row],[5. New embedded network site address*\n(input: alpha-numeric )]]=\"\",\"\",Table22[[#This Row],[5. New embedded network site address*\n(input: alpha-numeric )]])","v":""},{"$f":"IF(Table22[[#This Row],[8. New embedded network site name*\n(input: text)]]=\"\",\"\",Table22[[#This Row],[8. New embedded network site name*\n(input: text)]])","v":""}]
[{"$f":"IF(Table22[[#This Row],[5. New embedded network site address*\n(input: alpha-numeric )]]=\"\",\"\",Table22[[#This Row],[5. New embedded network site address*\n(input: alpha-numeric )]])","v":""},{"$f":"IF(Table22[[#This Row],[8. New embedded network site name*\n(input: text)]]=\"\",\"\",Table22[[#This Row],[8. New embedded network site name*\n(input: text)]])","v":""}]
[{"$f":"IF(Table22[[#This Row],[5. New embedded network site address*\n(input: alpha-numeric )]]=\"\",\"\",Table22[[#This Row],[5. New embedded network site address*\n(input: alpha-numeric )]])","v":""},{"$f":"IF(Table22[[#This Row],[8. New embedded network site name*\n(input: text)]]=\"\",\"\",Table22[[#This Row],[8. New embedded network site name*\n(input: text)]])","v":""}]
[{"$f":"IF(Table22[[#This Row],[5. New embedded network site address*\n(input: alpha-numeric )]]=\"\",\"\",Table22[[#This Row],[5. New embedded network site address*\n(input: alpha-numeric )]])","v":""},{"$f":"IF(Table22[[#This Row],[8. New embedded network site name*\n(input: text)]]=\"\",\"\",Table22[[#This Row],[8. New embedded network site name*\n(input: text)]])","v":""}]
[{"$f":"IF(Table22[[#This Row],[5. New embedded network site address*\n(input: alpha-numeric )]]=\"\",\"\",Table22[[#This Row],[5. New embedded network site address*\n(input: alpha-numeric )]])","v":""},{"$f":"IF(Table22[[#This Row],[8. New embedded network site name*\n(input: text)]]=\"\",\"\",Table22[[#This Row],[8. New embedded network site name*\n(input: text)]])","v":""}]
[{"$f":"IF(Table22[[#This Row],[5. New embedded network site address*\n(input: alpha-numeric )]]=\"\",\"\",Table22[[#This Row],[5. New embedded network site address*\n(input: alpha-numeric )]])","v":""},{"$f":"IF(Table22[[#This Row],[8. New embedded network site name*\n(input: text)]]=\"\",\"\",Table22[[#This Row],[8. New embedded network site name*\n(input: text)]])","v":""}]
[{"$f":"IF(Table22[[#This Row],[5. New embedded network site address*\n(input: alpha-numeric )]]=\"\",\"\",Table22[[#This Row],[5. New embedded network site address*\n(input: alpha-numeric )]])","v":""},{"$f":"IF(Table22[[#This Row],[8. New embedded network site name*\n(input: text)]]=\"\",\"\",Table22[[#This Row],[8. New embedded network site name*\n(input: text)]])","v":""}]
[{"$f":"IF(Table22[[#This Row],[5. New embedded network site address*\n(input: alpha-numeric )]]=\"\",\"\",Table22[[#This Row],[5. New embedded network site address*\n(input: alpha-numeric )]])","v":""},{"$f":"IF(Table22[[#This Row],[8. New embedded network site name*\n(input: text)]]=\"\",\"\",Table22[[#This Row],[8. New embedded network site name*\n(input: text)]])","v":""}]
[{"$f":"IF(Table22[[#This Row],[5. New embedded network site address*\n(input: alpha-numeric )]]=\"\",\"\",Table22[[#This Row],[5. New embedded network site address*\n(input: alpha-numeric )]])","v":""},{"$f":"IF(Table22[[#This Row],[8. New embedded network site name*\n(input: text)]]=\"\",\"\",Table22[[#This Row],[8. New embedded network site name*\n(input: text)]])","v":""}]
[{"$f":"IF(Table22[[#This Row],[5. New embedded network site address*\n(input: alpha-numeric )]]=\"\",\"\",Table22[[#This Row],[5. New embedded network site address*\n(input: alpha-numeric )]])","v":""},{"$f":"IF(Table22[[#This Row],[8. New embedded network site name*\n(input: text)]]=\"\",\"\",Table22[[#This Row],[8. New embedded network site name*\n(input: text)]])","v":""}]
[{"$f":"IF(Table22[[#This Row],[5. New embedded network site address*\n(input: alpha-numeric )]]=\"\",\"\",Table22[[#This Row],[5. New embedded network site address*\n(input: alpha-numeric )]])","v":""},{"$f":"IF(Table22[[#This Row],[8. New embedded network site name*\n(input: text)]]=\"\",\"\",Table22[[#This Row],[8. New embedded network site name*\n(input: text)]])","v":""}]
[{"$f":"IF(Table22[[#This Row],[5. New embedded network site address*\n(input: alpha-numeric )]]=\"\",\"\",Table22[[#This Row],[5. New embedded network site address*\n(input: alpha-numeric )]])","v":""},{"$f":"IF(Table22[[#This Row],[8. New embedded network site name*\n(input: text)]]=\"\",\"\",Table22[[#This Row],[8. New embedded network site name*\n(input: text)]])","v":""}]
[{"$f":"IF(Table22[[#This Row],[5. New embedded network site address*\n(input: alpha-numeric )]]=\"\",\"\",Table22[[#This Row],[5. New embedded network site address*\n(input: alpha-numeric )]])","v":""},{"$f":"IF(Table22[[#This Row],[8. New embedded network site name*\n(input: text)]]=\"\",\"\",Table22[[#This Row],[8. New embedded network site name*\n(input: text)]])","v":""}]
[{"$f":"IF(Table22[[#This Row],[5. New embedded network site address*\n(input: alpha-numeric )]]=\"\",\"\",Table22[[#This Row],[5. New embedded network site address*\n(input: alpha-numeric )]])","v":""},{"$f":"IF(Table22[[#This Row],[8. New embedded network site name*\n(input: text)]]=\"\",\"\",Table22[[#This Row],[8. New embedded network site name*\n(input: text)]])","v":""}]
[{"$f":"IF(Table22[[#This Row],[5. New embedded network site address*\n(input: alpha-numeric )]]=\"\",\"\",Table22[[#This Row],[5. New embedded network site address*\n(input: alpha-numeric )]])","v":""},{"$f":"IF(Table22[[#This Row],[8. New embedded network site name*\n(input: text)]]=\"\",\"\",Table22[[#This Row],[8. New embedded network site name*\n(input: text)]])","v":""}]
[{"$f":"IF(Table22[[#This Row],[5. New embedded network site address*\n(input: alpha-numeric )]]=\"\",\"\",Table22[[#This Row],[5. New embedded network site address*\n(input: alpha-numeric )]])","v":""},{"$f":"IF(Table22[[#This Row],[8. New embedded network site name*\n(input: text)]]=\"\",\"\",Table22[[#This Row],[8. New embedded network site name*\n(input: text)]])","v":""}]
[{"$f":"IF(Table22[[#This Row],[5. New embedded network site address*\n(input: alpha-numeric )]]=\"\",\"\",Table22[[#This Row],[5. New embedded network site address*\n(input: alpha-numeric )]])","v":""},{"$f":"IF(Table22[[#This Row],[8. New embedded network site name*\n(input: text)]]=\"\",\"\",Table22[[#This Row],[8. New embedded network site name*\n(input: text)]])","v":""}]
[{"$f":"IF(Table22[[#This Row],[5. New embedded network site address*\n(input: alpha-numeric )]]=\"\",\"\",Table22[[#This Row],[5. New embedded network site address*\n(input: alpha-numeric )]])","v":""},{"$f":"IF(Table22[[#This Row],[8. New embedded network site name*\n(input: text)]]=\"\",\"\",Table22[[#This Row],[8. New embedded network site name*\n(input: text)]])","v":""}]
[{"$f":"IF(Table22[[#This Row],[5. New embedded network site address*\n(input: alpha-numeric )]]=\"\",\"\",Table22[[#This Row],[5. New embedded network site address*\n(input: alpha-numeric )]])","v":""},{"$f":"IF(Table22[[#This Row],[8. New embedded network site name*\n(input: text)]]=\"\",\"\",Table22[[#This Row],[8. New embedded network site name*\n(input: text)]])","v":""}]
[{"$f":"IF(Table22[[#This Row],[5. New embedded network site address*\n(input: alpha-numeric )]]=\"\",\"\",Table22[[#This Row],[5. New embedded network site address*\n(input: alpha-numeric )]])","v":""},{"$f":"IF(Table22[[#This Row],[8. New embedded network site name*\n(input: text)]]=\"\",\"\",Table22[[#This Row],[8. New embedded network site name*\n(input: text)]])","v":""}]
[{"$f":"IF(Table22[[#This Row],[5. New embedded network site address*\n(input: alpha-numeric )]]=\"\",\"\",Table22[[#This Row],[5. New embedded network site address*\n(input: alpha-numeric )]])","v":""},{"$f":"IF(Table22[[#This Row],[8. New embedded network site name*\n(input: text)]]=\"\",\"\",Table22[[#This Row],[8. New embedded network site name*\n(input: text)]])","v":""}]
[{"$f":"IF(Table22[[#This Row],[5. New embedded network site address*\n(input: alpha-numeric )]]=\"\",\"\",Table22[[#This Row],[5. New embedded network site address*\n(input: alpha-numeric )]])","v":""},{"$f":"IF(Table22[[#This Row],[8. New embedded network site name*\n(input: text)]]=\"\",\"\",Table22[[#This Row],[8. New embedded network site name*\n(input: text)]])","v":""}]
[{"$f":"IF(Table22[[#This Row],[5. New embedded network site address*\n(input: alpha-numeric )]]=\"\",\"\",Table22[[#This Row],[5. New embedded network site address*\n(input: alpha-numeric )]])","v":""},{"$f":"IF(Table22[[#This Row],[8. New embedded network site name*\n(input: text)]]=\"\",\"\",Table22[[#This Row],[8. New embedded network site name*\n(input: text)]])","v":""}]
[{"$f":"IF(Table22[[#This Row],[5. New embedded network site address*\n(input: alpha-numeric )]]=\"\",\"\",Table22[[#This Row],[5. New embedded network site address*\n(input: alpha-numeric )]])","v":""},{"$f":"IF(Table22[[#This Row],[8. New embedded network site name*\n(input: text)]]=\"\",\"\",Table22[[#This Row],[8. New embedded network site name*\n(input: text)]])","v":""}]
[{"$f":"IF(Table22[[#This Row],[5. New embedded network site address*\n(input: alpha-numeric )]]=\"\",\"\",Table22[[#This Row],[5. New embedded network site address*\n(input: alpha-numeric )]])","v":""},{"$f":"IF(Table22[[#This Row],[8. New embedded network site name*\n(input: text)]]=\"\",\"\",Table22[[#This Row],[8. New embedded network site name*\n(input: text)]])","v":""}]
[{"$f":"IF(Table22[[#This Row],[5. New embedded network site address*\n(input: alpha-numeric )]]=\"\",\"\",Table22[[#This Row],[5. New embedded network site address*\n(input: alpha-numeric )]])","v":""},{"$f":"IF(Table22[[#This Row],[8. New embedded network site name*\n(input: text)]]=\"\",\"\",Table22[[#This Row],[8. New embedded network site name*\n(input: text)]])","v":""}]
[{"$f":"IF(Table22[[#This Row],[5. New embedded network site address*\n(input: alpha-numeric )]]=\"\",\"\",Table22[[#This Row],[5. New embedded network site address*\n(input: alpha-numeric )]])","v":""},{"$f":"IF(Table22[[#This Row],[8. New embedded network site name*\n(input: text)]]=\"\",\"\",Table22[[#This Row],[8. New embedded network site name*\n(input: text)]])","v":""}]
[{"$f":"IF(Table22[[#This Row],[5. New embedded network site address*\n(input: alpha-numeric )]]=\"\",\"\",Table22[[#This Row],[5. New embedded network site address*\n(input: alpha-numeric )]])","v":""},{"$f":"IF(Table22[[#This Row],[8. New embedded network site name*\n(input: text)]]=\"\",\"\",Table22[[#This Row],[8. New embedded network site name*\n(input: text)]])","v":""}]
[{"$f":"IF(Table22[[#This Row],[5. New embedded network site address*\n(input: alpha-numeric )]]=\"\",\"\",Table22[[#This Row],[5. New embedded network site address*\n(input: alpha-numeric )]])","v":""},{"$f":"IF(Table22[[#This Row],[8. New embedded network site name*\n(input: text)]]=\"\",\"\",Table22[[#This Row],[8. New embedded network site name*\n(input: text)]])","v":""}]
[{"$f":"IF(Table22[[#This Row],[5. New embedded network site address*\n(input: alpha-numeric )]]=\"\",\"\",Table22[[#This Row],[5. New embedded network site address*\n(input: alpha-numeric )]])","v":""},{"$f":"IF(Table22[[#This Row],[8. New embedded network site name*\n(input: text)]]=\"\",\"\",Table22[[#This Row],[8. New embedded network site name*\n(input: text)]])","v":""}]
[{"$f":"IF(Table22[[#This Row],[5. New embedded network site address*\n(input: alpha-numeric )]]=\"\",\"\",Table22[[#This Row],[5. New embedded network site address*\n(input: alpha-numeric )]])","v":""},{"$f":"IF(Table22[[#This Row],[8. New embedded network site name*\n(input: text)]]=\"\",\"\",Table22[[#This Row],[8. New embedded network site name*\n(input: text)]])","v":""}]
[{"$f":"IF(Table22[[#This Row],[5. New embedded network site address*\n(input: alpha-numeric )]]=\"\",\"\",Table22[[#This Row],[5. New embedded network site address*\n(input: alpha-numeric )]])","v":""},{"$f":"IF(Table22[[#This Row],[8. New embedded network site name*\n(input: text)]]=\"\",\"\",Table22[[#This Row],[8. New embedded network site name*\n(input: text)]])","v":""}]
[{"$f":"IF(Table22[[#This Row],[5. New embedded network site address*\n(input: alpha-numeric )]]=\"\",\"\",Table22[[#This Row],[5. New embedded network site address*\n(input: alpha-numeric )]])","v":""},{"$f":"IF(Table22[[#This Row],[8. New embedded network site name*\n(input: text)]]=\"\",\"\",Table22[[#This Row],[8. New embedded network site name*\n(input: text)]])","v":""}]
[{"$f":"IF(Table22[[#This Row],[5. New embedded network site address*\n(input: alpha-numeric )]]=\"\",\"\",Table22[[#This Row],[5. New embedded network site address*\n(input: alpha-numeric )]])","v":""},{"$f":"IF(Table22[[#This Row],[8. New embedded network site name*\n(input: text)]]=\"\",\"\",Table22[[#This Row],[8. New embedded network site name*\n(input: text)]])","v":""}]
[{"$f":"IF(Table22[[#This Row],[5. New embedded network site address*\n(input: alpha-numeric )]]=\"\",\"\",Table22[[#This Row],[5. New embedded network site address*\n(input: alpha-numeric )]])","v":""},{"$f":"IF(Table22[[#This Row],[8. New embedded network site name*\n(input: text)]]=\"\",\"\",Table22[[#This Row],[8. New embedded network site name*\n(input: text)]])","v":""}]
[{"$f":"IF(Table22[[#This Row],[5. New embedded network site address*\n(input: alpha-numeric )]]=\"\",\"\",Table22[[#This Row],[5. New embedded network site address*\n(input: alpha-numeric )]])","v":""},{"$f":"IF(Table22[[#This Row],[8. New embedded network site name*\n(input: text)]]=\"\",\"\",Table22[[#This Row],[8. New embedded network site name*\n(input: text)]])","v":""}]
[{"$f":"IF(Table22[[#This Row],[5. New embedded network site address*\n(input: alpha-numeric )]]=\"\",\"\",Table22[[#This Row],[5. New embedded network site address*\n(input: alpha-numeric )]])","v":""},{"$f":"IF(Table22[[#This Row],[8. New embedded network site name*\n(input: text)]]=\"\",\"\",Table22[[#This Row],[8. New embedded network site name*\n(input: text)]])","v":""}]
[{"$f":"IF(Table22[[#This Row],[5. New embedded network site address*\n(input: alpha-numeric )]]=\"\",\"\",Table22[[#This Row],[5. New embedded network site address*\n(input: alpha-numeric )]])","v":""},{"$f":"IF(Table22[[#This Row],[8. New embedded network site name*\n(input: text)]]=\"\",\"\",Table22[[#This Row],[8. New embedded network site name*\n(input: text)]])","v":""}]
[{"$f":"IF(Table22[[#This Row],[5. New embedded network site address*\n(input: alpha-numeric )]]=\"\",\"\",Table22[[#This Row],[5. New embedded network site address*\n(input: alpha-numeric )]])","v":""},{"$f":"IF(Table22[[#This Row],[8. New embedded network site name*\n(input: text)]]=\"\",\"\",Table22[[#This Row],[8. New embedded network site name*\n(input: text)]])","v":""}]
[{"$f":"IF(Table22[[#This Row],[5. New embedded network site address*\n(input: alpha-numeric )]]=\"\",\"\",Table22[[#This Row],[5. New embedded network site address*\n(input: alpha-numeric )]])","v":""},{"$f":"IF(Table22[[#This Row],[8. New embedded network site name*\n(input: text)]]=\"\",\"\",Table22[[#This Row],[8. New embedded network site name*\n(input: text)]])","v":""}]
[{"$f":"IF(Table22[[#This Row],[5. New embedded network site address*\n(input: alpha-numeric )]]=\"\",\"\",Table22[[#This Row],[5. New embedded network site address*\n(input: alpha-numeric )]])","v":""},{"$f":"IF(Table22[[#This Row],[8. New embedded network site name*\n(input: text)]]=\"\",\"\",Table22[[#This Row],[8. New embedded network site name*\n(input: text)]])","v":""}]
[{"$f":"IF(Table22[[#This Row],[5. New embedded network site address*\n(input: alpha-numeric )]]=\"\",\"\",Table22[[#This Row],[5. New embedded network site address*\n(input: alpha-numeric )]])","v":""},{"$f":"IF(Table22[[#This Row],[8. New embedded network site name*\n(input: text)]]=\"\",\"\",Table22[[#This Row],[8. New embedded network site name*\n(input: text)]])","v":""}]
[{"$f":"IF(Table22[[#This Row],[5. New embedded network site address*\n(input: alpha-numeric )]]=\"\",\"\",Table22[[#This Row],[5. New embedded network site address*\n(input: alpha-numeric )]])","v":""},{"$f":"IF(Table22[[#This Row],[8. New embedded network site name*\n(input: text)]]=\"\",\"\",Table22[[#This Row],[8. New embedded network site name*\n(input: text)]])","v":""}]
[{"$f":"IF(Table22[[#This Row],[5. New embedded network site address*\n(input: alpha-numeric )]]=\"\",\"\",Table22[[#This Row],[5. New embedded network site address*\n(input: alpha-numeric )]])","v":""},{"$f":"IF(Table22[[#This Row],[8. New embedded network site name*\n(input: text)]]=\"\",\"\",Table22[[#This Row],[8. New embedded network site name*\n(input: text)]])","v":""}]
[{"$f":"IF(Table22[[#This Row],[5. New embedded network site address*\n(input: alpha-numeric )]]=\"\",\"\",Table22[[#This Row],[5. New embedded network site address*\n(input: alpha-numeric )]])","v":""},{"$f":"IF(Table22[[#This Row],[8. New embedded network site name*\n(input: text)]]=\"\",\"\",Table22[[#This Row],[8. New embedded network site name*\n(input: text)]])","v":""}]
[{"$f":"IF(Table22[[#This Row],[5. New embedded network site address*\n(input: alpha-numeric )]]=\"\",\"\",Table22[[#This Row],[5. New embedded network site address*\n(input: alpha-numeric )]])","v":""},{"$f":"IF(Table22[[#This Row],[8. New embedded network site name*\n(input: text)]]=\"\",\"\",Table22[[#This Row],[8. New embedded network site name*\n(input: text)]])","v":""}]
[{"$f":"IF(Table22[[#This Row],[5. New embedded network site address*\n(input: alpha-numeric )]]=\"\",\"\",Table22[[#This Row],[5. New embedded network site address*\n(input: alpha-numeric )]])","v":""},{"$f":"IF(Table22[[#This Row],[8. New embedded network site name*\n(input: text)]]=\"\",\"\",Table22[[#This Row],[8. New embedded network site name*\n(input: text)]])","v":""}]
[{"$f":"IF(Table22[[#This Row],[5. New embedded network site address*\n(input: alpha-numeric )]]=\"\",\"\",Table22[[#This Row],[5. New embedded network site address*\n(input: alpha-numeric )]])","v":""},{"$f":"IF(Table22[[#This Row],[8. New embedded network site name*\n(input: text)]]=\"\",\"\",Table22[[#This Row],[8. New embedded network site name*\n(input: text)]])","v":""}]
[{"$f":"IF(Table22[[#This Row],[5. New embedded network site address*\n(input: alpha-numeric )]]=\"\",\"\",Table22[[#This Row],[5. New embedded network site address*\n(input: alpha-numeric )]])","v":""},{"$f":"IF(Table22[[#This Row],[8. New embedded network site name*\n(input: text)]]=\"\",\"\",Table22[[#This Row],[8. New embedded network site name*\n(input: text)]])","v":""}]
[{"$f":"IF(Table22[[#This Row],[5. New embedded network site address*\n(input: alpha-numeric )]]=\"\",\"\",Table22[[#This Row],[5. New embedded network site address*\n(input: alpha-numeric )]])","v":""},{"$f":"IF(Table22[[#This Row],[8. New embedded network site name*\n(input: text)]]=\"\",\"\",Table22[[#This Row],[8. New embedded network site name*\n(input: text)]])","v":""}]
[{"$f":"IF(Table22[[#This Row],[5. New embedded network site address*\n(input: alpha-numeric )]]=\"\",\"\",Table22[[#This Row],[5. New embedded network site address*\n(input: alpha-numeric )]])","v":""},{"$f":"IF(Table22[[#This Row],[8. New embedded network site name*\n(input: text)]]=\"\",\"\",Table22[[#This Row],[8. New embedded network site name*\n(input: text)]])","v":""}]
[{"$f":"IF(Table22[[#This Row],[5. New embedded network site address*\n(input: alpha-numeric )]]=\"\",\"\",Table22[[#This Row],[5. New embedded network site address*\n(input: alpha-numeric )]])","v":""},{"$f":"IF(Table22[[#This Row],[8. New embedded network site name*\n(input: text)]]=\"\",\"\",Table22[[#This Row],[8. New embedded network site name*\n(input: text)]])","v":""}]
[{"$f":"IF(Table22[[#This Row],[5. New embedded network site address*\n(input: alpha-numeric )]]=\"\",\"\",Table22[[#This Row],[5. New embedded network site address*\n(input: alpha-numeric )]])","v":""},{"$f":"IF(Table22[[#This Row],[8. New embedded network site name*\n(input: text)]]=\"\",\"\",Table22[[#This Row],[8. New embedded network site name*\n(input: text)]])","v":""}]
[{"$f":"IF(Table22[[#This Row],[5. New embedded network site address*\n(input: alpha-numeric )]]=\"\",\"\",Table22[[#This Row],[5. New embedded network site address*\n(input: alpha-numeric )]])","v":""},{"$f":"IF(Table22[[#This Row],[8. New embedded network site name*\n(input: text)]]=\"\",\"\",Table22[[#This Row],[8. New embedded network site name*\n(input: text)]])","v":""}]
[{"$f":"IF(Table22[[#This Row],[5. New embedded network site address*\n(input: alpha-numeric )]]=\"\",\"\",Table22[[#This Row],[5. New embedded network site address*\n(input: alpha-numeric )]])","v":""},{"$f":"IF(Table22[[#This Row],[8. New embedded network site name*\n(input: text)]]=\"\",\"\",Table22[[#This Row],[8. New embedded network site name*\n(input: text)]])","v":""}]
[{"$f":"IF(Table22[[#This Row],[5. New embedded network site address*\n(input: alpha-numeric )]]=\"\",\"\",Table22[[#This Row],[5. New embedded network site address*\n(input: alpha-numeric )]])","v":""},{"$f":"IF(Table22[[#This Row],[8. New embedded network site name*\n(input: text)]]=\"\",\"\",Table22[[#This Row],[8. New embedded network site name*\n(input: text)]])","v":""}]
[{"$f":"IF(Table22[[#This Row],[5. New embedded network site address*\n(input: alpha-numeric )]]=\"\",\"\",Table22[[#This Row],[5. New embedded network site address*\n(input: alpha-numeric )]])","v":""},{"$f":"IF(Table22[[#This Row],[8. New embedded network site name*\n(input: text)]]=\"\",\"\",Table22[[#This Row],[8. New embedded network site name*\n(input: text)]])","v":""}]
[{"$f":"IF(Table22[[#This Row],[5. New embedded network site address*\n(input: alpha-numeric )]]=\"\",\"\",Table22[[#This Row],[5. New embedded network site address*\n(input: alpha-numeric )]])","v":""},{"$f":"IF(Table22[[#This Row],[8. New embedded network site name*\n(input: text)]]=\"\",\"\",Table22[[#This Row],[8. New embedded network site name*\n(input: text)]])","v":""}]
[{"$f":"IF(Table22[[#This Row],[5. New embedded network site address*\n(input: alpha-numeric )]]=\"\",\"\",Table22[[#This Row],[5. New embedded network site address*\n(input: alpha-numeric )]])","v":""},{"$f":"IF(Table22[[#This Row],[8. New embedded network site name*\n(input: text)]]=\"\",\"\",Table22[[#This Row],[8. New embedded network site name*\n(input: text)]])","v":""}]
[{"$f":"IF(Table22[[#This Row],[5. New embedded network site address*\n(input: alpha-numeric )]]=\"\",\"\",Table22[[#This Row],[5. New embedded network site address*\n(input: alpha-numeric )]])","v":""},{"$f":"IF(Table22[[#This Row],[8. New embedded network site name*\n(input: text)]]=\"\",\"\",Table22[[#This Row],[8. New embedded network site name*\n(input: text)]])","v":""}]
[{"$f":"IF(Table22[[#This Row],[5. New embedded network site address*\n(input: alpha-numeric )]]=\"\",\"\",Table22[[#This Row],[5. New embedded network site address*\n(input: alpha-numeric )]])","v":""},{"$f":"IF(Table22[[#This Row],[8. New embedded network site name*\n(input: text)]]=\"\",\"\",Table22[[#This Row],[8. New embedded network site name*\n(input: text)]])","v":""}]
[{"$f":"IF(Table22[[#This Row],[5. New embedded network site address*\n(input: alpha-numeric )]]=\"\",\"\",Table22[[#This Row],[5. New embedded network site address*\n(input: alpha-numeric )]])","v":""},{"$f":"IF(Table22[[#This Row],[8. New embedded network site name*\n(input: text)]]=\"\",\"\",Table22[[#This Row],[8. New embedded network site name*\n(input: text)]])","v":""}]
[{"$f":"IF(Table22[[#This Row],[5. New embedded network site address*\n(input: alpha-numeric )]]=\"\",\"\",Table22[[#This Row],[5. New embedded network site address*\n(input: alpha-numeric )]])","v":""},{"$f":"IF(Table22[[#This Row],[8. New embedded network site name*\n(input: text)]]=\"\",\"\",Table22[[#This Row],[8. New embedded network site name*\n(input: text)]])","v":""}]
[{"$f":"IF(Table22[[#This Row],[5. New embedded network site address*\n(input: alpha-numeric )]]=\"\",\"\",Table22[[#This Row],[5. New embedded network site address*\n(input: alpha-numeric )]])","v":""},{"$f":"IF(Table22[[#This Row],[8. New embedded network site name*\n(input: text)]]=\"\",\"\",Table22[[#This Row],[8. New embedded network site name*\n(input: text)]])","v":""}]
[{"$f":"IF(Table22[[#This Row],[5. New embedded network site address*\n(input: alpha-numeric )]]=\"\",\"\",Table22[[#This Row],[5. New embedded network site address*\n(input: alpha-numeric )]])","v":""},{"$f":"IF(Table22[[#This Row],[8. New embedded network site name*\n(input: text)]]=\"\",\"\",Table22[[#This Row],[8. New embedded network site name*\n(input: text)]])","v":""}]
[{"$f":"IF(Table22[[#This Row],[5. New embedded network site address*\n(input: alpha-numeric )]]=\"\",\"\",Table22[[#This Row],[5. New embedded network site address*\n(input: alpha-numeric )]])","v":""},{"$f":"IF(Table22[[#This Row],[8. New embedded network site name*\n(input: text)]]=\"\",\"\",Table22[[#This Row],[8. New embedded network site name*\n(input: text)]])","v":""}]
[{"$f":"IF(Table22[[#This Row],[5. New embedded network site address*\n(input: alpha-numeric )]]=\"\",\"\",Table22[[#This Row],[5. New embedded network site address*\n(input: alpha-numeric )]])","v":""},{"$f":"IF(Table22[[#This Row],[8. New embedded network site name*\n(input: text)]]=\"\",\"\",Table22[[#This Row],[8. New embedded network site name*\n(input: text)]])","v":""}]
[{"$f":"IF(Table22[[#This Row],[5. New embedded network site address*\n(input: alpha-numeric )]]=\"\",\"\",Table22[[#This Row],[5. New embedded network site address*\n(input: alpha-numeric )]])","v":""},{"$f":"IF(Table22[[#This Row],[8. New embedded network site name*\n(input: text)]]=\"\",\"\",Table22[[#This Row],[8. New embedded network site name*\n(input: text)]])","v":""}]
[{"$f":"IF(Table22[[#This Row],[5. New embedded network site address*\n(input: alpha-numeric )]]=\"\",\"\",Table22[[#This Row],[5. New embedded network site address*\n(input: alpha-numeric )]])","v":""},{"$f":"IF(Table22[[#This Row],[8. New embedded network site name*\n(input: text)]]=\"\",\"\",Table22[[#This Row],[8. New embedded network site name*\n(input: text)]])","v":""}]
[{"$f":"IF(Table22[[#This Row],[5. New embedded network site address*\n(input: alpha-numeric )]]=\"\",\"\",Table22[[#This Row],[5. New embedded network site address*\n(input: alpha-numeric )]])","v":""},{"$f":"IF(Table22[[#This Row],[8. New embedded network site name*\n(input: text)]]=\"\",\"\",Table22[[#This Row],[8. New embedded network site name*\n(input: text)]])","v":""}]
[{"$f":"IF(Table22[[#This Row],[5. New embedded network site address*\n(input: alpha-numeric )]]=\"\",\"\",Table22[[#This Row],[5. New embedded network site address*\n(input: alpha-numeric )]])","v":""},{"$f":"IF(Table22[[#This Row],[8. New embedded network site name*\n(input: text)]]=\"\",\"\",Table22[[#This Row],[8. New embedded network site name*\n(input: text)]])","v":""}]
[{"$f":"IF(Table22[[#This Row],[5. New embedded network site address*\n(input: alpha-numeric )]]=\"\",\"\",Table22[[#This Row],[5. New embedded network site address*\n(input: alpha-numeric )]])","v":""},{"$f":"IF(Table22[[#This Row],[8. New embedded network site name*\n(input: text)]]=\"\",\"\",Table22[[#This Row],[8. New embedded network site name*\n(input: text)]])","v":""}]
[{"$f":"IF(Table22[[#This Row],[5. New embedded network site address*\n(input: alpha-numeric )]]=\"\",\"\",Table22[[#This Row],[5. New embedded network site address*\n(input: alpha-numeric )]])","v":""},{"$f":"IF(Table22[[#This Row],[8. New embedded network site name*\n(input: text)]]=\"\",\"\",Table22[[#This Row],[8. New embedded network site name*\n(input: text)]])","v":""}]
[{"$f":"IF(Table22[[#This Row],[5. New embedded network site address*\n(input: alpha-numeric )]]=\"\",\"\",Table22[[#This Row],[5. New embedded network site address*\n(input: alpha-numeric )]])","v":""},{"$f":"IF(Table22[[#This Row],[8. New embedded network site name*\n(input: text)]]=\"\",\"\",Table22[[#This Row],[8. New embedded network site name*\n(input: text)]])","v":""}]
[{"$f":"IF(Table22[[#This Row],[5. New embedded network site address*\n(input: alpha-numeric )]]=\"\",\"\",Table22[[#This Row],[5. New embedded network site address*\n(input: alpha-numeric )]])","v":""},{"$f":"IF(Table22[[#This Row],[8. New embedded network site name*\n(input: text)]]=\"\",\"\",Table22[[#This Row],[8. New embedded network site name*\n(input: text)]])","v":""}]
[{"$f":"IF(Table22[[#This Row],[5. New embedded network site address*\n(input: alpha-numeric )]]=\"\",\"\",Table22[[#This Row],[5. New embedded network site address*\n(input: alpha-numeric )]])","v":""},{"$f":"IF(Table22[[#This Row],[8. New embedded network site name*\n(input: text)]]=\"\",\"\",Table22[[#This Row],[8. New embedded network site name*\n(input: text)]])","v":""}]
[{"$f":"IF(Table22[[#This Row],[5. New embedded network site address*\n(input: alpha-numeric )]]=\"\",\"\",Table22[[#This Row],[5. New embedded network site address*\n(input: alpha-numeric )]])","v":""},{"$f":"IF(Table22[[#This Row],[8. New embedded network site name*\n(input: text)]]=\"\",\"\",Table22[[#This Row],[8. New embedded network site name*\n(input: text)]])","v":""}]
[{"$f":"IF(Table22[[#This Row],[5. New embedded network site address*\n(input: alpha-numeric )]]=\"\",\"\",Table22[[#This Row],[5. New embedded network site address*\n(input: alpha-numeric )]])","v":""},{"$f":"IF(Table22[[#This Row],[8. New embedded network site name*\n(input: text)]]=\"\",\"\",Table22[[#This Row],[8. New embedded network site name*\n(input: text)]])","v":""}]
[{"$f":"IF(Table22[[#This Row],[5. New embedded network site address*\n(input: alpha-numeric )]]=\"\",\"\",Table22[[#This Row],[5. New embedded network site address*\n(input: alpha-numeric )]])","v":""},{"$f":"IF(Table22[[#This Row],[8. New embedded network site name*\n(input: text)]]=\"\",\"\",Table22[[#This Row],[8. New embedded network site name*\n(input: text)]])","v":""}]
[{"$f":"IF(Table22[[#This Row],[5. New embedded network site address*\n(input: alpha-numeric )]]=\"\",\"\",Table22[[#This Row],[5. New embedded network site address*\n(input: alpha-numeric )]])","v":""},{"$f":"IF(Table22[[#This Row],[8. New embedded network site name*\n(input: text)]]=\"\",\"\",Table22[[#This Row],[8. New embedded network site name*\n(input: text)]])","v":""}]
[{"$f":"IF(Table22[[#This Row],[5. New embedded network site address*\n(input: alpha-numeric )]]=\"\",\"\",Table22[[#This Row],[5. New embedded network site address*\n(input: alpha-numeric )]])","v":""},{"$f":"IF(Table22[[#This Row],[8. New embedded network site name*\n(input: text)]]=\"\",\"\",Table22[[#This Row],[8. New embedded network site name*\n(input: text)]])","v":""}]
[{"$f":"IF(Table22[[#This Row],[5. New embedded network site address*\n(input: alpha-numeric )]]=\"\",\"\",Table22[[#This Row],[5. New embedded network site address*\n(input: alpha-numeric )]])","v":""},{"$f":"IF(Table22[[#This Row],[8. New embedded network site name*\n(input: text)]]=\"\",\"\",Table22[[#This Row],[8. New embedded network site name*\n(input: text)]])","v":""}]
[{"$f":"IF(Table22[[#This Row],[5. New embedded network site address*\n(input: alpha-numeric )]]=\"\",\"\",Table22[[#This Row],[5. New embedded network site address*\n(input: alpha-numeric )]])","v":""},{"$f":"IF(Table22[[#This Row],[8. New embedded network site name*\n(input: text)]]=\"\",\"\",Table22[[#This Row],[8. New embedded network site name*\n(input: text)]])","v":""}]
[{"$f":"IF(Table22[[#This Row],[5. New embedded network site address*\n(input: alpha-numeric )]]=\"\",\"\",Table22[[#This Row],[5. New embedded network site address*\n(input: alpha-numeric )]])","v":""},{"$f":"IF(Table22[[#This Row],[8. New embedded network site name*\n(input: text)]]=\"\",\"\",Table22[[#This Row],[8. New embedded network site name*\n(input: text)]])","v":""}]
[{"$f":"IF(Table22[[#This Row],[5. New embedded network site address*\n(input: alpha-numeric )]]=\"\",\"\",Table22[[#This Row],[5. New embedded network site address*\n(input: alpha-numeric )]])","v":""},{"$f":"IF(Table22[[#This Row],[8. New embedded network site name*\n(input: text)]]=\"\",\"\",Table22[[#This Row],[8. New embedded network site name*\n(input: text)]])","v":""}]
[{"$f":"IF(Table22[[#This Row],[5. New embedded network site address*\n(input: alpha-numeric )]]=\"\",\"\",Table22[[#This Row],[5. New embedded network site address*\n(input: alpha-numeric )]])","v":""},{"$f":"IF(Table22[[#This Row],[8. New embedded network site name*\n(input: text)]]=\"\",\"\",Table22[[#This Row],[8. New embedded network site name*\n(input: text)]])","v":""}]
[{"$f":"IF(Table22[[#This Row],[5. New embedded network site address*\n(input: alpha-numeric )]]=\"\",\"\",Table22[[#This Row],[5. New embedded network site address*\n(input: alpha-numeric )]])","v":""},{"$f":"IF(Table22[[#This Row],[8. New embedded network site name*\n(input: text)]]=\"\",\"\",Table22[[#This Row],[8. New embedded network site name*\n(input: text)]])","v":""}]
[{"$f":"IF(Table22[[#This Row],[5. New embedded network site address*\n(input: alpha-numeric )]]=\"\",\"\",Table22[[#This Row],[5. New embedded network site address*\n(input: alpha-numeric )]])","v":""},{"$f":"IF(Table22[[#This Row],[8. New embedded network site name*\n(input: text)]]=\"\",\"\",Table22[[#This Row],[8. New embedded network site name*\n(input: text)]])","v":""}]
[{"$f":"IF(Table22[[#This Row],[5. New embedded network site address*\n(input: alpha-numeric )]]=\"\",\"\",Table22[[#This Row],[5. New embedded network site address*\n(input: alpha-numeric )]])","v":""},{"$f":"IF(Table22[[#This Row],[8. New embedded network site name*\n(input: text)]]=\"\",\"\",Table22[[#This Row],[8. New embedded network site name*\n(input: text)]])","v":""}]
[{"$f":"IF(Table22[[#This Row],[5. New embedded network site address*\n(input: alpha-numeric )]]=\"\",\"\",Table22[[#This Row],[5. New embedded network site address*\n(input: alpha-numeric )]])","v":""},{"$f":"IF(Table22[[#This Row],[8. New embedded network site name*\n(input: text)]]=\"\",\"\",Table22[[#This Row],[8. New embedded network site name*\n(input: text)]])","v":""}]
[{"$f":"IF(Table22[[#This Row],[5. New embedded network site address*\n(input: alpha-numeric )]]=\"\",\"\",Table22[[#This Row],[5. New embedded network site address*\n(input: alpha-numeric )]])","v":""},{"$f":"IF(Table22[[#This Row],[8. New embedded network site name*\n(input: text)]]=\"\",\"\",Table22[[#This Row],[8. New embedded network site name*\n(input: text)]])","v":""}]
[{"$f":"IF(Table22[[#This Row],[5. New embedded network site address*\n(input: alpha-numeric )]]=\"\",\"\",Table22[[#This Row],[5. New embedded network site address*\n(input: alpha-numeric )]])","v":""},{"$f":"IF(Table22[[#This Row],[8. New embedded network site name*\n(input: text)]]=\"\",\"\",Table22[[#This Row],[8. New embedded network site name*\n(input: text)]])","v":""}]
[{"$f":"IF(Table22[[#This Row],[5. New embedded network site address*\n(input: alpha-numeric )]]=\"\",\"\",Table22[[#This Row],[5. New embedded network site address*\n(input: alpha-numeric )]])","v":""},{"$f":"IF(Table22[[#This Row],[8. New embedded network site name*\n(input: text)]]=\"\",\"\",Table22[[#This Row],[8. New embedded network site name*\n(input: text)]])","v":""}]
[{"$f":"IF(Table22[[#This Row],[5. New embedded network site address*\n(input: alpha-numeric )]]=\"\",\"\",Table22[[#This Row],[5. New embedded network site address*\n(input: alpha-numeric )]])","v":""},{"$f":"IF(Table22[[#This Row],[8. New embedded network site name*\n(input: text)]]=\"\",\"\",Table22[[#This Row],[8. New embedded network site name*\n(input: text)]])","v":""}]
[{"$f":"IF(Table22[[#This Row],[5. New embedded network site address*\n(input: alpha-numeric )]]=\"\",\"\",Table22[[#This Row],[5. New embedded network site address*\n(input: alpha-numeric )]])","v":""},{"$f":"IF(Table22[[#This Row],[8. New embedded network site name*\n(input: text)]]=\"\",\"\",Table22[[#This Row],[8. New embedded network site name*\n(input: text)]])","v":""}]

{"sheet":"Reporting - Clause 8","index":4,"n_rows":500,"n_cols":13,"rows_kept":500,"cut":false,"hidden":false,"merged":[]}
["New embedded network site address*","New embedded network site name*","16. Total amount of electricity supplied to that new embedded network from a licensed distribution company’s distribution system in megawatt hours*\n(input: number)","17. Total amount of electricity supplied to that new embedded network that is generated by means of that new embedded network’s onsite renewable energy facilities in megawatt hours*\n(input: number)","18. Total amount of electricity sold to residential customers at the new embedded network in megawatt hours*\n(input: number)","19. Are there any qualifying LGCs voluntarily surrendered by the exempt person*\n(input: select from drop down)","20. Provide details of any qualifying Large-scale Generation Certificates (LGC) voluntarily surrendered by the exempt person (if applicable)\n(input: text)","21. Are there any voluntary surrender arrangement(s) for the new embedded network*\n(input: select from drop down)","22. Provide details of any Large-scale Generation Certificates (LGC) voluntary surrender arrangement(s) (if applicable)\n(input: text)","23. Are there any GreenPower arrangement(s) for the new embedded network*\n(input: select from drop down)","24. Provide details of any GreenPower arrangement(s) (if applicable)\n(input: text)","25. The date this summary was or will be provided to the Commission*\n(input: date)","26. The date a summary was or will be provided to the residential customers in that new embedded network to whom the exempt person sells electricity*\n(input: date)"]
[{"$f":"IF(Table22[[#This Row],[5. New embedded network site address*\n(input: alpha-numeric )]]=\"\",\"\",Table22[[#This Row],[5. New embedded network site address*\n(input: alpha-numeric )]])","v":""},{"$f":"IF(Table22[[#This Row],[8. New embedded network site name*\n(input: text)]]=\"\",\"\",Table22[[#This Row],[8. New embedded network site name*\n(input: text)]])","v":""}]
[{"$f":"IF(Table22[[#This Row],[5. New embedded network site address*\n(input: alpha-numeric )]]=\"\",\"\",Table22[[#This Row],[5. New embedded network site address*\n(input: alpha-numeric )]])","v":""},{"$f":"IF(Table22[[#This Row],[8. New embedded network site name*\n(input: text)]]=\"\",\"\",Table22[[#This Row],[8. New embedded network site name*\n(input: text)]])","v":""}]
[{"$f":"IF(Table22[[#This Row],[5. New embedded network site address*\n(input: alpha-numeric )]]=\"\",\"\",Table22[[#This Row],[5. New embedded network site address*\n(input: alpha-numeric )]])","v":""},{"$f":"IF(Table22[[#This Row],[8. New embedded network site name*\n(input: text)]]=\"\",\"\",Table22[[#This Row],[8. New embedded network site name*\n(input: text)]])","v":""}]
[{"$f":"IF(Table22[[#This Row],[5. New embedded network site address*\n(input: alpha-numeric )]]=\"\",\"\",Table22[[#This Row],[5. New embedded network site address*\n(input: alpha-numeric )]])","v":""},{"$f":"IF(Table22[[#This Row],[8. New embedded network site name*\n(input: text)]]=\"\",\"\",Table22[[#This Row],[8. New embedded network site name*\n(input: text)]])","v":""}]
[{"$f":"IF(Table22[[#This Row],[5. New embedded network site address*\n(input: alpha-numeric )]]=\"\",\"\",Table22[[#This Row],[5. New embedded network site address*\n(input: alpha-numeric )]])","v":""},{"$f":"IF(Table22[[#This Row],[8. New embedded network site name*\n(input: text)]]=\"\",\"\",Table22[[#This Row],[8. New embedded network site name*\n(input: text)]])","v":""}]
[{"$f":"IF(Table22[[#This Row],[5. New embedded network site address*\n(input: alpha-numeric )]]=\"\",\"\",Table22[[#This Row],[5. New embedded network site address*\n(input: alpha-numeric )]])","v":""},{"$f":"IF(Table22[[#This Row],[8. New embedded network site name*\n(input: text)]]=\"\",\"\",Table22[[#This Row],[8. New embedded network site name*\n(input: text)]])","v":""}]
[{"$f":"IF(Table22[[#This Row],[5. New embedded network site address*\n(input: alpha-numeric )]]=\"\",\"\",Table22[[#This Row],[5. New embedded network site address*\n(input: alpha-numeric )]])","v":""},{"$f":"IF(Table22[[#This Row],[8. New embedded network site name*\n(input: text)]]=\"\",\"\",Table22[[#This Row],[8. New embedded network site name*\n(input: text)]])","v":""}]
[{"$f":"IF(Table22[[#This Row],[5. New embedded network site address*\n(input: alpha-numeric )]]=\"\",\"\",Table22[[#This Row],[5. New embedded network site address*\n(input: alpha-numeric )]])","v":""},{"$f":"IF(Table22[[#This Row],[8. New embedded network site name*\n(input: text)]]=\"\",\"\",Table22[[#This Row],[8. New embedded network site name*\n(input: text)]])","v":""}]
[{"$f":"IF(Table22[[#This Row],[5. New embedded network site address*\n(input: alpha-numeric )]]=\"\",\"\",Table22[[#This Row],[5. New embedded network site address*\n(input: alpha-numeric )]])","v":""},{"$f":"IF(Table22[[#This Row],[8. New embedded network site name*\n(input: text)]]=\"\",\"\",Table22[[#This Row],[8. New embedded network site name*\n(input: text)]])","v":""}]
[{"$f":"IF(Table22[[#This Row],[5. New embedded network site address*\n(input: alpha-numeric )]]=\"\",\"\",Table22[[#This Row],[5. New embedded network site address*\n(input: alpha-numeric )]])","v":""},{"$f":"IF(Table22[[#This Row],[8. New embedded network site name*\n(input: text)]]=\"\",\"\",Table22[[#This Row],[8. New embedded network site name*\n(input: text)]])","v":""}]
[{"$f":"IF(Table22[[#This Row],[5. New embedded network site address*\n(input: alpha-numeric )]]=\"\",\"\",Table22[[#This Row],[5. New embedded network site address*\n(input: alpha-numeric )]])","v":""},{"$f":"IF(Table22[[#This Row],[8. New embedded network site name*\n(input: text)]]=\"\",\"\",Table22[[#This Row],[8. New embedded network site name*\n(input: text)]])","v":""}]
[{"$f":"IF(Table22[[#This Row],[5. New embedded network site address*\n(input: alpha-numeric )]]=\"\",\"\",Table22[[#This Row],[5. New embedded network site address*\n(input: alpha-numeric )]])","v":""},{"$f":"IF(Table22[[#This Row],[8. New embedded network site name*\n(input: text)]]=\"\",\"\",Table22[[#This Row],[8. New embedded network site name*\n(input: text)]])","v":""}]
[{"$f":"IF(Table22[[#This Row],[5. New embedded network site address*\n(input: alpha-numeric )]]=\"\",\"\",Table22[[#This Row],[5. New embedded network site address*\n(input: alpha-numeric )]])","v":""},{"$f":"IF(Table22[[#This Row],[8. New embedded network site name*\n(input: text)]]=\"\",\"\",Table22[[#This Row],[8. New embedded network site name*\n(input: text)]])","v":""}]
[{"$f":"IF(Table22[[#This Row],[5. New embedded network site address*\n(input: alpha-numeric )]]=\"\",\"\",Table22[[#This Row],[5. New embedded network site address*\n(input: alpha-numeric )]])","v":""},{"$f":"IF(Table22[[#This Row],[8. New embedded network site name*\n(input: text)]]=\"\",\"\",Table22[[#This Row],[8. New embedded network site name*\n(input: text)]])","v":""}]
[{"$f":"IF(Table22[[#This Row],[5. New embedded network site address*\n(input: alpha-numeric )]]=\"\",\"\",Table22[[#This Row],[5. New embedded network site address*\n(input: alpha-numeric )]])","v":""},{"$f":"IF(Table22[[#This Row],[8. New embedded network site name*\n(input: text)]]=\"\",\"\",Table22[[#This Row],[8. New embedded network site name*\n(input: text)]])","v":""}]
[{"$f":"IF(Table22[[#This Row],[5. New embedded network site address*\n(input: alpha-numeric )]]=\"\",\"\",Table22[[#This Row],[5. New embedded network site address*\n(input: alpha-numeric )]])","v":""},{"$f":"IF(Table22[[#This Row],[8. New embedded network site name*\n(input: text)]]=\"\",\"\",Table22[[#This Row],[8. New embedded network site name*\n(input: text)]])","v":""}]
[{"$f":"IF(Table22[[#This Row],[5. New embedded network site address*\n(input: alpha-numeric )]]=\"\",\"\",Table22[[#This Row],[5. New embedded network site address*\n(input: alpha-numeric )]])","v":""},{"$f":"IF(Table22[[#This Row],[8. New embedded network site name*\n(input: text)]]=\"\",\"\",Table22[[#This Row],[8. New embedded network site name*\n(input: text)]])","v":""}]
[{"$f":"IF(Table22[[#This Row],[5. New embedded network site address*\n(input: alpha-numeric )]]=\"\",\"\",Table22[[#This Row],[5. New embedded network site address*\n(input: alpha-numeric )]])","v":""},{"$f":"IF(Table22[[#This Row],[8. New embedded network site name*\n(input: text)]]=\"\",\"\",Table22[[#This Row],[8. New embedded network site name*\n(input: text)]])","v":""}]
[{"$f":"IF(Table22[[#This Row],[5. New embedded network site address*\n(input: alpha-numeric )]]=\"\",\"\",Table22[[#This Row],[5. New embedded network site address*\n(input: alpha-numeric )]])","v":""},{"$f":"IF(Table22[[#This Row],[8. New embedded network site name*\n(input: text)]]=\"\",\"\",Table22[[#This Row],[8. New embedded network site name*\n(input: text)]])","v":""}]
[{"$f":"IF(Table22[[#This Row],[5. New embedded network site address*\n(input: alpha-numeric )]]=\"\",\"\",Table22[[#This Row],[5. New embedded network site address*\n(input: alpha-numeric )]])","v":""},{"$f":"IF(Table22[[#This Row],[8. New embedded network site name*\n(input: text)]]=\"\",\"\",Table22[[#This Row],[8. New embedded network site name*\n(input: text)]])","v":""}]
[{"$f":"IF(Table22[[#This Row],[5. New embedded network site address*\n(input: alpha-numeric )]]=\"\",\"\",Table22[[#This Row],[5. New embedded network site address*\n(input: alpha-numeric )]])","v":""},{"$f":"IF(Table22[[#This Row],[8. New embedded network site name*\n(input: text)]]=\"\",\"\",Table22[[#This Row],[8. New embedded network site name*\n(input: text)]])","v":""}]
[{"$f":"IF(Table22[[#This Row],[5. New embedded network site address*\n(input: alpha-numeric )]]=\"\",\"\",Table22[[#This Row],[5. New embedded network site address*\n(input: alpha-numeric )]])","v":""},{"$f":"IF(Table22[[#This Row],[8. New embedded network site name*\n(input: text)]]=\"\",\"\",Table22[[#This Row],[8. New embedded network site name*\n(input: text)]])","v":""}]
[{"$f":"IF(Table22[[#This Row],[5. New embedded network site address*\n(input: alpha-numeric )]]=\"\",\"\",Table22[[#This Row],[5. New embedded network site address*\n(input: alpha-numeric )]])","v":""},{"$f":"IF(Table22[[#This Row],[8. New embedded network site name*\n(input: text)]]=\"\",\"\",Table22[[#This Row],[8. New embedded network site name*\n(input: text)]])","v":""}]
[{"$f":"IF(Table22[[#This Row],[5. New embedded network site address*\n(input: alpha-numeric )]]=\"\",\"\",Table22[[#This Row],[5. New embedded network site address*\n(input: alpha-numeric )]])","v":""},{"$f":"IF(Table22[[#This Row],[8. New embedded network site name*\n(input: text)]]=\"\",\"\",Table22[[#This Row],[8. New embedded network site name*\n(input: text)]])","v":""}]
[{"$f":"IF(Table22[[#This Row],[5. New embedded network site address*\n(input: alpha-numeric )]]=\"\",\"\",Table22[[#This Row],[5. New embedded network site address*\n(input: alpha-numeric )]])","v":""},{"$f":"IF(Table22[[#This Row],[8. New embedded network site name*\n(input: text)]]=\"\",\"\",Table22[[#This Row],[8. New embedded network site name*\n(input: text)]])","v":""}]
[{"$f":"IF(Table22[[#This Row],[5. New embedded network site address*\n(input: alpha-numeric )]]=\"\",\"\",Table22[[#This Row],[5. New embedded network site address*\n(input: alpha-numeric )]])","v":""},{"$f":"IF(Table22[[#This Row],[8. New embedded network site name*\n(input: text)]]=\"\",\"\",Table22[[#This Row],[8. New embedded network site name*\n(input: text)]])","v":""}]
[{"$f":"IF(Table22[[#This Row],[5. New embedded network site address*\n(input: alpha-numeric )]]=\"\",\"\",Table22[[#This Row],[5. New embedded network site address*\n(input: alpha-numeric )]])","v":""},{"$f":"IF(Table22[[#This Row],[8. New embedded network site name*\n(input: text)]]=\"\",\"\",Table22[[#This Row],[8. New embedded network site name*\n(input: text)]])","v":""}]
[{"$f":"IF(Table22[[#This Row],[5. New embedded network site address*\n(input: alpha-numeric )]]=\"\",\"\",Table22[[#This Row],[5. New embedded network site address*\n(input: alpha-numeric )]])","v":""},{"$f":"IF(Table22[[#This Row],[8. New embedded network site name*\n(input: text)]]=\"\",\"\",Table22[[#This Row],[8. New embedded network site name*\n(input: text)]])","v":""}]
[{"$f":"IF(Table22[[#This Row],[5. New embedded network site address*\n(input: alpha-numeric )]]=\"\",\"\",Table22[[#This Row],[5. New embedded network site address*\n(input: alpha-numeric )]])","v":""},{"$f":"IF(Table22[[#This Row],[8. New embedded network site name*\n(input: text)]]=\"\",\"\",Table22[[#This Row],[8. New embedded network site name*\n(input: text)]])","v":""}]
[{"$f":"IF(Table22[[#This Row],[5. New embedded network site address*\n(input: alpha-numeric )]]=\"\",\"\",Table22[[#This Row],[5. New embedded network site address*\n(input: alpha-numeric )]])","v":""},{"$f":"IF(Table22[[#This Row],[8. New embedded network site name*\n(input: text)]]=\"\",\"\",Table22[[#This Row],[8. New embedded network site name*\n(input: text)]])","v":""}]
[{"$f":"IF(Table22[[#This Row],[5. New embedded network site address*\n(input: alpha-numeric )]]=\"\",\"\",Table22[[#This Row],[5. New embedded network site address*\n(input: alpha-numeric )]])","v":""},{"$f":"IF(Table22[[#This Row],[8. New embedded network site name*\n(input: text)]]=\"\",\"\",Table22[[#This Row],[8. New embedded network site name*\n(input: text)]])","v":""}]
[{"$f":"IF(Table22[[#This Row],[5. New embedded network site address*\n(input: alpha-numeric )]]=\"\",\"\",Table22[[#This Row],[5. New embedded network site address*\n(input: alpha-numeric )]])","v":""},{"$f":"IF(Table22[[#This Row],[8. New embedded network site name*\n(input: text)]]=\"\",\"\",Table22[[#This Row],[8. New embedded network site name*\n(input: text)]])","v":""}]
[{"$f":"IF(Table22[[#This Row],[5. New embedded network site address*\n(input: alpha-numeric )]]=\"\",\"\",Table22[[#This Row],[5. New embedded network site address*\n(input: alpha-numeric )]])","v":""},{"$f":"IF(Table22[[#This Row],[8. New embedded network site name*\n(input: text)]]=\"\",\"\",Table22[[#This Row],[8. New embedded network site name*\n(input: text)]])","v":""}]
[{"$f":"IF(Table22[[#This Row],[5. New embedded network site address*\n(input: alpha-numeric )]]=\"\",\"\",Table22[[#This Row],[5. New embedded network site address*\n(input: alpha-numeric )]])","v":""},{"$f":"IF(Table22[[#This Row],[8. New embedded network site name*\n(input: text)]]=\"\",\"\",Table22[[#This Row],[8. New embedded network site name*\n(input: text)]])","v":""}]
[{"$f":"IF(Table22[[#This Row],[5. New embedded network site address*\n(input: alpha-numeric )]]=\"\",\"\",Table22[[#This Row],[5. New embedded network site address*\n(input: alpha-numeric )]])","v":""},{"$f":"IF(Table22[[#This Row],[8. New embedded network site name*\n(input: text)]]=\"\",\"\",Table22[[#This Row],[8. New embedded network site name*\n(input: text)]])","v":""}]
[{"$f":"IF(Table22[[#This Row],[5. New embedded network site address*\n(input: alpha-numeric )]]=\"\",\"\",Table22[[#This Row],[5. New embedded network site address*\n(input: alpha-numeric )]])","v":""},{"$f":"IF(Table22[[#This Row],[8. New embedded network site name*\n(input: text)]]=\"\",\"\",Table22[[#This Row],[8. New embedded network site name*\n(input: text)]])","v":""}]
[{"$f":"IF(Table22[[#This Row],[5. New embedded network site address*\n(input: alpha-numeric )]]=\"\",\"\",Table22[[#This Row],[5. New embedded network site address*\n(input: alpha-numeric )]])","v":""},{"$f":"IF(Table22[[#This Row],[8. New embedded network site name*\n(input: text)]]=\"\",\"\",Table22[[#This Row],[8. New embedded network site name*\n(input: text)]])","v":""}]
[{"$f":"IF(Table22[[#This Row],[5. New embedded network site address*\n(input: alpha-numeric )]]=\"\",\"\",Table22[[#This Row],[5. New embedded network site address*\n(input: alpha-numeric )]])","v":""},{"$f":"IF(Table22[[#This Row],[8. New embedded network site name*\n(input: text)]]=\"\",\"\",Table22[[#This Row],[8. New embedded network site name*\n(input: text)]])","v":""}]
[{"$f":"IF(Table22[[#This Row],[5. New embedded network site address*\n(input: alpha-numeric )]]=\"\",\"\",Table22[[#This Row],[5. New embedded network site address*\n(input: alpha-numeric )]])","v":""},{"$f":"IF(Table22[[#This Row],[8. New embedded network site name*\n(input: text)]]=\"\",\"\",Table22[[#This Row],[8. New embedded network site name*\n(input: text)]])","v":""}]
[{"$f":"IF(Table22[[#This Row],[5. New embedded network site address*\n(input: alpha-numeric )]]=\"\",\"\",Table22[[#This Row],[5. New embedded network site address*\n(input: alpha-numeric )]])","v":""},{"$f":"IF(Table22[[#This Row],[8. New embedded network site name*\n(input: text)]]=\"\",\"\",Table22[[#This Row],[8. New embedded network site name*\n(input: text)]])","v":""}]
[{"$f":"IF(Table22[[#This Row],[5. New embedded network site address*\n(input: alpha-numeric )]]=\"\",\"\",Table22[[#This Row],[5. New embedded network site address*\n(input: alpha-numeric )]])","v":""},{"$f":"IF(Table22[[#This Row],[8. New embedded network site name*\n(input: text)]]=\"\",\"\",Table22[[#This Row],[8. New embedded network site name*\n(input: text)]])","v":""}]
[{"$f":"IF(Table22[[#This Row],[5. New embedded network site address*\n(input: alpha-numeric )]]=\"\",\"\",Table22[[#This Row],[5. New embedded network site address*\n(input: alpha-numeric )]])","v":""},{"$f":"IF(Table22[[#This Row],[8. New embedded network site name*\n(input: text)]]=\"\",\"\",Table22[[#This Row],[8. New embedded network site name*\n(input: text)]])","v":""}]
[{"$f":"IF(Table22[[#This Row],[5. New embedded network site address*\n(input: alpha-numeric )]]=\"\",\"\",Table22[[#This Row],[5. New embedded network site address*\n(input: alpha-numeric )]])","v":""},{"$f":"IF(Table22[[#This Row],[8. New embedded network site name*\n(input: text)]]=\"\",\"\",Table22[[#This Row],[8. New embedded network site name*\n(input: text)]])","v":""}]
[{"$f":"IF(Table22[[#This Row],[5. New embedded network site address*\n(input: alpha-numeric )]]=\"\",\"\",Table22[[#This Row],[5. New embedded network site address*\n(input: alpha-numeric )]])","v":""},{"$f":"IF(Table22[[#This Row],[8. New embedded network site name*\n(input: text)]]=\"\",\"\",Table22[[#This Row],[8. New embedded network site name*\n(input: text)]])","v":""}]
[{"$f":"IF(Table22[[#This Row],[5. New embedded network site address*\n(input: alpha-numeric )]]=\"\",\"\",Table22[[#This Row],[5. New embedded network site address*\n(input: alpha-numeric )]])","v":""},{"$f":"IF(Table22[[#This Row],[8. New embedded network site name*\n(input: text)]]=\"\",\"\",Table22[[#This Row],[8. New embedded network site name*\n(input: text)]])","v":""}]
[{"$f":"IF(Table22[[#This Row],[5. New embedded network site address*\n(input: alpha-numeric )]]=\"\",\"\",Table22[[#This Row],[5. New embedded network site address*\n(input: alpha-numeric )]])","v":""},{"$f":"IF(Table22[[#This Row],[8. New embedded network site name*\n(input: text)]]=\"\",\"\",Table22[[#This Row],[8. New embedded network site name*\n(input: text)]])","v":""}]
[{"$f":"IF(Table22[[#This Row],[5. New embedded network site address*\n(input: alpha-numeric )]]=\"\",\"\",Table22[[#This Row],[5. New embedded network site address*\n(input: alpha-numeric )]])","v":""},{"$f":"IF(Table22[[#This Row],[8. New embedded network site name*\n(input: text)]]=\"\",\"\",Table22[[#This Row],[8. New embedded network site name*\n(input: text)]])","v":""}]
[{"$f":"IF(Table22[[#This Row],[5. New embedded network site address*\n(input: alpha-numeric )]]=\"\",\"\",Table22[[#This Row],[5. New embedded network site address*\n(input: alpha-numeric )]])","v":""},{"$f":"IF(Table22[[#This Row],[8. New embedded network site name*\n(input: text)]]=\"\",\"\",Table22[[#This Row],[8. New embedded network site name*\n(input: text)]])","v":""}]
[{"$f":"IF(Table22[[#This Row],[5. New embedded network site address*\n(input: alpha-numeric )]]=\"\",\"\",Table22[[#This Row],[5. New embedded network site address*\n(input: alpha-numeric )]])","v":""},{"$f":"IF(Table22[[#This Row],[8. New embedded network site name*\n(input: text)]]=\"\",\"\",Table22[[#This Row],[8. New embedded network site name*\n(input: text)]])","v":""}]
[{"$f":"IF(Table22[[#This Row],[5. New embedded network site address*\n(input: alpha-numeric )]]=\"\",\"\",Table22[[#This Row],[5. New embedded network site address*\n(input: alpha-numeric )]])","v":""},{"$f":"IF(Table22[[#This Row],[8. New embedded network site name*\n(input: text)]]=\"\",\"\",Table22[[#This Row],[8. New embedded network site name*\n(input: text)]])","v":""}]
[{"$f":"IF(Table22[[#This Row],[5. New embedded network site address*\n(input: alpha-numeric )]]=\"\",\"\",Table22[[#This Row],[5. New embedded network site address*\n(input: alpha-numeric )]])","v":""},{"$f":"IF(Table22[[#This Row],[8. New embedded network site name*\n(input: text)]]=\"\",\"\",Table22[[#This Row],[8. New embedded network site name*\n(input: text)]])","v":""}]
[{"$f":"IF(Table22[[#This Row],[5. New embedded network site address*\n(input: alpha-numeric )]]=\"\",\"\",Table22[[#This Row],[5. New embedded network site address*\n(input: alpha-numeric )]])","v":""},{"$f":"IF(Table22[[#This Row],[8. New embedded network site name*\n(input: text)]]=\"\",\"\",Table22[[#This Row],[8. New embedded network site name*\n(input: text)]])","v":""}]
[{"$f":"IF(Table22[[#This Row],[5. New embedded network site address*\n(input: alpha-numeric )]]=\"\",\"\",Table22[[#This Row],[5. New embedded network site address*\n(input: alpha-numeric )]])","v":""},{"$f":"IF(Table22[[#This Row],[8. New embedded network site name*\n(input: text)]]=\"\",\"\",Table22[[#This Row],[8. New embedded network site name*\n(input: text)]])","v":""}]
[{"$f":"IF(Table22[[#This Row],[5. New embedded network site address*\n(input: alpha-numeric )]]=\"\",\"\",Table22[[#This Row],[5. New embedded network site address*\n(input: alpha-numeric )]])","v":""},{"$f":"IF(Table22[[#This Row],[8. New embedded network site name*\n(input: text)]]=\"\",\"\",Table22[[#This Row],[8. New embedded network site name*\n(input: text)]])","v":""}]
[{"$f":"IF(Table22[[#This Row],[5. New embedded network site address*\n(input: alpha-numeric )]]=\"\",\"\",Table22[[#This Row],[5. New embedded network site address*\n(input: alpha-numeric )]])","v":""},{"$f":"IF(Table22[[#This Row],[8. New embedded network site name*\n(input: text)]]=\"\",\"\",Table22[[#This Row],[8. New embedded network site name*\n(input: text)]])","v":""}]
[{"$f":"IF(Table22[[#This Row],[5. New embedded network site address*\n(input: alpha-numeric )]]=\"\",\"\",Table22[[#This Row],[5. New embedded network site address*\n(input: alpha-numeric )]])","v":""},{"$f":"IF(Table22[[#This Row],[8. New embedded network site name*\n(input: text)]]=\"\",\"\",Table22[[#This Row],[8. New embedded network site name*\n(input: text)]])","v":""}]
[{"$f":"IF(Table22[[#This Row],[5. New embedded network site address*\n(input: alpha-numeric )]]=\"\",\"\",Table22[[#This Row],[5. New embedded network site address*\n(input: alpha-numeric )]])","v":""},{"$f":"IF(Table22[[#This Row],[8. New embedded network site name*\n(input: text)]]=\"\",\"\",Table22[[#This Row],[8. New embedded network site name*\n(input: text)]])","v":""}]
[{"$f":"IF(Table22[[#This Row],[5. New embedded network site address*\n(input: alpha-numeric )]]=\"\",\"\",Table22[[#This Row],[5. New embedded network site address*\n(input: alpha-numeric )]])","v":""},{"$f":"IF(Table22[[#This Row],[8. New embedded network site name*\n(input: text)]]=\"\",\"\",Table22[[#This Row],[8. New embedded network site name*\n(input: text)]])","v":""}]
[{"$f":"IF(Table22[[#This Row],[5. New embedded network site address*\n(input: alpha-numeric )]]=\"\",\"\",Table22[[#This Row],[5. New embedded network site address*\n(input: alpha-numeric )]])","v":""},{"$f":"IF(Table22[[#This Row],[8. New embedded network site name*\n(input: text)]]=\"\",\"\",Table22[[#This Row],[8. New embedded network site name*\n(input: text)]])","v":""}]
[{"$f":"IF(Table22[[#This Row],[5. New embedded network site address*\n(input: alpha-numeric )]]=\"\",\"\",Table22[[#This Row],[5. New embedded network site address*\n(input: alpha-numeric )]])","v":""},{"$f":"IF(Table22[[#This Row],[8. New embedded network site name*\n(input: text)]]=\"\",\"\",Table22[[#This Row],[8. New embedded network site name*\n(input: text)]])","v":""}]
[{"$f":"IF(Table22[[#This Row],[5. New embedded network site address*\n(input: alpha-numeric )]]=\"\",\"\",Table22[[#This Row],[5. New embedded network site address*\n(input: alpha-numeric )]])","v":""},{"$f":"IF(Table22[[#This Row],[8. New embedded network site name*\n(input: text)]]=\"\",\"\",Table22[[#This Row],[8. New embedded network site name*\n(input: text)]])","v":""}]
[{"$f":"IF(Table22[[#This Row],[5. New embedded network site address*\n(input: alpha-numeric )]]=\"\",\"\",Table22[[#This Row],[5. New embedded network site address*\n(input: alpha-numeric )]])","v":""},{"$f":"IF(Table22[[#This Row],[8. New embedded network site name*\n(input: text)]]=\"\",\"\",Table22[[#This Row],[8. New embedded network site name*\n(input: text)]])","v":""}]
[{"$f":"IF(Table22[[#This Row],[5. New embedded network site address*\n(input: alpha-numeric )]]=\"\",\"\",Table22[[#This Row],[5. New embedded network site address*\n(input: alpha-numeric )]])","v":""},{"$f":"IF(Table22[[#This Row],[8. New embedded network site name*\n(input: text)]]=\"\",\"\",Table22[[#This Row],[8. New embedded network site name*\n(input: text)]])","v":""}]
[{"$f":"IF(Table22[[#This Row],[5. New embedded network site address*\n(input: alpha-numeric )]]=\"\",\"\",Table22[[#This Row],[5. New embedded network site address*\n(input: alpha-numeric )]])","v":""},{"$f":"IF(Table22[[#This Row],[8. New embedded network site name*\n(input: text)]]=\"\",\"\",Table22[[#This Row],[8. New embedded network site name*\n(input: text)]])","v":""}]
[{"$f":"IF(Table22[[#This Row],[5. New embedded network site address*\n(input: alpha-numeric )]]=\"\",\"\",Table22[[#This Row],[5. New embedded network site address*\n(input: alpha-numeric )]])","v":""},{"$f":"IF(Table22[[#This Row],[8. New embedded network site name*\n(input: text)]]=\"\",\"\",Table22[[#This Row],[8. New embedded network site name*\n(input: text)]])","v":""}]
[{"$f":"IF(Table22[[#This Row],[5. New embedded network site address*\n(input: alpha-numeric )]]=\"\",\"\",Table22[[#This Row],[5. New embedded network site address*\n(input: alpha-numeric )]])","v":""},{"$f":"IF(Table22[[#This Row],[8. New embedded network site name*\n(input: text)]]=\"\",\"\",Table22[[#This Row],[8. New embedded network site name*\n(input: text)]])","v":""}]
[{"$f":"IF(Table22[[#This Row],[5. New embedded network site address*\n(input: alpha-numeric )]]=\"\",\"\",Table22[[#This Row],[5. New embedded network site address*\n(input: alpha-numeric )]])","v":""},{"$f":"IF(Table22[[#This Row],[8. New embedded network site name*\n(input: text)]]=\"\",\"\",Table22[[#This Row],[8. New embedded network site name*\n(input: text)]])","v":""}]
[{"$f":"IF(Table22[[#This Row],[5. New embedded network site address*\n(input: alpha-numeric )]]=\"\",\"\",Table22[[#This Row],[5. New embedded network site address*\n(input: alpha-numeric )]])","v":""},{"$f":"IF(Table22[[#This Row],[8. New embedded network site name*\n(input: text)]]=\"\",\"\",Table22[[#This Row],[8. New embedded network site name*\n(input: text)]])","v":""}]
[{"$f":"IF(Table22[[#This Row],[5. New embedded network site address*\n(input: alpha-numeric )]]=\"\",\"\",Table22[[#This Row],[5. New embedded network site address*\n(input: alpha-numeric )]])","v":""},{"$f":"IF(Table22[[#This Row],[8. New embedded network site name*\n(input: text)]]=\"\",\"\",Table22[[#This Row],[8. New embedded network site name*\n(input: text)]])","v":""}]
[{"$f":"IF(Table22[[#This Row],[5. New embedded network site address*\n(input: alpha-numeric )]]=\"\",\"\",Table22[[#This Row],[5. New embedded network site address*\n(input: alpha-numeric )]])","v":""},{"$f":"IF(Table22[[#This Row],[8. New embedded network site name*\n(input: text)]]=\"\",\"\",Table22[[#This Row],[8. New embedded network site name*\n(input: text)]])","v":""}]
[{"$f":"IF(Table22[[#This Row],[5. New embedded network site address*\n(input: alpha-numeric )]]=\"\",\"\",Table22[[#This Row],[5. New embedded network site address*\n(input: alpha-numeric )]])","v":""},{"$f":"IF(Table22[[#This Row],[8. New embedded network site name*\n(input: text)]]=\"\",\"\",Table22[[#This Row],[8. New embedded network site name*\n(input: text)]])","v":""}]
[{"$f":"IF(Table22[[#This Row],[5. New embedded network site address*\n(input: alpha-numeric )]]=\"\",\"\",Table22[[#This Row],[5. New embedded network site address*\n(input: alpha-numeric )]])","v":""},{"$f":"IF(Table22[[#This Row],[8. New embedded network site name*\n(input: text)]]=\"\",\"\",Table22[[#This Row],[8. New embedded network site name*\n(input: text)]])","v":""}]
[{"$f":"IF(Table22[[#This Row],[5. New embedded network site address*\n(input: alpha-numeric )]]=\"\",\"\",Table22[[#This Row],[5. New embedded network site address*\n(input: alpha-numeric )]])","v":""},{"$f":"IF(Table22[[#This Row],[8. New embedded network site name*\n(input: text)]]=\"\",\"\",Table22[[#This Row],[8. New embedded network site name*\n(input: text)]])","v":""}]
[{"$f":"IF(Table22[[#This Row],[5. New embedded network site address*\n(input: alpha-numeric )]]=\"\",\"\",Table22[[#This Row],[5. New embedded network site address*\n(input: alpha-numeric )]])","v":""},{"$f":"IF(Table22[[#This Row],[8. New embedded network site name*\n(input: text)]]=\"\",\"\",Table22[[#This Row],[8. New embedded network site name*\n(input: text)]])","v":""}]
[{"$f":"IF(Table22[[#This Row],[5. New embedded network site address*\n(input: alpha-numeric )]]=\"\",\"\",Table22[[#This Row],[5. New embedded network site address*\n(input: alpha-numeric )]])","v":""},{"$f":"IF(Table22[[#This Row],[8. New embedded network site name*\n(input: text)]]=\"\",\"\",Table22[[#This Row],[8. New embedded network site name*\n(input: text)]])","v":""}]
[{"$f":"IF(Table22[[#This Row],[5. New embedded network site address*\n(input: alpha-numeric )]]=\"\",\"\",Table22[[#This Row],[5. New embedded network site address*\n(input: alpha-numeric )]])","v":""},{"$f":"IF(Table22[[#This Row],[8. New embedded network site name*\n(input: text)]]=\"\",\"\",Table22[[#This Row],[8. New embedded network site name*\n(input: text)]])","v":""}]
[{"$f":"IF(Table22[[#This Row],[5. New embedded network site address*\n(input: alpha-numeric )]]=\"\",\"\",Table22[[#This Row],[5. New embedded network site address*\n(input: alpha-numeric )]])","v":""},{"$f":"IF(Table22[[#This Row],[8. New embedded network site name*\n(input: text)]]=\"\",\"\",Table22[[#This Row],[8. New embedded network site name*\n(input: text)]])","v":""}]
[{"$f":"IF(Table22[[#This Row],[5. New embedded network site address*\n(input: alpha-numeric )]]=\"\",\"\",Table22[[#This Row],[5. New embedded network site address*\n(input: alpha-numeric )]])","v":""},{"$f":"IF(Table22[[#This Row],[8. New embedded network site name*\n(input: text)]]=\"\",\"\",Table22[[#This Row],[8. New embedded network site name*\n(input: text)]])","v":""}]
[{"$f":"IF(Table22[[#This Row],[5. New embedded network site address*\n(input: alpha-numeric )]]=\"\",\"\",Table22[[#This Row],[5. New embedded network site address*\n(input: alpha-numeric )]])","v":""},{"$f":"IF(Table22[[#This Row],[8. New embedded network site name*\n(input: text)]]=\"\",\"\",Table22[[#This Row],[8. New embedded network site name*\n(input: text)]])","v":""}]
[{"$f":"IF(Table22[[#This Row],[5. New embedded network site address*\n(input: alpha-numeric )]]=\"\",\"\",Table22[[#This Row],[5. New embedded network site address*\n(input: alpha-numeric )]])","v":""},{"$f":"IF(Table22[[#This Row],[8. New embedded network site name*\n(input: text)]]=\"\",\"\",Table22[[#This Row],[8. New embedded network site name*\n(input: text)]])","v":""}]
[{"$f":"IF(Table22[[#This Row],[5. New embedded network site address*\n(input: alpha-numeric )]]=\"\",\"\",Table22[[#This Row],[5. New embedded network site address*\n(input: alpha-numeric )]])","v":""},{"$f":"IF(Table22[[#This Row],[8. New embedded network site name*\n(input: text)]]=\"\",\"\",Table22[[#This Row],[8. New embedded network site name*\n(input: text)]])","v":""}]
[{"$f":"IF(Table22[[#This Row],[5. New embedded network site address*\n(input: alpha-numeric )]]=\"\",\"\",Table22[[#This Row],[5. New embedded network site address*\n(input: alpha-numeric )]])","v":""},{"$f":"IF(Table22[[#This Row],[8. New embedded network site name*\n(input: text)]]=\"\",\"\",Table22[[#This Row],[8. New embedded network site name*\n(input: text)]])","v":""}]
[{"$f":"IF(Table22[[#This Row],[5. New embedded network site address*\n(input: alpha-numeric )]]=\"\",\"\",Table22[[#This Row],[5. New embedded network site address*\n(input: alpha-numeric )]])","v":""},{"$f":"IF(Table22[[#This Row],[8. New embedded network site name*\n(input: text)]]=\"\",\"\",Table22[[#This Row],[8. New embedded network site name*\n(input: text)]])","v":""}]
[{"$f":"IF(Table22[[#This Row],[5. New embedded network site address*\n(input: alpha-numeric )]]=\"\",\"\",Table22[[#This Row],[5. New embedded network site address*\n(input: alpha-numeric )]])","v":""},{"$f":"IF(Table22[[#This Row],[8. New embedded network site name*\n(input: text)]]=\"\",\"\",Table22[[#This Row],[8. New embedded network site name*\n(input: text)]])","v":""}]
[{"$f":"IF(Table22[[#This Row],[5. New embedded network site address*\n(input: alpha-numeric )]]=\"\",\"\",Table22[[#This Row],[5. New embedded network site address*\n(input: alpha-numeric )]])","v":""},{"$f":"IF(Table22[[#This Row],[8. New embedded network site name*\n(input: text)]]=\"\",\"\",Table22[[#This Row],[8. New embedded network site name*\n(input: text)]])","v":""}]
[{"$f":"IF(Table22[[#This Row],[5. New embedded network site address*\n(input: alpha-numeric )]]=\"\",\"\",Table22[[#This Row],[5. New embedded network site address*\n(input: alpha-numeric )]])","v":""},{"$f":"IF(Table22[[#This Row],[8. New embedded network site name*\n(input: text)]]=\"\",\"\",Table22[[#This Row],[8. New embedded network site name*\n(input: text)]])","v":""}]
[{"$f":"IF(Table22[[#This Row],[5. New embedded network site address*\n(input: alpha-numeric )]]=\"\",\"\",Table22[[#This Row],[5. New embedded network site address*\n(input: alpha-numeric )]])","v":""},{"$f":"IF(Table22[[#This Row],[8. New embedded network site name*\n(input: text)]]=\"\",\"\",Table22[[#This Row],[8. New embedded network site name*\n(input: text)]])","v":""}]
[{"$f":"IF(Table22[[#This Row],[5. New embedded network site address*\n(input: alpha-numeric )]]=\"\",\"\",Table22[[#This Row],[5. New embedded network site address*\n(input: alpha-numeric )]])","v":""},{"$f":"IF(Table22[[#This Row],[8. New embedded network site name*\n(input: text)]]=\"\",\"\",Table22[[#This Row],[8. New embedded network site name*\n(input: text)]])","v":""}]
[{"$f":"IF(Table22[[#This Row],[5. New embedded network site address*\n(input: alpha-numeric )]]=\"\",\"\",Table22[[#This Row],[5. New embedded network site address*\n(input: alpha-numeric )]])","v":""},{"$f":"IF(Table22[[#This Row],[8. New embedded network site name*\n(input: text)]]=\"\",\"\",Table22[[#This Row],[8. New embedded network site name*\n(input: text)]])","v":""}]
[{"$f":"IF(Table22[[#This Row],[5. New embedded network site address*\n(input: alpha-numeric )]]=\"\",\"\",Table22[[#This Row],[5. New embedded network site address*\n(input: alpha-numeric )]])","v":""},{"$f":"IF(Table22[[#This Row],[8. New embedded network site name*\n(input: text)]]=\"\",\"\",Table22[[#This Row],[8. New embedded network site name*\n(input: text)]])","v":""}]
[{"$f":"IF(Table22[[#This Row],[5. New embedded network site address*\n(input: alpha-numeric )]]=\"\",\"\",Table22[[#This Row],[5. New embedded network site address*\n(input: alpha-numeric )]])","v":""},{"$f":"IF(Table22[[#This Row],[8. New embedded network site name*\n(input: text)]]=\"\",\"\",Table22[[#This Row],[8. New embedded network site name*\n(input: text)]])","v":""}]
[{"$f":"IF(Table22[[#This Row],[5. New embedded network site address*\n(input: alpha-numeric )]]=\"\",\"\",Table22[[#This Row],[5. New embedded network site address*\n(input: alpha-numeric )]])","v":""},{"$f":"IF(Table22[[#This Row],[8. New embedded network site name*\n(input: text)]]=\"\",\"\",Table22[[#This Row],[8. New embedded network site name*\n(input: text)]])","v":""}]
[{"$f":"IF(Table22[[#This Row],[5. New embedded network site address*\n(input: alpha-numeric )]]=\"\",\"\",Table22[[#This Row],[5. New embedded network site address*\n(input: alpha-numeric )]])","v":""},{"$f":"IF(Table22[[#This Row],[8. New embedded network site name*\n(input: text)]]=\"\",\"\",Table22[[#This Row],[8. New embedded network site name*\n(input: text)]])","v":""}]
[{"$f":"IF(Table22[[#This Row],[5. New embedded network site address*\n(input: alpha-numeric )]]=\"\",\"\",Table22[[#This Row],[5. New embedded network site address*\n(input: alpha-numeric )]])","v":""},{"$f":"IF(Table22[[#This Row],[8. New embedded network site name*\n(input: text)]]=\"\",\"\",Table22[[#This Row],[8. New embedded network site name*\n(input: text)]])","v":""}]
[{"$f":"IF(Table22[[#This Row],[5. New embedded network site address*\n(input: alpha-numeric )]]=\"\",\"\",Table22[[#This Row],[5. New embedded network site address*\n(input: alpha-numeric )]])","v":""},{"$f":"IF(Table22[[#This Row],[8. New embedded network site name*\n(input: text)]]=\"\",\"\",Table22[[#This Row],[8. New embedded network site name*\n(input: text)]])","v":""}]
[{"$f":"IF(Table22[[#This Row],[5. New embedded network site address*\n(input: alpha-numeric )]]=\"\",\"\",Table22[[#This Row],[5. New embedded network site address*\n(input: alpha-numeric )]])","v":""},{"$f":"IF(Table22[[#This Row],[8. New embedded network site name*\n(input: text)]]=\"\",\"\",Table22[[#This Row],[8. New embedded network site name*\n(input: text)]])","v":""}]
[{"$f":"IF(Table22[[#This Row],[5. New embedded network site address*\n(input: alpha-numeric )]]=\"\",\"\",Table22[[#This Row],[5. New embedded network site address*\n(input: alpha-numeric )]])","v":""},{"$f":"IF(Table22[[#This Row],[8. New embedded network site name*\n(input: text)]]=\"\",\"\",Table22[[#This Row],[8. New embedded network site name*\n(input: text)]])","v":""}]
[{"$f":"IF(Table22[[#This Row],[5. New embedded network site address*\n(input: alpha-numeric )]]=\"\",\"\",Table22[[#This Row],[5. New embedded network site address*\n(input: alpha-numeric )]])","v":""},{"$f":"IF(Table22[[#This Row],[8. New embedded network site name*\n(input: text)]]=\"\",\"\",Table22[[#This Row],[8. New embedded network site name*\n(input: text)]])","v":""}]
[{"$f":"IF(Table22[[#This Row],[5. New embedded network site address*\n(input: alpha-numeric )]]=\"\",\"\",Table22[[#This Row],[5. New embedded network site address*\n(input: alpha-numeric )]])","v":""},{"$f":"IF(Table22[[#This Row],[8. New embedded network site name*\n(input: text)]]=\"\",\"\",Table22[[#This Row],[8. New embedded network site name*\n(input: text)]])","v":""}]
[{"$f":"IF(Table22[[#This Row],[5. New embedded network site address*\n(input: alpha-numeric )]]=\"\",\"\",Table22[[#This Row],[5. New embedded network site address*\n(input: alpha-numeric )]])","v":""},{"$f":"IF(Table22[[#This Row],[8. New embedded network site name*\n(input: text)]]=\"\",\"\",Table22[[#This Row],[8. New embedded network site name*\n(input: text)]])","v":""}]
[{"$f":"IF(Table22[[#This Row],[5. New embedded network site address*\n(input: alpha-numeric )]]=\"\",\"\",Table22[[#This Row],[5. New embedded network site address*\n(input: alpha-numeric )]])","v":""},{"$f":"IF(Table22[[#This Row],[8. New embedded network site name*\n(input: text)]]=\"\",\"\",Table22[[#This Row],[8. New embedded network site name*\n(input: text)]])","v":""}]
[{"$f":"IF(Table22[[#This Row],[5. New embedded network site address*\n(input: alpha-numeric )]]=\"\",\"\",Table22[[#This Row],[5. New embedded network site address*\n(input: alpha-numeric )]])","v":""},{"$f":"IF(Table22[[#This Row],[8. New embedded network site name*\n(input: text)]]=\"\",\"\",Table22[[#This Row],[8. New embedded network site name*\n(input: text)]])","v":""}]
[{"$f":"IF(Table22[[#This Row],[5. New embedded network site address*\n(input: alpha-numeric )]]=\"\",\"\",Table22[[#This Row],[5. New embedded network site address*\n(input: alpha-numeric )]])","v":""},{"$f":"IF(Table22[[#This Row],[8. New embedded network site name*\n(input: text)]]=\"\",\"\",Table22[[#This Row],[8. New embedded network site name*\n(input: text)]])","v":""}]
[{"$f":"IF(Table22[[#This Row],[5. New embedded network site address*\n(input: alpha-numeric )]]=\"\",\"\",Table22[[#This Row],[5. New embedded network site address*\n(input: alpha-numeric )]])","v":""},{"$f":"IF(Table22[[#This Row],[8. New embedded network site name*\n(input: text)]]=\"\",\"\",Table22[[#This Row],[8. New embedded network site name*\n(input: text)]])","v":""}]
[{"$f":"IF(Table22[[#This Row],[5. New embedded network site address*\n(input: alpha-numeric )]]=\"\",\"\",Table22[[#This Row],[5. New embedded network site address*\n(input: alpha-numeric )]])","v":""},{"$f":"IF(Table22[[#This Row],[8. New embedded network site name*\n(input: text)]]=\"\",\"\",Table22[[#This Row],[8. New embedded network site name*\n(input: text)]])","v":""}]
[{"$f":"IF(Table22[[#This Row],[5. New embedded network site address*\n(input: alpha-numeric )]]=\"\",\"\",Table22[[#This Row],[5. New embedded network site address*\n(input: alpha-numeric )]])","v":""},{"$f":"IF(Table22[[#This Row],[8. New embedded network site name*\n(input: text)]]=\"\",\"\",Table22[[#This Row],[8. New embedded network site name*\n(input: text)]])","v":""}]
[{"$f":"IF(Table22[[#This Row],[5. New embedded network site address*\n(input: alpha-numeric )]]=\"\",\"\",Table22[[#This Row],[5. New embedded network site address*\n(input: alpha-numeric )]])","v":""},{"$f":"IF(Table22[[#This Row],[8. New embedded network site name*\n(input: text)]]=\"\",\"\",Table22[[#This Row],[8. New embedded network site name*\n(input: text)]])","v":""}]
[{"$f":"IF(Table22[[#This Row],[5. New embedded network site address*\n(input: alpha-numeric )]]=\"\",\"\",Table22[[#This Row],[5. New embedded network site address*\n(input: alpha-numeric )]])","v":""},{"$f":"IF(Table22[[#This Row],[8. New embedded network site name*\n(input: text)]]=\"\",\"\",Table22[[#This Row],[8. New embedded network site name*\n(input: text)]])","v":""}]
[{"$f":"IF(Table22[[#This Row],[5. New embedded network site address*\n(input: alpha-numeric )]]=\"\",\"\",Table22[[#This Row],[5. New embedded network site address*\n(input: alpha-numeric )]])","v":""},{"$f":"IF(Table22[[#This Row],[8. New embedded network site name*\n(input: text)]]=\"\",\"\",Table22[[#This Row],[8. New embedded network site name*\n(input: text)]])","v":""}]
[{"$f":"IF(Table22[[#This Row],[5. New embedded network site address*\n(input: alpha-numeric )]]=\"\",\"\",Table22[[#This Row],[5. New embedded network site address*\n(input: alpha-numeric )]])","v":""},{"$f":"IF(Table22[[#This Row],[8. New embedded network site name*\n(input: text)]]=\"\",\"\",Table22[[#This Row],[8. New embedded network site name*\n(input: text)]])","v":""}]
[{"$f":"IF(Table22[[#This Row],[5. New embedded network site address*\n(input: alpha-numeric )]]=\"\",\"\",Table22[[#This Row],[5. New embedded network site address*\n(input: alpha-numeric )]])","v":""},{"$f":"IF(Table22[[#This Row],[8. New embedded network site name*\n(input: text)]]=\"\",\"\",Table22[[#This Row],[8. New embedded network site name*\n(input: text)]])","v":""}]
[{"$f":"IF(Table22[[#This Row],[5. New embedded network site address*\n(input: alpha-numeric )]]=\"\",\"\",Table22[[#This Row],[5. New embedded network site address*\n(input: alpha-numeric )]])","v":""},{"$f":"IF(Table22[[#This Row],[8. New embedded network site name*\n(input: text)]]=\"\",\"\",Table22[[#This Row],[8. New embedded network site name*\n(input: text)]])","v":""}]
[{"$f":"IF(Table22[[#This Row],[5. New embedded network site address*\n(input: alpha-numeric )]]=\"\",\"\",Table22[[#This Row],[5. New embedded network site address*\n(input: alpha-numeric )]])","v":""},{"$f":"IF(Table22[[#This Row],[8. New embedded network site name*\n(input: text)]]=\"\",\"\",Table22[[#This Row],[8. New embedded network site name*\n(input: text)]])","v":""}]
[{"$f":"IF(Table22[[#This Row],[5. New embedded network site address*\n(input: alpha-numeric )]]=\"\",\"\",Table22[[#This Row],[5. New embedded network site address*\n(input: alpha-numeric )]])","v":""},{"$f":"IF(Table22[[#This Row],[8. New embedded network site name*\n(input: text)]]=\"\",\"\",Table22[[#This Row],[8. New embedded network site name*\n(input: text)]])","v":""}]
[{"$f":"IF(Table22[[#This Row],[5. New embedded network site address*\n(input: alpha-numeric )]]=\"\",\"\",Table22[[#This Row],[5. New embedded network site address*\n(input: alpha-numeric )]])","v":""},{"$f":"IF(Table22[[#This Row],[8. New embedded network site name*\n(input: text)]]=\"\",\"\",Table22[[#This Row],[8. New embedded network site name*\n(input: text)]])","v":""}]
[{"$f":"IF(Table22[[#This Row],[5. New embedded network site address*\n(input: alpha-numeric )]]=\"\",\"\",Table22[[#This Row],[5. New embedded network site address*\n(input: alpha-numeric )]])","v":""},{"$f":"IF(Table22[[#This Row],[8. New embedded network site name*\n(input: text)]]=\"\",\"\",Table22[[#This Row],[8. New embedded network site name*\n(input: text)]])","v":""}]
[{"$f":"IF(Table22[[#This Row],[5. New embedded network site address*\n(input: alpha-numeric )]]=\"\",\"\",Table22[[#This Row],[5. New embedded network site address*\n(input: alpha-numeric )]])","v":""},{"$f":"IF(Table22[[#This Row],[8. New embedded network site name*\n(input: text)]]=\"\",\"\",Table22[[#This Row],[8. New embedded network site name*\n(input: text)]])","v":""}]
[{"$f":"IF(Table22[[#This Row],[5. New embedded network site address*\n(input: alpha-numeric )]]=\"\",\"\",Table22[[#This Row],[5. New embedded network site address*\n(input: alpha-numeric )]])","v":""},{"$f":"IF(Table22[[#This Row],[8. New embedded network site name*\n(input: text)]]=\"\",\"\",Table22[[#This Row],[8. New embedded network site name*\n(input: text)]])","v":""}]
[{"$f":"IF(Table22[[#This Row],[5. New embedded network site address*\n(input: alpha-numeric )]]=\"\",\"\",Table22[[#This Row],[5. New embedded network site address*\n(input: alpha-numeric )]])","v":""},{"$f":"IF(Table22[[#This Row],[8. New embedded network site name*\n(input: text)]]=\"\",\"\",Table22[[#This Row],[8. New embedded network site name*\n(input: text)]])","v":""}]
[{"$f":"IF(Table22[[#This Row],[5. New embedded network site address*\n(input: alpha-numeric )]]=\"\",\"\",Table22[[#This Row],[5. New embedded network site address*\n(input: alpha-numeric )]])","v":""},{"$f":"IF(Table22[[#This Row],[8. New embedded network site name*\n(input: text)]]=\"\",\"\",Table22[[#This Row],[8. New embedded network site name*\n(input: text)]])","v":""}]
[{"$f":"IF(Table22[[#This Row],[5. New embedded network site address*\n(input: alpha-numeric )]]=\"\",\"\",Table22[[#This Row],[5. New embedded network site address*\n(input: alpha-numeric )]])","v":""},{"$f":"IF(Table22[[#This Row],[8. New embedded network site name*\n(input: text)]]=\"\",\"\",Table22[[#This Row],[8. New embedded network site name*\n(input: text)]])","v":""}]
[{"$f":"IF(Table22[[#This Row],[5. New embedded network site address*\n(input: alpha-numeric )]]=\"\",\"\",Table22[[#This Row],[5. New embedded network site address*\n(input: alpha-numeric )]])","v":""},{"$f":"IF(Table22[[#This Row],[8. New embedded network site name*\n(input: text)]]=\"\",\"\",Table22[[#This Row],[8. New embedded network site name*\n(input: text)]])","v":""}]
[{"$f":"IF(Table22[[#This Row],[5. New embedded network site address*\n(input: alpha-numeric )]]=\"\",\"\",Table22[[#This Row],[5. New embedded network site address*\n(input: alpha-numeric )]])","v":""},{"$f":"IF(Table22[[#This Row],[8. New embedded network site name*\n(input: text)]]=\"\",\"\",Table22[[#This Row],[8. New embedded network site name*\n(input: text)]])","v":""}]
[{"$f":"IF(Table22[[#This Row],[5. New embedded network site address*\n(input: alpha-numeric )]]=\"\",\"\",Table22[[#This Row],[5. New embedded network site address*\n(input: alpha-numeric )]])","v":""},{"$f":"IF(Table22[[#This Row],[8. New embedded network site name*\n(input: text)]]=\"\",\"\",Table22[[#This Row],[8. New embedded network site name*\n(input: text)]])","v":""}]
[{"$f":"IF(Table22[[#This Row],[5. New embedded network site address*\n(input: alpha-numeric )]]=\"\",\"\",Table22[[#This Row],[5. New embedded network site address*\n(input: alpha-numeric )]])","v":""},{"$f":"IF(Table22[[#This Row],[8. New embedded network site name*\n(input: text)]]=\"\",\"\",Table22[[#This Row],[8. New embedded network site name*\n(input: text)]])","v":""}]
[{"$f":"IF(Table22[[#This Row],[5. New embedded network site address*\n(input: alpha-numeric )]]=\"\",\"\",Table22[[#This Row],[5. New embedded network site address*\n(input: alpha-numeric )]])","v":""},{"$f":"IF(Table22[[#This Row],[8. New embedded network site name*\n(input: text)]]=\"\",\"\",Table22[[#This Row],[8. New embedded network site name*\n(input: text)]])","v":""}]
[{"$f":"IF(Table22[[#This Row],[5. New embedded network site address*\n(input: alpha-numeric )]]=\"\",\"\",Table22[[#This Row],[5. New embedded network site address*\n(input: alpha-numeric )]])","v":""},{"$f":"IF(Table22[[#This Row],[8. New embedded network site name*\n(input: text)]]=\"\",\"\",Table22[[#This Row],[8. New embedded network site name*\n(input: text)]])","v":""}]
[{"$f":"IF(Table22[[#This Row],[5. New embedded network site address*\n(input: alpha-numeric )]]=\"\",\"\",Table22[[#This Row],[5. New embedded network site address*\n(input: alpha-numeric )]])","v":""},{"$f":"IF(Table22[[#This Row],[8. New embedded network site name*\n(input: text)]]=\"\",\"\",Table22[[#This Row],[8. New embedded network site name*\n(input: text)]])","v":""}]
[{"$f":"IF(Table22[[#This Row],[5. New embedded network site address*\n(input: alpha-numeric )]]=\"\",\"\",Table22[[#This Row],[5. New embedded network site address*\n(input: alpha-numeric )]])","v":""},{"$f":"IF(Table22[[#This Row],[8. New embedded network site name*\n(input: text)]]=\"\",\"\",Table22[[#This Row],[8. New embedded network site name*\n(input: text)]])","v":""}]
[{"$f":"IF(Table22[[#This Row],[5. New embedded network site address*\n(input: alpha-numeric )]]=\"\",\"\",Table22[[#This Row],[5. New embedded network site address*\n(input: alpha-numeric )]])","v":""},{"$f":"IF(Table22[[#This Row],[8. New embedded network site name*\n(input: text)]]=\"\",\"\",Table22[[#This Row],[8. New embedded network site name*\n(input: text)]])","v":""}]
[{"$f":"IF(Table22[[#This Row],[5. New embedded network site address*\n(input: alpha-numeric )]]=\"\",\"\",Table22[[#This Row],[5. New embedded network site address*\n(input: alpha-numeric )]])","v":""},{"$f":"IF(Table22[[#This Row],[8. New embedded network site name*\n(input: text)]]=\"\",\"\",Table22[[#This Row],[8. New embedded network site name*\n(input: text)]])","v":""}]
[{"$f":"IF(Table22[[#This Row],[5. New embedded network site address*\n(input: alpha-numeric )]]=\"\",\"\",Table22[[#This Row],[5. New embedded network site address*\n(input: alpha-numeric )]])","v":""},{"$f":"IF(Table22[[#This Row],[8. New embedded network site name*\n(input: text)]]=\"\",\"\",Table22[[#This Row],[8. New embedded network site name*\n(input: text)]])","v":""}]
[{"$f":"IF(Table22[[#This Row],[5. New embedded network site address*\n(input: alpha-numeric )]]=\"\",\"\",Table22[[#This Row],[5. New embedded network site address*\n(input: alpha-numeric )]])","v":""},{"$f":"IF(Table22[[#This Row],[8. New embedded network site name*\n(input: text)]]=\"\",\"\",Table22[[#This Row],[8. New embedded network site name*\n(input: text)]])","v":""}]
[{"$f":"IF(Table22[[#This Row],[5. New embedded network site address*\n(input: alpha-numeric )]]=\"\",\"\",Table22[[#This Row],[5. New embedded network site address*\n(input: alpha-numeric )]])","v":""},{"$f":"IF(Table22[[#This Row],[8. New embedded network site name*\n(input: text)]]=\"\",\"\",Table22[[#This Row],[8. New embedded network site name*\n(input: text)]])","v":""}]
[{"$f":"IF(Table22[[#This Row],[5. New embedded network site address*\n(input: alpha-numeric )]]=\"\",\"\",Table22[[#This Row],[5. New embedded network site address*\n(input: alpha-numeric )]])","v":""},{"$f":"IF(Table22[[#This Row],[8. New embedded network site name*\n(input: text)]]=\"\",\"\",Table22[[#This Row],[8. New embedded network site name*\n(input: text)]])","v":""}]
[{"$f":"IF(Table22[[#This Row],[5. New embedded network site address*\n(input: alpha-numeric )]]=\"\",\"\",Table22[[#This Row],[5. New embedded network site address*\n(input: alpha-numeric )]])","v":""},{"$f":"IF(Table22[[#This Row],[8. New embedded network site name*\n(input: text)]]=\"\",\"\",Table22[[#This Row],[8. New embedded network site name*\n(input: text)]])","v":""}]
[{"$f":"IF(Table22[[#This Row],[5. New embedded network site address*\n(input: alpha-numeric )]]=\"\",\"\",Table22[[#This Row],[5. New embedded network site address*\n(input: alpha-numeric )]])","v":""},{"$f":"IF(Table22[[#This Row],[8. New embedded network site name*\n(input: text)]]=\"\",\"\",Table22[[#This Row],[8. New embedded network site name*\n(input: text)]])","v":""}]
[{"$f":"IF(Table22[[#This Row],[5. New embedded network site address*\n(input: alpha-numeric )]]=\"\",\"\",Table22[[#This Row],[5. New embedded network site address*\n(input: alpha-numeric )]])","v":""},{"$f":"IF(Table22[[#This Row],[8. New embedded network site name*\n(input: text)]]=\"\",\"\",Table22[[#This Row],[8. New embedded network site name*\n(input: text)]])","v":""}]
[{"$f":"IF(Table22[[#This Row],[5. New embedded network site address*\n(input: alpha-numeric )]]=\"\",\"\",Table22[[#This Row],[5. New embedded network site address*\n(input: alpha-numeric )]])","v":""},{"$f":"IF(Table22[[#This Row],[8. New embedded network site name*\n(input: text)]]=\"\",\"\",Table22[[#This Row],[8. New embedded network site name*\n(input: text)]])","v":""}]
[{"$f":"IF(Table22[[#This Row],[5. New embedded network site address*\n(input: alpha-numeric )]]=\"\",\"\",Table22[[#This Row],[5. New embedded network site address*\n(input: alpha-numeric )]])","v":""},{"$f":"IF(Table22[[#This Row],[8. New embedded network site name*\n(input: text)]]=\"\",\"\",Table22[[#This Row],[8. New embedded network site name*\n(input: text)]])","v":""}]
[{"$f":"IF(Table22[[#This Row],[5. New embedded network site address*\n(input: alpha-numeric )]]=\"\",\"\",Table22[[#This Row],[5. New embedded network site address*\n(input: alpha-numeric )]])","v":""},{"$f":"IF(Table22[[#This Row],[8. New embedded network site name*\n(input: text)]]=\"\",\"\",Table22[[#This Row],[8. New embedded network site name*\n(input: text)]])","v":""}]
[{"$f":"IF(Table22[[#This Row],[5. New embedded network site address*\n(input: alpha-numeric )]]=\"\",\"\",Table22[[#This Row],[5. New embedded network site address*\n(input: alpha-numeric )]])","v":""},{"$f":"IF(Table22[[#This Row],[8. New embedded network site name*\n(input: text)]]=\"\",\"\",Table22[[#This Row],[8. New embedded network site name*\n(input: text)]])","v":""}]
[{"$f":"IF(Table22[[#This Row],[5. New embedded network site address*\n(input: alpha-numeric )]]=\"\",\"\",Table22[[#This Row],[5. New embedded network site address*\n(input: alpha-numeric )]])","v":""},{"$f":"IF(Table22[[#This Row],[8. New embedded network site name*\n(input: text)]]=\"\",\"\",Table22[[#This Row],[8. New embedded network site name*\n(input: text)]])","v":""}]
[{"$f":"IF(Table22[[#This Row],[5. New embedded network site address*\n(input: alpha-numeric )]]=\"\",\"\",Table22[[#This Row],[5. New embedded network site address*\n(input: alpha-numeric )]])","v":""},{"$f":"IF(Table22[[#This Row],[8. New embedded network site name*\n(input: text)]]=\"\",\"\",Table22[[#This Row],[8. New embedded network site name*\n(input: text)]])","v":""}]
[{"$f":"IF(Table22[[#This Row],[5. New embedded network site address*\n(input: alpha-numeric )]]=\"\",\"\",Table22[[#This Row],[5. New embedded network site address*\n(input: alpha-numeric )]])","v":""},{"$f":"IF(Table22[[#This Row],[8. New embedded network site name*\n(input: text)]]=\"\",\"\",Table22[[#This Row],[8. New embedded network site name*\n(input: text)]])","v":""}]
[{"$f":"IF(Table22[[#This Row],[5. New embedded network site address*\n(input: alpha-numeric )]]=\"\",\"\",Table22[[#This Row],[5. New embedded network site address*\n(input: alpha-numeric )]])","v":""},{"$f":"IF(Table22[[#This Row],[8. New embedded network site name*\n(input: text)]]=\"\",\"\",Table22[[#This Row],[8. New embedded network site name*\n(input: text)]])","v":""}]
[{"$f":"IF(Table22[[#This Row],[5. New embedded network site address*\n(input: alpha-numeric )]]=\"\",\"\",Table22[[#This Row],[5. New embedded network site address*\n(input: alpha-numeric )]])","v":""},{"$f":"IF(Table22[[#This Row],[8. New embedded network site name*\n(input: text)]]=\"\",\"\",Table22[[#This Row],[8. New embedded network site name*\n(input: text)]])","v":""}]
[{"$f":"IF(Table22[[#This Row],[5. New embedded network site address*\n(input: alpha-numeric )]]=\"\",\"\",Table22[[#This Row],[5. New embedded network site address*\n(input: alpha-numeric )]])","v":""},{"$f":"IF(Table22[[#This Row],[8. New embedded network site name*\n(input: text)]]=\"\",\"\",Table22[[#This Row],[8. New embedded network site name*\n(input: text)]])","v":""}]
[{"$f":"IF(Table22[[#This Row],[5. New embedded network site address*\n(input: alpha-numeric )]]=\"\",\"\",Table22[[#This Row],[5. New embedded network site address*\n(input: alpha-numeric )]])","v":""},{"$f":"IF(Table22[[#This Row],[8. New embedded network site name*\n(input: text)]]=\"\",\"\",Table22[[#This Row],[8. New embedded network site name*\n(input: text)]])","v":""}]
[{"$f":"IF(Table22[[#This Row],[5. New embedded network site address*\n(input: alpha-numeric )]]=\"\",\"\",Table22[[#This Row],[5. New embedded network site address*\n(input: alpha-numeric )]])","v":""},{"$f":"IF(Table22[[#This Row],[8. New embedded network site name*\n(input: text)]]=\"\",\"\",Table22[[#This Row],[8. New embedded network site name*\n(input: text)]])","v":""}]
[{"$f":"IF(Table22[[#This Row],[5. New embedded network site address*\n(input: alpha-numeric )]]=\"\",\"\",Table22[[#This Row],[5. New embedded network site address*\n(input: alpha-numeric )]])","v":""},{"$f":"IF(Table22[[#This Row],[8. New embedded network site name*\n(input: text)]]=\"\",\"\",Table22[[#This Row],[8. New embedded network site name*\n(input: text)]])","v":""}]
[{"$f":"IF(Table22[[#This Row],[5. New embedded network site address*\n(input: alpha-numeric )]]=\"\",\"\",Table22[[#This Row],[5. New embedded network site address*\n(input: alpha-numeric )]])","v":""},{"$f":"IF(Table22[[#This Row],[8. New embedded network site name*\n(input: text)]]=\"\",\"\",Table22[[#This Row],[8. New embedded network site name*\n(input: text)]])","v":""}]
[{"$f":"IF(Table22[[#This Row],[5. New embedded network site address*\n(input: alpha-numeric )]]=\"\",\"\",Table22[[#This Row],[5. New embedded network site address*\n(input: alpha-numeric )]])","v":""},{"$f":"IF(Table22[[#This Row],[8. New embedded network site name*\n(input: text)]]=\"\",\"\",Table22[[#This Row],[8. New embedded network site name*\n(input: text)]])","v":""}]
[{"$f":"IF(Table22[[#This Row],[5. New embedded network site address*\n(input: alpha-numeric )]]=\"\",\"\",Table22[[#This Row],[5. New embedded network site address*\n(input: alpha-numeric )]])","v":""},{"$f":"IF(Table22[[#This Row],[8. New embedded network site name*\n(input: text)]]=\"\",\"\",Table22[[#This Row],[8. New embedded network site name*\n(input: text)]])","v":""}]
[{"$f":"IF(Table22[[#This Row],[5. New embedded network site address*\n(input: alpha-numeric )]]=\"\",\"\",Table22[[#This Row],[5. New embedded network site address*\n(input: alpha-numeric )]])","v":""},{"$f":"IF(Table22[[#This Row],[8. New embedded network site name*\n(input: text)]]=\"\",\"\",Table22[[#This Row],[8. New embedded network site name*\n(input: text)]])","v":""}]
[{"$f":"IF(Table22[[#This Row],[5. New embedded network site address*\n(input: alpha-numeric )]]=\"\",\"\",Table22[[#This Row],[5. New embedded network site address*\n(input: alpha-numeric )]])","v":""},{"$f":"IF(Table22[[#This Row],[8. New embedded network site name*\n(input: text)]]=\"\",\"\",Table22[[#This Row],[8. New embedded network site name*\n(input: text)]])","v":""}]
[{"$f":"IF(Table22[[#This Row],[5. New embedded network site address*\n(input: alpha-numeric )]]=\"\",\"\",Table22[[#This Row],[5. New embedded network site address*\n(input: alpha-numeric )]])","v":""},{"$f":"IF(Table22[[#This Row],[8. New embedded network site name*\n(input: text)]]=\"\",\"\",Table22[[#This Row],[8. New embedded network site name*\n(input: text)]])","v":""}]
[{"$f":"IF(Table22[[#This Row],[5. New embedded network site address*\n(input: alpha-numeric )]]=\"\",\"\",Table22[[#This Row],[5. New embedded network site address*\n(input: alpha-numeric )]])","v":""},{"$f":"IF(Table22[[#This Row],[8. New embedded network site name*\n(input: text)]]=\"\",\"\",Table22[[#This Row],[8. New embedded network site name*\n(input: text)]])","v":""}]
[{"$f":"IF(Table22[[#This Row],[5. New embedded network site address*\n(input: alpha-numeric )]]=\"\",\"\",Table22[[#This Row],[5. New embedded network site address*\n(input: alpha-numeric )]])","v":""},{"$f":"IF(Table22[[#This Row],[8. New embedded network site name*\n(input: text)]]=\"\",\"\",Table22[[#This Row],[8. New embedded network site name*\n(input: text)]])","v":""}]
[{"$f":"IF(Table22[[#This Row],[5. New embedded network site address*\n(input: alpha-numeric )]]=\"\",\"\",Table22[[#This Row],[5. New embedded network site address*\n(input: alpha-numeric )]])","v":""},{"$f":"IF(Table22[[#This Row],[8. New embedded network site name*\n(input: text)]]=\"\",\"\",Table22[[#This Row],[8. New embedded network site name*\n(input: text)]])","v":""}]
[{"$f":"IF(Table22[[#This Row],[5. New embedded network site address*\n(input: alpha-numeric )]]=\"\",\"\",Table22[[#This Row],[5. New embedded network site address*\n(input: alpha-numeric )]])","v":""},{"$f":"IF(Table22[[#This Row],[8. New embedded network site name*\n(input: text)]]=\"\",\"\",Table22[[#This Row],[8. New embedded network site name*\n(input: text)]])","v":""}]
[{"$f":"IF(Table22[[#This Row],[5. New embedded network site address*\n(input: alpha-numeric )]]=\"\",\"\",Table22[[#This Row],[5. New embedded network site address*\n(input: alpha-numeric )]])","v":""},{"$f":"IF(Table22[[#This Row],[8. New embedded network site name*\n(input: text)]]=\"\",\"\",Table22[[#This Row],[8. New embedded network site name*\n(input: text)]])","v":""}]
[{"$f":"IF(Table22[[#This Row],[5. New embedded network site address*\n(input: alpha-numeric )]]=\"\",\"\",Table22[[#This Row],[5. New embedded network site address*\n(input: alpha-numeric )]])","v":""},{"$f":"IF(Table22[[#This Row],[8. New embedded network site name*\n(input: text)]]=\"\",\"\",Table22[[#This Row],[8. New embedded network site name*\n(input: text)]])","v":""}]
[{"$f":"IF(Table22[[#This Row],[5. New embedded network site address*\n(input: alpha-numeric )]]=\"\",\"\",Table22[[#This Row],[5. New embedded network site address*\n(input: alpha-numeric )]])","v":""},{"$f":"IF(Table22[[#This Row],[8. New embedded network site name*\n(input: text)]]=\"\",\"\",Table22[[#This Row],[8. New embedded network site name*\n(input: text)]])","v":""}]
[{"$f":"IF(Table22[[#This Row],[5. New embedded network site address*\n(input: alpha-numeric )]]=\"\",\"\",Table22[[#This Row],[5. New embedded network site address*\n(input: alpha-numeric )]])","v":""},{"$f":"IF(Table22[[#This Row],[8. New embedded network site name*\n(input: text)]]=\"\",\"\",Table22[[#This Row],[8. New embedded network site name*\n(input: text)]])","v":""}]
[{"$f":"IF(Table22[[#This Row],[5. New embedded network site address*\n(input: alpha-numeric )]]=\"\",\"\",Table22[[#This Row],[5. New embedded network site address*\n(input: alpha-numeric )]])","v":""},{"$f":"IF(Table22[[#This Row],[8. New embedded network site name*\n(input: text)]]=\"\",\"\",Table22[[#This Row],[8. New embedded network site name*\n(input: text)]])","v":""}]
[{"$f":"IF(Table22[[#This Row],[5. New embedded network site address*\n(input: alpha-numeric )]]=\"\",\"\",Table22[[#This Row],[5. New embedded network site address*\n(input: alpha-numeric )]])","v":""},{"$f":"IF(Table22[[#This Row],[8. New embedded network site name*\n(input: text)]]=\"\",\"\",Table22[[#This Row],[8. New embedded network site name*\n(input: text)]])","v":""}]
[{"$f":"IF(Table22[[#This Row],[5. New embedded network site address*\n(input: alpha-numeric )]]=\"\",\"\",Table22[[#This Row],[5. New embedded network site address*\n(input: alpha-numeric )]])","v":""},{"$f":"IF(Table22[[#This Row],[8. New embedded network site name*\n(input: text)]]=\"\",\"\",Table22[[#This Row],[8. New embedded network site name*\n(input: text)]])","v":""}]
[{"$f":"IF(Table22[[#This Row],[5. New embedded network site address*\n(input: alpha-numeric )]]=\"\",\"\",Table22[[#This Row],[5. New embedded network site address*\n(input: alpha-numeric )]])","v":""},{"$f":"IF(Table22[[#This Row],[8. New embedded network site name*\n(input: text)]]=\"\",\"\",Table22[[#This Row],[8. New embedded network site name*\n(input: text)]])","v":""}]
[{"$f":"IF(Table22[[#This Row],[5. New embedded network site address*\n(input: alpha-numeric )]]=\"\",\"\",Table22[[#This Row],[5. New embedded network site address*\n(input: alpha-numeric )]])","v":""},{"$f":"IF(Table22[[#This Row],[8. New embedded network site name*\n(input: text)]]=\"\",\"\",Table22[[#This Row],[8. New embedded network site name*\n(input: text)]])","v":""}]
[{"$f":"IF(Table22[[#This Row],[5. New embedded network site address*\n(input: alpha-numeric )]]=\"\",\"\",Table22[[#This Row],[5. New embedded network site address*\n(input: alpha-numeric )]])","v":""},{"$f":"IF(Table22[[#This Row],[8. New embedded network site name*\n(input: text)]]=\"\",\"\",Table22[[#This Row],[8. New embedded network site name*\n(input: text)]])","v":""}]
[{"$f":"IF(Table22[[#This Row],[5. New embedded network site address*\n(input: alpha-numeric )]]=\"\",\"\",Table22[[#This Row],[5. New embedded network site address*\n(input: alpha-numeric )]])","v":""},{"$f":"IF(Table22[[#This Row],[8. New embedded network site name*\n(input: text)]]=\"\",\"\",Table22[[#This Row],[8. New embedded network site name*\n(input: text)]])","v":""}]
[{"$f":"IF(Table22[[#This Row],[5. New embedded network site address*\n(input: alpha-numeric )]]=\"\",\"\",Table22[[#This Row],[5. New embedded network site address*\n(input: alpha-numeric )]])","v":""},{"$f":"IF(Table22[[#This Row],[8. New embedded network site name*\n(input: text)]]=\"\",\"\",Table22[[#This Row],[8. New embedded network site name*\n(input: text)]])","v":""}]
[{"$f":"IF(Table22[[#This Row],[5. New embedded network site address*\n(input: alpha-numeric )]]=\"\",\"\",Table22[[#This Row],[5. New embedded network site address*\n(input: alpha-numeric )]])","v":""},{"$f":"IF(Table22[[#This Row],[8. New embedded network site name*\n(input: text)]]=\"\",\"\",Table22[[#This Row],[8. New embedded network site name*\n(input: text)]])","v":""}]
[{"$f":"IF(Table22[[#This Row],[5. New embedded network site address*\n(input: alpha-numeric )]]=\"\",\"\",Table22[[#This Row],[5. New embedded network site address*\n(input: alpha-numeric )]])","v":""},{"$f":"IF(Table22[[#This Row],[8. New embedded network site name*\n(input: text)]]=\"\",\"\",Table22[[#This Row],[8. New embedded network site name*\n(input: text)]])","v":""}]
[{"$f":"IF(Table22[[#This Row],[5. New embedded network site address*\n(input: alpha-numeric )]]=\"\",\"\",Table22[[#This Row],[5. New embedded network site address*\n(input: alpha-numeric )]])","v":""},{"$f":"IF(Table22[[#This Row],[8. New embedded network site name*\n(input: text)]]=\"\",\"\",Table22[[#This Row],[8. New embedded network site name*\n(input: text)]])","v":""}]
[{"$f":"IF(Table22[[#This Row],[5. New embedded network site address*\n(input: alpha-numeric )]]=\"\",\"\",Table22[[#This Row],[5. New embedded network site address*\n(input: alpha-numeric )]])","v":""},{"$f":"IF(Table22[[#This Row],[8. New embedded network site name*\n(input: text)]]=\"\",\"\",Table22[[#This Row],[8. New embedded network site name*\n(input: text)]])","v":""}]
[{"$f":"IF(Table22[[#This Row],[5. New embedded network site address*\n(input: alpha-numeric )]]=\"\",\"\",Table22[[#This Row],[5. New embedded network site address*\n(input: alpha-numeric )]])","v":""},{"$f":"IF(Table22[[#This Row],[8. New embedded network site name*\n(input: text)]]=\"\",\"\",Table22[[#This Row],[8. New embedded network site name*\n(input: text)]])","v":""}]
[{"$f":"IF(Table22[[#This Row],[5. New embedded network site address*\n(input: alpha-numeric )]]=\"\",\"\",Table22[[#This Row],[5. New embedded network site address*\n(input: alpha-numeric )]])","v":""},{"$f":"IF(Table22[[#This Row],[8. New embedded network site name*\n(input: text)]]=\"\",\"\",Table22[[#This Row],[8. New embedded network site name*\n(input: text)]])","v":""}]
[{"$f":"IF(Table22[[#This Row],[5. New embedded network site address*\n(input: alpha-numeric )]]=\"\",\"\",Table22[[#This Row],[5. New embedded network site address*\n(input: alpha-numeric )]])","v":""},{"$f":"IF(Table22[[#This Row],[8. New embedded network site name*\n(input: text)]]=\"\",\"\",Table22[[#This Row],[8. New embedded network site name*\n(input: text)]])","v":""}]
[{"$f":"IF(Table22[[#This Row],[5. New embedded network site address*\n(input: alpha-numeric )]]=\"\",\"\",Table22[[#This Row],[5. New embedded network site address*\n(input: alpha-numeric )]])","v":""},{"$f":"IF(Table22[[#This Row],[8. New embedded network site name*\n(input: text)]]=\"\",\"\",Table22[[#This Row],[8. New embedded network site name*\n(input: text)]])","v":""}]
[{"$f":"IF(Table22[[#This Row],[5. New embedded network site address*\n(input: alpha-numeric )]]=\"\",\"\",Table22[[#This Row],[5. New embedded network site address*\n(input: alpha-numeric )]])","v":""},{"$f":"IF(Table22[[#This Row],[8. New embedded network site name*\n(input: text)]]=\"\",\"\",Table22[[#This Row],[8. New embedded network site name*\n(input: text)]])","v":""}]
[{"$f":"IF(Table22[[#This Row],[5. New embedded network site address*\n(input: alpha-numeric )]]=\"\",\"\",Table22[[#This Row],[5. New embedded network site address*\n(input: alpha-numeric )]])","v":""},{"$f":"IF(Table22[[#This Row],[8. New embedded network site name*\n(input: text)]]=\"\",\"\",Table22[[#This Row],[8. New embedded network site name*\n(input: text)]])","v":""}]
[{"$f":"IF(Table22[[#This Row],[5. New embedded network site address*\n(input: alpha-numeric )]]=\"\",\"\",Table22[[#This Row],[5. New embedded network site address*\n(input: alpha-numeric )]])","v":""},{"$f":"IF(Table22[[#This Row],[8. New embedded network site name*\n(input: text)]]=\"\",\"\",Table22[[#This Row],[8. New embedded network site name*\n(input: text)]])","v":""}]
[{"$f":"IF(Table22[[#This Row],[5. New embedded network site address*\n(input: alpha-numeric )]]=\"\",\"\",Table22[[#This Row],[5. New embedded network site address*\n(input: alpha-numeric )]])","v":""},{"$f":"IF(Table22[[#This Row],[8. New embedded network site name*\n(input: text)]]=\"\",\"\",Table22[[#This Row],[8. New embedded network site name*\n(input: text)]])","v":""}]
[{"$f":"IF(Table22[[#This Row],[5. New embedded network site address*\n(input: alpha-numeric )]]=\"\",\"\",Table22[[#This Row],[5. New embedded network site address*\n(input: alpha-numeric )]])","v":""},{"$f":"IF(Table22[[#This Row],[8. New embedded network site name*\n(input: text)]]=\"\",\"\",Table22[[#This Row],[8. New embedded network site name*\n(input: text)]])","v":""}]
[{"$f":"IF(Table22[[#This Row],[5. New embedded network site address*\n(input: alpha-numeric )]]=\"\",\"\",Table22[[#This Row],[5. New embedded network site address*\n(input: alpha-numeric )]])","v":""},{"$f":"IF(Table22[[#This Row],[8. New embedded network site name*\n(input: text)]]=\"\",\"\",Table22[[#This Row],[8. New embedded network site name*\n(input: text)]])","v":""}]
[{"$f":"IF(Table22[[#This Row],[5. New embedded network site address*\n(input: alpha-numeric )]]=\"\",\"\",Table22[[#This Row],[5. New embedded network site address*\n(input: alpha-numeric )]])","v":""},{"$f":"IF(Table22[[#This Row],[8. New embedded network site name*\n(input: text)]]=\"\",\"\",Table22[[#This Row],[8. New embedded network site name*\n(input: text)]])","v":""}]
[{"$f":"IF(Table22[[#This Row],[5. New embedded network site address*\n(input: alpha-numeric )]]=\"\",\"\",Table22[[#This Row],[5. New embedded network site address*\n(input: alpha-numeric )]])","v":""},{"$f":"IF(Table22[[#This Row],[8. New embedded network site name*\n(input: text)]]=\"\",\"\",Table22[[#This Row],[8. New embedded network site name*\n(input: text)]])","v":""}]
[{"$f":"IF(Table22[[#This Row],[5. New embedded network site address*\n(input: alpha-numeric )]]=\"\",\"\",Table22[[#This Row],[5. New embedded network site address*\n(input: alpha-numeric )]])","v":""},{"$f":"IF(Table22[[#This Row],[8. New embedded network site name*\n(input: text)]]=\"\",\"\",Table22[[#This Row],[8. New embedded network site name*\n(input: text)]])","v":""}]
[{"$f":"IF(Table22[[#This Row],[5. New embedded network site address*\n(input: alpha-numeric )]]=\"\",\"\",Table22[[#This Row],[5. New embedded network site address*\n(input: alpha-numeric )]])","v":""},{"$f":"IF(Table22[[#This Row],[8. New embedded network site name*\n(input: text)]]=\"\",\"\",Table22[[#This Row],[8. New embedded network site name*\n(input: text)]])","v":""}]
[{"$f":"IF(Table22[[#This Row],[5. New embedded network site address*\n(input: alpha-numeric )]]=\"\",\"\",Table22[[#This Row],[5. New embedded network site address*\n(input: alpha-numeric )]])","v":""},{"$f":"IF(Table22[[#This Row],[8. New embedded network site name*\n(input: text)]]=\"\",\"\",Table22[[#This Row],[8. New embedded network site name*\n(input: text)]])","v":""}]
[{"$f":"IF(Table22[[#This Row],[5. New embedded network site address*\n(input: alpha-numeric )]]=\"\",\"\",Table22[[#This Row],[5. New embedded network site address*\n(input: alpha-numeric )]])","v":""},{"$f":"IF(Table22[[#This Row],[8. New embedded network site name*\n(input: text)]]=\"\",\"\",Table22[[#This Row],[8. New embedded network site name*\n(input: text)]])","v":""}]
[{"$f":"IF(Table22[[#This Row],[5. New embedded network site address*\n(input: alpha-numeric )]]=\"\",\"\",Table22[[#This Row],[5. New embedded network site address*\n(input: alpha-numeric )]])","v":""},{"$f":"IF(Table22[[#This Row],[8. New embedded network site name*\n(input: text)]]=\"\",\"\",Table22[[#This Row],[8. New embedded network site name*\n(input: text)]])","v":""}]
[{"$f":"IF(Table22[[#This Row],[5. New embedded network site address*\n(input: alpha-numeric )]]=\"\",\"\",Table22[[#This Row],[5. New embedded network site address*\n(input: alpha-numeric )]])","v":""},{"$f":"IF(Table22[[#This Row],[8. New embedded network site name*\n(input: text)]]=\"\",\"\",Table22[[#This Row],[8. New embedded network site name*\n(input: text)]])","v":""}]
[{"$f":"IF(Table22[[#This Row],[5. New embedded network site address*\n(input: alpha-numeric )]]=\"\",\"\",Table22[[#This Row],[5. New embedded network site address*\n(input: alpha-numeric )]])","v":""},{"$f":"IF(Table22[[#This Row],[8. New embedded network site name*\n(input: text)]]=\"\",\"\",Table22[[#This Row],[8. New embedded network site name*\n(input: text)]])","v":""}]
[{"$f":"IF(Table22[[#This Row],[5. New embedded network site address*\n(input: alpha-numeric )]]=\"\",\"\",Table22[[#This Row],[5. New embedded network site address*\n(input: alpha-numeric )]])","v":""},{"$f":"IF(Table22[[#This Row],[8. New embedded network site name*\n(input: text)]]=\"\",\"\",Table22[[#This Row],[8. New embedded network site name*\n(input: text)]])","v":""}]
[{"$f":"IF(Table22[[#This Row],[5. New embedded network site address*\n(input: alpha-numeric )]]=\"\",\"\",Table22[[#This Row],[5. New embedded network site address*\n(input: alpha-numeric )]])","v":""},{"$f":"IF(Table22[[#This Row],[8. New embedded network site name*\n(input: text)]]=\"\",\"\",Table22[[#This Row],[8. New embedded network site name*\n(input: text)]])","v":""}]
[{"$f":"IF(Table22[[#This Row],[5. New embedded network site address*\n(input: alpha-numeric )]]=\"\",\"\",Table22[[#This Row],[5. New embedded network site address*\n(input: alpha-numeric )]])","v":""},{"$f":"IF(Table22[[#This Row],[8. New embedded network site name*\n(input: text)]]=\"\",\"\",Table22[[#This Row],[8. New embedded network site name*\n(input: text)]])","v":""}]
[{"$f":"IF(Table22[[#This Row],[5. New embedded network site address*\n(input: alpha-numeric )]]=\"\",\"\",Table22[[#This Row],[5. New embedded network site address*\n(input: alpha-numeric )]])","v":""},{"$f":"IF(Table22[[#This Row],[8. New embedded network site name*\n(input: text)]]=\"\",\"\",Table22[[#This Row],[8. New embedded network site name*\n(input: text)]])","v":""}]
[{"$f":"IF(Table22[[#This Row],[5. New embedded network site address*\n(input: alpha-numeric )]]=\"\",\"\",Table22[[#This Row],[5. New embedded network site address*\n(input: alpha-numeric )]])","v":""},{"$f":"IF(Table22[[#This Row],[8. New embedded network site name*\n(input: text)]]=\"\",\"\",Table22[[#This Row],[8. New embedded network site name*\n(input: text)]])","v":""}]
[{"$f":"IF(Table22[[#This Row],[5. New embedded network site address*\n(input: alpha-numeric )]]=\"\",\"\",Table22[[#This Row],[5. New embedded network site address*\n(input: alpha-numeric )]])","v":""},{"$f":"IF(Table22[[#This Row],[8. New embedded network site name*\n(input: text)]]=\"\",\"\",Table22[[#This Row],[8. New embedded network site name*\n(input: text)]])","v":""}]
[{"$f":"IF(Table22[[#This Row],[5. New embedded network site address*\n(input: alpha-numeric )]]=\"\",\"\",Table22[[#This Row],[5. New embedded network site address*\n(input: alpha-numeric )]])","v":""},{"$f":"IF(Table22[[#This Row],[8. New embedded network site name*\n(input: text)]]=\"\",\"\",Table22[[#This Row],[8. New embedded network site name*\n(input: text)]])","v":""}]
[{"$f":"IF(Table22[[#This Row],[5. New embedded network site address*\n(input: alpha-numeric )]]=\"\",\"\",Table22[[#This Row],[5. New embedded network site address*\n(input: alpha-numeric )]])","v":""},{"$f":"IF(Table22[[#This Row],[8. New embedded network site name*\n(input: text)]]=\"\",\"\",Table22[[#This Row],[8. New embedded network site name*\n(input: text)]])","v":""}]
[{"$f":"IF(Table22[[#This Row],[5. New embedded network site address*\n(input: alpha-numeric )]]=\"\",\"\",Table22[[#This Row],[5. New embedded network site address*\n(input: alpha-numeric )]])","v":""},{"$f":"IF(Table22[[#This Row],[8. New embedded network site name*\n(input: text)]]=\"\",\"\",Table22[[#This Row],[8. New embedded network site name*\n(input: text)]])","v":""}]
[{"$f":"IF(Table22[[#This Row],[5. New embedded network site address*\n(input: alpha-numeric )]]=\"\",\"\",Table22[[#This Row],[5. New embedded network site address*\n(input: alpha-numeric )]])","v":""},{"$f":"IF(Table22[[#This Row],[8. New embedded network site name*\n(input: text)]]=\"\",\"\",Table22[[#This Row],[8. New embedded network site name*\n(input: text)]])","v":""}]
[{"$f":"IF(Table22[[#This Row],[5. New embedded network site address*\n(input: alpha-numeric )]]=\"\",\"\",Table22[[#This Row],[5. New embedded network site address*\n(input: alpha-numeric )]])","v":""},{"$f":"IF(Table22[[#This Row],[8. New embedded network site name*\n(input: text)]]=\"\",\"\",Table22[[#This Row],[8. New embedded network site name*\n(input: text)]])","v":""}]
[{"$f":"IF(Table22[[#This Row],[5. New embedded network site address*\n(input: alpha-numeric )]]=\"\",\"\",Table22[[#This Row],[5. New embedded network site address*\n(input: alpha-numeric )]])","v":""},{"$f":"IF(Table22[[#This Row],[8. New embedded network site name*\n(input: text)]]=\"\",\"\",Table22[[#This Row],[8. New embedded network site name*\n(input: text)]])","v":""}]
[{"$f":"IF(Table22[[#This Row],[5. New embedded network site address*\n(input: alpha-numeric )]]=\"\",\"\",Table22[[#This Row],[5. New embedded network site address*\n(input: alpha-numeric )]])","v":""},{"$f":"IF(Table22[[#This Row],[8. New embedded network site name*\n(input: text)]]=\"\",\"\",Table22[[#This Row],[8. New embedded network site name*\n(input: text)]])","v":""}]
[{"$f":"IF(Table22[[#This Row],[5. New embedded network site address*\n(input: alpha-numeric )]]=\"\",\"\",Table22[[#This Row],[5. New embedded network site address*\n(input: alpha-numeric )]])","v":""},{"$f":"IF(Table22[[#This Row],[8. New embedded network site name*\n(input: text)]]=\"\",\"\",Table22[[#This Row],[8. New embedded network site name*\n(input: text)]])","v":""}]
[{"$f":"IF(Table22[[#This Row],[5. New embedded network site address*\n(input: alpha-numeric )]]=\"\",\"\",Table22[[#This Row],[5. New embedded network site address*\n(input: alpha-numeric )]])","v":""},{"$f":"IF(Table22[[#This Row],[8. New embedded network site name*\n(input: text)]]=\"\",\"\",Table22[[#This Row],[8. New embedded network site name*\n(input: text)]])","v":""}]
[{"$f":"IF(Table22[[#This Row],[5. New embedded network site address*\n(input: alpha-numeric )]]=\"\",\"\",Table22[[#This Row],[5. New embedded network site address*\n(input: alpha-numeric )]])","v":""},{"$f":"IF(Table22[[#This Row],[8. New embedded network site name*\n(input: text)]]=\"\",\"\",Table22[[#This Row],[8. New embedded network site name*\n(input: text)]])","v":""}]
[{"$f":"IF(Table22[[#This Row],[5. New embedded network site address*\n(input: alpha-numeric )]]=\"\",\"\",Table22[[#This Row],[5. New embedded network site address*\n(input: alpha-numeric )]])","v":""},{"$f":"IF(Table22[[#This Row],[8. New embedded network site name*\n(input: text)]]=\"\",\"\",Table22[[#This Row],[8. New embedded network site name*\n(input: text)]])","v":""}]
[{"$f":"IF(Table22[[#This Row],[5. New embedded network site address*\n(input: alpha-numeric )]]=\"\",\"\",Table22[[#This Row],[5. New embedded network site address*\n(input: alpha-numeric )]])","v":""},{"$f":"IF(Table22[[#This Row],[8. New embedded network site name*\n(input: text)]]=\"\",\"\",Table22[[#This Row],[8. New embedded network site name*\n(input: text)]])","v":""}]
[{"$f":"IF(Table22[[#This Row],[5. New embedded network site address*\n(input: alpha-numeric )]]=\"\",\"\",Table22[[#This Row],[5. New embedded network site address*\n(input: alpha-numeric )]])","v":""},{"$f":"IF(Table22[[#This Row],[8. New embedded network site name*\n(input: text)]]=\"\",\"\",Table22[[#This Row],[8. New embedded network site name*\n(input: text)]])","v":""}]
[{"$f":"IF(Table22[[#This Row],[5. New embedded network site address*\n(input: alpha-numeric )]]=\"\",\"\",Table22[[#This Row],[5. New embedded network site address*\n(input: alpha-numeric )]])","v":""},{"$f":"IF(Table22[[#This Row],[8. New embedded network site name*\n(input: text)]]=\"\",\"\",Table22[[#This Row],[8. New embedded network site name*\n(input: text)]])","v":""}]
[{"$f":"IF(Table22[[#This Row],[5. New embedded network site address*\n(input: alpha-numeric )]]=\"\",\"\",Table22[[#This Row],[5. New embedded network site address*\n(input: alpha-numeric )]])","v":""},{"$f":"IF(Table22[[#This Row],[8. New embedded network site name*\n(input: text)]]=\"\",\"\",Table22[[#This Row],[8. New embedded network site name*\n(input: text)]])","v":""}]
[{"$f":"IF(Table22[[#This Row],[5. New embedded network site address*\n(input: alpha-numeric )]]=\"\",\"\",Table22[[#This Row],[5. New embedded network site address*\n(input: alpha-numeric )]])","v":""},{"$f":"IF(Table22[[#This Row],[8. New embedded network site name*\n(input: text)]]=\"\",\"\",Table22[[#This Row],[8. New embedded network site name*\n(input: text)]])","v":""}]
[{"$f":"IF(Table22[[#This Row],[5. New embedded network site address*\n(input: alpha-numeric )]]=\"\",\"\",Table22[[#This Row],[5. New embedded network site address*\n(input: alpha-numeric )]])","v":""},{"$f":"IF(Table22[[#This Row],[8. New embedded network site name*\n(input: text)]]=\"\",\"\",Table22[[#This Row],[8. New embedded network site name*\n(input: text)]])","v":""}]
[{"$f":"IF(Table22[[#This Row],[5. New embedded network site address*\n(input: alpha-numeric )]]=\"\",\"\",Table22[[#This Row],[5. New embedded network site address*\n(input: alpha-numeric )]])","v":""},{"$f":"IF(Table22[[#This Row],[8. New embedded network site name*\n(input: text)]]=\"\",\"\",Table22[[#This Row],[8. New embedded network site name*\n(input: text)]])","v":""}]
[{"$f":"IF(Table22[[#This Row],[5. New embedded network site address*\n(input: alpha-numeric )]]=\"\",\"\",Table22[[#This Row],[5. New embedded network site address*\n(input: alpha-numeric )]])","v":""},{"$f":"IF(Table22[[#This Row],[8. New embedded network site name*\n(input: text)]]=\"\",\"\",Table22[[#This Row],[8. New embedded network site name*\n(input: text)]])","v":""}]
[{"$f":"IF(Table22[[#This Row],[5. New embedded network site address*\n(input: alpha-numeric )]]=\"\",\"\",Table22[[#This Row],[5. New embedded network site address*\n(input: alpha-numeric )]])","v":""},{"$f":"IF(Table22[[#This Row],[8. New embedded network site name*\n(input: text)]]=\"\",\"\",Table22[[#This Row],[8. New embedded network site name*\n(input: text)]])","v":""}]
[{"$f":"IF(Table22[[#This Row],[5. New embedded network site address*\n(input: alpha-numeric )]]=\"\",\"\",Table22[[#This Row],[5. New embedded network site address*\n(input: alpha-numeric )]])","v":""},{"$f":"IF(Table22[[#This Row],[8. New embedded network site name*\n(input: text)]]=\"\",\"\",Table22[[#This Row],[8. New embedded network site name*\n(input: text)]])","v":""}]
[{"$f":"IF(Table22[[#This Row],[5. New embedded network site address*\n(input: alpha-numeric )]]=\"\",\"\",Table22[[#This Row],[5. New embedded network site address*\n(input: alpha-numeric )]])","v":""},{"$f":"IF(Table22[[#This Row],[8. New embedded network site name*\n(input: text)]]=\"\",\"\",Table22[[#This Row],[8. New embedded network site name*\n(input: text)]])","v":""}]
[{"$f":"IF(Table22[[#This Row],[5. New embedded network site address*\n(input: alpha-numeric )]]=\"\",\"\",Table22[[#This Row],[5. New embedded network site address*\n(input: alpha-numeric )]])","v":""},{"$f":"IF(Table22[[#This Row],[8. New embedded network site name*\n(input: text)]]=\"\",\"\",Table22[[#This Row],[8. New embedded network site name*\n(input: text)]])","v":""}]
[{"$f":"IF(Table22[[#This Row],[5. New embedded network site address*\n(input: alpha-numeric )]]=\"\",\"\",Table22[[#This Row],[5. New embedded network site address*\n(input: alpha-numeric )]])","v":""},{"$f":"IF(Table22[[#This Row],[8. New embedded network site name*\n(input: text)]]=\"\",\"\",Table22[[#This Row],[8. New embedded network site name*\n(input: text)]])","v":""}]
[{"$f":"IF(Table22[[#This Row],[5. New embedded network site address*\n(input: alpha-numeric )]]=\"\",\"\",Table22[[#This Row],[5. New embedded network site address*\n(input: alpha-numeric )]])","v":""},{"$f":"IF(Table22[[#This Row],[8. New embedded network site name*\n(input: text)]]=\"\",\"\",Table22[[#This Row],[8. New embedded network site name*\n(input: text)]])","v":""}]
[{"$f":"IF(Table22[[#This Row],[5. New embedded network site address*\n(input: alpha-numeric )]]=\"\",\"\",Table22[[#This Row],[5. New embedded network site address*\n(input: alpha-numeric )]])","v":""},{"$f":"IF(Table22[[#This Row],[8. New embedded network site name*\n(input: text)]]=\"\",\"\",Table22[[#This Row],[8. New embedded network site name*\n(input: text)]])","v":""}]
[{"$f":"IF(Table22[[#This Row],[5. New embedded network site address*\n(input: alpha-numeric )]]=\"\",\"\",Table22[[#This Row],[5. New embedded network site address*\n(input: alpha-numeric )]])","v":""},{"$f":"IF(Table22[[#This Row],[8. New embedded network site name*\n(input: text)]]=\"\",\"\",Table22[[#This Row],[8. New embedded network site name*\n(input: text)]])","v":""}]
[{"$f":"IF(Table22[[#This Row],[5. New embedded network site address*\n(input: alpha-numeric )]]=\"\",\"\",Table22[[#This Row],[5. New embedded network site address*\n(input: alpha-numeric )]])","v":""},{"$f":"IF(Table22[[#This Row],[8. New embedded network site name*\n(input: text)]]=\"\",\"\",Table22[[#This Row],[8. New embedded network site name*\n(input: text)]])","v":""}]
[{"$f":"IF(Table22[[#This Row],[5. New embedded network site address*\n(input: alpha-numeric )]]=\"\",\"\",Table22[[#This Row],[5. New embedded network site address*\n(input: alpha-numeric )]])","v":""},{"$f":"IF(Table22[[#This Row],[8. New embedded network site name*\n(input: text)]]=\"\",\"\",Table22[[#This Row],[8. New embedded network site name*\n(input: text)]])","v":""}]
[{"$f":"IF(Table22[[#This Row],[5. New embedded network site address*\n(input: alpha-numeric )]]=\"\",\"\",Table22[[#This Row],[5. New embedded network site address*\n(input: alpha-numeric )]])","v":""},{"$f":"IF(Table22[[#This Row],[8. New embedded network site name*\n(input: text)]]=\"\",\"\",Table22[[#This Row],[8. New embedded network site name*\n(input: text)]])","v":""}]
[{"$f":"IF(Table22[[#This Row],[5. New embedded network site address*\n(input: alpha-numeric )]]=\"\",\"\",Table22[[#This Row],[5. New embedded network site address*\n(input: alpha-numeric )]])","v":""},{"$f":"IF(Table22[[#This Row],[8. New embedded network site name*\n(input: text)]]=\"\",\"\",Table22[[#This Row],[8. New embedded network site name*\n(input: text)]])","v":""}]
[{"$f":"IF(Table22[[#This Row],[5. New embedded network site address*\n(input: alpha-numeric )]]=\"\",\"\",Table22[[#This Row],[5. New embedded network site address*\n(input: alpha-numeric )]])","v":""},{"$f":"IF(Table22[[#This Row],[8. New embedded network site name*\n(input: text)]]=\"\",\"\",Table22[[#This Row],[8. New embedded network site name*\n(input: text)]])","v":""}]
[{"$f":"IF(Table22[[#This Row],[5. New embedded network site address*\n(input: alpha-numeric )]]=\"\",\"\",Table22[[#This Row],[5. New embedded network site address*\n(input: alpha-numeric )]])","v":""},{"$f":"IF(Table22[[#This Row],[8. New embedded network site name*\n(input: text)]]=\"\",\"\",Table22[[#This Row],[8. New embedded network site name*\n(input: text)]])","v":""}]
[{"$f":"IF(Table22[[#This Row],[5. New embedded network site address*\n(input: alpha-numeric )]]=\"\",\"\",Table22[[#This Row],[5. New embedded network site address*\n(input: alpha-numeric )]])","v":""},{"$f":"IF(Table22[[#This Row],[8. New embedded network site name*\n(input: text)]]=\"\",\"\",Table22[[#This Row],[8. New embedded network site name*\n(input: text)]])","v":""}]
[{"$f":"IF(Table22[[#This Row],[5. New embedded network site address*\n(input: alpha-numeric )]]=\"\",\"\",Table22[[#This Row],[5. New embedded network site address*\n(input: alpha-numeric )]])","v":""},{"$f":"IF(Table22[[#This Row],[8. New embedded network site name*\n(input: text)]]=\"\",\"\",Table22[[#This Row],[8. New embedded network site name*\n(input: text)]])","v":""}]
[{"$f":"IF(Table22[[#This Row],[5. New embedded network site address*\n(input: alpha-numeric )]]=\"\",\"\",Table22[[#This Row],[5. New embedded network site address*\n(input: alpha-numeric )]])","v":""},{"$f":"IF(Table22[[#This Row],[8. New embedded network site name*\n(input: text)]]=\"\",\"\",Table22[[#This Row],[8. New embedded network site name*\n(input: text)]])","v":""}]
[{"$f":"IF(Table22[[#This Row],[5. New embedded network site address*\n(input: alpha-numeric )]]=\"\",\"\",Table22[[#This Row],[5. New embedded network site address*\n(input: alpha-numeric )]])","v":""},{"$f":"IF(Table22[[#This Row],[8. New embedded network site name*\n(input: text)]]=\"\",\"\",Table22[[#This Row],[8. New embedded network site name*\n(input: text)]])","v":""}]
[{"$f":"IF(Table22[[#This Row],[5. New embedded network site address*\n(input: alpha-numeric )]]=\"\",\"\",Table22[[#This Row],[5. New embedded network site address*\n(input: alpha-numeric )]])","v":""},{"$f":"IF(Table22[[#This Row],[8. New embedded network site name*\n(input: text)]]=\"\",\"\",Table22[[#This Row],[8. New embedded network site name*\n(input: text)]])","v":""}]
[{"$f":"IF(Table22[[#This Row],[5. New embedded network site address*\n(input: alpha-numeric )]]=\"\",\"\",Table22[[#This Row],[5. New embedded network site address*\n(input: alpha-numeric )]])","v":""},{"$f":"IF(Table22[[#This Row],[8. New embedded network site name*\n(input: text)]]=\"\",\"\",Table22[[#This Row],[8. New embedded network site name*\n(input: text)]])","v":""}]
[{"$f":"IF(Table22[[#This Row],[5. New embedded network site address*\n(input: alpha-numeric )]]=\"\",\"\",Table22[[#This Row],[5. New embedded network site address*\n(input: alpha-numeric )]])","v":""},{"$f":"IF(Table22[[#This Row],[8. New embedded network site name*\n(input: text)]]=\"\",\"\",Table22[[#This Row],[8. New embedded network site name*\n(input: text)]])","v":""}]
[{"$f":"IF(Table22[[#This Row],[5. New embedded network site address*\n(input: alpha-numeric )]]=\"\",\"\",Table22[[#This Row],[5. New embedded network site address*\n(input: alpha-numeric )]])","v":""},{"$f":"IF(Table22[[#This Row],[8. New embedded network site name*\n(input: text)]]=\"\",\"\",Table22[[#This Row],[8. New embedded network site name*\n(input: text)]])","v":""}]
[{"$f":"IF(Table22[[#This Row],[5. New embedded network site address*\n(input: alpha-numeric )]]=\"\",\"\",Table22[[#This Row],[5. New embedded network site address*\n(input: alpha-numeric )]])","v":""},{"$f":"IF(Table22[[#This Row],[8. New embedded network site name*\n(input: text)]]=\"\",\"\",Table22[[#This Row],[8. New embedded network site name*\n(input: text)]])","v":""}]
[{"$f":"IF(Table22[[#This Row],[5. New embedded network site address*\n(input: alpha-numeric )]]=\"\",\"\",Table22[[#This Row],[5. New embedded network site address*\n(input: alpha-numeric )]])","v":""},{"$f":"IF(Table22[[#This Row],[8. New embedded network site name*\n(input: text)]]=\"\",\"\",Table22[[#This Row],[8. New embedded network site name*\n(input: text)]])","v":""}]
[{"$f":"IF(Table22[[#This Row],[5. New embedded network site address*\n(input: alpha-numeric )]]=\"\",\"\",Table22[[#This Row],[5. New embedded network site address*\n(input: alpha-numeric )]])","v":""},{"$f":"IF(Table22[[#This Row],[8. New embedded network site name*\n(input: text)]]=\"\",\"\",Table22[[#This Row],[8. New embedded network site name*\n(input: text)]])","v":""}]
[{"$f":"IF(Table22[[#This Row],[5. New embedded network site address*\n(input: alpha-numeric )]]=\"\",\"\",Table22[[#This Row],[5. New embedded network site address*\n(input: alpha-numeric )]])","v":""},{"$f":"IF(Table22[[#This Row],[8. New embedded network site name*\n(input: text)]]=\"\",\"\",Table22[[#This Row],[8. New embedded network site name*\n(input: text)]])","v":""}]
[{"$f":"IF(Table22[[#This Row],[5. New embedded network site address*\n(input: alpha-numeric )]]=\"\",\"\",Table22[[#This Row],[5. New embedded network site address*\n(input: alpha-numeric )]])","v":""},{"$f":"IF(Table22[[#This Row],[8. New embedded network site name*\n(input: text)]]=\"\",\"\",Table22[[#This Row],[8. New embedded network site name*\n(input: text)]])","v":""}]
[{"$f":"IF(Table22[[#This Row],[5. New embedded network site address*\n(input: alpha-numeric )]]=\"\",\"\",Table22[[#This Row],[5. New embedded network site address*\n(input: alpha-numeric )]])","v":""},{"$f":"IF(Table22[[#This Row],[8. New embedded network site name*\n(input: text)]]=\"\",\"\",Table22[[#This Row],[8. New embedded network site name*\n(input: text)]])","v":""}]
[{"$f":"IF(Table22[[#This Row],[5. New embedded network site address*\n(input: alpha-numeric )]]=\"\",\"\",Table22[[#This Row],[5. New embedded network site address*\n(input: alpha-numeric )]])","v":""},{"$f":"IF(Table22[[#This Row],[8. New embedded network site name*\n(input: text)]]=\"\",\"\",Table22[[#This Row],[8. New embedded network site name*\n(input: text)]])","v":""}]
[{"$f":"IF(Table22[[#This Row],[5. New embedded network site address*\n(input: alpha-numeric )]]=\"\",\"\",Table22[[#This Row],[5. New embedded network site address*\n(input: alpha-numeric )]])","v":""},{"$f":"IF(Table22[[#This Row],[8. New embedded network site name*\n(input: text)]]=\"\",\"\",Table22[[#This Row],[8. New embedded network site name*\n(input: text)]])","v":""}]
[{"$f":"IF(Table22[[#This Row],[5. New embedded network site address*\n(input: alpha-numeric )]]=\"\",\"\",Table22[[#This Row],[5. New embedded network site address*\n(input: alpha-numeric )]])","v":""},{"$f":"IF(Table22[[#This Row],[8. New embedded network site name*\n(input: text)]]=\"\",\"\",Table22[[#This Row],[8. New embedded network site name*\n(input: text)]])","v":""}]
[{"$f":"IF(Table22[[#This Row],[5. New embedded network site address*\n(input: alpha-numeric )]]=\"\",\"\",Table22[[#This Row],[5. New embedded network site address*\n(input: alpha-numeric )]])","v":""},{"$f":"IF(Table22[[#This Row],[8. New embedded network site name*\n(input: text)]]=\"\",\"\",Table22[[#This Row],[8. New embedded network site name*\n(input: text)]])","v":""}]
[{"$f":"IF(Table22[[#This Row],[5. New embedded network site address*\n(input: alpha-numeric )]]=\"\",\"\",Table22[[#This Row],[5. New embedded network site address*\n(input: alpha-numeric )]])","v":""},{"$f":"IF(Table22[[#This Row],[8. New embedded network site name*\n(input: text)]]=\"\",\"\",Table22[[#This Row],[8. New embedded network site name*\n(input: text)]])","v":""}]
[{"$f":"IF(Table22[[#This Row],[5. New embedded network site address*\n(input: alpha-numeric )]]=\"\",\"\",Table22[[#This Row],[5. New embedded network site address*\n(input: alpha-numeric )]])","v":""},{"$f":"IF(Table22[[#This Row],[8. New embedded network site name*\n(input: text)]]=\"\",\"\",Table22[[#This Row],[8. New embedded network site name*\n(input: text)]])","v":""}]
[{"$f":"IF(Table22[[#This Row],[5. New embedded network site address*\n(input: alpha-numeric )]]=\"\",\"\",Table22[[#This Row],[5. New embedded network site address*\n(input: alpha-numeric )]])","v":""},{"$f":"IF(Table22[[#This Row],[8. New embedded network site name*\n(input: text)]]=\"\",\"\",Table22[[#This Row],[8. New embedded network site name*\n(input: text)]])","v":""}]
[{"$f":"IF(Table22[[#This Row],[5. New embedded network site address*\n(input: alpha-numeric )]]=\"\",\"\",Table22[[#This Row],[5. New embedded network site address*\n(input: alpha-numeric )]])","v":""},{"$f":"IF(Table22[[#This Row],[8. New embedded network site name*\n(input: text)]]=\"\",\"\",Table22[[#This Row],[8. New embedded network site name*\n(input: text)]])","v":""}]
[{"$f":"IF(Table22[[#This Row],[5. New embedded network site address*\n(input: alpha-numeric )]]=\"\",\"\",Table22[[#This Row],[5. New embedded network site address*\n(input: alpha-numeric )]])","v":""},{"$f":"IF(Table22[[#This Row],[8. New embedded network site name*\n(input: text)]]=\"\",\"\",Table22[[#This Row],[8. New embedded network site name*\n(input: text)]])","v":""}]
[{"$f":"IF(Table22[[#This Row],[5. New embedded network site address*\n(input: alpha-numeric )]]=\"\",\"\",Table22[[#This Row],[5. New embedded network site address*\n(input: alpha-numeric )]])","v":""},{"$f":"IF(Table22[[#This Row],[8. New embedded network site name*\n(input: text)]]=\"\",\"\",Table22[[#This Row],[8. New embedded network site name*\n(input: text)]])","v":""}]
[{"$f":"IF(Table22[[#This Row],[5. New embedded network site address*\n(input: alpha-numeric )]]=\"\",\"\",Table22[[#This Row],[5. New embedded network site address*\n(input: alpha-numeric )]])","v":""},{"$f":"IF(Table22[[#This Row],[8. New embedded network site name*\n(input: text)]]=\"\",\"\",Table22[[#This Row],[8. New embedded network site name*\n(input: text)]])","v":""}]
[{"$f":"IF(Table22[[#This Row],[5. New embedded network site address*\n(input: alpha-numeric )]]=\"\",\"\",Table22[[#This Row],[5. New embedded network site address*\n(input: alpha-numeric )]])","v":""},{"$f":"IF(Table22[[#This Row],[8. New embedded network site name*\n(input: text)]]=\"\",\"\",Table22[[#This Row],[8. New embedded network site name*\n(input: text)]])","v":""}]
[{"$f":"IF(Table22[[#This Row],[5. New embedded network site address*\n(input: alpha-numeric )]]=\"\",\"\",Table22[[#This Row],[5. New embedded network site address*\n(input: alpha-numeric )]])","v":""},{"$f":"IF(Table22[[#This Row],[8. New embedded network site name*\n(input: text)]]=\"\",\"\",Table22[[#This Row],[8. New embedded network site name*\n(input: text)]])","v":""}]
[{"$f":"IF(Table22[[#This Row],[5. New embedded network site address*\n(input: alpha-numeric )]]=\"\",\"\",Table22[[#This Row],[5. New embedded network site address*\n(input: alpha-numeric )]])","v":""},{"$f":"IF(Table22[[#This Row],[8. New embedded network site name*\n(input: text)]]=\"\",\"\",Table22[[#This Row],[8. New embedded network site name*\n(input: text)]])","v":""}]
[{"$f":"IF(Table22[[#This Row],[5. New embedded network site address*\n(input: alpha-numeric )]]=\"\",\"\",Table22[[#This Row],[5. New embedded network site address*\n(input: alpha-numeric )]])","v":""},{"$f":"IF(Table22[[#This Row],[8. New embedded network site name*\n(input: text)]]=\"\",\"\",Table22[[#This Row],[8. New embedded network site name*\n(input: text)]])","v":""}]
[{"$f":"IF(Table22[[#This Row],[5. New embedded network site address*\n(input: alpha-numeric )]]=\"\",\"\",Table22[[#This Row],[5. New embedded network site address*\n(input: alpha-numeric )]])","v":""},{"$f":"IF(Table22[[#This Row],[8. New embedded network site name*\n(input: text)]]=\"\",\"\",Table22[[#This Row],[8. New embedded network site name*\n(input: text)]])","v":""}]
[{"$f":"IF(Table22[[#This Row],[5. New embedded network site address*\n(input: alpha-numeric )]]=\"\",\"\",Table22[[#This Row],[5. New embedded network site address*\n(input: alpha-numeric )]])","v":""},{"$f":"IF(Table22[[#This Row],[8. New embedded network site name*\n(input: text)]]=\"\",\"\",Table22[[#This Row],[8. New embedded network site name*\n(input: text)]])","v":""}]
[{"$f":"IF(Table22[[#This Row],[5. New embedded network site address*\n(input: alpha-numeric )]]=\"\",\"\",Table22[[#This Row],[5. New embedded network site address*\n(input: alpha-numeric )]])","v":""},{"$f":"IF(Table22[[#This Row],[8. New embedded network site name*\n(input: text)]]=\"\",\"\",Table22[[#This Row],[8. New embedded network site name*\n(input: text)]])","v":""}]
[{"$f":"IF(Table22[[#This Row],[5. New embedded network site address*\n(input: alpha-numeric )]]=\"\",\"\",Table22[[#This Row],[5. New embedded network site address*\n(input: alpha-numeric )]])","v":""},{"$f":"IF(Table22[[#This Row],[8. New embedded network site name*\n(input: text)]]=\"\",\"\",Table22[[#This Row],[8. New embedded network site name*\n(input: text)]])","v":""}]
[{"$f":"IF(Table22[[#This Row],[5. New embedded network site address*\n(input: alpha-numeric )]]=\"\",\"\",Table22[[#This Row],[5. New embedded network site address*\n(input: alpha-numeric )]])","v":""},{"$f":"IF(Table22[[#This Row],[8. New embedded network site name*\n(input: text)]]=\"\",\"\",Table22[[#This Row],[8. New embedded network site name*\n(input: text)]])","v":""}]
[{"$f":"IF(Table22[[#This Row],[5. New embedded network site address*\n(input: alpha-numeric )]]=\"\",\"\",Table22[[#This Row],[5. New embedded network site address*\n(input: alpha-numeric )]])","v":""},{"$f":"IF(Table22[[#This Row],[8. New embedded network site name*\n(input: text)]]=\"\",\"\",Table22[[#This Row],[8. New embedded network site name*\n(input: text)]])","v":""}]
[{"$f":"IF(Table22[[#This Row],[5. New embedded network site address*\n(input: alpha-numeric )]]=\"\",\"\",Table22[[#This Row],[5. New embedded network site address*\n(input: alpha-numeric )]])","v":""},{"$f":"IF(Table22[[#This Row],[8. New embedded network site name*\n(input: text)]]=\"\",\"\",Table22[[#This Row],[8. New embedded network site name*\n(input: text)]])","v":""}]
[{"$f":"IF(Table22[[#This Row],[5. New embedded network site address*\n(input: alpha-numeric )]]=\"\",\"\",Table22[[#This Row],[5. New embedded network site address*\n(input: alpha-numeric )]])","v":""},{"$f":"IF(Table22[[#This Row],[8. New embedded network site name*\n(input: text)]]=\"\",\"\",Table22[[#This Row],[8. New embedded network site name*\n(input: text)]])","v":""}]
[{"$f":"IF(Table22[[#This Row],[5. New embedded network site address*\n(input: alpha-numeric )]]=\"\",\"\",Table22[[#This Row],[5. New embedded network site address*\n(input: alpha-numeric )]])","v":""},{"$f":"IF(Table22[[#This Row],[8. New embedded network site name*\n(input: text)]]=\"\",\"\",Table22[[#This Row],[8. New embedded network site name*\n(input: text)]])","v":""}]
[{"$f":"IF(Table22[[#This Row],[5. New embedded network site address*\n(input: alpha-numeric )]]=\"\",\"\",Table22[[#This Row],[5. New embedded network site address*\n(input: alpha-numeric )]])","v":""},{"$f":"IF(Table22[[#This Row],[8. New embedded network site name*\n(input: text)]]=\"\",\"\",Table22[[#This Row],[8. New embedded network site name*\n(input: text)]])","v":""}]
[{"$f":"IF(Table22[[#This Row],[5. New embedded network site address*\n(input: alpha-numeric )]]=\"\",\"\",Table22[[#This Row],[5. New embedded network site address*\n(input: alpha-numeric )]])","v":""},{"$f":"IF(Table22[[#This Row],[8. New embedded network site name*\n(input: text)]]=\"\",\"\",Table22[[#This Row],[8. New embedded network site name*\n(input: text)]])","v":""}]
[{"$f":"IF(Table22[[#This Row],[5. New embedded network site address*\n(input: alpha-numeric )]]=\"\",\"\",Table22[[#This Row],[5. New embedded network site address*\n(input: alpha-numeric )]])","v":""},{"$f":"IF(Table22[[#This Row],[8. New embedded network site name*\n(input: text)]]=\"\",\"\",Table22[[#This Row],[8. New embedded network site name*\n(input: text)]])","v":""}]
[{"$f":"IF(Table22[[#This Row],[5. New embedded network site address*\n(input: alpha-numeric )]]=\"\",\"\",Table22[[#This Row],[5. New embedded network site address*\n(input: alpha-numeric )]])","v":""},{"$f":"IF(Table22[[#This Row],[8. New embedded network site name*\n(input: text)]]=\"\",\"\",Table22[[#This Row],[8. New embedded network site name*\n(input: text)]])","v":""}]
[{"$f":"IF(Table22[[#This Row],[5. New embedded network site address*\n(input: alpha-numeric )]]=\"\",\"\",Table22[[#This Row],[5. New embedded network site address*\n(input: alpha-numeric )]])","v":""},{"$f":"IF(Table22[[#This Row],[8. New embedded network site name*\n(input: text)]]=\"\",\"\",Table22[[#This Row],[8. New embedded network site name*\n(input: text)]])","v":""}]
[{"$f":"IF(Table22[[#This Row],[5. New embedded network site address*\n(input: alpha-numeric )]]=\"\",\"\",Table22[[#This Row],[5. New embedded network site address*\n(input: alpha-numeric )]])","v":""},{"$f":"IF(Table22[[#This Row],[8. New embedded network site name*\n(input: text)]]=\"\",\"\",Table22[[#This Row],[8. New embedded network site name*\n(input: text)]])","v":""}]
[{"$f":"IF(Table22[[#This Row],[5. New embedded network site address*\n(input: alpha-numeric )]]=\"\",\"\",Table22[[#This Row],[5. New embedded network site address*\n(input: alpha-numeric )]])","v":""},{"$f":"IF(Table22[[#This Row],[8. New embedded network site name*\n(input: text)]]=\"\",\"\",Table22[[#This Row],[8. New embedded network site name*\n(input: text)]])","v":""}]
[{"$f":"IF(Table22[[#This Row],[5. New embedded network site address*\n(input: alpha-numeric )]]=\"\",\"\",Table22[[#This Row],[5. New embedded network site address*\n(input: alpha-numeric )]])","v":""},{"$f":"IF(Table22[[#This Row],[8. New embedded network site name*\n(input: text)]]=\"\",\"\",Table22[[#This Row],[8. New embedded network site name*\n(input: text)]])","v":""}]
[{"$f":"IF(Table22[[#This Row],[5. New embedded network site address*\n(input: alpha-numeric )]]=\"\",\"\",Table22[[#This Row],[5. New embedded network site address*\n(input: alpha-numeric )]])","v":""},{"$f":"IF(Table22[[#This Row],[8. New embedded network site name*\n(input: text)]]=\"\",\"\",Table22[[#This Row],[8. New embedded network site name*\n(input: text)]])","v":""}]
[{"$f":"IF(Table22[[#This Row],[5. New embedded network site address*\n(input: alpha-numeric )]]=\"\",\"\",Table22[[#This Row],[5. New embedded network site address*\n(input: alpha-numeric )]])","v":""},{"$f":"IF(Table22[[#This Row],[8. New embedded network site name*\n(input: text)]]=\"\",\"\",Table22[[#This Row],[8. New embedded network site name*\n(input: text)]])","v":""}]
[{"$f":"IF(Table22[[#This Row],[5. New embedded network site address*\n(input: alpha-numeric )]]=\"\",\"\",Table22[[#This Row],[5. New embedded network site address*\n(input: alpha-numeric )]])","v":""},{"$f":"IF(Table22[[#This Row],[8. New embedded network site name*\n(input: text)]]=\"\",\"\",Table22[[#This Row],[8. New embedded network site name*\n(input: text)]])","v":""}]
[{"$f":"IF(Table22[[#This Row],[5. New embedded network site address*\n(input: alpha-numeric )]]=\"\",\"\",Table22[[#This Row],[5. New embedded network site address*\n(input: alpha-numeric )]])","v":""},{"$f":"IF(Table22[[#This Row],[8. New embedded network site name*\n(input: text)]]=\"\",\"\",Table22[[#This Row],[8. New embedded network site name*\n(input: text)]])","v":""}]
[{"$f":"IF(Table22[[#This Row],[5. New embedded network site address*\n(input: alpha-numeric )]]=\"\",\"\",Table22[[#This Row],[5. New embedded network site address*\n(input: alpha-numeric )]])","v":""},{"$f":"IF(Table22[[#This Row],[8. New embedded network site name*\n(input: text)]]=\"\",\"\",Table22[[#This Row],[8. New embedded network site name*\n(input: text)]])","v":""}]
[{"$f":"IF(Table22[[#This Row],[5. New embedded network site address*\n(input: alpha-numeric )]]=\"\",\"\",Table22[[#This Row],[5. New embedded network site address*\n(input: alpha-numeric )]])","v":""},{"$f":"IF(Table22[[#This Row],[8. New embedded network site name*\n(input: text)]]=\"\",\"\",Table22[[#This Row],[8. New embedded network site name*\n(input: text)]])","v":""}]
[{"$f":"IF(Table22[[#This Row],[5. New embedded network site address*\n(input: alpha-numeric )]]=\"\",\"\",Table22[[#This Row],[5. New embedded network site address*\n(input: alpha-numeric )]])","v":""},{"$f":"IF(Table22[[#This Row],[8. New embedded network site name*\n(input: text)]]=\"\",\"\",Table22[[#This Row],[8. New embedded network site name*\n(input: text)]])","v":""}]
[{"$f":"IF(Table22[[#This Row],[5. New embedded network site address*\n(input: alpha-numeric )]]=\"\",\"\",Table22[[#This Row],[5. New embedded network site address*\n(input: alpha-numeric )]])","v":""},{"$f":"IF(Table22[[#This Row],[8. New embedded network site name*\n(input: text)]]=\"\",\"\",Table22[[#This Row],[8. New embedded network site name*\n(input: text)]])","v":""}]
[{"$f":"IF(Table22[[#This Row],[5. New embedded network site address*\n(input: alpha-numeric )]]=\"\",\"\",Table22[[#This Row],[5. New embedded network site address*\n(input: alpha-numeric )]])","v":""},{"$f":"IF(Table22[[#This Row],[8. New embedded network site name*\n(input: text)]]=\"\",\"\",Table22[[#This Row],[8. New embedded network site name*\n(input: text)]])","v":""}]
[{"$f":"IF(Table22[[#This Row],[5. New embedded network site address*\n(input: alpha-numeric )]]=\"\",\"\",Table22[[#This Row],[5. New embedded network site address*\n(input: alpha-numeric )]])","v":""},{"$f":"IF(Table22[[#This Row],[8. New embedded network site name*\n(input: text)]]=\"\",\"\",Table22[[#This Row],[8. New embedded network site name*\n(input: text)]])","v":""}]
[{"$f":"IF(Table22[[#This Row],[5. New embedded network site address*\n(input: alpha-numeric )]]=\"\",\"\",Table22[[#This Row],[5. New embedded network site address*\n(input: alpha-numeric )]])","v":""},{"$f":"IF(Table22[[#This Row],[8. New embedded network site name*\n(input: text)]]=\"\",\"\",Table22[[#This Row],[8. New embedded network site name*\n(input: text)]])","v":""}]
[{"$f":"IF(Table22[[#This Row],[5. New embedded network site address*\n(input: alpha-numeric )]]=\"\",\"\",Table22[[#This Row],[5. New embedded network site address*\n(input: alpha-numeric )]])","v":""},{"$f":"IF(Table22[[#This Row],[8. New embedded network site name*\n(input: text)]]=\"\",\"\",Table22[[#This Row],[8. New embedded network site name*\n(input: text)]])","v":""}]
[{"$f":"IF(Table22[[#This Row],[5. New embedded network site address*\n(input: alpha-numeric )]]=\"\",\"\",Table22[[#This Row],[5. New embedded network site address*\n(input: alpha-numeric )]])","v":""},{"$f":"IF(Table22[[#This Row],[8. New embedded network site name*\n(input: text)]]=\"\",\"\",Table22[[#This Row],[8. New embedded network site name*\n(input: text)]])","v":""}]
[{"$f":"IF(Table22[[#This Row],[5. New embedded network site address*\n(input: alpha-numeric )]]=\"\",\"\",Table22[[#This Row],[5. New embedded network site address*\n(input: alpha-numeric )]])","v":""},{"$f":"IF(Table22[[#This Row],[8. New embedded network site name*\n(input: text)]]=\"\",\"\",Table22[[#This Row],[8. New embedded network site name*\n(input: text)]])","v":""}]
[{"$f":"IF(Table22[[#This Row],[5. New embedded network site address*\n(input: alpha-numeric )]]=\"\",\"\",Table22[[#This Row],[5. New embedded network site address*\n(input: alpha-numeric )]])","v":""},{"$f":"IF(Table22[[#This Row],[8. New embedded network site name*\n(input: text)]]=\"\",\"\",Table22[[#This Row],[8. New embedded network site name*\n(input: text)]])","v":""}]
[{"$f":"IF(Table22[[#This Row],[5. New embedded network site address*\n(input: alpha-numeric )]]=\"\",\"\",Table22[[#This Row],[5. New embedded network site address*\n(input: alpha-numeric )]])","v":""},{"$f":"IF(Table22[[#This Row],[8. New embedded network site name*\n(input: text)]]=\"\",\"\",Table22[[#This Row],[8. New embedded network site name*\n(input: text)]])","v":""}]
[{"$f":"IF(Table22[[#This Row],[5. New embedded network site address*\n(input: alpha-numeric )]]=\"\",\"\",Table22[[#This Row],[5. New embedded network site address*\n(input: alpha-numeric )]])","v":""},{"$f":"IF(Table22[[#This Row],[8. New embedded network site name*\n(input: text)]]=\"\",\"\",Table22[[#This Row],[8. New embedded network site name*\n(input: text)]])","v":""}]
[{"$f":"IF(Table22[[#This Row],[5. New embedded network site address*\n(input: alpha-numeric )]]=\"\",\"\",Table22[[#This Row],[5. New embedded network site address*\n(input: alpha-numeric )]])","v":""},{"$f":"IF(Table22[[#This Row],[8. New embedded network site name*\n(input: text)]]=\"\",\"\",Table22[[#This Row],[8. New embedded network site name*\n(input: text)]])","v":""}]
[{"$f":"IF(Table22[[#This Row],[5. New embedded network site address*\n(input: alpha-numeric )]]=\"\",\"\",Table22[[#This Row],[5. New embedded network site address*\n(input: alpha-numeric )]])","v":""},{"$f":"IF(Table22[[#This Row],[8. New embedded network site name*\n(input: text)]]=\"\",\"\",Table22[[#This Row],[8. New embedded network site name*\n(input: text)]])","v":""}]
[{"$f":"IF(Table22[[#This Row],[5. New embedded network site address*\n(input: alpha-numeric )]]=\"\",\"\",Table22[[#This Row],[5. New embedded network site address*\n(input: alpha-numeric )]])","v":""},{"$f":"IF(Table22[[#This Row],[8. New embedded network site name*\n(input: text)]]=\"\",\"\",Table22[[#This Row],[8. New embedded network site name*\n(input: text)]])","v":""}]
[{"$f":"IF(Table22[[#This Row],[5. New embedded network site address*\n(input: alpha-numeric )]]=\"\",\"\",Table22[[#This Row],[5. New embedded network site address*\n(input: alpha-numeric )]])","v":""},{"$f":"IF(Table22[[#This Row],[8. New embedded network site name*\n(input: text)]]=\"\",\"\",Table22[[#This Row],[8. New embedded network site name*\n(input: text)]])","v":""}]
[{"$f":"IF(Table22[[#This Row],[5. New embedded network site address*\n(input: alpha-numeric )]]=\"\",\"\",Table22[[#This Row],[5. New embedded network site address*\n(input: alpha-numeric )]])","v":""},{"$f":"IF(Table22[[#This Row],[8. New embedded network site name*\n(input: text)]]=\"\",\"\",Table22[[#This Row],[8. New embedded network site name*\n(input: text)]])","v":""}]
[{"$f":"IF(Table22[[#This Row],[5. New embedded network site address*\n(input: alpha-numeric )]]=\"\",\"\",Table22[[#This Row],[5. New embedded network site address*\n(input: alpha-numeric )]])","v":""},{"$f":"IF(Table22[[#This Row],[8. New embedded network site name*\n(input: text)]]=\"\",\"\",Table22[[#This Row],[8. New embedded network site name*\n(input: text)]])","v":""}]
[{"$f":"IF(Table22[[#This Row],[5. New embedded network site address*\n(input: alpha-numeric )]]=\"\",\"\",Table22[[#This Row],[5. New embedded network site address*\n(input: alpha-numeric )]])","v":""},{"$f":"IF(Table22[[#This Row],[8. New embedded network site name*\n(input: text)]]=\"\",\"\",Table22[[#This Row],[8. New embedded network site name*\n(input: text)]])","v":""}]
[{"$f":"IF(Table22[[#This Row],[5. New embedded network site address*\n(input: alpha-numeric )]]=\"\",\"\",Table22[[#This Row],[5. New embedded network site address*\n(input: alpha-numeric )]])","v":""},{"$f":"IF(Table22[[#This Row],[8. New embedded network site name*\n(input: text)]]=\"\",\"\",Table22[[#This Row],[8. New embedded network site name*\n(input: text)]])","v":""}]
[{"$f":"IF(Table22[[#This Row],[5. New embedded network site address*\n(input: alpha-numeric )]]=\"\",\"\",Table22[[#This Row],[5. New embedded network site address*\n(input: alpha-numeric )]])","v":""},{"$f":"IF(Table22[[#This Row],[8. New embedded network site name*\n(input: text)]]=\"\",\"\",Table22[[#This Row],[8. New embedded network site name*\n(input: text)]])","v":""}]
[{"$f":"IF(Table22[[#This Row],[5. New embedded network site address*\n(input: alpha-numeric )]]=\"\",\"\",Table22[[#This Row],[5. New embedded network site address*\n(input: alpha-numeric )]])","v":""},{"$f":"IF(Table22[[#This Row],[8. New embedded network site name*\n(input: text)]]=\"\",\"\",Table22[[#This Row],[8. New embedded network site name*\n(input: text)]])","v":""}]
[{"$f":"IF(Table22[[#This Row],[5. New embedded network site address*\n(input: alpha-numeric )]]=\"\",\"\",Table22[[#This Row],[5. New embedded network site address*\n(input: alpha-numeric )]])","v":""},{"$f":"IF(Table22[[#This Row],[8. New embedded network site name*\n(input: text)]]=\"\",\"\",Table22[[#This Row],[8. New embedded network site name*\n(input: text)]])","v":""}]
[{"$f":"IF(Table22[[#This Row],[5. New embedded network site address*\n(input: alpha-numeric )]]=\"\",\"\",Table22[[#This Row],[5. New embedded network site address*\n(input: alpha-numeric )]])","v":""},{"$f":"IF(Table22[[#This Row],[8. New embedded network site name*\n(input: text)]]=\"\",\"\",Table22[[#This Row],[8. New embedded network site name*\n(input: text)]])","v":""}]
[{"$f":"IF(Table22[[#This Row],[5. New embedded network site address*\n(input: alpha-numeric )]]=\"\",\"\",Table22[[#This Row],[5. New embedded network site address*\n(input: alpha-numeric )]])","v":""},{"$f":"IF(Table22[[#This Row],[8. New embedded network site name*\n(input: text)]]=\"\",\"\",Table22[[#This Row],[8. New embedded network site name*\n(input: text)]])","v":""}]
[{"$f":"IF(Table22[[#This Row],[5. New embedded network site address*\n(input: alpha-numeric )]]=\"\",\"\",Table22[[#This Row],[5. New embedded network site address*\n(input: alpha-numeric )]])","v":""},{"$f":"IF(Table22[[#This Row],[8. New embedded network site name*\n(input: text)]]=\"\",\"\",Table22[[#This Row],[8. New embedded network site name*\n(input: text)]])","v":""}]
[{"$f":"IF(Table22[[#This Row],[5. New embedded network site address*\n(input: alpha-numeric )]]=\"\",\"\",Table22[[#This Row],[5. New embedded network site address*\n(input: alpha-numeric )]])","v":""},{"$f":"IF(Table22[[#This Row],[8. New embedded network site name*\n(input: text)]]=\"\",\"\",Table22[[#This Row],[8. New embedded network site name*\n(input: text)]])","v":""}]
[{"$f":"IF(Table22[[#This Row],[5. New embedded network site address*\n(input: alpha-numeric )]]=\"\",\"\",Table22[[#This Row],[5. New embedded network site address*\n(input: alpha-numeric )]])","v":""},{"$f":"IF(Table22[[#This Row],[8. New embedded network site name*\n(input: text)]]=\"\",\"\",Table22[[#This Row],[8. New embedded network site name*\n(input: text)]])","v":""}]
[{"$f":"IF(Table22[[#This Row],[5. New embedded network site address*\n(input: alpha-numeric )]]=\"\",\"\",Table22[[#This Row],[5. New embedded network site address*\n(input: alpha-numeric )]])","v":""},{"$f":"IF(Table22[[#This Row],[8. New embedded network site name*\n(input: text)]]=\"\",\"\",Table22[[#This Row],[8. New embedded network site name*\n(input: text)]])","v":""}]
[{"$f":"IF(Table22[[#This Row],[5. New embedded network site address*\n(input: alpha-numeric )]]=\"\",\"\",Table22[[#This Row],[5. New embedded network site address*\n(input: alpha-numeric )]])","v":""},{"$f":"IF(Table22[[#This Row],[8. New embedded network site name*\n(input: text)]]=\"\",\"\",Table22[[#This Row],[8. New embedded network site name*\n(input: text)]])","v":""}]
[{"$f":"IF(Table22[[#This Row],[5. New embedded network site address*\n(input: alpha-numeric )]]=\"\",\"\",Table22[[#This Row],[5. New embedded network site address*\n(input: alpha-numeric )]])","v":""},{"$f":"IF(Table22[[#This Row],[8. New embedded network site name*\n(input: text)]]=\"\",\"\",Table22[[#This Row],[8. New embedded network site name*\n(input: text)]])","v":""}]
[{"$f":"IF(Table22[[#This Row],[5. New embedded network site address*\n(input: alpha-numeric )]]=\"\",\"\",Table22[[#This Row],[5. New embedded network site address*\n(input: alpha-numeric )]])","v":""},{"$f":"IF(Table22[[#This Row],[8. New embedded network site name*\n(input: text)]]=\"\",\"\",Table22[[#This Row],[8. New embedded network site name*\n(input: text)]])","v":""}]
[{"$f":"IF(Table22[[#This Row],[5. New embedded network site address*\n(input: alpha-numeric )]]=\"\",\"\",Table22[[#This Row],[5. New embedded network site address*\n(input: alpha-numeric )]])","v":""},{"$f":"IF(Table22[[#This Row],[8. New embedded network site name*\n(input: text)]]=\"\",\"\",Table22[[#This Row],[8. New embedded network site name*\n(input: text)]])","v":""}]
[{"$f":"IF(Table22[[#This Row],[5. New embedded network site address*\n(input: alpha-numeric )]]=\"\",\"\",Table22[[#This Row],[5. New embedded network site address*\n(input: alpha-numeric )]])","v":""},{"$f":"IF(Table22[[#This Row],[8. New embedded network site name*\n(input: text)]]=\"\",\"\",Table22[[#This Row],[8. New embedded network site name*\n(input: text)]])","v":""}]
[{"$f":"IF(Table22[[#This Row],[5. New embedded network site address*\n(input: alpha-numeric )]]=\"\",\"\",Table22[[#This Row],[5. New embedded network site address*\n(input: alpha-numeric )]])","v":""},{"$f":"IF(Table22[[#This Row],[8. New embedded network site name*\n(input: text)]]=\"\",\"\",Table22[[#This Row],[8. New embedded network site name*\n(input: text)]])","v":""}]
[{"$f":"IF(Table22[[#This Row],[5. New embedded network site address*\n(input: alpha-numeric )]]=\"\",\"\",Table22[[#This Row],[5. New embedded network site address*\n(input: alpha-numeric )]])","v":""},{"$f":"IF(Table22[[#This Row],[8. New embedded network site name*\n(input: text)]]=\"\",\"\",Table22[[#This Row],[8. New embedded network site name*\n(input: text)]])","v":""}]
[{"$f":"IF(Table22[[#This Row],[5. New embedded network site address*\n(input: alpha-numeric )]]=\"\",\"\",Table22[[#This Row],[5. New embedded network site address*\n(input: alpha-numeric )]])","v":""},{"$f":"IF(Table22[[#This Row],[8. New embedded network site name*\n(input: text)]]=\"\",\"\",Table22[[#This Row],[8. New embedded network site name*\n(input: text)]])","v":""}]
[{"$f":"IF(Table22[[#This Row],[5. New embedded network site address*\n(input: alpha-numeric )]]=\"\",\"\",Table22[[#This Row],[5. New embedded network site address*\n(input: alpha-numeric )]])","v":""},{"$f":"IF(Table22[[#This Row],[8. New embedded network site name*\n(input: text)]]=\"\",\"\",Table22[[#This Row],[8. New embedded network site name*\n(input: text)]])","v":""}]
[{"$f":"IF(Table22[[#This Row],[5. New embedded network site address*\n(input: alpha-numeric )]]=\"\",\"\",Table22[[#This Row],[5. New embedded network site address*\n(input: alpha-numeric )]])","v":""},{"$f":"IF(Table22[[#This Row],[8. New embedded network site name*\n(input: text)]]=\"\",\"\",Table22[[#This Row],[8. New embedded network site name*\n(input: text)]])","v":""}]
[{"$f":"IF(Table22[[#This Row],[5. New embedded network site address*\n(input: alpha-numeric )]]=\"\",\"\",Table22[[#This Row],[5. New embedded network site address*\n(input: alpha-numeric )]])","v":""},{"$f":"IF(Table22[[#This Row],[8. New embedded network site name*\n(input: text)]]=\"\",\"\",Table22[[#This Row],[8. New embedded network site name*\n(input: text)]])","v":""}]
[{"$f":"IF(Table22[[#This Row],[5. New embedded network site address*\n(input: alpha-numeric )]]=\"\",\"\",Table22[[#This Row],[5. New embedded network site address*\n(input: alpha-numeric )]])","v":""},{"$f":"IF(Table22[[#This Row],[8. New embedded network site name*\n(input: text)]]=\"\",\"\",Table22[[#This Row],[8. New embedded network site name*\n(input: text)]])","v":""}]
[{"$f":"IF(Table22[[#This Row],[5. New embedded network site address*\n(input: alpha-numeric )]]=\"\",\"\",Table22[[#This Row],[5. New embedded network site address*\n(input: alpha-numeric )]])","v":""},{"$f":"IF(Table22[[#This Row],[8. New embedded network site name*\n(input: text)]]=\"\",\"\",Table22[[#This Row],[8. New embedded network site name*\n(input: text)]])","v":""}]
[{"$f":"IF(Table22[[#This Row],[5. New embedded network site address*\n(input: alpha-numeric )]]=\"\",\"\",Table22[[#This Row],[5. New embedded network site address*\n(input: alpha-numeric )]])","v":""},{"$f":"IF(Table22[[#This Row],[8. New embedded network site name*\n(input: text)]]=\"\",\"\",Table22[[#This Row],[8. New embedded network site name*\n(input: text)]])","v":""}]
[{"$f":"IF(Table22[[#This Row],[5. New embedded network site address*\n(input: alpha-numeric )]]=\"\",\"\",Table22[[#This Row],[5. New embedded network site address*\n(input: alpha-numeric )]])","v":""},{"$f":"IF(Table22[[#This Row],[8. New embedded network site name*\n(input: text)]]=\"\",\"\",Table22[[#This Row],[8. New embedded network site name*\n(input: text)]])","v":""}]
[{"$f":"IF(Table22[[#This Row],[5. New embedded network site address*\n(input: alpha-numeric )]]=\"\",\"\",Table22[[#This Row],[5. New embedded network site address*\n(input: alpha-numeric )]])","v":""},{"$f":"IF(Table22[[#This Row],[8. New embedded network site name*\n(input: text)]]=\"\",\"\",Table22[[#This Row],[8. New embedded network site name*\n(input: text)]])","v":""}]
[{"$f":"IF(Table22[[#This Row],[5. New embedded network site address*\n(input: alpha-numeric )]]=\"\",\"\",Table22[[#This Row],[5. New embedded network site address*\n(input: alpha-numeric )]])","v":""},{"$f":"IF(Table22[[#This Row],[8. New embedded network site name*\n(input: text)]]=\"\",\"\",Table22[[#This Row],[8. New embedded network site name*\n(input: text)]])","v":""}]
[{"$f":"IF(Table22[[#This Row],[5. New embedded network site address*\n(input: alpha-numeric )]]=\"\",\"\",Table22[[#This Row],[5. New embedded network site address*\n(input: alpha-numeric )]])","v":""},{"$f":"IF(Table22[[#This Row],[8. New embedded network site name*\n(input: text)]]=\"\",\"\",Table22[[#This Row],[8. New embedded network site name*\n(input: text)]])","v":""}]
[{"$f":"IF(Table22[[#This Row],[5. New embedded network site address*\n(input: alpha-numeric )]]=\"\",\"\",Table22[[#This Row],[5. New embedded network site address*\n(input: alpha-numeric )]])","v":""},{"$f":"IF(Table22[[#This Row],[8. New embedded network site name*\n(input: text)]]=\"\",\"\",Table22[[#This Row],[8. New embedded network site name*\n(input: text)]])","v":""}]
[{"$f":"IF(Table22[[#This Row],[5. New embedded network site address*\n(input: alpha-numeric )]]=\"\",\"\",Table22[[#This Row],[5. New embedded network site address*\n(input: alpha-numeric )]])","v":""},{"$f":"IF(Table22[[#This Row],[8. New embedded network site name*\n(input: text)]]=\"\",\"\",Table22[[#This Row],[8. New embedded network site name*\n(input: text)]])","v":""}]
[{"$f":"IF(Table22[[#This Row],[5. New embedded network site address*\n(input: alpha-numeric )]]=\"\",\"\",Table22[[#This Row],[5. New embedded network site address*\n(input: alpha-numeric )]])","v":""},{"$f":"IF(Table22[[#This Row],[8. New embedded network site name*\n(input: text)]]=\"\",\"\",Table22[[#This Row],[8. New embedded network site name*\n(input: text)]])","v":""}]
[{"$f":"IF(Table22[[#This Row],[5. New embedded network site address*\n(input: alpha-numeric )]]=\"\",\"\",Table22[[#This Row],[5. New embedded network site address*\n(input: alpha-numeric )]])","v":""},{"$f":"IF(Table22[[#This Row],[8. New embedded network site name*\n(input: text)]]=\"\",\"\",Table22[[#This Row],[8. New embedded network site name*\n(input: text)]])","v":""}]
[{"$f":"IF(Table22[[#This Row],[5. New embedded network site address*\n(input: alpha-numeric )]]=\"\",\"\",Table22[[#This Row],[5. New embedded network site address*\n(input: alpha-numeric )]])","v":""},{"$f":"IF(Table22[[#This Row],[8. New embedded network site name*\n(input: text)]]=\"\",\"\",Table22[[#This Row],[8. New embedded network site name*\n(input: text)]])","v":""}]
[{"$f":"IF(Table22[[#This Row],[5. New embedded network site address*\n(input: alpha-numeric )]]=\"\",\"\",Table22[[#This Row],[5. New embedded network site address*\n(input: alpha-numeric )]])","v":""},{"$f":"IF(Table22[[#This Row],[8. New embedded network site name*\n(input: text)]]=\"\",\"\",Table22[[#This Row],[8. New embedded network site name*\n(input: text)]])","v":""}]
[{"$f":"IF(Table22[[#This Row],[5. New embedded network site address*\n(input: alpha-numeric )]]=\"\",\"\",Table22[[#This Row],[5. New embedded network site address*\n(input: alpha-numeric )]])","v":""},{"$f":"IF(Table22[[#This Row],[8. New embedded network site name*\n(input: text)]]=\"\",\"\",Table22[[#This Row],[8. New embedded network site name*\n(input: text)]])","v":""}]
[{"$f":"IF(Table22[[#This Row],[5. New embedded network site address*\n(input: alpha-numeric )]]=\"\",\"\",Table22[[#This Row],[5. New embedded network site address*\n(input: alpha-numeric )]])","v":""},{"$f":"IF(Table22[[#This Row],[8. New embedded network site name*\n(input: text)]]=\"\",\"\",Table22[[#This Row],[8. New embedded network site name*\n(input: text)]])","v":""}]
[{"$f":"IF(Table22[[#This Row],[5. New embedded network site address*\n(input: alpha-numeric )]]=\"\",\"\",Table22[[#This Row],[5. New embedded network site address*\n(input: alpha-numeric )]])","v":""},{"$f":"IF(Table22[[#This Row],[8. New embedded network site name*\n(input: text)]]=\"\",\"\",Table22[[#This Row],[8. New embedded network site name*\n(input: text)]])","v":""}]
[{"$f":"IF(Table22[[#This Row],[5. New embedded network site address*\n(input: alpha-numeric )]]=\"\",\"\",Table22[[#This Row],[5. New embedded network site address*\n(input: alpha-numeric )]])","v":""},{"$f":"IF(Table22[[#This Row],[8. New embedded network site name*\n(input: text)]]=\"\",\"\",Table22[[#This Row],[8. New embedded network site name*\n(input: text)]])","v":""}]
[{"$f":"IF(Table22[[#This Row],[5. New embedded network site address*\n(input: alpha-numeric )]]=\"\",\"\",Table22[[#This Row],[5. New embedded network site address*\n(input: alpha-numeric )]])","v":""},{"$f":"IF(Table22[[#This Row],[8. New embedded network site name*\n(input: text)]]=\"\",\"\",Table22[[#This Row],[8. New embedded network site name*\n(input: text)]])","v":""}]
[{"$f":"IF(Table22[[#This Row],[5. New embedded network site address*\n(input: alpha-numeric )]]=\"\",\"\",Table22[[#This Row],[5. New embedded network site address*\n(input: alpha-numeric )]])","v":""},{"$f":"IF(Table22[[#This Row],[8. New embedded network site name*\n(input: text)]]=\"\",\"\",Table22[[#This Row],[8. New embedded network site name*\n(input: text)]])","v":""}]
[{"$f":"IF(Table22[[#This Row],[5. New embedded network site address*\n(input: alpha-numeric )]]=\"\",\"\",Table22[[#This Row],[5. New embedded network site address*\n(input: alpha-numeric )]])","v":""},{"$f":"IF(Table22[[#This Row],[8. New embedded network site name*\n(input: text)]]=\"\",\"\",Table22[[#This Row],[8. New embedded network site name*\n(input: text)]])","v":""}]
[{"$f":"IF(Table22[[#This Row],[5. New embedded network site address*\n(input: alpha-numeric )]]=\"\",\"\",Table22[[#This Row],[5. New embedded network site address*\n(input: alpha-numeric )]])","v":""},{"$f":"IF(Table22[[#This Row],[8. New embedded network site name*\n(input: text)]]=\"\",\"\",Table22[[#This Row],[8. New embedded network site name*\n(input: text)]])","v":""}]
[{"$f":"IF(Table22[[#This Row],[5. New embedded network site address*\n(input: alpha-numeric )]]=\"\",\"\",Table22[[#This Row],[5. New embedded network site address*\n(input: alpha-numeric )]])","v":""},{"$f":"IF(Table22[[#This Row],[8. New embedded network site name*\n(input: text)]]=\"\",\"\",Table22[[#This Row],[8. New embedded network site name*\n(input: text)]])","v":""}]
[{"$f":"IF(Table22[[#This Row],[5. New embedded network site address*\n(input: alpha-numeric )]]=\"\",\"\",Table22[[#This Row],[5. New embedded network site address*\n(input: alpha-numeric )]])","v":""},{"$f":"IF(Table22[[#This Row],[8. New embedded network site name*\n(input: text)]]=\"\",\"\",Table22[[#This Row],[8. New embedded network site name*\n(input: text)]])","v":""}]
[{"$f":"IF(Table22[[#This Row],[5. New embedded network site address*\n(input: alpha-numeric )]]=\"\",\"\",Table22[[#This Row],[5. New embedded network site address*\n(input: alpha-numeric )]])","v":""},{"$f":"IF(Table22[[#This Row],[8. New embedded network site name*\n(input: text)]]=\"\",\"\",Table22[[#This Row],[8. New embedded network site name*\n(input: text)]])","v":""}]
[{"$f":"IF(Table22[[#This Row],[5. New embedded network site address*\n(input: alpha-numeric )]]=\"\",\"\",Table22[[#This Row],[5. New embedded network site address*\n(input: alpha-numeric )]])","v":""},{"$f":"IF(Table22[[#This Row],[8. New embedded network site name*\n(input: text)]]=\"\",\"\",Table22[[#This Row],[8. New embedded network site name*\n(input: text)]])","v":""}]
[{"$f":"IF(Table22[[#This Row],[5. New embedded network site address*\n(input: alpha-numeric )]]=\"\",\"\",Table22[[#This Row],[5. New embedded network site address*\n(input: alpha-numeric )]])","v":""},{"$f":"IF(Table22[[#This Row],[8. New embedded network site name*\n(input: text)]]=\"\",\"\",Table22[[#This Row],[8. New embedded network site name*\n(input: text)]])","v":""}]
[{"$f":"IF(Table22[[#This Row],[5. New embedded network site address*\n(input: alpha-numeric )]]=\"\",\"\",Table22[[#This Row],[5. New embedded network site address*\n(input: alpha-numeric )]])","v":""},{"$f":"IF(Table22[[#This Row],[8. New embedded network site name*\n(input: text)]]=\"\",\"\",Table22[[#This Row],[8. New embedded network site name*\n(input: text)]])","v":""}]
[{"$f":"IF(Table22[[#This Row],[5. New embedded network site address*\n(input: alpha-numeric )]]=\"\",\"\",Table22[[#This Row],[5. New embedded network site address*\n(input: alpha-numeric )]])","v":""},{"$f":"IF(Table22[[#This Row],[8. New embedded network site name*\n(input: text)]]=\"\",\"\",Table22[[#This Row],[8. New embedded network site name*\n(input: text)]])","v":""}]
[{"$f":"IF(Table22[[#This Row],[5. New embedded network site address*\n(input: alpha-numeric )]]=\"\",\"\",Table22[[#This Row],[5. New embedded network site address*\n(input: alpha-numeric )]])","v":""},{"$f":"IF(Table22[[#This Row],[8. New embedded network site name*\n(input: text)]]=\"\",\"\",Table22[[#This Row],[8. New embedded network site name*\n(input: text)]])","v":""}]
[{"$f":"IF(Table22[[#This Row],[5. New embedded network site address*\n(input: alpha-numeric )]]=\"\",\"\",Table22[[#This Row],[5. New embedded network site address*\n(input: alpha-numeric )]])","v":""},{"$f":"IF(Table22[[#This Row],[8. New embedded network site name*\n(input: text)]]=\"\",\"\",Table22[[#This Row],[8. New embedded network site name*\n(input: text)]])","v":""}]
[{"$f":"IF(Table22[[#This Row],[5. New embedded network site address*\n(input: alpha-numeric )]]=\"\",\"\",Table22[[#This Row],[5. New embedded network site address*\n(input: alpha-numeric )]])","v":""},{"$f":"IF(Table22[[#This Row],[8. New embedded network site name*\n(input: text)]]=\"\",\"\",Table22[[#This Row],[8. New embedded network site name*\n(input: text)]])","v":""}]
[{"$f":"IF(Table22[[#This Row],[5. New embedded network site address*\n(input: alpha-numeric )]]=\"\",\"\",Table22[[#This Row],[5. New embedded network site address*\n(input: alpha-numeric )]])","v":""},{"$f":"IF(Table22[[#This Row],[8. New embedded network site name*\n(input: text)]]=\"\",\"\",Table22[[#This Row],[8. New embedded network site name*\n(input: text)]])","v":""}]
[{"$f":"IF(Table22[[#This Row],[5. New embedded network site address*\n(input: alpha-numeric )]]=\"\",\"\",Table22[[#This Row],[5. New embedded network site address*\n(input: alpha-numeric )]])","v":""},{"$f":"IF(Table22[[#This Row],[8. New embedded network site name*\n(input: text)]]=\"\",\"\",Table22[[#This Row],[8. New embedded network site name*\n(input: text)]])","v":""}]
[{"$f":"IF(Table22[[#This Row],[5. New embedded network site address*\n(input: alpha-numeric )]]=\"\",\"\",Table22[[#This Row],[5. New embedded network site address*\n(input: alpha-numeric )]])","v":""},{"$f":"IF(Table22[[#This Row],[8. New embedded network site name*\n(input: text)]]=\"\",\"\",Table22[[#This Row],[8. New embedded network site name*\n(input: text)]])","v":""}]
[{"$f":"IF(Table22[[#This Row],[5. New embedded network site address*\n(input: alpha-numeric )]]=\"\",\"\",Table22[[#This Row],[5. New embedded network site address*\n(input: alpha-numeric )]])","v":""},{"$f":"IF(Table22[[#This Row],[8. New embedded network site name*\n(input: text)]]=\"\",\"\",Table22[[#This Row],[8. New embedded network site name*\n(input: text)]])","v":""}]
[{"$f":"IF(Table22[[#This Row],[5. New embedded network site address*\n(input: alpha-numeric )]]=\"\",\"\",Table22[[#This Row],[5. New embedded network site address*\n(input: alpha-numeric )]])","v":""},{"$f":"IF(Table22[[#This Row],[8. New embedded network site name*\n(input: text)]]=\"\",\"\",Table22[[#This Row],[8. New embedded network site name*\n(input: text)]])","v":""}]
[{"$f":"IF(Table22[[#This Row],[5. New embedded network site address*\n(input: alpha-numeric )]]=\"\",\"\",Table22[[#This Row],[5. New embedded network site address*\n(input: alpha-numeric )]])","v":""},{"$f":"IF(Table22[[#This Row],[8. New embedded network site name*\n(input: text)]]=\"\",\"\",Table22[[#This Row],[8. New embedded network site name*\n(input: text)]])","v":""}]
[{"$f":"IF(Table22[[#This Row],[5. New embedded network site address*\n(input: alpha-numeric )]]=\"\",\"\",Table22[[#This Row],[5. New embedded network site address*\n(input: alpha-numeric )]])","v":""},{"$f":"IF(Table22[[#This Row],[8. New embedded network site name*\n(input: text)]]=\"\",\"\",Table22[[#This Row],[8. New embedded network site name*\n(input: text)]])","v":""}]
[{"$f":"IF(Table22[[#This Row],[5. New embedded network site address*\n(input: alpha-numeric )]]=\"\",\"\",Table22[[#This Row],[5. New embedded network site address*\n(input: alpha-numeric )]])","v":""},{"$f":"IF(Table22[[#This Row],[8. New embedded network site name*\n(input: text)]]=\"\",\"\",Table22[[#This Row],[8. New embedded network site name*\n(input: text)]])","v":""}]
[{"$f":"IF(Table22[[#This Row],[5. New embedded network site address*\n(input: alpha-numeric )]]=\"\",\"\",Table22[[#This Row],[5. New embedded network site address*\n(input: alpha-numeric )]])","v":""},{"$f":"IF(Table22[[#This Row],[8. New embedded network site name*\n(input: text)]]=\"\",\"\",Table22[[#This Row],[8. New embedded network site name*\n(input: text)]])","v":""}]
[{"$f":"IF(Table22[[#This Row],[5. New embedded network site address*\n(input: alpha-numeric )]]=\"\",\"\",Table22[[#This Row],[5. New embedded network site address*\n(input: alpha-numeric )]])","v":""},{"$f":"IF(Table22[[#This Row],[8. New embedded network site name*\n(input: text)]]=\"\",\"\",Table22[[#This Row],[8. New embedded network site name*\n(input: text)]])","v":""}]
[{"$f":"IF(Table22[[#This Row],[5. New embedded network site address*\n(input: alpha-numeric )]]=\"\",\"\",Table22[[#This Row],[5. New embedded network site address*\n(input: alpha-numeric )]])","v":""},{"$f":"IF(Table22[[#This Row],[8. New embedded network site name*\n(input: text)]]=\"\",\"\",Table22[[#This Row],[8. New embedded network site name*\n(input: text)]])","v":""}]
[{"$f":"IF(Table22[[#This Row],[5. New embedded network site address*\n(input: alpha-numeric )]]=\"\",\"\",Table22[[#This Row],[5. New embedded network site address*\n(input: alpha-numeric )]])","v":""},{"$f":"IF(Table22[[#This Row],[8. New embedded network site name*\n(input: text)]]=\"\",\"\",Table22[[#This Row],[8. New embedded network site name*\n(input: text)]])","v":""}]
[{"$f":"IF(Table22[[#This Row],[5. New embedded network site address*\n(input: alpha-numeric )]]=\"\",\"\",Table22[[#This Row],[5. New embedded network site address*\n(input: alpha-numeric )]])","v":""},{"$f":"IF(Table22[[#This Row],[8. New embedded network site name*\n(input: text)]]=\"\",\"\",Table22[[#This Row],[8. New embedded network site name*\n(input: text)]])","v":""}]
[{"$f":"IF(Table22[[#This Row],[5. New embedded network site address*\n(input: alpha-numeric )]]=\"\",\"\",Table22[[#This Row],[5. New embedded network site address*\n(input: alpha-numeric )]])","v":""},{"$f":"IF(Table22[[#This Row],[8. New embedded network site name*\n(input: text)]]=\"\",\"\",Table22[[#This Row],[8. New embedded network site name*\n(input: text)]])","v":""}]
[{"$f":"IF(Table22[[#This Row],[5. New embedded network site address*\n(input: alpha-numeric )]]=\"\",\"\",Table22[[#This Row],[5. New embedded network site address*\n(input: alpha-numeric )]])","v":""},{"$f":"IF(Table22[[#This Row],[8. New embedded network site name*\n(input: text)]]=\"\",\"\",Table22[[#This Row],[8. New embedded network site name*\n(input: text)]])","v":""}]
[{"$f":"IF(Table22[[#This Row],[5. New embedded network site address*\n(input: alpha-numeric )]]=\"\",\"\",Table22[[#This Row],[5. New embedded network site address*\n(input: alpha-numeric )]])","v":""},{"$f":"IF(Table22[[#This Row],[8. New embedded network site name*\n(input: text)]]=\"\",\"\",Table22[[#This Row],[8. New embedded network site name*\n(input: text)]])","v":""}]
[{"$f":"IF(Table22[[#This Row],[5. New embedded network site address*\n(input: alpha-numeric )]]=\"\",\"\",Table22[[#This Row],[5. New embedded network site address*\n(input: alpha-numeric )]])","v":""},{"$f":"IF(Table22[[#This Row],[8. New embedded network site name*\n(input: text)]]=\"\",\"\",Table22[[#This Row],[8. New embedded network site name*\n(input: text)]])","v":""}]
[{"$f":"IF(Table22[[#This Row],[5. New embedded network site address*\n(input: alpha-numeric )]]=\"\",\"\",Table22[[#This Row],[5. New embedded network site address*\n(input: alpha-numeric )]])","v":""},{"$f":"IF(Table22[[#This Row],[8. New embedded network site name*\n(input: text)]]=\"\",\"\",Table22[[#This Row],[8. New embedded network site name*\n(input: text)]])","v":""}]
[{"$f":"IF(Table22[[#This Row],[5. New embedded network site address*\n(input: alpha-numeric )]]=\"\",\"\",Table22[[#This Row],[5. New embedded network site address*\n(input: alpha-numeric )]])","v":""},{"$f":"IF(Table22[[#This Row],[8. New embedded network site name*\n(input: text)]]=\"\",\"\",Table22[[#This Row],[8. New embedded network site name*\n(input: text)]])","v":""}]
[{"$f":"IF(Table22[[#This Row],[5. New embedded network site address*\n(input: alpha-numeric )]]=\"\",\"\",Table22[[#This Row],[5. New embedded network site address*\n(input: alpha-numeric )]])","v":""},{"$f":"IF(Table22[[#This Row],[8. New embedded network site name*\n(input: text)]]=\"\",\"\",Table22[[#This Row],[8. New embedded network site name*\n(input: text)]])","v":""}]
[{"$f":"IF(Table22[[#This Row],[5. New embedded network site address*\n(input: alpha-numeric )]]=\"\",\"\",Table22[[#This Row],[5. New embedded network site address*\n(input: alpha-numeric )]])","v":""},{"$f":"IF(Table22[[#This Row],[8. New embedded network site name*\n(input: text)]]=\"\",\"\",Table22[[#This Row],[8. New embedded network site name*\n(input: text)]])","v":""}]
[{"$f":"IF(Table22[[#This Row],[5. New embedded network site address*\n(input: alpha-numeric )]]=\"\",\"\",Table22[[#This Row],[5. New embedded network site address*\n(input: alpha-numeric )]])","v":""},{"$f":"IF(Table22[[#This Row],[8. New embedded network site name*\n(input: text)]]=\"\",\"\",Table22[[#This Row],[8. New embedded network site name*\n(input: text)]])","v":""}]
[{"$f":"IF(Table22[[#This Row],[5. New embedded network site address*\n(input: alpha-numeric )]]=\"\",\"\",Table22[[#This Row],[5. New embedded network site address*\n(input: alpha-numeric )]])","v":""},{"$f":"IF(Table22[[#This Row],[8. New embedded network site name*\n(input: text)]]=\"\",\"\",Table22[[#This Row],[8. New embedded network site name*\n(input: text)]])","v":""}]
[{"$f":"IF(Table22[[#This Row],[5. New embedded network site address*\n(input: alpha-numeric )]]=\"\",\"\",Table22[[#This Row],[5. New embedded network site address*\n(input: alpha-numeric )]])","v":""},{"$f":"IF(Table22[[#This Row],[8. New embedded network site name*\n(input: text)]]=\"\",\"\",Table22[[#This Row],[8. New embedded network site name*\n(input: text)]])","v":""}]
[{"$f":"IF(Table22[[#This Row],[5. New embedded network site address*\n(input: alpha-numeric )]]=\"\",\"\",Table22[[#This Row],[5. New embedded network site address*\n(input: alpha-numeric )]])","v":""},{"$f":"IF(Table22[[#This Row],[8. New embedded network site name*\n(input: text)]]=\"\",\"\",Table22[[#This Row],[8. New embedded network site name*\n(input: text)]])","v":""}]
[{"$f":"IF(Table22[[#This Row],[5. New embedded network site address*\n(input: alpha-numeric )]]=\"\",\"\",Table22[[#This Row],[5. New embedded network site address*\n(input: alpha-numeric )]])","v":""},{"$f":"IF(Table22[[#This Row],[8. New embedded network site name*\n(input: text)]]=\"\",\"\",Table22[[#This Row],[8. New embedded network site name*\n(input: text)]])","v":""}]
[{"$f":"IF(Table22[[#This Row],[5. New embedded network site address*\n(input: alpha-numeric )]]=\"\",\"\",Table22[[#This Row],[5. New embedded network site address*\n(input: alpha-numeric )]])","v":""},{"$f":"IF(Table22[[#This Row],[8. New embedded network site name*\n(input: text)]]=\"\",\"\",Table22[[#This Row],[8. New embedded network site name*\n(input: text)]])","v":""}]
[{"$f":"IF(Table22[[#This Row],[5. New embedded network site address*\n(input: alpha-numeric )]]=\"\",\"\",Table22[[#This Row],[5. New embedded network site address*\n(input: alpha-numeric )]])","v":""},{"$f":"IF(Table22[[#This Row],[8. New embedded network site name*\n(input: text)]]=\"\",\"\",Table22[[#This Row],[8. New embedded network site name*\n(input: text)]])","v":""}]
[{"$f":"IF(Table22[[#This Row],[5. New embedded network site address*\n(input: alpha-numeric )]]=\"\",\"\",Table22[[#This Row],[5. New embedded network site address*\n(input: alpha-numeric )]])","v":""},{"$f":"IF(Table22[[#This Row],[8. New embedded network site name*\n(input: text)]]=\"\",\"\",Table22[[#This Row],[8. New embedded network site name*\n(input: text)]])","v":""}]
[{"$f":"IF(Table22[[#This Row],[5. New embedded network site address*\n(input: alpha-numeric )]]=\"\",\"\",Table22[[#This Row],[5. New embedded network site address*\n(input: alpha-numeric )]])","v":""},{"$f":"IF(Table22[[#This Row],[8. New embedded network site name*\n(input: text)]]=\"\",\"\",Table22[[#This Row],[8. New embedded network site name*\n(input: text)]])","v":""}]
[{"$f":"IF(Table22[[#This Row],[5. New embedded network site address*\n(input: alpha-numeric )]]=\"\",\"\",Table22[[#This Row],[5. New embedded network site address*\n(input: alpha-numeric )]])","v":""},{"$f":"IF(Table22[[#This Row],[8. New embedded network site name*\n(input: text)]]=\"\",\"\",Table22[[#This Row],[8. New embedded network site name*\n(input: text)]])","v":""}]
[{"$f":"IF(Table22[[#This Row],[5. New embedded network site address*\n(input: alpha-numeric )]]=\"\",\"\",Table22[[#This Row],[5. New embedded network site address*\n(input: alpha-numeric )]])","v":""},{"$f":"IF(Table22[[#This Row],[8. New embedded network site name*\n(input: text)]]=\"\",\"\",Table22[[#This Row],[8. New embedded network site name*\n(input: text)]])","v":""}]
[{"$f":"IF(Table22[[#This Row],[5. New embedded network site address*\n(input: alpha-numeric )]]=\"\",\"\",Table22[[#This Row],[5. New embedded network site address*\n(input: alpha-numeric )]])","v":""},{"$f":"IF(Table22[[#This Row],[8. New embedded network site name*\n(input: text)]]=\"\",\"\",Table22[[#This Row],[8. New embedded network site name*\n(input: text)]])","v":""}]
[{"$f":"IF(Table22[[#This Row],[5. New embedded network site address*\n(input: alpha-numeric )]]=\"\",\"\",Table22[[#This Row],[5. New embedded network site address*\n(input: alpha-numeric )]])","v":""},{"$f":"IF(Table22[[#This Row],[8. New embedded network site name*\n(input: text)]]=\"\",\"\",Table22[[#This Row],[8. New embedded network site name*\n(input: text)]])","v":""}]
[{"$f":"IF(Table22[[#This Row],[5. New embedded network site address*\n(input: alpha-numeric )]]=\"\",\"\",Table22[[#This Row],[5. New embedded network site address*\n(input: alpha-numeric )]])","v":""},{"$f":"IF(Table22[[#This Row],[8. New embedded network site name*\n(input: text)]]=\"\",\"\",Table22[[#This Row],[8. New embedded network site name*\n(input: text)]])","v":""}]
[{"$f":"IF(Table22[[#This Row],[5. New embedded network site address*\n(input: alpha-numeric )]]=\"\",\"\",Table22[[#This Row],[5. New embedded network site address*\n(input: alpha-numeric )]])","v":""},{"$f":"IF(Table22[[#This Row],[8. New embedded network site name*\n(input: text)]]=\"\",\"\",Table22[[#This Row],[8. New embedded network site name*\n(input: text)]])","v":""}]
[{"$f":"IF(Table22[[#This Row],[5. New embedded network site address*\n(input: alpha-numeric )]]=\"\",\"\",Table22[[#This Row],[5. New embedded network site address*\n(input: alpha-numeric )]])","v":""},{"$f":"IF(Table22[[#This Row],[8. New embedded network site name*\n(input: text)]]=\"\",\"\",Table22[[#This Row],[8. New embedded network site name*\n(input: text)]])","v":""}]
[{"$f":"IF(Table22[[#This Row],[5. New embedded network site address*\n(input: alpha-numeric )]]=\"\",\"\",Table22[[#This Row],[5. New embedded network site address*\n(input: alpha-numeric )]])","v":""},{"$f":"IF(Table22[[#This Row],[8. New embedded network site name*\n(input: text)]]=\"\",\"\",Table22[[#This Row],[8. New embedded network site name*\n(input: text)]])","v":""}]
[{"$f":"IF(Table22[[#This Row],[5. New embedded network site address*\n(input: alpha-numeric )]]=\"\",\"\",Table22[[#This Row],[5. New embedded network site address*\n(input: alpha-numeric )]])","v":""},{"$f":"IF(Table22[[#This Row],[8. New embedded network site name*\n(input: text)]]=\"\",\"\",Table22[[#This Row],[8. New embedded network site name*\n(input: text)]])","v":""}]
[{"$f":"IF(Table22[[#This Row],[5. New embedded network site address*\n(input: alpha-numeric )]]=\"\",\"\",Table22[[#This Row],[5. New embedded network site address*\n(input: alpha-numeric )]])","v":""},{"$f":"IF(Table22[[#This Row],[8. New embedded network site name*\n(input: text)]]=\"\",\"\",Table22[[#This Row],[8. New embedded network site name*\n(input: text)]])","v":""}]
[{"$f":"IF(Table22[[#This Row],[5. New embedded network site address*\n(input: alpha-numeric )]]=\"\",\"\",Table22[[#This Row],[5. New embedded network site address*\n(input: alpha-numeric )]])","v":""},{"$f":"IF(Table22[[#This Row],[8. New embedded network site name*\n(input: text)]]=\"\",\"\",Table22[[#This Row],[8. New embedded network site name*\n(input: text)]])","v":""}]
[{"$f":"IF(Table22[[#This Row],[5. New embedded network site address*\n(input: alpha-numeric )]]=\"\",\"\",Table22[[#This Row],[5. New embedded network site address*\n(input: alpha-numeric )]])","v":""},{"$f":"IF(Table22[[#This Row],[8. New embedded network site name*\n(input: text)]]=\"\",\"\",Table22[[#This Row],[8. New embedded network site name*\n(input: text)]])","v":""}]
[{"$f":"IF(Table22[[#This Row],[5. New embedded network site address*\n(input: alpha-numeric )]]=\"\",\"\",Table22[[#This Row],[5. New embedded network site address*\n(input: alpha-numeric )]])","v":""},{"$f":"IF(Table22[[#This Row],[8. New embedded network site name*\n(input: text)]]=\"\",\"\",Table22[[#This Row],[8. New embedded network site name*\n(input: text)]])","v":""}]
[{"$f":"IF(Table22[[#This Row],[5. New embedded network site address*\n(input: alpha-numeric )]]=\"\",\"\",Table22[[#This Row],[5. New embedded network site address*\n(input: alpha-numeric )]])","v":""},{"$f":"IF(Table22[[#This Row],[8. New embedded network site name*\n(input: text)]]=\"\",\"\",Table22[[#This Row],[8. New embedded network site name*\n(input: text)]])","v":""}]
[{"$f":"IF(Table22[[#This Row],[5. New embedded network site address*\n(input: alpha-numeric )]]=\"\",\"\",Table22[[#This Row],[5. New embedded network site address*\n(input: alpha-numeric )]])","v":""},{"$f":"IF(Table22[[#This Row],[8. New embedded network site name*\n(input: text)]]=\"\",\"\",Table22[[#This Row],[8. New embedded network site name*\n(input: text)]])","v":""}]
[{"$f":"IF(Table22[[#This Row],[5. New embedded network site address*\n(input: alpha-numeric )]]=\"\",\"\",Table22[[#This Row],[5. New embedded network site address*\n(input: alpha-numeric )]])","v":""},{"$f":"IF(Table22[[#This Row],[8. New embedded network site name*\n(input: text)]]=\"\",\"\",Table22[[#This Row],[8. New embedded network site name*\n(input: text)]])","v":""}]
[{"$f":"IF(Table22[[#This Row],[5. New embedded network site address*\n(input: alpha-numeric )]]=\"\",\"\",Table22[[#This Row],[5. New embedded network site address*\n(input: alpha-numeric )]])","v":""},{"$f":"IF(Table22[[#This Row],[8. New embedded network site name*\n(input: text)]]=\"\",\"\",Table22[[#This Row],[8. New embedded network site name*\n(input: text)]])","v":""}]
[{"$f":"IF(Table22[[#This Row],[5. New embedded network site address*\n(input: alpha-numeric )]]=\"\",\"\",Table22[[#This Row],[5. New embedded network site address*\n(input: alpha-numeric )]])","v":""},{"$f":"IF(Table22[[#This Row],[8. New embedded network site name*\n(input: text)]]=\"\",\"\",Table22[[#This Row],[8. New embedded network site name*\n(input: text)]])","v":""}]
[{"$f":"IF(Table22[[#This Row],[5. New embedded network site address*\n(input: alpha-numeric )]]=\"\",\"\",Table22[[#This Row],[5. New embedded network site address*\n(input: alpha-numeric )]])","v":""},{"$f":"IF(Table22[[#This Row],[8. New embedded network site name*\n(input: text)]]=\"\",\"\",Table22[[#This Row],[8. New embedded network site name*\n(input: text)]])","v":""}]
[{"$f":"IF(Table22[[#This Row],[5. New embedded network site address*\n(input: alpha-numeric )]]=\"\",\"\",Table22[[#This Row],[5. New embedded network site address*\n(input: alpha-numeric )]])","v":""},{"$f":"IF(Table22[[#This Row],[8. New embedded network site name*\n(input: text)]]=\"\",\"\",Table22[[#This Row],[8. New embedded network site name*\n(input: text)]])","v":""}]
[{"$f":"IF(Table22[[#This Row],[5. New embedded network site address*\n(input: alpha-numeric )]]=\"\",\"\",Table22[[#This Row],[5. New embedded network site address*\n(input: alpha-numeric )]])","v":""},{"$f":"IF(Table22[[#This Row],[8. New embedded network site name*\n(input: text)]]=\"\",\"\",Table22[[#This Row],[8. New embedded network site name*\n(input: text)]])","v":""}]
[{"$f":"IF(Table22[[#This Row],[5. New embedded network site address*\n(input: alpha-numeric )]]=\"\",\"\",Table22[[#This Row],[5. New embedded network site address*\n(input: alpha-numeric )]])","v":""},{"$f":"IF(Table22[[#This Row],[8. New embedded network site name*\n(input: text)]]=\"\",\"\",Table22[[#This Row],[8. New embedded network site name*\n(input: text)]])","v":""}]
[{"$f":"IF(Table22[[#This Row],[5. New embedded network site address*\n(input: alpha-numeric )]]=\"\",\"\",Table22[[#This Row],[5. New embedded network site address*\n(input: alpha-numeric )]])","v":""},{"$f":"IF(Table22[[#This Row],[8. New embedded network site name*\n(input: text)]]=\"\",\"\",Table22[[#This Row],[8. New embedded network site name*\n(input: text)]])","v":""}]
[{"$f":"IF(Table22[[#This Row],[5. New embedded network site address*\n(input: alpha-numeric )]]=\"\",\"\",Table22[[#This Row],[5. New embedded network site address*\n(input: alpha-numeric )]])","v":""},{"$f":"IF(Table22[[#This Row],[8. New embedded network site name*\n(input: text)]]=\"\",\"\",Table22[[#This Row],[8. New embedded network site name*\n(input: text)]])","v":""}]
[{"$f":"IF(Table22[[#This Row],[5. New embedded network site address*\n(input: alpha-numeric )]]=\"\",\"\",Table22[[#This Row],[5. New embedded network site address*\n(input: alpha-numeric )]])","v":""},{"$f":"IF(Table22[[#This Row],[8. New embedded network site name*\n(input: text)]]=\"\",\"\",Table22[[#This Row],[8. New embedded network site name*\n(input: text)]])","v":""}]
[{"$f":"IF(Table22[[#This Row],[5. New embedded network site address*\n(input: alpha-numeric )]]=\"\",\"\",Table22[[#This Row],[5. New embedded network site address*\n(input: alpha-numeric )]])","v":""},{"$f":"IF(Table22[[#This Row],[8. New embedded network site name*\n(input: text)]]=\"\",\"\",Table22[[#This Row],[8. New embedded network site name*\n(input: text)]])","v":""}]
[{"$f":"IF(Table22[[#This Row],[5. New embedded network site address*\n(input: alpha-numeric )]]=\"\",\"\",Table22[[#This Row],[5. New embedded network site address*\n(input: alpha-numeric )]])","v":""},{"$f":"IF(Table22[[#This Row],[8. New embedded network site name*\n(input: text)]]=\"\",\"\",Table22[[#This Row],[8. New embedded network site name*\n(input: text)]])","v":""}]
[{"$f":"IF(Table22[[#This Row],[5. New embedded network site address*\n(input: alpha-numeric )]]=\"\",\"\",Table22[[#This Row],[5. New embedded network site address*\n(input: alpha-numeric )]])","v":""},{"$f":"IF(Table22[[#This Row],[8. New embedded network site name*\n(input: text)]]=\"\",\"\",Table22[[#This Row],[8. New embedded network site name*\n(input: text)]])","v":""}]
[{"$f":"IF(Table22[[#This Row],[5. New embedded network site address*\n(input: alpha-numeric )]]=\"\",\"\",Table22[[#This Row],[5. New embedded network site address*\n(input: alpha-numeric )]])","v":""},{"$f":"IF(Table22[[#This Row],[8. New embedded network site name*\n(input: text)]]=\"\",\"\",Table22[[#This Row],[8. New embedded network site name*\n(input: text)]])","v":""}]
[{"$f":"IF(Table22[[#This Row],[5. New embedded network site address*\n(input: alpha-numeric )]]=\"\",\"\",Table22[[#This Row],[5. New embedded network site address*\n(input: alpha-numeric )]])","v":""},{"$f":"IF(Table22[[#This Row],[8. New embedded network site name*\n(input: text)]]=\"\",\"\",Table22[[#This Row],[8. New embedded network site name*\n(input: text)]])","v":""}]
[{"$f":"IF(Table22[[#This Row],[5. New embedded network site address*\n(input: alpha-numeric )]]=\"\",\"\",Table22[[#This Row],[5. New embedded network site address*\n(input: alpha-numeric )]])","v":""},{"$f":"IF(Table22[[#This Row],[8. New embedded network site name*\n(input: text)]]=\"\",\"\",Table22[[#This Row],[8. New embedded network site name*\n(input: text)]])","v":""}]
[{"$f":"IF(Table22[[#This Row],[5. New embedded network site address*\n(input: alpha-numeric )]]=\"\",\"\",Table22[[#This Row],[5. New embedded network site address*\n(input: alpha-numeric )]])","v":""},{"$f":"IF(Table22[[#This Row],[8. New embedded network site name*\n(input: text)]]=\"\",\"\",Table22[[#This Row],[8. New embedded network site name*\n(input: text)]])","v":""}]
[{"$f":"IF(Table22[[#This Row],[5. New embedded network site address*\n(input: alpha-numeric )]]=\"\",\"\",Table22[[#This Row],[5. New embedded network site address*\n(input: alpha-numeric )]])","v":""},{"$f":"IF(Table22[[#This Row],[8. New embedded network site name*\n(input: text)]]=\"\",\"\",Table22[[#This Row],[8. New embedded network site name*\n(input: text)]])","v":""}]
[{"$f":"IF(Table22[[#This Row],[5. New embedded network site address*\n(input: alpha-numeric )]]=\"\",\"\",Table22[[#This Row],[5. New embedded network site address*\n(input: alpha-numeric )]])","v":""},{"$f":"IF(Table22[[#This Row],[8. New embedded network site name*\n(input: text)]]=\"\",\"\",Table22[[#This Row],[8. New embedded network site name*\n(input: text)]])","v":""}]
[{"$f":"IF(Table22[[#This Row],[5. New embedded network site address*\n(input: alpha-numeric )]]=\"\",\"\",Table22[[#This Row],[5. New embedded network site address*\n(input: alpha-numeric )]])","v":""},{"$f":"IF(Table22[[#This Row],[8. New embedded network site name*\n(input: text)]]=\"\",\"\",Table22[[#This Row],[8. New embedded network site name*\n(input: text)]])","v":""}]
[{"$f":"IF(Table22[[#This Row],[5. New embedded network site address*\n(input: alpha-numeric )]]=\"\",\"\",Table22[[#This Row],[5. New embedded network site address*\n(input: alpha-numeric )]])","v":""},{"$f":"IF(Table22[[#This Row],[8. New embedded network site name*\n(input: text)]]=\"\",\"\",Table22[[#This Row],[8. New embedded network site name*\n(input: text)]])","v":""}]
[{"$f":"IF(Table22[[#This Row],[5. New embedded network site address*\n(input: alpha-numeric )]]=\"\",\"\",Table22[[#This Row],[5. New embedded network site address*\n(input: alpha-numeric )]])","v":""},{"$f":"IF(Table22[[#This Row],[8. New embedded network site name*\n(input: text)]]=\"\",\"\",Table22[[#This Row],[8. New embedded network site name*\n(input: text)]])","v":""}]
[{"$f":"IF(Table22[[#This Row],[5. New embedded network site address*\n(input: alpha-numeric )]]=\"\",\"\",Table22[[#This Row],[5. New embedded network site address*\n(input: alpha-numeric )]])","v":""},{"$f":"IF(Table22[[#This Row],[8. New embedded network site name*\n(input: text)]]=\"\",\"\",Table22[[#This Row],[8. New embedded network site name*\n(input: text)]])","v":""}]
[{"$f":"IF(Table22[[#This Row],[5. New embedded network site address*\n(input: alpha-numeric )]]=\"\",\"\",Table22[[#This Row],[5. New embedded network site address*\n(input: alpha-numeric )]])","v":""},{"$f":"IF(Table22[[#This Row],[8. New embedded network site name*\n(input: text)]]=\"\",\"\",Table22[[#This Row],[8. New embedded network site name*\n(input: text)]])","v":""}]
[{"$f":"IF(Table22[[#This Row],[5. New embedded network site address*\n(input: alpha-numeric )]]=\"\",\"\",Table22[[#This Row],[5. New embedded network site address*\n(input: alpha-numeric )]])","v":""},{"$f":"IF(Table22[[#This Row],[8. New embedded network site name*\n(input: text)]]=\"\",\"\",Table22[[#This Row],[8. New embedded network site name*\n(input: text)]])","v":""}]
[{"$f":"IF(Table22[[#This Row],[5. New embedded network site address*\n(input: alpha-numeric )]]=\"\",\"\",Table22[[#This Row],[5. New embedded network site address*\n(input: alpha-numeric )]])","v":""},{"$f":"IF(Table22[[#This Row],[8. New embedded network site name*\n(input: text)]]=\"\",\"\",Table22[[#This Row],[8. New embedded network site name*\n(input: text)]])","v":""}]
[{"$f":"IF(Table22[[#This Row],[5. New embedded network site address*\n(input: alpha-numeric )]]=\"\",\"\",Table22[[#This Row],[5. New embedded network site address*\n(input: alpha-numeric )]])","v":""},{"$f":"IF(Table22[[#This Row],[8. New embedded network site name*\n(input: text)]]=\"\",\"\",Table22[[#This Row],[8. New embedded network site name*\n(input: text)]])","v":""}]
[{"$f":"IF(Table22[[#This Row],[5. New embedded network site address*\n(input: alpha-numeric )]]=\"\",\"\",Table22[[#This Row],[5. New embedded network site address*\n(input: alpha-numeric )]])","v":""},{"$f":"IF(Table22[[#This Row],[8. New embedded network site name*\n(input: text)]]=\"\",\"\",Table22[[#This Row],[8. New embedded network site name*\n(input: text)]])","v":""}]
[{"$f":"IF(Table22[[#This Row],[5. New embedded network site address*\n(input: alpha-numeric )]]=\"\",\"\",Table22[[#This Row],[5. New embedded network site address*\n(input: alpha-numeric )]])","v":""},{"$f":"IF(Table22[[#This Row],[8. New embedded network site name*\n(input: text)]]=\"\",\"\",Table22[[#This Row],[8. New embedded network site name*\n(input: text)]])","v":""}]
[{"$f":"IF(Table22[[#This Row],[5. New embedded network site address*\n(input: alpha-numeric )]]=\"\",\"\",Table22[[#This Row],[5. New embedded network site address*\n(input: alpha-numeric )]])","v":""},{"$f":"IF(Table22[[#This Row],[8. New embedded network site name*\n(input: text)]]=\"\",\"\",Table22[[#This Row],[8. New embedded network site name*\n(input: text)]])","v":""}]
[{"$f":"IF(Table22[[#This Row],[5. New embedded network site address*\n(input: alpha-numeric )]]=\"\",\"\",Table22[[#This Row],[5. New embedded network site address*\n(input: alpha-numeric )]])","v":""},{"$f":"IF(Table22[[#This Row],[8. New embedded network site name*\n(input: text)]]=\"\",\"\",Table22[[#This Row],[8. New embedded network site name*\n(input: text)]])","v":""}]
[{"$f":"IF(Table22[[#This Row],[5. New embedded network site address*\n(input: alpha-numeric )]]=\"\",\"\",Table22[[#This Row],[5. New embedded network site address*\n(input: alpha-numeric )]])","v":""},{"$f":"IF(Table22[[#This Row],[8. New embedded network site name*\n(input: text)]]=\"\",\"\",Table22[[#This Row],[8. New embedded network site name*\n(input: text)]])","v":""}]
[{"$f":"IF(Table22[[#This Row],[5. New embedded network site address*\n(input: alpha-numeric )]]=\"\",\"\",Table22[[#This Row],[5. New embedded network site address*\n(input: alpha-numeric )]])","v":""},{"$f":"IF(Table22[[#This Row],[8. New embedded network site name*\n(input: text)]]=\"\",\"\",Table22[[#This Row],[8. New embedded network site name*\n(input: text)]])","v":""}]
[{"$f":"IF(Table22[[#This Row],[5. New embedded network site address*\n(input: alpha-numeric )]]=\"\",\"\",Table22[[#This Row],[5. New embedded network site address*\n(input: alpha-numeric )]])","v":""},{"$f":"IF(Table22[[#This Row],[8. New embedded network site name*\n(input: text)]]=\"\",\"\",Table22[[#This Row],[8. New embedded network site name*\n(input: text)]])","v":""}]
[{"$f":"IF(Table22[[#This Row],[5. New embedded network site address*\n(input: alpha-numeric )]]=\"\",\"\",Table22[[#This Row],[5. New embedded network site address*\n(input: alpha-numeric )]])","v":""},{"$f":"IF(Table22[[#This Row],[8. New embedded network site name*\n(input: text)]]=\"\",\"\",Table22[[#This Row],[8. New embedded network site name*\n(input: text)]])","v":""}]
[{"$f":"IF(Table22[[#This Row],[5. New embedded network site address*\n(input: alpha-numeric )]]=\"\",\"\",Table22[[#This Row],[5. New embedded network site address*\n(input: alpha-numeric )]])","v":""},{"$f":"IF(Table22[[#This Row],[8. New embedded network site name*\n(input: text)]]=\"\",\"\",Table22[[#This Row],[8. New embedded network site name*\n(input: text)]])","v":""}]
[{"$f":"IF(Table22[[#This Row],[5. New embedded network site address*\n(input: alpha-numeric )]]=\"\",\"\",Table22[[#This Row],[5. New embedded network site address*\n(input: alpha-numeric )]])","v":""},{"$f":"IF(Table22[[#This Row],[8. New embedded network site name*\n(input: text)]]=\"\",\"\",Table22[[#This Row],[8. New embedded network site name*\n(input: text)]])","v":""}]
[{"$f":"IF(Table22[[#This Row],[5. New embedded network site address*\n(input: alpha-numeric )]]=\"\",\"\",Table22[[#This Row],[5. New embedded network site address*\n(input: alpha-numeric )]])","v":""},{"$f":"IF(Table22[[#This Row],[8. New embedded network site name*\n(input: text)]]=\"\",\"\",Table22[[#This Row],[8. New embedded network site name*\n(input: text)]])","v":""}]
[{"$f":"IF(Table22[[#This Row],[5. New embedded network site address*\n(input: alpha-numeric )]]=\"\",\"\",Table22[[#This Row],[5. New embedded network site address*\n(input: alpha-numeric )]])","v":""},{"$f":"IF(Table22[[#This Row],[8. New embedded network site name*\n(input: text)]]=\"\",\"\",Table22[[#This Row],[8. New embedded network site name*\n(input: text)]])","v":""}]
[{"$f":"IF(Table22[[#This Row],[5. New embedded network site address*\n(input: alpha-numeric )]]=\"\",\"\",Table22[[#This Row],[5. New embedded network site address*\n(input: alpha-numeric )]])","v":""},{"$f":"IF(Table22[[#This Row],[8. New embedded network site name*\n(input: text)]]=\"\",\"\",Table22[[#This Row],[8. New embedded network site name*\n(input: text)]])","v":""}]
[{"$f":"IF(Table22[[#This Row],[5. New embedded network site address*\n(input: alpha-numeric )]]=\"\",\"\",Table22[[#This Row],[5. New embedded network site address*\n(input: alpha-numeric )]])","v":""},{"$f":"IF(Table22[[#This Row],[8. New embedded network site name*\n(input: text)]]=\"\",\"\",Table22[[#This Row],[8. New embedded network site name*\n(input: text)]])","v":""}]
[{"$f":"IF(Table22[[#This Row],[5. New embedded network site address*\n(input: alpha-numeric )]]=\"\",\"\",Table22[[#This Row],[5. New embedded network site address*\n(input: alpha-numeric )]])","v":""},{"$f":"IF(Table22[[#This Row],[8. New embedded network site name*\n(input: text)]]=\"\",\"\",Table22[[#This Row],[8. New embedded network site name*\n(input: text)]])","v":""}]
[{"$f":"IF(Table22[[#This Row],[5. New embedded network site address*\n(input: alpha-numeric )]]=\"\",\"\",Table22[[#This Row],[5. New embedded network site address*\n(input: alpha-numeric )]])","v":""},{"$f":"IF(Table22[[#This Row],[8. New embedded network site name*\n(input: text)]]=\"\",\"\",Table22[[#This Row],[8. New embedded network site name*\n(input: text)]])","v":""}]
[{"$f":"IF(Table22[[#This Row],[5. New embedded network site address*\n(input: alpha-numeric )]]=\"\",\"\",Table22[[#This Row],[5. New embedded network site address*\n(input: alpha-numeric )]])","v":""},{"$f":"IF(Table22[[#This Row],[8. New embedded network site name*\n(input: text)]]=\"\",\"\",Table22[[#This Row],[8. New embedded network site name*\n(input: text)]])","v":""}]
[{"$f":"IF(Table22[[#This Row],[5. New embedded network site address*\n(input: alpha-numeric )]]=\"\",\"\",Table22[[#This Row],[5. New embedded network site address*\n(input: alpha-numeric )]])","v":""},{"$f":"IF(Table22[[#This Row],[8. New embedded network site name*\n(input: text)]]=\"\",\"\",Table22[[#This Row],[8. New embedded network site name*\n(input: text)]])","v":""}]
[{"$f":"IF(Table22[[#This Row],[5. New embedded network site address*\n(input: alpha-numeric )]]=\"\",\"\",Table22[[#This Row],[5. New embedded network site address*\n(input: alpha-numeric )]])","v":""},{"$f":"IF(Table22[[#This Row],[8. New embedded network site name*\n(input: text)]]=\"\",\"\",Table22[[#This Row],[8. New embedded network site name*\n(input: text)]])","v":""}]
[{"$f":"IF(Table22[[#This Row],[5. New embedded network site address*\n(input: alpha-numeric )]]=\"\",\"\",Table22[[#This Row],[5. New embedded network site address*\n(input: alpha-numeric )]])","v":""},{"$f":"IF(Table22[[#This Row],[8. New embedded network site name*\n(input: text)]]=\"\",\"\",Table22[[#This Row],[8. New embedded network site name*\n(input: text)]])","v":""}]
[{"$f":"IF(Table22[[#This Row],[5. New embedded network site address*\n(input: alpha-numeric )]]=\"\",\"\",Table22[[#This Row],[5. New embedded network site address*\n(input: alpha-numeric )]])","v":""},{"$f":"IF(Table22[[#This Row],[8. New embedded network site name*\n(input: text)]]=\"\",\"\",Table22[[#This Row],[8. New embedded network site name*\n(input: text)]])","v":""}]
[{"$f":"IF(Table22[[#This Row],[5. New embedded network site address*\n(input: alpha-numeric )]]=\"\",\"\",Table22[[#This Row],[5. New embedded network site address*\n(input: alpha-numeric )]])","v":""},{"$f":"IF(Table22[[#This Row],[8. New embedded network site name*\n(input: text)]]=\"\",\"\",Table22[[#This Row],[8. New embedded network site name*\n(input: text)]])","v":""}]
[{"$f":"IF(Table22[[#This Row],[5. New embedded network site address*\n(input: alpha-numeric )]]=\"\",\"\",Table22[[#This Row],[5. New embedded network site address*\n(input: alpha-numeric )]])","v":""},{"$f":"IF(Table22[[#This Row],[8. New embedded network site name*\n(input: text)]]=\"\",\"\",Table22[[#This Row],[8. New embedded network site name*\n(input: text)]])","v":""}]
[{"$f":"IF(Table22[[#This Row],[5. New embedded network site address*\n(input: alpha-numeric )]]=\"\",\"\",Table22[[#This Row],[5. New embedded network site address*\n(input: alpha-numeric )]])","v":""},{"$f":"IF(Table22[[#This Row],[8. New embedded network site name*\n(input: text)]]=\"\",\"\",Table22[[#This Row],[8. New embedded network site name*\n(input: text)]])","v":""}]
[{"$f":"IF(Table22[[#This Row],[5. New embedded network site address*\n(input: alpha-numeric )]]=\"\",\"\",Table22[[#This Row],[5. New embedded network site address*\n(input: alpha-numeric )]])","v":""},{"$f":"IF(Table22[[#This Row],[8. New embedded network site name*\n(input: text)]]=\"\",\"\",Table22[[#This Row],[8. New embedded network site name*\n(input: text)]])","v":""}]
[{"$f":"IF(Table22[[#This Row],[5. New embedded network site address*\n(input: alpha-numeric )]]=\"\",\"\",Table22[[#This Row],[5. New embedded network site address*\n(input: alpha-numeric )]])","v":""},{"$f":"IF(Table22[[#This Row],[8. New embedded network site name*\n(input: text)]]=\"\",\"\",Table22[[#This Row],[8. New embedded network site name*\n(input: text)]])","v":""}]
[{"$f":"IF(Table22[[#This Row],[5. New embedded network site address*\n(input: alpha-numeric )]]=\"\",\"\",Table22[[#This Row],[5. New embedded network site address*\n(input: alpha-numeric )]])","v":""},{"$f":"IF(Table22[[#This Row],[8. New embedded network site name*\n(input: text)]]=\"\",\"\",Table22[[#This Row],[8. New embedded network site name*\n(input: text)]])","v":""}]
[{"$f":"IF(Table22[[#This Row],[5. New embedded network site address*\n(input: alpha-numeric )]]=\"\",\"\",Table22[[#This Row],[5. New embedded network site address*\n(input: alpha-numeric )]])","v":""},{"$f":"IF(Table22[[#This Row],[8. New embedded network site name*\n(input: text)]]=\"\",\"\",Table22[[#This Row],[8. New embedded network site name*\n(input: text)]])","v":""}]
[{"$f":"IF(Table22[[#This Row],[5. New embedded network site address*\n(input: alpha-numeric )]]=\"\",\"\",Table22[[#This Row],[5. New embedded network site address*\n(input: alpha-numeric )]])","v":""},{"$f":"IF(Table22[[#This Row],[8. New embedded network site name*\n(input: text)]]=\"\",\"\",Table22[[#This Row],[8. New embedded network site name*\n(input: text)]])","v":""}]
[{"$f":"IF(Table22[[#This Row],[5. New embedded network site address*\n(input: alpha-numeric )]]=\"\",\"\",Table22[[#This Row],[5. New embedded network site address*\n(input: alpha-numeric )]])","v":""},{"$f":"IF(Table22[[#This Row],[8. New embedded network site name*\n(input: text)]]=\"\",\"\",Table22[[#This Row],[8. New embedded network site name*\n(input: text)]])","v":""}]
[{"$f":"IF(Table22[[#This Row],[5. New embedded network site address*\n(input: alpha-numeric )]]=\"\",\"\",Table22[[#This Row],[5. New embedded network site address*\n(input: alpha-numeric )]])","v":""},{"$f":"IF(Table22[[#This Row],[8. New embedded network site name*\n(input: text)]]=\"\",\"\",Table22[[#This Row],[8. New embedded network site name*\n(input: text)]])","v":""}]
[{"$f":"IF(Table22[[#This Row],[5. New embedded network site address*\n(input: alpha-numeric )]]=\"\",\"\",Table22[[#This Row],[5. New embedded network site address*\n(input: alpha-numeric )]])","v":""},{"$f":"IF(Table22[[#This Row],[8. New embedded network site name*\n(input: text)]]=\"\",\"\",Table22[[#This Row],[8. New embedded network site name*\n(input: text)]])","v":""}]
[{"$f":"IF(Table22[[#This Row],[5. New embedded network site address*\n(input: alpha-numeric )]]=\"\",\"\",Table22[[#This Row],[5. New embedded network site address*\n(input: alpha-numeric )]])","v":""},{"$f":"IF(Table22[[#This Row],[8. New embedded network site name*\n(input: text)]]=\"\",\"\",Table22[[#This Row],[8. New embedded network site name*\n(input: text)]])","v":""}]
[{"$f":"IF(Table22[[#This Row],[5. New embedded network site address*\n(input: alpha-numeric )]]=\"\",\"\",Table22[[#This Row],[5. New embedded network site address*\n(input: alpha-numeric )]])","v":""},{"$f":"IF(Table22[[#This Row],[8. New embedded network site name*\n(input: text)]]=\"\",\"\",Table22[[#This Row],[8. New embedded network site name*\n(input: text)]])","v":""}]
[{"$f":"IF(Table22[[#This Row],[5. New embedded network site address*\n(input: alpha-numeric )]]=\"\",\"\",Table22[[#This Row],[5. New embedded network site address*\n(input: alpha-numeric )]])","v":""},{"$f":"IF(Table22[[#This Row],[8. New embedded network site name*\n(input: text)]]=\"\",\"\",Table22[[#This Row],[8. New embedded network site name*\n(input: text)]])","v":""}]
[{"$f":"IF(Table22[[#This Row],[5. New embedded network site address*\n(input: alpha-numeric )]]=\"\",\"\",Table22[[#This Row],[5. New embedded network site address*\n(input: alpha-numeric )]])","v":""},{"$f":"IF(Table22[[#This Row],[8. New embedded network site name*\n(input: text)]]=\"\",\"\",Table22[[#This Row],[8. New embedded network site name*\n(input: text)]])","v":""}]
[{"$f":"IF(Table22[[#This Row],[5. New embedded network site address*\n(input: alpha-numeric )]]=\"\",\"\",Table22[[#This Row],[5. New embedded network site address*\n(input: alpha-numeric )]])","v":""},{"$f":"IF(Table22[[#This Row],[8. New embedded network site name*\n(input: text)]]=\"\",\"\",Table22[[#This Row],[8. New embedded network site name*\n(input: text)]])","v":""}]
[{"$f":"IF(Table22[[#This Row],[5. New embedded network site address*\n(input: alpha-numeric )]]=\"\",\"\",Table22[[#This Row],[5. New embedded network site address*\n(input: alpha-numeric )]])","v":""},{"$f":"IF(Table22[[#This Row],[8. New embedded network site name*\n(input: text)]]=\"\",\"\",Table22[[#This Row],[8. New embedded network site name*\n(input: text)]])","v":""}]
[{"$f":"IF(Table22[[#This Row],[5. New embedded network site address*\n(input: alpha-numeric )]]=\"\",\"\",Table22[[#This Row],[5. New embedded network site address*\n(input: alpha-numeric )]])","v":""},{"$f":"IF(Table22[[#This Row],[8. New embedded network site name*\n(input: text)]]=\"\",\"\",Table22[[#This Row],[8. New embedded network site name*\n(input: text)]])","v":""}]
[{"$f":"IF(Table22[[#This Row],[5. New embedded network site address*\n(input: alpha-numeric )]]=\"\",\"\",Table22[[#This Row],[5. New embedded network site address*\n(input: alpha-numeric )]])","v":""},{"$f":"IF(Table22[[#This Row],[8. New embedded network site name*\n(input: text)]]=\"\",\"\",Table22[[#This Row],[8. New embedded network site name*\n(input: text)]])","v":""}]
[{"$f":"IF(Table22[[#This Row],[5. New embedded network site address*\n(input: alpha-numeric )]]=\"\",\"\",Table22[[#This Row],[5. New embedded network site address*\n(input: alpha-numeric )]])","v":""},{"$f":"IF(Table22[[#This Row],[8. New embedded network site name*\n(input: text)]]=\"\",\"\",Table22[[#This Row],[8. New embedded network site name*\n(input: text)]])","v":""}]
[{"$f":"IF(Table22[[#This Row],[5. New embedded network site address*\n(input: alpha-numeric )]]=\"\",\"\",Table22[[#This Row],[5. New embedded network site address*\n(input: alpha-numeric )]])","v":""},{"$f":"IF(Table22[[#This Row],[8. New embedded network site name*\n(input: text)]]=\"\",\"\",Table22[[#This Row],[8. New embedded network site name*\n(input: text)]])","v":""}]
[{"$f":"IF(Table22[[#This Row],[5. New embedded network site address*\n(input: alpha-numeric )]]=\"\",\"\",Table22[[#This Row],[5. New embedded network site address*\n(input: alpha-numeric )]])","v":""},{"$f":"IF(Table22[[#This Row],[8. New embedded network site name*\n(input: text)]]=\"\",\"\",Table22[[#This Row],[8. New embedded network site name*\n(input: text)]])","v":""}]
[{"$f":"IF(Table22[[#This Row],[5. New embedded network site address*\n(input: alpha-numeric )]]=\"\",\"\",Table22[[#This Row],[5. New embedded network site address*\n(input: alpha-numeric )]])","v":""},{"$f":"IF(Table22[[#This Row],[8. New embedded network site name*\n(input: text)]]=\"\",\"\",Table22[[#This Row],[8. New embedded network site name*\n(input: text)]])","v":""}]
[{"$f":"IF(Table22[[#This Row],[5. New embedded network site address*\n(input: alpha-numeric )]]=\"\",\"\",Table22[[#This Row],[5. New embedded network site address*\n(input: alpha-numeric )]])","v":""},{"$f":"IF(Table22[[#This Row],[8. New embedded network site name*\n(input: text)]]=\"\",\"\",Table22[[#This Row],[8. New embedded network site name*\n(input: text)]])","v":""}]
[{"$f":"IF(Table22[[#This Row],[5. New embedded network site address*\n(input: alpha-numeric )]]=\"\",\"\",Table22[[#This Row],[5. New embedded network site address*\n(input: alpha-numeric )]])","v":""},{"$f":"IF(Table22[[#This Row],[8. New embedded network site name*\n(input: text)]]=\"\",\"\",Table22[[#This Row],[8. New embedded network site name*\n(input: text)]])","v":""}]
[{"$f":"IF(Table22[[#This Row],[5. New embedded network site address*\n(input: alpha-numeric )]]=\"\",\"\",Table22[[#This Row],[5. New embedded network site address*\n(input: alpha-numeric )]])","v":""},{"$f":"IF(Table22[[#This Row],[8. New embedded network site name*\n(input: text)]]=\"\",\"\",Table22[[#This Row],[8. New embedded network site name*\n(input: text)]])","v":""}]
[{"$f":"IF(Table22[[#This Row],[5. New embedded network site address*\n(input: alpha-numeric )]]=\"\",\"\",Table22[[#This Row],[5. New embedded network site address*\n(input: alpha-numeric )]])","v":""},{"$f":"IF(Table22[[#This Row],[8. New embedded network site name*\n(input: text)]]=\"\",\"\",Table22[[#This Row],[8. New embedded network site name*\n(input: text)]])","v":""}]
[{"$f":"IF(Table22[[#This Row],[5. New embedded network site address*\n(input: alpha-numeric )]]=\"\",\"\",Table22[[#This Row],[5. New embedded network site address*\n(input: alpha-numeric )]])","v":""},{"$f":"IF(Table22[[#This Row],[8. New embedded network site name*\n(input: text)]]=\"\",\"\",Table22[[#This Row],[8. New embedded network site name*\n(input: text)]])","v":""}]
[{"$f":"IF(Table22[[#This Row],[5. New embedded network site address*\n(input: alpha-numeric )]]=\"\",\"\",Table22[[#This Row],[5. New embedded network site address*\n(input: alpha-numeric )]])","v":""},{"$f":"IF(Table22[[#This Row],[8. New embedded network site name*\n(input: text)]]=\"\",\"\",Table22[[#This Row],[8. New embedded network site name*\n(input: text)]])","v":""}]
[{"$f":"IF(Table22[[#This Row],[5. New embedded network site address*\n(input: alpha-numeric )]]=\"\",\"\",Table22[[#This Row],[5. New embedded network site address*\n(input: alpha-numeric )]])","v":""},{"$f":"IF(Table22[[#This Row],[8. New embedded network site name*\n(input: text)]]=\"\",\"\",Table22[[#This Row],[8. New embedded network site name*\n(input: text)]])","v":""}]
[{"$f":"IF(Table22[[#This Row],[5. New embedded network site address*\n(input: alpha-numeric )]]=\"\",\"\",Table22[[#This Row],[5. New embedded network site address*\n(input: alpha-numeric )]])","v":""},{"$f":"IF(Table22[[#This Row],[8. New embedded network site name*\n(input: text)]]=\"\",\"\",Table22[[#This Row],[8. New embedded network site name*\n(input: text)]])","v":""}]
[{"$f":"IF(Table22[[#This Row],[5. New embedded network site address*\n(input: alpha-numeric )]]=\"\",\"\",Table22[[#This Row],[5. New embedded network site address*\n(input: alpha-numeric )]])","v":""},{"$f":"IF(Table22[[#This Row],[8. New embedded network site name*\n(input: text)]]=\"\",\"\",Table22[[#This Row],[8. New embedded network site name*\n(input: text)]])","v":""}]
[{"$f":"IF(Table22[[#This Row],[5. New embedded network site address*\n(input: alpha-numeric )]]=\"\",\"\",Table22[[#This Row],[5. New embedded network site address*\n(input: alpha-numeric )]])","v":""},{"$f":"IF(Table22[[#This Row],[8. New embedded network site name*\n(input: text)]]=\"\",\"\",Table22[[#This Row],[8. New embedded network site name*\n(input: text)]])","v":""}]
[{"$f":"IF(Table22[[#This Row],[5. New embedded network site address*\n(input: alpha-numeric )]]=\"\",\"\",Table22[[#This Row],[5. New embedded network site address*\n(input: alpha-numeric )]])","v":""},{"$f":"IF(Table22[[#This Row],[8. New embedded network site name*\n(input: text)]]=\"\",\"\",Table22[[#This Row],[8. New embedded network site name*\n(input: text)]])","v":""}]
[{"$f":"IF(Table22[[#This Row],[5. New embedded network site address*\n(input: alpha-numeric )]]=\"\",\"\",Table22[[#This Row],[5. New embedded network site address*\n(input: alpha-numeric )]])","v":""},{"$f":"IF(Table22[[#This Row],[8. New embedded network site name*\n(input: text)]]=\"\",\"\",Table22[[#This Row],[8. New embedded network site name*\n(input: text)]])","v":""}]
[{"$f":"IF(Table22[[#This Row],[5. New embedded network site address*\n(input: alpha-numeric )]]=\"\",\"\",Table22[[#This Row],[5. New embedded network site address*\n(input: alpha-numeric )]])","v":""},{"$f":"IF(Table22[[#This Row],[8. New embedded network site name*\n(input: text)]]=\"\",\"\",Table22[[#This Row],[8. New embedded network site name*\n(input: text)]])","v":""}]
[{"$f":"IF(Table22[[#This Row],[5. New embedded network site address*\n(input: alpha-numeric )]]=\"\",\"\",Table22[[#This Row],[5. New embedded network site address*\n(input: alpha-numeric )]])","v":""},{"$f":"IF(Table22[[#This Row],[8. New embedded network site name*\n(input: text)]]=\"\",\"\",Table22[[#This Row],[8. New embedded network site name*\n(input: text)]])","v":""}]
[{"$f":"IF(Table22[[#This Row],[5. New embedded network site address*\n(input: alpha-numeric )]]=\"\",\"\",Table22[[#This Row],[5. New embedded network site address*\n(input: alpha-numeric )]])","v":""},{"$f":"IF(Table22[[#This Row],[8. New embedded network site name*\n(input: text)]]=\"\",\"\",Table22[[#This Row],[8. New embedded network site name*\n(input: text)]])","v":""}]
[{"$f":"IF(Table22[[#This Row],[5. New embedded network site address*\n(input: alpha-numeric )]]=\"\",\"\",Table22[[#This Row],[5. New embedded network site address*\n(input: alpha-numeric )]])","v":""},{"$f":"IF(Table22[[#This Row],[8. New embedded network site name*\n(input: text)]]=\"\",\"\",Table22[[#This Row],[8. New embedded network site name*\n(input: text)]])","v":""}]
[{"$f":"IF(Table22[[#This Row],[5. New embedded network site address*\n(input: alpha-numeric )]]=\"\",\"\",Table22[[#This Row],[5. New embedded network site address*\n(input: alpha-numeric )]])","v":""},{"$f":"IF(Table22[[#This Row],[8. New embedded network site name*\n(input: text)]]=\"\",\"\",Table22[[#This Row],[8. New embedded network site name*\n(input: text)]])","v":""}]
[{"$f":"IF(Table22[[#This Row],[5. New embedded network site address*\n(input: alpha-numeric )]]=\"\",\"\",Table22[[#This Row],[5. New embedded network site address*\n(input: alpha-numeric )]])","v":""},{"$f":"IF(Table22[[#This Row],[8. New embedded network site name*\n(input: text)]]=\"\",\"\",Table22[[#This Row],[8. New embedded network site name*\n(input: text)]])","v":""}]
[{"$f":"IF(Table22[[#This Row],[5. New embedded network site address*\n(input: alpha-numeric )]]=\"\",\"\",Table22[[#This Row],[5. New embedded network site address*\n(input: alpha-numeric )]])","v":""},{"$f":"IF(Table22[[#This Row],[8. New embedded network site name*\n(input: text)]]=\"\",\"\",Table22[[#This Row],[8. New embedded network site name*\n(input: text)]])","v":""}]
[{"$f":"IF(Table22[[#This Row],[5. New embedded network site address*\n(input: alpha-numeric )]]=\"\",\"\",Table22[[#This Row],[5. New embedded network site address*\n(input: alpha-numeric )]])","v":""},{"$f":"IF(Table22[[#This Row],[8. New embedded network site name*\n(input: text)]]=\"\",\"\",Table22[[#This Row],[8. New embedded network site name*\n(input: text)]])","v":""}]
[{"$f":"IF(Table22[[#This Row],[5. New embedded network site address*\n(input: alpha-numeric )]]=\"\",\"\",Table22[[#This Row],[5. New embedded network site address*\n(input: alpha-numeric )]])","v":""},{"$f":"IF(Table22[[#This Row],[8. New embedded network site name*\n(input: text)]]=\"\",\"\",Table22[[#This Row],[8. New embedded network site name*\n(input: text)]])","v":""}]
[{"$f":"IF(Table22[[#This Row],[5. New embedded network site address*\n(input: alpha-numeric )]]=\"\",\"\",Table22[[#This Row],[5. New embedded network site address*\n(input: alpha-numeric )]])","v":""},{"$f":"IF(Table22[[#This Row],[8. New embedded network site name*\n(input: text)]]=\"\",\"\",Table22[[#This Row],[8. New embedded network site name*\n(input: text)]])","v":""}]
[{"$f":"IF(Table22[[#This Row],[5. New embedded network site address*\n(input: alpha-numeric )]]=\"\",\"\",Table22[[#This Row],[5. New embedded network site address*\n(input: alpha-numeric )]])","v":""},{"$f":"IF(Table22[[#This Row],[8. New embedded network site name*\n(input: text)]]=\"\",\"\",Table22[[#This Row],[8. New embedded network site name*\n(input: text)]])","v":""}]
[{"$f":"IF(Table22[[#This Row],[5. New embedded network site address*\n(input: alpha-numeric )]]=\"\",\"\",Table22[[#This Row],[5. New embedded network site address*\n(input: alpha-numeric )]])","v":""},{"$f":"IF(Table22[[#This Row],[8. New embedded network site name*\n(input: text)]]=\"\",\"\",Table22[[#This Row],[8. New embedded network site name*\n(input: text)]])","v":""}]
[{"$f":"IF(Table22[[#This Row],[5. New embedded network site address*\n(input: alpha-numeric )]]=\"\",\"\",Table22[[#This Row],[5. New embedded network site address*\n(input: alpha-numeric )]])","v":""},{"$f":"IF(Table22[[#This Row],[8. New embedded network site name*\n(input: text)]]=\"\",\"\",Table22[[#This Row],[8. New embedded network site name*\n(input: text)]])","v":""}]
[{"$f":"IF(Table22[[#This Row],[5. New embedded network site address*\n(input: alpha-numeric )]]=\"\",\"\",Table22[[#This Row],[5. New embedded network site address*\n(input: alpha-numeric )]])","v":""},{"$f":"IF(Table22[[#This Row],[8. New embedded network site name*\n(input: text)]]=\"\",\"\",Table22[[#This Row],[8. New embedded network site name*\n(input: text)]])","v":""}]

{"sheet":"Definitions","index":5,"n_rows":27,"n_cols":7,"rows_kept":27,"cut":false,"hidden":false,"merged":[]}
["Item No.","GEO Relevant Section (if applicable)","Description of Condition (if applicable)","Tab Name","Reporting Data Item\n*Indicates a required field","Definition of Data Item","Possible Data Input"]
[1,null,null,"Reporting - Entity Details","Exempt person's entity name*","The legal name of the exempt entity who is selling electricity supplied to customers’ premises connected to that embedded network.","Text"]
[2,null,null,"Reporting - Entity Details","Exempt person's Australian Company Number (ACN)*","The ACN of the exempt person who is selling electricity supplied to customers’ premises connected to that embedded network.","Number"]
[3,null,null,"Reporting - Entity Details","Exempt person's trading name (if applicable)","The trading name of the exempt entity who is selling electricity supplied to customers’ premises connected to that embedded network.","Text"]
[4,null,null,"Reporting - Entity Details","Third-party service provider name (if applicable)","If you have a third-party service provider or agent as the contact for your customers, include their details.","Text"]
[5,null,null,"Reporting - Entity Details","New embedded network site address*","The site address for the embedded network for which you are selling electricity.","Alpha-numeric\nFormat:  Road number name & type \nE.g. 1 James Street"]
[6,null,null,"Reporting - Entity Details","Embedded network site suburb*","The site suburb for the embedded network for which you are selling electricity.","Number"]
[7,null,null,"Reporting - Entity Details","Embedded network site postcode*","The site postcode for the embedded network for which you are selling electricity.","Text"]
[8,null,null,"Reporting - Entity Details","New embedded network site name*","The site name for the embedded network for which you are selling electricity.","Text"]
[9,null,null,"Reporting - Entity Details","Exemption type*","The registered retail activity exemption as outlined the GEO. ","Select from drop down\nVR2 for a new embedded network"]
[10,"12(1)(b) ","It is a condition of an exemption under this Part that the exempt person must provide to the Commission (whether or not through an agent) any information requested by the Commission, that the Minister or the Commission (as the case requires) requests for the administration of this Part.","Reporting - Clause 12","Reporting period end date*","The reporting period end date for the calendar year for which you are doing your reporting.","Date\ndd/mm/yyyy"]
[11,"12(2)(c) ","Without limiting subclause (1), it is a condition of an exemption under Division 1 under which electricity is supplied from an embedded network to customers whose premises are connected to that embedded network; that, on or before 31 March in each year, the exempt person must provide to the Commission (whether or not through an agent) in the form required by the Commission details of the supply facility from which the electricity is supplied to that embedded network.","Reporting - Clause 12","Supply facility entity name* ","Supply facility entity name means the licensed distribution company which the embedded network connects to and takes electricity supply from.","Select from drop down\nAusnet, Citipower Jemena, Powercor, United Energy"]
[12,"12(2)(e) ","Without limiting subclause (1), it is a condition of an exemption under Division 1 under which electricity is supplied from an embedded network to customers whose premises are connected to that embedded network; that, on or before 31 March in each year, the exempt person must provide to the Commission (whether or not through an agent) in the form required by the Commission details of the number and types of meters installed at the relevant embedded network including the owners of those meters.","Reporting - Clause 12","Type(s) of meters installed at the new embedded network excluding the parent meter*","Consult AEMO for meter type classifications. \nUse the input cell drop down menu to select the types of meters installed at the new emebedded network excluding the parent meter.","Select from drop down\nType 1-4, Type 5, Type 6, Type 7"]
[13,"12(2)(d)(i) ","Without limiting subclause (1), it is a condition of an exemption under Division 1 under which electricity is supplied from an embedded network to customers whose premises are connected to that embedded network; that, on or before 31 March in each year, the exempt person must provide to the Commission (whether or not through an agent) in the form required by the Commission details of the number of residential customers, small commercial/retail customers and large customers whose premises are connected to the relevant embedded network and to whom the exempt person was selling electricity on 1 January in that year.","Reporting - Clause 12","Total number of residential customers whose premises are connected to the new embedded network*","Residential customer means a person who buys electricity principally for personal, household or domestic use at premises.","Number"]
[14,"12(2)(e) ","Without limiting subclause (1), it is a condition of an exemption under Division 1 under which electricity is supplied from an embedded network to customers whose premises are connected to that embedded network; that, on or before 31 March in each year, the exempt person must provide to the Commission (whether or not through an agent) in the form required by the Commission details of the number and types of meters installed at the relevant embedded network including the owners of those meters.","Reporting - Clause 12","Total number of meters installed at the new embedded network excluding the parent meter*","Meter means any device that measures the quantity of electricity passing through it or that records the consumption of electricity at the customer’s premises.","Number"]
[15,"12(2)(e) ","Without limiting subclause (1), it is a condition of an exemption under Division 1 under which electricity is supplied from an embedded network to customers whose premises are connected to that embedded network; that, on or before 31 March in each year, the exempt person must provide to the Commission (whether or not through an agent) in the form required by the Commission details of the number and types of meters installed at the relevant embedded network including the owners of those meters.","Reporting - Clause 12","Meter owner entity name excluding the parent meter*","Meter means any device that measures the quantity of electricity passing through it or that records the consumption of electricity at the customer’s premises.","Text"]
[16,"8(3)(a)(i)","It is a condition of an exemption under Division 1 for the VR2 retail activity in respect of a new embedded network that, for each calendar year, the exempt person must maintain records of the amount of electricity supplied to that new embedded network from a licensed distribution company’s distribution system.","Reporting - Clause 8","Total amount of electricity supplied to that new embedded network from a licensed distribution company’s distribution system in megawatt hours*","Licensed distribution company means a person who is the holder of a licence under the Act to distribute electricity.","Number"]
[17,"8(3)(a)(ii)","It is a condition of an exemption under Division 1 for the VR2 retail activity in respect of a new embedded network that, for each calendar year, the exempt person must maintain records of the amount of electricity supplied to that new embedded network that is generated by means of that new embedded network’s onsite renewable energy facilities.","Reporting - Clause 8","Total amount of electricity supplied to that new embedded network that is generated by means of that new embedded network’s onsite renewable energy facilities in megawatt hours*","Onsite renewable energy facility in respect of an embedded network means a facility and or a plant that produces electricity by utilising renewable energy sources or converting renewable energy sources into electricity; and is connected to that embedded network.","Number"]
[18,"8(3)(a)(iii)","It is a condition of an exemption under Division 1 for the VR2 retail activity in respect of a new embedded network that, for each calendar year, the exempt person must maintain records of the amount of electricity the exempt person sells to residential customers in that new embedded network including the amount of that electricity that is generated by means of that new embedded network’s onsite renewable energy facilities.","Reporting - Clause 8","Total amount of electricity sold to residential customers at the new embedded network in megawatt hours*","The total amount of electricity supplied to residential customers at the site of the embedded network in megawatt hours. The total includes both electricity supplied from a licensed distribution company’s distribution system and that is generated by means of that new embedded network’s onsite renewable energy facilities.","Number"]
[19,"8(3)(a)(iv)","It is a condition of an exemption under Division 1 for the VR2 retail activity in respect of a new embedded network that, for each calendar year, the exempt person must maintain records of any qualifying LGCs voluntarily surrendered by the exempt person.","Reporting - Clause 8","Are there any qualifying LGCs voluntarily surrendered by the exempt person*","Voluntarily surrender in respect of a qualifying Large-scale Generation Certificate (LGC) means to perform all steps required of the holder of that the LGC (adminstered by the national Clean Energy Regulator) to complete the voluntary surrender of the LGC under section 28A of the Renewable Energy (Electricity) Act 2000 (Cth).","Select from drop down\nYes/No"]
[20,"8(3)(a)(iv)","It is a condition of an exemption under Division 1 for the VR2 retail activity in respect of a new embedded network that, for each calendar year, the exempt person must maintain records of any qualifying LGCs voluntarily surrendered by the exempt person.","Reporting - Clause 8","Provide details of  any qualifying LGCs voluntarily surrendered by the exempt person (if applicable)","Voluntarily surrender in respect of a qualifying Large-scale Generation Certificate (LGC) means to perform all steps required of the holder of that the LGC (adminstered by the national Clean Energy Regulator) to complete the voluntary surrender of the LGC under section 28A of the Renewable Energy (Electricity) Act 2000 (Cth).","Text"]
[21,"8(3)(a)(v)","It is a condition of an exemption under Division 1 for the VR2 retail activity in respect of a new embedded network that, for each calendar year, the exempt person must maintain records of any voluntary surrender arrangement.","Reporting - Clause 8","Are there any voluntary surrender arrangement(s) for the new embedded network*","Voluntary surrender arrangement in respect of a calendar year means an agreement between an exempt person and another person under which that other person agrees to voluntarily surrender qualifying Large-scale Generation Certificates (LGCs) for the exempt person on or before the voluntary surrender date for that calendar year; and to name the exempt person in the process of voluntarily surrendering those qualifying LGCs or, if that is not possible, to provide the exempt person with written confirmation within 5 business days of voluntarily surrendering those qualifying LGCs that they have been voluntarily surrendered for the exempt person.","Select from drop down\nYes/No"]
[22,"8(3)(a)(v)","It is a condition of an exemption under Division 1 for the VR2 retail activity in respect of a new embedded network that, for each calendar year, the exempt person must maintain records of any voluntary surrender arrangement.","Reporting - Clause 8","Provide details of  any voluntary surrender arrangement(s) (if applicable)","Voluntary surrender arrangement in respect of a calendar year means an agreement between an exempt person and another person under which that other person agrees to voluntarily surrender qualifying Large-scale Generation Certificates (LGCs) for the exempt person on or before the voluntary surrender date for that calendar year; and to name the exempt person in the process of voluntarily surrendering those qualifying LGCs or, if that is not possible, to provide the exempt person with written confirmation within 5 business days of voluntarily surrendering those qualifying LGCs that they have been voluntarily surrendered for the exempt person.","Text"]
[23,"8(3)(a)(vi)","It is a condition of an exemption under Division 1 for the VR2 retail activity in respect of a new embedded network that, for each calendar year, the exempt person must maintain records of any GreenPower arrangement.","Reporting - Clause 8","Are there any GreenPower arrangement(s) for the new embedded network*","Greenpower arrangement in respect of a calendar year means an agreement between an exempt person and a GreenPower Provider for the sale to the exempt person of a Green Power Product for that calendar year.","Select from drop down\nYes/No"]
[24,"8(3)(a)(vi)","It is a condition of an exemption under Division 1 for the VR2 retail activity in respect of a new embedded network that, for each calendar year, the exempt person must maintain records of any GreenPower arrangement.","Reporting - Clause 8","Provide details of any GreenPower arrangement(s) (if applicable)","Greenpower arrangement in respect of a calendar year means an agreement between an exempt person and a GreenPower Provider for the sale to the exempt person of a Green Power Product for that calendar year.","Text"]
[25,"8(3)(b)(i)","It is a condition of an exemption under Division 1 for the VR2 retail activity in respect of a new embedded network that, for each calendar year, the exempt person must by 31 March following the end of a calendar year, provide a summary of the amounts recorded under subclause (3)(a) for that calendar year to the Commission, in the form required by the Commission.","Reporting - Clause 8","The date this summary was or will be provided to the Commission*","The date the exempt person provided a summary  (or intends to provide a summary) of the amounts recorded under subclause (3)(a) for that calendar year to the Commission.","Date\ndd/mm/yyyy"]
[26,"8(3)(b)(ii)","It is a condition of an exemption under Division 1 for the VR2 retail activity in respect of a new embedded network that, for each calendar year, the exempt person must by 31 March following the end of a calendar year, provide a summary of the amounts recorded under subclause (3)(a) for that calendar year to residential customers in that new embedded network to whom the exempt person sells electricity.","Reporting - Clause 8","The date a summary was or will be provided to the residential customers in that new embedded network to whom the exempt person sells electricity*","The date the exempt person provided a summary (or intends to provide a summary) of the amounts recorded under subclause (3)(a) for that calendar year to the residential customers in that new embedded network to whom the exempt person sells electricity.","Date\ndd/mm/yyyy"]

{"sheet":"Submission Due Dates","index":6,"n_rows":11,"n_cols":4,"rows_kept":11,"cut":false,"hidden":false,"merged":[[16,1,16,2],[17,1,17,2],[18,1,18,2],[1,1,3,3],[12,1,12,2],[13,1,13,2],[14,1,14,2],[15,1,15,2]]}
[]
[null," It is a condition of an exemption that, on or before 31 March in each year, the exempt person must provide to the Commission (whether or not through an agent) any information requested by the Commission in the form required by the Commission."]
[]
[]
[]
[null,"Year","Reporting Period End Date","Submission Due Dates"]
[null,2023,"2023-12-31","2024-03-31"]
[null,2024,"2024-12-31","2025-03-31"]
[null,2025,"2025-12-31","2026-03-31"]
[null,2026,"2026-12-31","2027-03-31"]
[null,2027,"2027-12-31","2028-03-31"]

{"sheet":"Filename Convention","index":7,"n_rows":10,"n_cols":5,"rows_kept":10,"cut":false,"hidden":false,"merged":[[1,1,1,4],[2,1,2,4],[3,1,3,4],[8,1,8,4],[9,1,9,4]]}
[]
[null,"Follow the below filename convention when submitting files."]
[null,"Files are required in excel .xlsx format."]
[null,"Below is an example of a filename for Melbourne Apartments Pty Ltd yearly embedded network data for 2023."]
[]
[null,"Exempt Person","Activity","Year","File Type"]
[null,"Melbourne Apartments","ENReporting",2023,".xlsx"]
[]
[null,"Sample filename"]
[null,"MelbourneApartments_ENReporting_2023.xlsx"]